Workbook

Sheet  (hidden)
A2: 前年 | B2: 本年 | C2: 月分 | D2: 累月 | E2: 集計現在
A3: R02 | B3: R03 | C3: 12 | D3: 1～12月 | E3: 2022-02-01

Sheet 主要罪種別
A1: 滋賀県
M2: =A1 -> 滋賀県 | X2: =A1 -> 滋賀県
A3: 区 分 | D3: 認 知 件 数 | H3: 検 挙 件 数 | L3: 検 挙 率 | O3: 検 挙 人 員 | S3: 検 挙 人 員 （ 少 年 ） | W3: 少 年 比 率
D4: =本年 -> R03 | E4: =前年 -> R02 | F4: 前 年 比 | H4: =本年 -> R03 | I4: =前年 -> R02 | J4: 前 年 比 | L4: =本年 -> R03 | M4: =前年 -> R02 | N4: 前年比 | O4: =本年 -> R03 | P4: =前年 -> R02 | Q4: 前 年 比 | S4: =本年 -> R03 | T4: =前年 -> R02 | U4: 前 年 比 | W4: =本年 -> R03 | X4: =前年 -> R02 | Y4: 前年比
D5: =累月 -> 1～12月 | E5: =累月 -> 1～12月 | F5: 件 数 | G5: 率 | H5: =累月 -> 1～12月 | I5: =累月 -> 1～12月 | J5: 件 数 | K5: 率 | L5: =累月 -> 1～12月 | M5: =累月 -> 1～12月 | N5: ポイント | O5: =累月 -> 1～12月 | P5: =累月 -> 1～12月 | Q5: 人 員 | R5: 率 | S5: =累月 -> 1～12月 | T5: =累月 -> 1～12月 | U5: 人 員 | V5: 率 | W5: =累月 -> 1～12月 | X5: =累月 -> 1～12月 | Y5: ポイント
A6: 刑法犯総件数 | D6: =D9+D17+D23+D57+D65+D70 -> 5814 | E6: =E9+E17+E23+E57+E65+E70 -> 6039 | F6: =D6-E6 -> -225 | G6: =IF(AND(E6=0,D6=0),0,IF(E6>0,F6/E6*100,IF(F6>0,"―",""))) -> -3.725782414 | H6: =H9+H17+H23+H57+H65+H70 -> 2952 | I6: =I9+I17+I23+I57+I65+I70 -> 2511 | J6: =H6-I6 -> 441 | K6: =IF(AND(I6=0,H6=0),0,IF(I6>0,J6/I6*100,IF(J6>0,"―",""))) -> 17.56272401 | L6: =IF(D6>0,ROUND(H6/D6*100,1),IF(H6>0,"―","")) -> 50.8 | M6: =IF(E6>0,ROUND(I6/E6*100,1),IF(I6>0,"―","")) -> 41.6 | N6: =IF(AND(M6="",L6=""),"",IF(ISERR(L6-M6),"―",L6-M6)) -> 9.2 | O6: =O9+O17+O23+O57+O65+O70 -> 1893 | P6: =P9+P17+P23+P57+P65+P70 -> 1807 | Q6: =O6-P6 -> 86 | R6: =IF(AND(P6=0,O6=0),0,IF(P6>0,Q6/P6*100,IF(Q6>0,"―",""))) -> 4.759269507 | S6: =S9+S17+S23+S57+S65+S70 -> 227 | T6: =T9+T17+T23+T57+T65+T70 -> 236 | U6: =S6-T6 -> -9 | V6: =IF(AND(T6=0,S6=0),0,IF(T6>0,U6/T6*100,IF(U6>0,"―",""))) -> -3.813559322 | W6: =IF(O6>0,ROUND(S6/O6*100,1),"") -> 12 | X6: 13.1 | Y6: =IF(AND(X6="",W6=""),"",IF(ISERR(W6-X6),"―",W6-X6)) -> -1.1
A7: 重要犯罪 | D7: =D9+D67+D77 -> 102 | E7: =E9+E67+E77 -> 84 | F7: 18 | G7: 21.42857143 | H7: =H9+H67+H77 -> 80 | I7: =I9+I67+I77 -> 85 | J7: -5 | K7: -5.882352941 | L7: 78.4 | M7: 101.2 | N7: -22.8 | O7: =O9+O67+O77 -> 79 | P7: =P9+P67+P77 -> 77 | Q7: 2 | R7: 2.597402597 | S7: =S9+S67+S77 -> 6 | T7: =T9+T67+T77 -> 24 | U7: -18 | V7: -75 | W7: 7.6 | X7: 31.2 | Y7: -23.6
A8: 重要窃盗犯 | D8: =D24+D40+D47+D48 -> 414 | E8: =E24+E40+E47+E48 -> 508 | F8: -94 | G8: -18.50393701 | H8: =H24+H40+H47+H48 -> 343 | I8: =I24+I40+I47+I48 -> 254 | J8: 89 | K8: 35.03937008 | L8: 82.9 | M8: 50 | N8: 32.9 | O8: =O24+O40+O47+O48 -> 96 | P8: =P24+P40+P47+P48 -> 122 | Q8: -26 | R8: -21.31147541 | S8: =S24+S40+S47+S48 -> 16 | T8: =T24+T40+T47+T48 -> 13 | U8: 3 | V8: 23.07692308 | W8: 16.7 | X8: 10.7 | Y8: 6
A9: 凶悪犯 | D9: =IFERROR(INDEX(認知罪種本年!$E$5:$U$1000,MATCH($A9,認知罪種本年!$D$5:$D$1000,0),MATCH($A$1,認知罪種本年!$E$4:$U$4,0)),0) -> 38 | E9: =IFERROR(INDEX(認知罪種前年!$E$5:$U$1000,MATCH($A9,認知罪種前年!$D$5:$D$1000,0),MATCH($A$1,認知罪種前年!$E$4:$U$4,0)),0) -> 38 | F9: 0 | G9: 0 | H9: =IFERROR(INDEX(検挙罪種本年!$E$5:$U$1000,MATCH($A9,検挙罪種本年!$D$5:$D$1000,0),MATCH($A$1,検挙罪種本年!$E$4:$U$4,0)),0) -> 34 | I9: =IFERROR(INDEX(検挙罪種前年!$E$5:$U$1000,MATCH($A9,検挙罪種前年!$D$5:$D$1000,0),MATCH($A$1,検挙罪種前年!$E$4:$U$4,0)),0) -> 41 | J9: -7 | K9: -17.07317073 | L9: 89.5 | M9: 107.9 | N9: -18.4 | O9: =IFERROR(INDEX(人員罪種本年!$E$5:$U$1000,MATCH($A9,人員罪種本年!$D$5:$D$1000,0),MATCH($A$1,人員罪種本年!$E$4:$U$4,0)),0) -> 34 | P9: =IFERROR(INDEX(人員罪種前年!$E$5:$U$1000,MATCH($A9,人員罪種前年!$D$5:$D$1000,0),MATCH($A$1,人員罪種前年!$E$4:$U$4,0)),0) -> 55 | Q9: -21 | R9: -38.18181818 | S9: =IFERROR(INDEX(少年罪種本年!$E$5:$U$1000,MATCH($A9,少年罪種本年!$D$5:$D$1000,0),MATCH($A$1,少年罪種本年!$E$4:$U$4,0)),0) -> 2 | T9: =IFERROR(INDEX(少年罪種前年!$E$5:$U$1000,MATCH($A9,少年罪種前年!$D$5:$D$1000,0),MATCH($A$1,少年罪種前年!$E$4:$U$4,0)),0) -> 22 | U9: -20 | V9: -90.90909091 | W9: 5.9 | X9: 40 | Y9: -34.1
B10: 殺人 | D10: =IFERROR(INDEX(認知罪種本年!$E$5:$U$1000,MATCH($B10,認知罪種本年!$D$5:$D$1000,0),MATCH($A$1,認知罪種本年!$E$4:$U$4,0)),0) -> 3 | E10: =IFERROR(INDEX(認知罪種前年!$E$5:$U$1000,MATCH($B10,認知罪種前年!$D$5:$D$1000,0),MATCH($A$1,認知罪種前年!$E$4:$U$4,0)),0) -> 3 | F10: 0 | G10: 0 | H10: =IFERROR(INDEX(検挙罪種本年!$E$5:$U$1000,MATCH($B10,検挙罪種本年!$D$5:$D$1000,0),MATCH($A$1,検挙罪種本年!$E$4:$U$4,0)),0) -> 3 | I10: =IFERROR(INDEX(検挙罪種前年!$E$5:$U$1000,MATCH($B10,検挙罪種前年!$D$5:$D$1000,0),MATCH($A$1,検挙罪種前年!$E$4:$U$4,0)),0) -> 7 | J10: -4 | K10: -57.14285714 | L10: 100 | M10: 233.3 | N10: -133.3 | O10: =IFERROR(INDEX(人員罪種本年!$E$5:$U$1000,MATCH($B10,人員罪種本年!$D$5:$D$1000,0),MATCH($A$1,人員罪種本年!$E$4:$U$4,0)),0) -> 4 | P10: =IFERROR(INDEX(人員罪種前年!$E$5:$U$1000,MATCH($B10,人員罪種前年!$D$5:$D$1000,0),MATCH($A$1,人員罪種前年!$E$4:$U$4,0)),0) -> 12 | Q10: -8 | R10: -66.66666667 | S10: =IFERROR(INDEX(少年罪種本年!$E$5:$U$1000,MATCH($B10,少年罪種本年!$D$5:$D$1000,0),MATCH($A$1,少年罪種本年!$E$4:$U$4,0)),0) -> 0 | T10: =IFERROR(INDEX(少年罪種前年!$E$5:$U$1000,MATCH($B10,少年罪種前年!$D$5:$D$1000,0),MATCH($A$1,少年罪種前年!$E$4:$U$4,0)),0) -> 7 | U10: -7 | V10: -100 | W10: 0 | X10: 58.3 | Y10: -58.3
B11: 強盗 | D11: =IFERROR(INDEX(認知罪種本年!$E$5:$U$1000,MATCH($B11,認知罪種本年!$D$5:$D$1000,0),MATCH($A$1,認知罪種本年!$E$4:$U$4,0)),0) -> 4 | E11: =IFERROR(INDEX(認知罪種前年!$E$5:$U$1000,MATCH($B11,認知罪種前年!$D$5:$D$1000,0),MATCH($A$1,認知罪種前年!$E$4:$U$4,0)),0) -> 8 | F11: -4 | G11: -50 | H11: =IFERROR(INDEX(検挙罪種本年!$E$5:$U$1000,MATCH($B11,検挙罪種本年!$D$5:$D$1000,0),MATCH($A$1,検挙罪種本年!$E$4:$U$4,0)),0) -> 5 | I11: =IFERROR(INDEX(検挙罪種前年!$E$5:$U$1000,MATCH($B11,検挙罪種前年!$D$5:$D$1000,0),MATCH($A$1,検挙罪種前年!$E$4:$U$4,0)),0) -> 12 | J11: -7 | K11: -58.33333333 | L11: 125 | M11: 150 | N11: -25 | O11: =IFERROR(INDEX(人員罪種本年!$E$5:$U$1000,MATCH($B11,人員罪種本年!$D$5:$D$1000,0),MATCH($A$1,人員罪種本年!$E$4:$U$4,0)),0) -> 12 | P11: =IFERROR(INDEX(人員罪種前年!$E$5:$U$1000,MATCH($B11,人員罪種前年!$D$5:$D$1000,0),MATCH($A$1,人員罪種前年!$E$4:$U$4,0)),0) -> 23 | Q11: -11 | R11: -47.82608696 | S11: =IFERROR(INDEX(少年罪種本年!$E$5:$U$1000,MATCH($B11,少年罪種本年!$D$5:$D$1000,0),MATCH($A$1,少年罪種本年!$E$4:$U$4,0)),0) -> 2 | T11: =IFERROR(INDEX(少年罪種前年!$E$5:$U$1000,MATCH($B11,少年罪種前年!$D$5:$D$1000,0),MATCH($A$1,少年罪種前年!$E$4:$U$4,0)),0) -> 11 | U11: -9 | V11: -81.81818182 | W11: 16.7 | X11: 47.8 | Y11: -31.1
C12: 侵入強盗 | D12: =IFERROR(INDEX(認知手口本年!$E$5:$U$1000,MATCH($C12,認知手口本年!$D$5:$D$1000,0),MATCH($A$1,認知手口本年!$E$4:$U$4,0)),0) -> 1 | E12: =IFERROR(INDEX(認知手口前年!$E$5:$U$1000,MATCH($C12,認知手口前年!$D$5:$D$1000,0),MATCH($A$1,認知手口前年!$E$4:$U$4,0)),0) -> 1 | F12: 0 | G12: 0 | H12: =IFERROR(INDEX(検挙手口本年!$E$5:$U$1000,MATCH($C12,検挙手口本年!$D$5:$D$1000,0),MATCH($A$1,検挙手口本年!$E$4:$U$4,0)),0) -> 1 | I12: =IFERROR(INDEX(検挙手口前年!$E$5:$U$1000,MATCH($C12,検挙手口前年!$D$5:$D$1000,0),MATCH($A$1,検挙手口前年!$E$4:$U$4,0)),0) -> 3 | J12: -2 | K12: -66.66666667 | L12: 100 | M12: 300 | N12: -200 | O12: =IFERROR(INDEX(人員手口本年!$E$5:$U$1000,MATCH($C12,人員手口本年!$D$5:$D$1000,0),MATCH($A$1,人員手口本年!$E$4:$U$4,0)),0) -> 2 | P12: =IFERROR(INDEX(人員手口前年!$E$5:$U$1000,MATCH($C12,人員手口前年!$D$5:$D$1000,0),MATCH($A$1,人員手口前年!$E$4:$U$4,0)),0) -> 4 | Q12: -2 | R12: -50 | S12: =IFERROR(INDEX(少年手口本年!$E$5:$U$1000,MATCH($C12,少年手口本年!$D$5:$D$1000,0),MATCH($A$1,少年手口本年!$E$4:$U$4,0)),0) -> 0 | T12: =IFERROR(INDEX(少年手口前年!$E$5:$U$1000,MATCH($C12,少年手口前年!$D$5:$D$1000,0),MATCH($A$1,少年手口前年!$E$4:$U$4,0)),0) -> 0 | U12: 0 | V12: 0 | W12: 0 | X12: 0 | Y12: 0
C13: 路上強盗 | D13: =IFERROR(INDEX(認知手口本年!$E$5:$U$1000,MATCH($C13,認知手口本年!$D$5:$D$1000,0),MATCH($A$1,認知手口本年!$E$4:$U$4,0)),0) -> 1 | E13: =IFERROR(INDEX(認知手口前年!$E$5:$U$1000,MATCH($C13,認知手口前年!$D$5:$D$1000,0),MATCH($A$1,認知手口前年!$E$4:$U$4,0)),0) -> 2 | F13: -1 | G13: -50 | H13: =IFERROR(INDEX(検挙手口本年!$E$5:$U$1000,MATCH($C13,検挙手口本年!$D$5:$D$1000,0),MATCH($A$1,検挙手口本年!$E$4:$U$4,0)),0) -> 0 | I13: =IFERROR(INDEX(検挙手口前年!$E$5:$U$1000,MATCH($C13,検挙手口前年!$D$5:$D$1000,0),MATCH($A$1,検挙手口前年!$E$4:$U$4,0)),0) -> 4 | J13: -4 | K13: -100 | L13: 0 | M13: 200 | N13: -200 | O13: =IFERROR(INDEX(人員手口本年!$E$5:$U$1000,MATCH($C13,人員手口本年!$D$5:$D$1000,0),MATCH($A$1,人員手口本年!$E$4:$U$4,0)),0) -> 0 | P13: =IFERROR(INDEX(人員手口前年!$E$5:$U$1000,MATCH($C13,人員手口前年!$D$5:$D$1000,0),MATCH($A$1,人員手口前年!$E$4:$U$4,0)),0) -> 8 | Q13: -8 | R13: -100 | S13: =IFERROR(INDEX(少年手口本年!$E$5:$U$1000,MATCH($C13,少年手口本年!$D$5:$D$1000,0),MATCH($A$1,少年手口本年!$E$4:$U$4,0)),0) -> 0 | T13: =IFERROR(INDEX(少年手口前年!$E$5:$U$1000,MATCH($C13,少年手口前年!$D$5:$D$1000,0),MATCH($A$1,少年手口前年!$E$4:$U$4,0)),0) -> 6 | U13: -6 | V13: -100 | X13: 75 | Y13: ―
C14: その他 | D14: =D11-SUM(D12:D13) -> 2 | E14: =E11-SUM(E12:E13) -> 5 | F14: -3 | G14: -60 | H14: =H11-SUM(H12:H13) -> 4 | I14: =I11-SUM(I12:I13) -> 5 | J14: -1 | K14: -20 | L14: 200 | M14: 100 | N14: 100 | O14: =O11-SUM(O12:O13) -> 10 | P14: =P11-SUM(P12:P13) -> 11 | Q14: -1 | R14: -9.090909091 | S14: =S11-SUM(S12:S13) -> 2 | T14: =T11-SUM(T12:T13) -> 5 | U14: -3 | V14: -60 | W14: 20 | X14: 45.5 | Y14: -25.5
B15: 放火 | D15: =IFERROR(INDEX(認知罪種本年!$E$5:$U$1000,MATCH($B15,認知罪種本年!$D$5:$D$1000,0),MATCH($A$1,認知罪種本年!$E$4:$U$4,0)),0) -> 6 | E15: =IFERROR(INDEX(認知罪種前年!$E$5:$U$1000,MATCH($B15,認知罪種前年!$D$5:$D$1000,0),MATCH($A$1,認知罪種前年!$E$4:$U$4,0)),0) -> 12 | F15: -6 | G15: -50 | H15: =IFERROR(INDEX(検挙罪種本年!$E$5:$U$1000,MATCH($B15,検挙罪種本年!$D$5:$D$1000,0),MATCH($A$1,検挙罪種本年!$E$4:$U$4,0)),0) -> 8 | I15: =IFERROR(INDEX(検挙罪種前年!$E$5:$U$1000,MATCH($B15,検挙罪種前年!$D$5:$D$1000,0),MATCH($A$1,検挙罪種前年!$E$4:$U$4,0)),0) -> 6 | J15: 2 | K15: 33.33333333 | L15: 133.3 | M15: 50 | N15: 83.3 | O15: =IFERROR(INDEX(人員罪種本年!$E$5:$U$1000,MATCH($B15,人員罪種本年!$D$5:$D$1000,0),MATCH($A$1,人員罪種本年!$E$4:$U$4,0)),0) -> 8 | P15: =IFERROR(INDEX(人員罪種前年!$E$5:$U$1000,MATCH($B15,人員罪種前年!$D$5:$D$1000,0),MATCH($A$1,人員罪種前年!$E$4:$U$4,0)),0) -> 6 | Q15: 2 | R15: 33.33333333 | S15: =IFERROR(INDEX(少年罪種本年!$E$5:$U$1000,MATCH($B15,少年罪種本年!$D$5:$D$1000,0),MATCH($A$1,少年罪種本年!$E$4:$U$4,0)),0) -> 0 | T15: =IFERROR(INDEX(少年罪種前年!$E$5:$U$1000,MATCH($B15,少年罪種前年!$D$5:$D$1000,0),MATCH($A$1,少年罪種前年!$E$4:$U$4,0)),0) -> 1 | U15: -1 | V15: -100 | W15: 0 | X15: 16.7 | Y15: -16.7
B16: 強制性交等 | D16: =IFERROR(INDEX(認知罪種本年!$E$5:$U$1000,MATCH($B16,認知罪種本年!$D$5:$D$1000,0),MATCH($A$1,認知罪種本年!$E$4:$U$4,0)),0) -> 25 | E16: =IFERROR(INDEX(認知罪種前年!$E$5:$U$1000,MATCH($B16,認知罪種前年!$D$5:$D$1000,0),MATCH($A$1,認知罪種前年!$E$4:$U$4,0)),0) -> 15 | F16: 10 | G16: 66.66666667 | H16: =IFERROR(INDEX(検挙罪種本年!$E$5:$U$1000,MATCH($B16,検挙罪種本年!$D$5:$D$1000,0),MATCH($A$1,検挙罪種本年!$E$4:$U$4,0)),0) -> 18 | I16: =IFERROR(INDEX(検挙罪種前年!$E$5:$U$1000,MATCH($B16,検挙罪種前年!$D$5:$D$1000,0),MATCH($A$1,検挙罪種前年!$E$4:$U$4,0)),0) -> 16 | J16: 2 | K16: 12.5 | L16: 72 | M16: 106.7 | N16: -34.7 | O16: =IFERROR(INDEX(人員罪種本年!$E$5:$U$1000,MATCH($B16,人員罪種本年!$D$5:$D$1000,0),MATCH($A$1,人員罪種本年!$E$4:$U$4,0)),0) -> 10 | P16: =IFERROR(INDEX(人員罪種前年!$E$5:$U$1000,MATCH($B16,人員罪種前年!$D$5:$D$1000,0),MATCH($A$1,人員罪種前年!$E$4:$U$4,0)),0) -> 14 | Q16: -4 | R16: -28.57142857 | S16: =IFERROR(INDEX(少年罪種本年!$E$5:$U$1000,MATCH($B16,少年罪種本年!$D$5:$D$1000,0),MATCH($A$1,少年罪種本年!$E$4:$U$4,0)),0) -> 0 | T16: =IFERROR(INDEX(少年罪種前年!$E$5:$U$1000,MATCH($B16,少年罪種前年!$D$5:$D$1000,0),MATCH($A$1,少年罪種前年!$E$4:$U$4,0)),0) -> 3 | U16: -3 | V16: -100 | W16: 0 | X16: 21.4 | Y16: -21.4
A17: 粗暴犯 | D17: =IFERROR(INDEX(認知罪種本年!$E$5:$U$1000,MATCH($A17,認知罪種本年!$D$5:$D$1000,0),MATCH($A$1,認知罪種本年!$E$4:$U$4,0)),0) -> 489 | E17: =IFERROR(INDEX(認知罪種前年!$E$5:$U$1000,MATCH($A17,認知罪種前年!$D$5:$D$1000,0),MATCH($A$1,認知罪種前年!$E$4:$U$4,0)),0) -> 363 | F17: 126 | G17: 34.7107438 | H17: =IFERROR(INDEX(検挙罪種本年!$E$5:$U$1000,MATCH($A17,検挙罪種本年!$D$5:$D$1000,0),MATCH($A$1,検挙罪種本年!$E$4:$U$4,0)),0) -> 404 | I17: =IFERROR(INDEX(検挙罪種前年!$E$5:$U$1000,MATCH($A17,検挙罪種前年!$D$5:$D$1000,0),MATCH($A$1,検挙罪種前年!$E$4:$U$4,0)),0) -> 305 | J17: 99 | K17: 32.45901639 | L17: 82.6 | M17: 84 | N17: -1.4 | O17: =IFERROR(INDEX(人員罪種本年!$E$5:$U$1000,MATCH($A17,人員罪種本年!$D$5:$D$1000,0),MATCH($A$1,人員罪種本年!$E$4:$U$4,0)),0) -> 390 | P17: =IFERROR(INDEX(人員罪種前年!$E$5:$U$1000,MATCH($A17,人員罪種前年!$D$5:$D$1000,0),MATCH($A$1,人員罪種前年!$E$4:$U$4,0)),0) -> 338 | Q17: 52 | R17: 15.38461538 | S17: =IFERROR(INDEX(少年罪種本年!$E$5:$U$1000,MATCH($A17,少年罪種本年!$D$5:$D$1000,0),MATCH($A$1,少年罪種本年!$E$4:$U$4,0)),0) -> 57 | T17: =IFERROR(INDEX(少年罪種前年!$E$5:$U$1000,MATCH($A17,少年罪種前年!$D$5:$D$1000,0),MATCH($A$1,少年罪種前年!$E$4:$U$4,0)),0) -> 40 | U17: 17 | V17: 42.5 | W17: 14.6 | X17: 11.8 | Y17: 2.8
B18: 凶器準備集合 | D18: =IFERROR(INDEX(認知罪種本年!$E$5:$U$1000,MATCH($B18,認知罪種本年!$D$5:$D$1000,0),MATCH($A$1,認知罪種本年!$E$4:$U$4,0)),0) -> 0 | E18: =IFERROR(INDEX(認知罪種前年!$E$5:$U$1000,MATCH($B18,認知罪種前年!$D$5:$D$1000,0),MATCH($A$1,認知罪種前年!$E$4:$U$4,0)),0) -> 0 | F18: 0 | G18: 0 | H18: =IFERROR(INDEX(検挙罪種本年!$E$5:$U$1000,MATCH($B18,検挙罪種本年!$D$5:$D$1000,0),MATCH($A$1,検挙罪種本年!$E$4:$U$4,0)),0) -> 0 | I18: =IFERROR(INDEX(検挙罪種前年!$E$5:$U$1000,MATCH($B18,検挙罪種前年!$D$5:$D$1000,0),MATCH($A$1,検挙罪種前年!$E$4:$U$4,0)),0) -> 0 | J18: 0 | K18: 0 | O18: =IFERROR(INDEX(人員罪種本年!$E$5:$U$1000,MATCH($B18,人員罪種本年!$D$5:$D$1000,0),MATCH($A$1,人員罪種本年!$E$4:$U$4,0)),0) -> 0 | P18: =IFERROR(INDEX(人員罪種前年!$E$5:$U$1000,MATCH($B18,人員罪種前年!$D$5:$D$1000,0),MATCH($A$1,人員罪種前年!$E$4:$U$4,0)),0) -> 0 | Q18: 0 | R18: 0 | S18: =IFERROR(INDEX(少年罪種本年!$E$5:$U$1000,MATCH($B18,少年罪種本年!$D$5:$D$1000,0),MATCH($A$1,少年罪種本年!$E$4:$U$4,0)),0) -> 0 | T18: =IFERROR(INDEX(少年罪種前年!$E$5:$U$1000,MATCH($B18,少年罪種前年!$D$5:$D$1000,0),MATCH($A$1,少年罪種前年!$E$4:$U$4,0)),0) -> 0 | U18: 0 | V18: 0
B19: 暴行 | D19: =IFERROR(INDEX(認知罪種本年!$E$5:$U$1000,MATCH($B19,認知罪種本年!$D$5:$D$1000,0),MATCH($A$1,認知罪種本年!$E$4:$U$4,0)),0) -> 228 | E19: =IFERROR(INDEX(認知罪種前年!$E$5:$U$1000,MATCH($B19,認知罪種前年!$D$5:$D$1000,0),MATCH($A$1,認知罪種前年!$E$4:$U$4,0)),0) -> 164 | F19: 64 | G19: 39.02439024 | H19: =IFERROR(INDEX(検挙罪種本年!$E$5:$U$1000,MATCH($B19,検挙罪種本年!$D$5:$D$1000,0),MATCH($A$1,検挙罪種本年!$E$4:$U$4,0)),0) -> 182 | I19: =IFERROR(INDEX(検挙罪種前年!$E$5:$U$1000,MATCH($B19,検挙罪種前年!$D$5:$D$1000,0),MATCH($A$1,検挙罪種前年!$E$4:$U$4,0)),0) -> 138 | J19: 44 | K19: 31.88405797 | L19: 79.8 | M19: 84.1 | N19: -4.3 | O19: =IFERROR(INDEX(人員罪種本年!$E$5:$U$1000,MATCH($B19,人員罪種本年!$D$5:$D$1000,0),MATCH($A$1,人員罪種本年!$E$4:$U$4,0)),0) -> 172 | P19: =IFERROR(INDEX(人員罪種前年!$E$5:$U$1000,MATCH($B19,人員罪種前年!$D$5:$D$1000,0),MATCH($A$1,人員罪種前年!$E$4:$U$4,0)),0) -> 142 | Q19: 30 | R19: 21.12676056 | S19: =IFERROR(INDEX(少年罪種本年!$E$5:$U$1000,MATCH($B19,少年罪種本年!$D$5:$D$1000,0),MATCH($A$1,少年罪種本年!$E$4:$U$4,0)),0) -> 15 | T19: =IFERROR(INDEX(少年罪種前年!$E$5:$U$1000,MATCH($B19,少年罪種前年!$D$5:$D$1000,0),MATCH($A$1,少年罪種前年!$E$4:$U$4,0)),0) -> 7 | U19: 8 | V19: 114.2857143 | W19: 8.7 | X19: 4.9 | Y19: 3.8
B20: 傷害・傷害致死 | D20: =IFERROR(INDEX(認知罪種本年!$E$5:$U$1000,MATCH("傷害",認知罪種本年!$D$5:$D$1000,0),MATCH($A$1,認知罪種本年!$E$4:$U$4,0)),0) -> 196 | E20: =IFERROR(INDEX(認知罪種前年!$E$5:$U$1000,MATCH("傷害",認知罪種前年!$D$5:$D$1000,0),MATCH($A$1,認知罪種前年!$E$4:$U$4,0)),0) -> 143 | F20: 53 | G20: 37.06293706 | H20: =IFERROR(INDEX(検挙罪種本年!$E$5:$U$1000,MATCH("傷害",検挙罪種本年!$D$5:$D$1000,0),MATCH($A$1,検挙罪種本年!$E$4:$U$4,0)),0) -> 165 | I20: =IFERROR(INDEX(検挙罪種前年!$E$5:$U$1000,MATCH("傷害",検挙罪種前年!$D$5:$D$1000,0),MATCH($A$1,検挙罪種前年!$E$4:$U$4,0)),0) -> 121 | J20: 44 | K20: 36.36363636 | L20: 84.2 | M20: 84.6 | N20: -0.4 | O20: =IFERROR(INDEX(人員罪種本年!$E$5:$U$1000,MATCH("傷害",人員罪種本年!$D$5:$D$1000,0),MATCH($A$1,人員罪種本年!$E$4:$U$4,0)),0) -> 176 | P20: =IFERROR(INDEX(人員罪種前年!$E$5:$U$1000,MATCH("傷害",人員罪種前年!$D$5:$D$1000,0),MATCH($A$1,人員罪種前年!$E$4:$U$4,0)),0) -> 130 | Q20: 46 | R20: 35.38461538 | S20: =IFERROR(INDEX(少年罪種本年!$E$5:$U$1000,MATCH("傷害",少年罪種本年!$D$5:$D$1000,0),MATCH($A$1,少年罪種本年!$E$4:$U$4,0)),0) -> 35 | T20: =IFERROR(INDEX(少年罪種前年!$E$5:$U$1000,MATCH("傷害",少年罪種前年!$D$5:$D$1000,0),MATCH($A$1,少年罪種前年!$E$4:$U$4,0)),0) -> 22 | U20: 13 | V20: 59.09090909 | W20: 19.9 | X20: 16.9 | Y20: 3
B21: 脅迫 | D21: =IFERROR(INDEX(認知罪種本年!$E$5:$U$1000,MATCH($B21,認知罪種本年!$D$5:$D$1000,0),MATCH($A$1,認知罪種本年!$E$4:$U$4,0)),0) -> 49 | E21: =IFERROR(INDEX(認知罪種前年!$E$5:$U$1000,MATCH($B21,認知罪種前年!$D$5:$D$1000,0),MATCH($A$1,認知罪種前年!$E$4:$U$4,0)),0) -> 37 | F21: 12 | G21: 32.43243243 | H21: =IFERROR(INDEX(検挙罪種本年!$E$5:$U$1000,MATCH($B21,検挙罪種本年!$D$5:$D$1000,0),MATCH($A$1,検挙罪種本年!$E$4:$U$4,0)),0) -> 39 | I21: =IFERROR(INDEX(検挙罪種前年!$E$5:$U$1000,MATCH($B21,検挙罪種前年!$D$5:$D$1000,0),MATCH($A$1,検挙罪種前年!$E$4:$U$4,0)),0) -> 32 | J21: 7 | K21: 21.875 | L21: 79.6 | M21: 86.5 | N21: -6.9 | O21: =IFERROR(INDEX(人員罪種本年!$E$5:$U$1000,MATCH($B21,人員罪種本年!$D$5:$D$1000,0),MATCH($A$1,人員罪種本年!$E$4:$U$4,0)),0) -> 31 | P21: =IFERROR(INDEX(人員罪種前年!$E$5:$U$1000,MATCH($B21,人員罪種前年!$D$5:$D$1000,0),MATCH($A$1,人員罪種前年!$E$4:$U$4,0)),0) -> 27 | Q21: 4 | R21: 14.81481481 | S21: =IFERROR(INDEX(少年罪種本年!$E$5:$U$1000,MATCH($B21,少年罪種本年!$D$5:$D$1000,0),MATCH($A$1,少年罪種本年!$E$4:$U$4,0)),0) -> 3 | T21: =IFERROR(INDEX(少年罪種前年!$E$5:$U$1000,MATCH($B21,少年罪種前年!$D$5:$D$1000,0),MATCH($A$1,少年罪種前年!$E$4:$U$4,0)),0) -> 3 | U21: 0 | V21: 0 | W21: 9.7 | X21: 11.1 | Y21: -1.4
B22: 恐喝 | D22: =IFERROR(INDEX(認知罪種本年!$E$5:$U$1000,MATCH($B22,認知罪種本年!$D$5:$D$1000,0),MATCH($A$1,認知罪種本年!$E$4:$U$4,0)),0) -> 16 | E22: =IFERROR(INDEX(認知罪種前年!$E$5:$U$1000,MATCH($B22,認知罪種前年!$D$5:$D$1000,0),MATCH($A$1,認知罪種前年!$E$4:$U$4,0)),0) -> 19 | F22: -3 | G22: -15.78947368 | H22: =IFERROR(INDEX(検挙罪種本年!$E$5:$U$1000,MATCH($B22,検挙罪種本年!$D$5:$D$1000,0),MATCH($A$1,検挙罪種本年!$E$4:$U$4,0)),0) -> 18 | I22: =IFERROR(INDEX(検挙罪種前年!$E$5:$U$1000,MATCH($B22,検挙罪種前年!$D$5:$D$1000,0),MATCH($A$1,検挙罪種前年!$E$4:$U$4,0)),0) -> 14 | J22: 4 | K22: 28.57142857 | L22: 112.5 | M22: 73.7 | N22: 38.8 | O22: =IFERROR(INDEX(人員罪種本年!$E$5:$U$1000,MATCH($B22,人員罪種本年!$D$5:$D$1000,0),MATCH($A$1,人員罪種本年!$E$4:$U$4,0)),0) -> 11 | P22: =IFERROR(INDEX(人員罪種前年!$E$5:$U$1000,MATCH($B22,人員罪種前年!$D$5:$D$1000,0),MATCH($A$1,人員罪種前年!$E$4:$U$4,0)),0) -> 39 | Q22: -28 | R22: -71.79487179 | S22: =IFERROR(INDEX(少年罪種本年!$E$5:$U$1000,MATCH($B22,少年罪種本年!$D$5:$D$1000,0),MATCH($A$1,少年罪種本年!$E$4:$U$4,0)),0) -> 4 | T22: =IFERROR(INDEX(少年罪種前年!$E$5:$U$1000,MATCH($B22,少年罪種前年!$D$5:$D$1000,0),MATCH($A$1,少年罪種前年!$E$4:$U$4,0)),0) -> 8 | U22: -4 | V22: -50 | W22: =IF(O22>0,ROUND(S22/O22*100,1),"") -> 36.4 | X22: 20.5 | Y22: 15.9
A23: 窃盗犯 | D23: =IFERROR(INDEX(認知罪種本年!$E$5:$U$1000,MATCH("窃盗",認知罪種本年!$D$5:$D$1000,0),MATCH($A$1,認知罪種本年!$E$4:$U$4,0)),0) -> 3696 | E23: =IFERROR(INDEX(認知罪種前年!$E$5:$U$1000,MATCH("窃盗",認知罪種前年!$D$5:$D$1000,0),MATCH($A$1,認知罪種前年!$E$4:$U$4,0)),0) -> 4172 | F23: -476 | G23: -11.40939597 | H23: =IFERROR(INDEX(検挙罪種本年!$E$5:$U$1000,MATCH("窃盗",検挙罪種本年!$D$5:$D$1000,0),MATCH($A$1,検挙罪種本年!$E$4:$U$4,0)),0) -> 1872 | I23: =IFERROR(INDEX(検挙罪種前年!$E$5:$U$1000,MATCH("窃盗",検挙罪種前年!$D$5:$D$1000,0),MATCH($A$1,検挙罪種前年!$E$4:$U$4,0)),0) -> 1641 | J23: 231 | K23: 14.07678245 | L23: 50.6 | M23: 39.3 | N23: 11.3 | O23: =IFERROR(INDEX(人員罪種本年!$E$5:$U$1000,MATCH("窃盗",人員罪種本年!$D$5:$D$1000,0),MATCH($A$1,人員罪種本年!$E$4:$U$4,0)),0) -> 1006 | P23: =IFERROR(INDEX(人員罪種前年!$E$5:$U$1000,MATCH("窃盗",人員罪種前年!$D$5:$D$1000,0),MATCH($A$1,人員罪種前年!$E$4:$U$4,0)),0) -> 1048 | Q23: -42 | R23: -4.007633588 | S23: =IFERROR(INDEX(少年罪種本年!$E$5:$U$1000,MATCH("窃盗",少年罪種本年!$D$5:$D$1000,0),MATCH($A$1,少年罪種本年!$E$4:$U$4,0)),0) -> 115 | T23: =IFERROR(INDEX(少年罪種前年!$E$5:$U$1000,MATCH("窃盗",少年罪種前年!$D$5:$D$1000,0),MATCH($A$1,少年罪種前年!$E$4:$U$4,0)),0) -> 134 | U23: -19 | V23: -14.17910448 | W23: 11.4 | X23: 12.8 | Y23: -1.4
B24: 侵入窃盗 | D24: =IFERROR(INDEX(認知罪種本年!$E$5:$U$1000,MATCH($B24,認知罪種本年!$D$5:$D$1000,0),MATCH($A$1,認知罪種本年!$E$4:$U$4,0)),0) -> 374 | E24: =IFERROR(INDEX(認知罪種前年!$E$5:$U$1000,MATCH($B24,認知罪種前年!$D$5:$D$1000,0),MATCH($A$1,認知罪種前年!$E$4:$U$4,0)),0) -> 434 | F24: -60 | G24: -13.82488479 | H24: =IFERROR(INDEX(検挙罪種本年!$E$5:$U$1000,MATCH($B24,検挙罪種本年!$D$5:$D$1000,0),MATCH($A$1,検挙罪種本年!$E$4:$U$4,0)),0) -> 319 | I24: =IFERROR(INDEX(検挙罪種前年!$E$5:$U$1000,MATCH($B24,検挙罪種前年!$D$5:$D$1000,0),MATCH($A$1,検挙罪種前年!$E$4:$U$4,0)),0) -> 233 | J24: 86 | K24: 36.90987124 | L24: 85.3 | M24: 53.7 | N24: 31.6 | O24: =IFERROR(INDEX(人員罪種本年!$E$5:$U$1000,MATCH($B24,人員罪種本年!$D$5:$D$1000,0),MATCH($A$1,人員罪種本年!$E$4:$U$4,0)),0) -> 87 | P24: =IFERROR(INDEX(人員罪種前年!$E$5:$U$1000,MATCH($B24,人員罪種前年!$D$5:$D$1000,0),MATCH($A$1,人員罪種前年!$E$4:$U$4,0)),0) -> 107 | Q24: -20 | R24: -18.69158879 | S24: =IFERROR(INDEX(少年罪種本年!$E$5:$U$1000,MATCH($B24,少年罪種本年!$D$5:$D$1000,0),MATCH($A$1,少年罪種本年!$E$4:$U$4,0)),0) -> 16 | T24: =IFERROR(INDEX(少年罪種前年!$E$5:$U$1000,MATCH($B24,少年罪種前年!$D$5:$D$1000,0),MATCH($A$1,少年罪種前年!$E$4:$U$4,0)),0) -> 9 | U24: 7 | V24: 77.77777778 | W24: 18.4 | X24: 8.4 | Y24: 10
C25: 空き巣 | D25: =IFERROR(INDEX(認知手口本年!$E$5:$U$1000,MATCH($C25,認知手口本年!$D$5:$D$1000,0),MATCH($A$1,認知手口本年!$E$4:$U$4,0)),0) -> 90 | E25: =IFERROR(INDEX(認知手口前年!$E$5:$U$1000,MATCH($C25,認知手口前年!$D$5:$D$1000,0),MATCH($A$1,認知手口前年!$E$4:$U$4,0)),0) -> 131 | F25: -41 | G25: -31.29770992 | H25: =IFERROR(INDEX(検挙手口本年!$E$5:$U$1000,MATCH($C25,検挙手口本年!$D$5:$D$1000,0),MATCH($A$1,検挙手口本年!$E$4:$U$4,0)),0) -> 67 | I25: =IFERROR(INDEX(検挙手口前年!$E$5:$U$1000,MATCH($C25,検挙手口前年!$D$5:$D$1000,0),MATCH($A$1,検挙手口前年!$E$4:$U$4,0)),0) -> 67 | J25: 0 | K25: 0 | L25: 74.4 | M25: 51.1 | N25: 23.3 | O25: =IFERROR(INDEX(人員手口本年!$E$5:$U$1000,MATCH($C25,人員手口本年!$D$5:$D$1000,0),MATCH($A$1,人員手口本年!$E$4:$U$4,0)),0) -> 21 | P25: =IFERROR(INDEX(人員手口前年!$E$5:$U$1000,MATCH($C25,人員手口前年!$D$5:$D$1000,0),MATCH($A$1,人員手口前年!$E$4:$U$4,0)),0) -> 26 | Q25: -5 | R25: -19.23076923 | S25: =IFERROR(INDEX(少年手口本年!$E$5:$U$1000,MATCH($C25,少年手口本年!$D$5:$D$1000,0),MATCH($A$1,少年手口本年!$E$4:$U$4,0)),0) -> 5 | T25: =IFERROR(INDEX(少年手口前年!$E$5:$U$1000,MATCH($C25,少年手口前年!$D$5:$D$1000,0),MATCH($A$1,少年手口前年!$E$4:$U$4,0)),0) -> 2 | U25: 3 | V25: 150 | W25: 23.8 | X25: 7.7 | Y25: 16.1
C26: 忍込み | D26: =IFERROR(INDEX(認知手口本年!$E$5:$U$1000,MATCH($C26,認知手口本年!$D$5:$D$1000,0),MATCH($A$1,認知手口本年!$E$4:$U$4,0)),0) -> 39 | E26: =IFERROR(INDEX(認知手口前年!$E$5:$U$1000,MATCH($C26,認知手口前年!$D$5:$D$1000,0),MATCH($A$1,認知手口前年!$E$4:$U$4,0)),0) -> 46 | F26: -7 | G26: -15.2173913 | H26: =IFERROR(INDEX(検挙手口本年!$E$5:$U$1000,MATCH($C26,検挙手口本年!$D$5:$D$1000,0),MATCH($A$1,検挙手口本年!$E$4:$U$4,0)),0) -> 17 | I26: =IFERROR(INDEX(検挙手口前年!$E$5:$U$1000,MATCH($C26,検挙手口前年!$D$5:$D$1000,0),MATCH($A$1,検挙手口前年!$E$4:$U$4,0)),0) -> 32 | J26: -15 | K26: -46.875 | L26: 43.6 | M26: 69.6 | N26: -26 | O26: =IFERROR(INDEX(人員手口本年!$E$5:$U$1000,MATCH($C26,人員手口本年!$D$5:$D$1000,0),MATCH($A$1,人員手口本年!$E$4:$U$4,0)),0) -> 3 | P26: =IFERROR(INDEX(人員手口前年!$E$5:$U$1000,MATCH($C26,人員手口前年!$D$5:$D$1000,0),MATCH($A$1,人員手口前年!$E$4:$U$4,0)),0) -> 6 | Q26: -3 | R26: -50 | S26: =IFERROR(INDEX(少年手口本年!$E$5:$U$1000,MATCH($C26,少年手口本年!$D$5:$D$1000,0),MATCH($A$1,少年手口本年!$E$4:$U$4,0)),0) -> 1 | T26: =IFERROR(INDEX(少年手口前年!$E$5:$U$1000,MATCH($C26,少年手口前年!$D$5:$D$1000,0),MATCH($A$1,少年手口前年!$E$4:$U$4,0)),0) -> 3 | U26: -2 | V26: -66.66666667 | W26: 33.3 | X26: 50 | Y26: -16.7
C27: 居空き | D27: =IFERROR(INDEX(認知手口本年!$E$5:$U$1000,MATCH($C27,認知手口本年!$D$5:$D$1000,0),MATCH($A$1,認知手口本年!$E$4:$U$4,0)),0) -> 16 | E27: =IFERROR(INDEX(認知手口前年!$E$5:$U$1000,MATCH($C27,認知手口前年!$D$5:$D$1000,0),MATCH($A$1,認知手口前年!$E$4:$U$4,0)),0) -> 13 | F27: 3 | G27: 23.07692308 | H27: =IFERROR(INDEX(検挙手口本年!$E$5:$U$1000,MATCH($C27,検挙手口本年!$D$5:$D$1000,0),MATCH($A$1,検挙手口本年!$E$4:$U$4,0)),0) -> 9 | I27: =IFERROR(INDEX(検挙手口前年!$E$5:$U$1000,MATCH($C27,検挙手口前年!$D$5:$D$1000,0),MATCH($A$1,検挙手口前年!$E$4:$U$4,0)),0) -> 4 | J27: 5 | K27: 125 | L27: 56.3 | M27: 30.8 | N27: 25.5 | O27: =IFERROR(INDEX(人員手口本年!$E$5:$U$1000,MATCH($C27,人員手口本年!$D$5:$D$1000,0),MATCH($A$1,人員手口本年!$E$4:$U$4,0)),0) -> 3 | P27: =IFERROR(INDEX(人員手口前年!$E$5:$U$1000,MATCH($C27,人員手口前年!$D$5:$D$1000,0),MATCH($A$1,人員手口前年!$E$4:$U$4,0)),0) -> 3 | Q27: 0 | R27: 0 | S27: =IFERROR(INDEX(少年手口本年!$E$5:$U$1000,MATCH($C27,少年手口本年!$D$5:$D$1000,0),MATCH($A$1,少年手口本年!$E$4:$U$4,0)),0) -> 0 | T27: =IFERROR(INDEX(少年手口前年!$E$5:$U$1000,MATCH($C27,少年手口前年!$D$5:$D$1000,0),MATCH($A$1,少年手口前年!$E$4:$U$4,0)),0) -> 0 | U27: 0 | V27: 0 | W27: 0 | X27: 0 | Y27: 0
C28: ＡＴＭ破り | D28: =IFERROR(INDEX(認知手口本年!$E$5:$U$1000,MATCH($C28,認知手口本年!$D$5:$D$1000,0),MATCH($A$1,認知手口本年!$E$4:$U$4,0)),0) -> 0 | E28: =IFERROR(INDEX(認知手口前年!$E$5:$U$1000,MATCH($C28,認知手口前年!$D$5:$D$1000,0),MATCH($A$1,認知手口前年!$E$4:$U$4,0)),0) -> 0 | F28: 0 | G28: 0 | H28: =IFERROR(INDEX(検挙手口本年!$E$5:$U$1000,MATCH($C28,検挙手口本年!$D$5:$D$1000,0),MATCH($A$1,検挙手口本年!$E$4:$U$4,0)),0) -> 0 | I28: =IFERROR(INDEX(検挙手口前年!$E$5:$U$1000,MATCH($C28,検挙手口前年!$D$5:$D$1000,0),MATCH($A$1,検挙手口前年!$E$4:$U$4,0)),0) -> 0 | J28: 0 | K28: 0 | O28: =IFERROR(INDEX(人員手口本年!$E$5:$U$1000,MATCH($C28,人員手口本年!$D$5:$D$1000,0),MATCH($A$1,人員手口本年!$E$4:$U$4,0)),0) -> 0 | P28: =IFERROR(INDEX(人員手口前年!$E$5:$U$1000,MATCH($C28,人員手口前年!$D$5:$D$1000,0),MATCH($A$1,人員手口前年!$E$4:$U$4,0)),0) -> 0 | Q28: 0 | R28: 0 | S28: =IFERROR(INDEX(少年手口本年!$E$5:$U$1000,MATCH($C28,少年手口本年!$D$5:$D$1000,0),MATCH($A$1,少年手口本年!$E$4:$U$4,0)),0) -> 0 | T28: =IFERROR(INDEX(少年手口前年!$E$5:$U$1000,MATCH($C28,少年手口前年!$D$5:$D$1000,0),MATCH($A$1,少年手口前年!$E$4:$U$4,0)),0) -> 0 | U28: 0 | V28: 0
C29: 金庫破り | D29: =IFERROR(INDEX(認知手口本年!$E$5:$U$1000,MATCH($C29,認知手口本年!$D$5:$D$1000,0),MATCH($A$1,認知手口本年!$E$4:$U$4,0)),0) -> 6 | E29: =IFERROR(INDEX(認知手口前年!$E$5:$U$1000,MATCH($C29,認知手口前年!$D$5:$D$1000,0),MATCH($A$1,認知手口前年!$E$4:$U$4,0)),0) -> 18 | F29: -12 | G29: -66.66666667 | H29: =IFERROR(INDEX(検挙手口本年!$E$5:$U$1000,MATCH($C29,検挙手口本年!$D$5:$D$1000,0),MATCH($A$1,検挙手口本年!$E$4:$U$4,0)),0) -> 6 | I29: =IFERROR(INDEX(検挙手口前年!$E$5:$U$1000,MATCH($C29,検挙手口前年!$D$5:$D$1000,0),MATCH($A$1,検挙手口前年!$E$4:$U$4,0)),0) -> 12 | J29: -6 | K29: -50 | L29: 100 | M29: 66.7 | N29: 33.3 | O29: =IFERROR(INDEX(人員手口本年!$E$5:$U$1000,MATCH($C29,人員手口本年!$D$5:$D$1000,0),MATCH($A$1,人員手口本年!$E$4:$U$4,0)),0) -> 6 | P29: =IFERROR(INDEX(人員手口前年!$E$5:$U$1000,MATCH($C29,人員手口前年!$D$5:$D$1000,0),MATCH($A$1,人員手口前年!$E$4:$U$4,0)),0) -> 12 | Q29: -6 | R29: -50 | S29: =IFERROR(INDEX(少年手口本年!$E$5:$U$1000,MATCH($C29,少年手口本年!$D$5:$D$1000,0),MATCH($A$1,少年手口本年!$E$4:$U$4,0)),0) -> 2 | T29: =IFERROR(INDEX(少年手口前年!$E$5:$U$1000,MATCH($C29,少年手口前年!$D$5:$D$1000,0),MATCH($A$1,少年手口前年!$E$4:$U$4,0)),0) -> 0 | U29: 2 | V29: ― | W29: 33.3 | X29: 0 | Y29: 33.3
C30: 学校荒し | D30: =IFERROR(INDEX(認知手口本年!$E$5:$U$1000,MATCH($C30,認知手口本年!$D$5:$D$1000,0),MATCH($A$1,認知手口本年!$E$4:$U$4,0)),0) -> 1 | E30: =IFERROR(INDEX(認知手口前年!$E$5:$U$1000,MATCH($C30,認知手口前年!$D$5:$D$1000,0),MATCH($A$1,認知手口前年!$E$4:$U$4,0)),0) -> 2 | F30: -1 | G30: -50 | H30: =IFERROR(INDEX(検挙手口本年!$E$5:$U$1000,MATCH($C30,検挙手口本年!$D$5:$D$1000,0),MATCH($A$1,検挙手口本年!$E$4:$U$4,0)),0) -> 1 | I30: =IFERROR(INDEX(検挙手口前年!$E$5:$U$1000,MATCH($C30,検挙手口前年!$D$5:$D$1000,0),MATCH($A$1,検挙手口前年!$E$4:$U$4,0)),0) -> 3 | J30: -2 | K30: -66.66666667 | L30: 100 | M30: 150 | N30: -50 | O30: =IFERROR(INDEX(人員手口本年!$E$5:$U$1000,MATCH($C30,人員手口本年!$D$5:$D$1000,0),MATCH($A$1,人員手口本年!$E$4:$U$4,0)),0) -> 1 | P30: =IFERROR(INDEX(人員手口前年!$E$5:$U$1000,MATCH($C30,人員手口前年!$D$5:$D$1000,0),MATCH($A$1,人員手口前年!$E$4:$U$4,0)),0) -> 4 | Q30: -3 | R30: -75 | S30: =IFERROR(INDEX(少年手口本年!$E$5:$U$1000,MATCH($C30,少年手口本年!$D$5:$D$1000,0),MATCH($A$1,少年手口本年!$E$4:$U$4,0)),0) -> 0 | T30: =IFERROR(INDEX(少年手口前年!$E$5:$U$1000,MATCH($C30,少年手口前年!$D$5:$D$1000,0),MATCH($A$1,少年手口前年!$E$4:$U$4,0)),0) -> 2 | U30: -2 | V30: -100 | W30: 0 | X30: 50 | Y30: -50
C31: 病院荒し | D31: =IFERROR(INDEX(認知手口本年!$E$5:$U$1000,MATCH($C31,認知手口本年!$D$5:$D$1000,0),MATCH($A$1,認知手口本年!$E$4:$U$4,0)),0) -> 7 | E31: =IFERROR(INDEX(認知手口前年!$E$5:$U$1000,MATCH($C31,認知手口前年!$D$5:$D$1000,0),MATCH($A$1,認知手口前年!$E$4:$U$4,0)),0) -> 4 | F31: 3 | G31: 75 | H31: =IFERROR(INDEX(検挙手口本年!$E$5:$U$1000,MATCH($C31,検挙手口本年!$D$5:$D$1000,0),MATCH($A$1,検挙手口本年!$E$4:$U$4,0)),0) -> 3 | I31: =IFERROR(INDEX(検挙手口前年!$E$5:$U$1000,MATCH($C31,検挙手口前年!$D$5:$D$1000,0),MATCH($A$1,検挙手口前年!$E$4:$U$4,0)),0) -> 0 | J31: 3 | K31: ― | L31: 42.9 | M31: 0 | N31: 42.9 | O31: =IFERROR(INDEX(人員手口本年!$E$5:$U$1000,MATCH($C31,人員手口本年!$D$5:$D$1000,0),MATCH($A$1,人員手口本年!$E$4:$U$4,0)),0) -> 1 | P31: =IFERROR(INDEX(人員手口前年!$E$5:$U$1000,MATCH($C31,人員手口前年!$D$5:$D$1000,0),MATCH($A$1,人員手口前年!$E$4:$U$4,0)),0) -> 0 | Q31: 1 | R31: ― | S31: =IFERROR(INDEX(少年手口本年!$E$5:$U$1000,MATCH($C31,少年手口本年!$D$5:$D$1000,0),MATCH($A$1,少年手口本年!$E$4:$U$4,0)),0) -> 0 | T31: =IFERROR(INDEX(少年手口前年!$E$5:$U$1000,MATCH($C31,少年手口前年!$D$5:$D$1000,0),MATCH($A$1,少年手口前年!$E$4:$U$4,0)),0) -> 0 | U31: 0 | V31: 0 | W31: 0 | Y31: ―
C32: 給油所荒し | D32: =IFERROR(INDEX(認知手口本年!$E$5:$U$1000,MATCH($C32,認知手口本年!$D$5:$D$1000,0),MATCH($A$1,認知手口本年!$E$4:$U$4,0)),0) -> 0 | E32: =IFERROR(INDEX(認知手口前年!$E$5:$U$1000,MATCH($C32,認知手口前年!$D$5:$D$1000,0),MATCH($A$1,認知手口前年!$E$4:$U$4,0)),0) -> 1 | F32: -1 | G32: -100 | H32: =IFERROR(INDEX(検挙手口本年!$E$5:$U$1000,MATCH($C32,検挙手口本年!$D$5:$D$1000,0),MATCH($A$1,検挙手口本年!$E$4:$U$4,0)),0) -> 0 | I32: =IFERROR(INDEX(検挙手口前年!$E$5:$U$1000,MATCH($C32,検挙手口前年!$D$5:$D$1000,0),MATCH($A$1,検挙手口前年!$E$4:$U$4,0)),0) -> 0 | J32: 0 | K32: 0 | M32: 0 | N32: ― | O32: =IFERROR(INDEX(人員手口本年!$E$5:$U$1000,MATCH($C32,人員手口本年!$D$5:$D$1000,0),MATCH($A$1,人員手口本年!$E$4:$U$4,0)),0) -> 0 | P32: =IFERROR(INDEX(人員手口前年!$E$5:$U$1000,MATCH($C32,人員手口前年!$D$5:$D$1000,0),MATCH($A$1,人員手口前年!$E$4:$U$4,0)),0) -> 0 | Q32: 0 | R32: 0 | S32: =IFERROR(INDEX(少年手口本年!$E$5:$U$1000,MATCH($C32,少年手口本年!$D$5:$D$1000,0),MATCH($A$1,少年手口本年!$E$4:$U$4,0)),0) -> 0 | T32: =IFERROR(INDEX(少年手口前年!$E$5:$U$1000,MATCH($C32,少年手口前年!$D$5:$D$1000,0),MATCH($A$1,少年手口前年!$E$4:$U$4,0)),0) -> 0 | U32: 0 | V32: 0
C33: 事務所荒し | D33: =IFERROR(INDEX(認知手口本年!$E$5:$U$1000,MATCH($C33,認知手口本年!$D$5:$D$1000,0),MATCH($A$1,認知手口本年!$E$4:$U$4,0)),0) -> 27 | E33: =IFERROR(INDEX(認知手口前年!$E$5:$U$1000,MATCH($C33,認知手口前年!$D$5:$D$1000,0),MATCH($A$1,認知手口前年!$E$4:$U$4,0)),0) -> 26 | F33: 1 | G33: 3.846153846 | H33: =IFERROR(INDEX(検挙手口本年!$E$5:$U$1000,MATCH($C33,検挙手口本年!$D$5:$D$1000,0),MATCH($A$1,検挙手口本年!$E$4:$U$4,0)),0) -> 28 | I33: =IFERROR(INDEX(検挙手口前年!$E$5:$U$1000,MATCH($C33,検挙手口前年!$D$5:$D$1000,0),MATCH($A$1,検挙手口前年!$E$4:$U$4,0)),0) -> 12 | J33: 16 | K33: 133.3333333 | L33: 103.7 | M33: 46.2 | N33: 57.5 | O33: =IFERROR(INDEX(人員手口本年!$E$5:$U$1000,MATCH($C33,人員手口本年!$D$5:$D$1000,0),MATCH($A$1,人員手口本年!$E$4:$U$4,0)),0) -> 5 | P33: =IFERROR(INDEX(人員手口前年!$E$5:$U$1000,MATCH($C33,人員手口前年!$D$5:$D$1000,0),MATCH($A$1,人員手口前年!$E$4:$U$4,0)),0) -> 6 | Q33: -1 | R33: -16.66666667 | S33: =IFERROR(INDEX(少年手口本年!$E$5:$U$1000,MATCH($C33,少年手口本年!$D$5:$D$1000,0),MATCH($A$1,少年手口本年!$E$4:$U$4,0)),0) -> 1 | T33: =IFERROR(INDEX(少年手口前年!$E$5:$U$1000,MATCH($C33,少年手口前年!$D$5:$D$1000,0),MATCH($A$1,少年手口前年!$E$4:$U$4,0)),0) -> 0 | U33: 1 | V33: ― | W33: 20 | X33: 0 | Y33: 20
C34: 出店荒し | D34: =IFERROR(INDEX(認知手口本年!$E$5:$U$1000,MATCH($C34,認知手口本年!$D$5:$D$1000,0),MATCH($A$1,認知手口本年!$E$4:$U$4,0)),0) -> 51 | E34: =IFERROR(INDEX(認知手口前年!$E$5:$U$1000,MATCH($C34,認知手口前年!$D$5:$D$1000,0),MATCH($A$1,認知手口前年!$E$4:$U$4,0)),0) -> 53 | F34: -2 | G34: -3.773584906 | H34: =IFERROR(INDEX(検挙手口本年!$E$5:$U$1000,MATCH($C34,検挙手口本年!$D$5:$D$1000,0),MATCH($A$1,検挙手口本年!$E$4:$U$4,0)),0) -> 57 | I34: =IFERROR(INDEX(検挙手口前年!$E$5:$U$1000,MATCH($C34,検挙手口前年!$D$5:$D$1000,0),MATCH($A$1,検挙手口前年!$E$4:$U$4,0)),0) -> 33 | J34: 24 | K34: 72.72727273 | L34: 111.8 | M34: 62.3 | N34: 49.5 | O34: =IFERROR(INDEX(人員手口本年!$E$5:$U$1000,MATCH($C34,人員手口本年!$D$5:$D$1000,0),MATCH($A$1,人員手口本年!$E$4:$U$4,0)),0) -> 8 | P34: =IFERROR(INDEX(人員手口前年!$E$5:$U$1000,MATCH($C34,人員手口前年!$D$5:$D$1000,0),MATCH($A$1,人員手口前年!$E$4:$U$4,0)),0) -> 12 | Q34: -4 | R34: -33.33333333 | S34: =IFERROR(INDEX(少年手口本年!$E$5:$U$1000,MATCH($C34,少年手口本年!$D$5:$D$1000,0),MATCH($A$1,少年手口本年!$E$4:$U$4,0)),0) -> 2 | T34: =IFERROR(INDEX(少年手口前年!$E$5:$U$1000,MATCH($C34,少年手口前年!$D$5:$D$1000,0),MATCH($A$1,少年手口前年!$E$4:$U$4,0)),0) -> 0 | U34: 2 | V34: ― | W34: 25 | X34: 0 | Y34: 25
C35: 工場荒し | D35: =IFERROR(INDEX(認知手口本年!$E$5:$U$1000,MATCH($C35,認知手口本年!$D$5:$D$1000,0),MATCH($A$1,認知手口本年!$E$4:$U$4,0)),0) -> 5 | E35: =IFERROR(INDEX(認知手口前年!$E$5:$U$1000,MATCH($C35,認知手口前年!$D$5:$D$1000,0),MATCH($A$1,認知手口前年!$E$4:$U$4,0)),0) -> 5 | F35: 0 | G35: 0 | H35: =IFERROR(INDEX(検挙手口本年!$E$5:$U$1000,MATCH($C35,検挙手口本年!$D$5:$D$1000,0),MATCH($A$1,検挙手口本年!$E$4:$U$4,0)),0) -> 4 | I35: =IFERROR(INDEX(検挙手口前年!$E$5:$U$1000,MATCH($C35,検挙手口前年!$D$5:$D$1000,0),MATCH($A$1,検挙手口前年!$E$4:$U$4,0)),0) -> 3 | J35: 1 | K35: 33.33333333 | L35: 80 | M35: 60 | N35: 20 | O35: =IFERROR(INDEX(人員手口本年!$E$5:$U$1000,MATCH($C35,人員手口本年!$D$5:$D$1000,0),MATCH($A$1,人員手口本年!$E$4:$U$4,0)),0) -> 3 | P35: =IFERROR(INDEX(人員手口前年!$E$5:$U$1000,MATCH($C35,人員手口前年!$D$5:$D$1000,0),MATCH($A$1,人員手口前年!$E$4:$U$4,0)),0) -> 4 | Q35: -1 | R35: -25 | S35: =IFERROR(INDEX(少年手口本年!$E$5:$U$1000,MATCH($C35,少年手口本年!$D$5:$D$1000,0),MATCH($A$1,少年手口本年!$E$4:$U$4,0)),0) -> 0 | T35: =IFERROR(INDEX(少年手口前年!$E$5:$U$1000,MATCH($C35,少年手口前年!$D$5:$D$1000,0),MATCH($A$1,少年手口前年!$E$4:$U$4,0)),0) -> 0 | U35: 0 | V35: 0 | W35: 0 | X35: 0 | Y35: 0
C36: 更衣室荒し | D36: =IFERROR(INDEX(認知手口本年!$E$5:$U$1000,MATCH($C36,認知手口本年!$D$5:$D$1000,0),MATCH($A$1,認知手口本年!$E$4:$U$4,0)),0) -> 8 | E36: =IFERROR(INDEX(認知手口前年!$E$5:$U$1000,MATCH($C36,認知手口前年!$D$5:$D$1000,0),MATCH($A$1,認知手口前年!$E$4:$U$4,0)),0) -> 19 | F36: -11 | G36: -57.89473684 | H36: =IFERROR(INDEX(検挙手口本年!$E$5:$U$1000,MATCH($C36,検挙手口本年!$D$5:$D$1000,0),MATCH($A$1,検挙手口本年!$E$4:$U$4,0)),0) -> 3 | I36: =IFERROR(INDEX(検挙手口前年!$E$5:$U$1000,MATCH($C36,検挙手口前年!$D$5:$D$1000,0),MATCH($A$1,検挙手口前年!$E$4:$U$4,0)),0) -> 14 | J36: -11 | K36: -78.57142857 | L36: 37.5 | M36: 73.7 | N36: -36.2 | O36: =IFERROR(INDEX(人員手口本年!$E$5:$U$1000,MATCH($C36,人員手口本年!$D$5:$D$1000,0),MATCH($A$1,人員手口本年!$E$4:$U$4,0)),0) -> 7 | P36: =IFERROR(INDEX(人員手口前年!$E$5:$U$1000,MATCH($C36,人員手口前年!$D$5:$D$1000,0),MATCH($A$1,人員手口前年!$E$4:$U$4,0)),0) -> 5 | Q36: 2 | R36: 40 | S36: =IFERROR(INDEX(少年手口本年!$E$5:$U$1000,MATCH($C36,少年手口本年!$D$5:$D$1000,0),MATCH($A$1,少年手口本年!$E$4:$U$4,0)),0) -> 4 | T36: =IFERROR(INDEX(少年手口前年!$E$5:$U$1000,MATCH($C36,少年手口前年!$D$5:$D$1000,0),MATCH($A$1,少年手口前年!$E$4:$U$4,0)),0) -> 1 | U36: 3 | V36: 300 | W36: 57.1 | X36: 20 | Y36: 37.1
C37: 倉庫荒し | D37: =IFERROR(INDEX(認知手口本年!$E$5:$U$1000,MATCH($C37,認知手口本年!$D$5:$D$1000,0),MATCH($A$1,認知手口本年!$E$4:$U$4,0)),0) -> 44 | E37: =IFERROR(INDEX(認知手口前年!$E$5:$U$1000,MATCH($C37,認知手口前年!$D$5:$D$1000,0),MATCH($A$1,認知手口前年!$E$4:$U$4,0)),0) -> 52 | F37: -8 | G37: -15.38461538 | H37: =IFERROR(INDEX(検挙手口本年!$E$5:$U$1000,MATCH($C37,検挙手口本年!$D$5:$D$1000,0),MATCH($A$1,検挙手口本年!$E$4:$U$4,0)),0) -> 41 | I37: =IFERROR(INDEX(検挙手口前年!$E$5:$U$1000,MATCH($C37,検挙手口前年!$D$5:$D$1000,0),MATCH($A$1,検挙手口前年!$E$4:$U$4,0)),0) -> 27 | J37: 14 | K37: 51.85185185 | L37: 93.2 | M37: 51.9 | N37: 41.3 | O37: =IFERROR(INDEX(人員手口本年!$E$5:$U$1000,MATCH($C37,人員手口本年!$D$5:$D$1000,0),MATCH($A$1,人員手口本年!$E$4:$U$4,0)),0) -> 8 | P37: =IFERROR(INDEX(人員手口前年!$E$5:$U$1000,MATCH($C37,人員手口前年!$D$5:$D$1000,0),MATCH($A$1,人員手口前年!$E$4:$U$4,0)),0) -> 14 | Q37: -6 | R37: -42.85714286 | S37: =IFERROR(INDEX(少年手口本年!$E$5:$U$1000,MATCH($C37,少年手口本年!$D$5:$D$1000,0),MATCH($A$1,少年手口本年!$E$4:$U$4,0)),0) -> 0 | T37: =IFERROR(INDEX(少年手口前年!$E$5:$U$1000,MATCH($C37,少年手口前年!$D$5:$D$1000,0),MATCH($A$1,少年手口前年!$E$4:$U$4,0)),0) -> 1 | U37: -1 | V37: -100 | W37: 0 | X37: 7.1 | Y37: -7.1
C38: その他侵入窃盗 | D38: =D24-SUM(D25:D37) -> 80 | E38: =E24-SUM(E25:E37) -> 64 | F38: =D38-E38 -> 16 | G38: =IF(AND(E38=0,D38=0),0,IF(E38>0,F38/E38*100,IF(F38>0,"―",""))) -> 25 | H38: =H24-SUM(H25:H37) -> 83 | I38: =I24-SUM(I25:I37) -> 26 | J38: =H38-I38 -> 57 | K38: =IF(AND(I38=0,H38=0),0,IF(I38>0,J38/I38*100,IF(J38>0,"―",""))) -> 219.2307692 | L38: =IF(D38>0,ROUND(H38/D38*100,1),IF(H38>0,"―","")) -> 103.8 | M38: 40.6 | N38: 63.2 | O38: =O24-SUM(O25:O37) -> 21 | P38: =P24-SUM(P25:P37) -> 15 | Q38: =O38-P38 -> 6 | R38: =IF(AND(P38=0,O38=0),0,IF(P38>0,Q38/P38*100,IF(Q38>0,"―",""))) -> 40 | S38: =S24-SUM(S25:S37) -> 1 | T38: =T24-SUM(T25:T37) -> 0 | U38: =S38-T38 -> 1 | V38: =IF(AND(T38=0,S38=0),0,IF(T38>0,U38/T38*100,IF(U38>0,"―",""))) -> ― | W38: 4.8 | X38: 0 | Y38: 4.8
B39: 乗り物盗 | D39: =IFERROR(INDEX(認知罪種本年!$E$5:$U$1000,MATCH($B39,認知罪種本年!$D$5:$D$1000,0),MATCH($A$1,認知罪種本年!$E$4:$U$4,0)),0) -> 978 | E39: =IFERROR(INDEX(認知罪種前年!$E$5:$U$1000,MATCH($B39,認知罪種前年!$D$5:$D$1000,0),MATCH($A$1,認知罪種前年!$E$4:$U$4,0)),0) -> 1181 | F39: -203 | G39: -17.18882303 | H39: =IFERROR(INDEX(検挙罪種本年!$E$5:$U$1000,MATCH($B39,検挙罪種本年!$D$5:$D$1000,0),MATCH($A$1,検挙罪種本年!$E$4:$U$4,0)),0) -> 120 | I39: =IFERROR(INDEX(検挙罪種前年!$E$5:$U$1000,MATCH($B39,検挙罪種前年!$D$5:$D$1000,0),MATCH($A$1,検挙罪種前年!$E$4:$U$4,0)),0) -> 103 | J39: 17 | K39: 16.50485437 | L39: 12.3 | M39: 8.7 | N39: 3.6 | O39: =IFERROR(INDEX(人員罪種本年!$E$5:$U$1000,MATCH($B39,人員罪種本年!$D$5:$D$1000,0),MATCH($A$1,人員罪種本年!$E$4:$U$4,0)),0) -> 60 | P39: =IFERROR(INDEX(人員罪種前年!$E$5:$U$1000,MATCH($B39,人員罪種前年!$D$5:$D$1000,0),MATCH($A$1,人員罪種前年!$E$4:$U$4,0)),0) -> 77 | Q39: -17 | R39: -22.07792208 | S39: =IFERROR(INDEX(少年罪種本年!$E$5:$U$1000,MATCH($B39,少年罪種本年!$D$5:$D$1000,0),MATCH($A$1,少年罪種本年!$E$4:$U$4,0)),0) -> 24 | T39: =IFERROR(INDEX(少年罪種前年!$E$5:$U$1000,MATCH($B39,少年罪種前年!$D$5:$D$1000,0),MATCH($A$1,少年罪種前年!$E$4:$U$4,0)),0) -> 47 | U39: -23 | V39: -48.93617021 | W39: 40 | X39: 61 | Y39: -21
C40: 自動車盗 | D40: =IFERROR(INDEX(認知手口本年!$E$5:$U$1000,MATCH("自動車盗（キーあり）",認知手口本年!$D$5:$D$1000,0),MATCH($A$1,認知手口本年!$E$4:$U$4,0))+INDEX(認知手口本年!$E$5:$U$1000,MATCH("自動車盗（キーなし）",認知手口本年!$D$5:$D$1000,0),MATCH($A$1,認知手口本年!$E$4:$U$4,0)),0) -> 37 | E40: =IFERROR(INDEX(認知手口前年!$E$5:$U$1000,MATCH("自動車盗（キーあり）",認知手口前年!$D$5:$D$1000,0),MATCH($A$1,認知手口前年!$E$4:$U$4,0))+INDEX(認知手口前年!$E$5:$U$1000,MATCH("自動車盗（キーなし）",認知手口前年!$D$5:$D$1000,0),MATCH($A$1,認知手口前年!$E$4:$U$4,0)),0) -> 65 | F40: -28 | G40: -43.07692308 | H40: =IFERROR(INDEX(検挙手口本年!$E$5:$U$1000,MATCH("自動車盗（キーあり）",検挙手口本年!$D$5:$D$1000,0),MATCH($A$1,検挙手口本年!$E$4:$U$4,0))+INDEX(検挙手口本年!$E$5:$U$1000,MATCH("自動車盗（キーなし）",検挙手口本年!$D$5:$D$1000,0),MATCH($A$1,検挙手口本年!$E$4:$U$4,0)),0) -> 20 | I40: =IFERROR(INDEX(検挙手口前年!$E$5:$U$1000,MATCH("自動車盗（キーあり）",検挙手口前年!$D$5:$D$1000,0),MATCH($A$1,検挙手口前年!$E$4:$U$4,0))+INDEX(検挙手口前年!$E$5:$U$1000,MATCH("自動車盗（キーなし）",検挙手口前年!$D$5:$D$1000,0),MATCH($A$1,検挙手口前年!$E$4:$U$4,0)),0) -> 16 | J40: 4 | K40: 25 | L40: 54.1 | M40: 24.6 | N40: 29.5 | O40: =IFERROR(INDEX(人員手口本年!$E$5:$U$1000,MATCH("自動車盗（キーあり）",人員手口本年!$D$5:$D$1000,0),MATCH($A$1,人員手口本年!$E$4:$U$4,0))+INDEX(人員手口本年!$E$5:$U$1000,MATCH("自動車盗（キーなし）",人員手口本年!$D$5:$D$1000,0),MATCH($A$1,人員手口本年!$E$4:$U$4,0)),0) -> 8 | P40: =IFERROR(INDEX(人員手口前年!$E$5:$U$1000,MATCH("自動車盗（キーあり）",人員手口前年!$D$5:$D$1000,0),MATCH($A$1,人員手口前年!$E$4:$U$4,0))+INDEX(人員手口前年!$E$5:$U$1000,MATCH("自動車盗（キーなし）",人員手口前年!$D$5:$D$1000,0),MATCH($A$1,人員手口前年!$E$4:$U$4,0)),0) -> 11 | Q40: -3 | R40: -27.27272727 | S40: =IFERROR(INDEX(少年手口本年!$E$5:$U$1000,MATCH("自動車盗（キーあり）",少年手口本年!$D$5:$D$1000,0),MATCH($A$1,少年手口本年!$E$4:$U$4,0))+INDEX(少年手口本年!$E$5:$U$1000,MATCH("自動車盗（キーなし）",少年手口本年!$D$5:$D$1000,0),MATCH($A$1,少年手口本年!$E$4:$U$4,0)),0) -> 0 | T40: =IFERROR(INDEX(少年手口前年!$E$5:$U$1000,MATCH("自動車盗（キーあり）",少年手口前年!$D$5:$D$1000,0),MATCH($A$1,少年手口前年!$E$4:$U$4,0))+INDEX(少年手口前年!$E$5:$U$1000,MATCH("自動車盗（キーなし）",少年手口前年!$D$5:$D$1000,0),MATCH($A$1,少年手口前年!$E$4:$U$4,0)),0) -> 3 | U40: -3 | V40: -100 | W40: 0 | X40: 27.3 | Y40: -27.3
C41: オートバイ盗 | D41: =IFERROR(INDEX(認知手口本年!$E$5:$U$1000,MATCH("オートバイ盗（キーあり）",認知手口本年!$D$5:$D$1000,0),MATCH($A$1,認知手口本年!$E$4:$U$4,0))+INDEX(認知手口本年!$E$5:$U$1000,MATCH("オートバイ盗（キーなし）",認知手口本年!$D$5:$D$1000,0),MATCH($A$1,認知手口本年!$E$4:$U$4,0)),0) -> 52 | E41: =IFERROR(INDEX(認知手口前年!$E$5:$U$1000,MATCH("オートバイ盗（キーあり）",認知手口前年!$D$5:$D$1000,0),MATCH($A$1,認知手口前年!$E$4:$U$4,0))+INDEX(認知手口前年!$E$5:$U$1000,MATCH("オートバイ盗（キーなし）",認知手口前年!$D$5:$D$1000,0),MATCH($A$1,認知手口前年!$E$4:$U$4,0)),0) -> 83 | F41: -31 | G41: -37.34939759 | H41: =IFERROR(INDEX(検挙手口本年!$E$5:$U$1000,MATCH("オートバイ盗（キーあり）",検挙手口本年!$D$5:$D$1000,0),MATCH($A$1,検挙手口本年!$E$4:$U$4,0))+INDEX(検挙手口本年!$E$5:$U$1000,MATCH("オートバイ盗（キーなし）",検挙手口本年!$D$5:$D$1000,0),MATCH($A$1,検挙手口本年!$E$4:$U$4,0)),0) -> 18 | I41: =IFERROR(INDEX(検挙手口前年!$E$5:$U$1000,MATCH("オートバイ盗（キーあり）",検挙手口前年!$D$5:$D$1000,0),MATCH($A$1,検挙手口前年!$E$4:$U$4,0))+INDEX(検挙手口前年!$E$5:$U$1000,MATCH("オートバイ盗（キーなし）",検挙手口前年!$D$5:$D$1000,0),MATCH($A$1,検挙手口前年!$E$4:$U$4,0)),0) -> 22 | J41: -4 | K41: -18.18181818 | L41: 34.6 | M41: 26.5 | N41: 8.1 | O41: =IFERROR(INDEX(人員手口本年!$E$5:$U$1000,MATCH("オートバイ盗（キーあり）",人員手口本年!$D$5:$D$1000,0),MATCH($A$1,人員手口本年!$E$4:$U$4,0))+INDEX(人員手口本年!$E$5:$U$1000,MATCH("オートバイ盗（キーなし）",人員手口本年!$D$5:$D$1000,0),MATCH($A$1,人員手口本年!$E$4:$U$4,0)),0) -> 7 | P41: =IFERROR(INDEX(人員手口前年!$E$5:$U$1000,MATCH("オートバイ盗（キーあり）",人員手口前年!$D$5:$D$1000,0),MATCH($A$1,人員手口前年!$E$4:$U$4,0))+INDEX(人員手口前年!$E$5:$U$1000,MATCH("オートバイ盗（キーなし）",人員手口前年!$D$5:$D$1000,0),MATCH($A$1,人員手口前年!$E$4:$U$4,0)),0) -> 21 | Q41: -14 | R41: -66.66666667 | S41: =IFERROR(INDEX(少年手口本年!$E$5:$U$1000,MATCH("オートバイ盗（キーあり）",少年手口本年!$D$5:$D$1000,0),MATCH($A$1,少年手口本年!$E$4:$U$4,0))+INDEX(少年手口本年!$E$5:$U$1000,MATCH("オートバイ盗（キーなし）",少年手口本年!$D$5:$D$1000,0),MATCH($A$1,少年手口本年!$E$4:$U$4,0)),0) -> 6 | T41: =IFERROR(INDEX(少年手口前年!$E$5:$U$1000,MATCH("オートバイ盗（キーあり）",少年手口前年!$D$5:$D$1000,0),MATCH($A$1,少年手口前年!$E$4:$U$4,0))+INDEX(少年手口前年!$E$5:$U$1000,MATCH("オートバイ盗（キーなし）",少年手口前年!$D$5:$D$1000,0),MATCH($A$1,少年手口前年!$E$4:$U$4,0)),0) -> 19 | U41: -13 | V41: -68.42105263 | W41: 85.7 | X41: 90.5 | Y41: -4.8
C42: 自転車盗 | D42: =IFERROR(INDEX(認知手口本年!$E$5:$U$1000,MATCH("自転車盗（施錠した）",認知手口本年!$D$5:$D$1000,0),MATCH($A$1,認知手口本年!$E$4:$U$4,0))+INDEX(認知手口本年!$E$5:$U$1000,MATCH("自転車盗（施錠せず）",認知手口本年!$D$5:$D$1000,0),MATCH($A$1,認知手口本年!$E$4:$U$4,0)),0) -> 889 | E42: =IFERROR(INDEX(認知手口前年!$E$5:$U$1000,MATCH("自転車盗（施錠した）",認知手口前年!$D$5:$D$1000,0),MATCH($A$1,認知手口前年!$E$4:$U$4,0))+INDEX(認知手口前年!$E$5:$U$1000,MATCH("自転車盗（施錠せず）",認知手口前年!$D$5:$D$1000,0),MATCH($A$1,認知手口前年!$E$4:$U$4,0)),0) -> 1033 | F42: -144 | G42: -13.93998064 | H42: =IFERROR(INDEX(検挙手口本年!$E$5:$U$1000,MATCH("自転車盗（施錠した）",検挙手口本年!$D$5:$D$1000,0),MATCH($A$1,検挙手口本年!$E$4:$U$4,0))+INDEX(検挙手口本年!$E$5:$U$1000,MATCH("自転車盗（施錠せず）",検挙手口本年!$D$5:$D$1000,0),MATCH($A$1,検挙手口本年!$E$4:$U$4,0)),0) -> 82 | I42: =IFERROR(INDEX(検挙手口前年!$E$5:$U$1000,MATCH("自転車盗（施錠した）",検挙手口前年!$D$5:$D$1000,0),MATCH($A$1,検挙手口前年!$E$4:$U$4,0))+INDEX(検挙手口前年!$E$5:$U$1000,MATCH("自転車盗（施錠せず）",検挙手口前年!$D$5:$D$1000,0),MATCH($A$1,検挙手口前年!$E$4:$U$4,0)),0) -> 65 | J42: 17 | K42: 26.15384615 | L42: 9.2 | M42: 6.3 | N42: 2.9 | O42: =IFERROR(INDEX(人員手口本年!$E$5:$U$1000,MATCH("自転車盗（施錠した）",人員手口本年!$D$5:$D$1000,0),MATCH($A$1,人員手口本年!$E$4:$U$4,0))+INDEX(人員手口本年!$E$5:$U$1000,MATCH("自転車盗（施錠せず）",人員手口本年!$D$5:$D$1000,0),MATCH($A$1,人員手口本年!$E$4:$U$4,0)),0) -> 45 | P42: =IFERROR(INDEX(人員手口前年!$E$5:$U$1000,MATCH("自転車盗（施錠した）",人員手口前年!$D$5:$D$1000,0),MATCH($A$1,人員手口前年!$E$4:$U$4,0))+INDEX(人員手口前年!$E$5:$U$1000,MATCH("自転車盗（施錠せず）",人員手口前年!$D$5:$D$1000,0),MATCH($A$1,人員手口前年!$E$4:$U$4,0)),0) -> 45 | Q42: 0 | R42: 0 | S42: =IFERROR(INDEX(少年手口本年!$E$5:$U$1000,MATCH("自転車盗（施錠した）",少年手口本年!$D$5:$D$1000,0),MATCH($A$1,少年手口本年!$E$4:$U$4,0))+INDEX(少年手口本年!$E$5:$U$1000,MATCH("自転車盗（施錠せず）",少年手口本年!$D$5:$D$1000,0),MATCH($A$1,少年手口本年!$E$4:$U$4,0)),0) -> 18 | T42: =IFERROR(INDEX(少年手口前年!$E$5:$U$1000,MATCH("自転車盗（施錠した）",少年手口前年!$D$5:$D$1000,0),MATCH($A$1,少年手口前年!$E$4:$U$4,0))+INDEX(少年手口前年!$E$5:$U$1000,MATCH("自転車盗（施錠せず）",少年手口前年!$D$5:$D$1000,0),MATCH($A$1,少年手口前年!$E$4:$U$4,0)),0) -> 25 | U42: -7 | V42: -28 | W42: 40 | X42: 55.6 | Y42: -15.6
B43: 非侵入窃盗 | D43: =IFERROR(INDEX(認知罪種本年!$E$5:$U$1000,MATCH($B43,認知罪種本年!$D$5:$D$1000,0),MATCH($A$1,認知罪種本年!$E$4:$U$4,0)),0) -> 2344 | E43: =IFERROR(INDEX(認知罪種前年!$E$5:$U$1000,MATCH($B43,認知罪種前年!$D$5:$D$1000,0),MATCH($A$1,認知罪種前年!$E$4:$U$4,0)),0) -> 2557 | F43: -213 | G43: -8.330074306 | H43: =IFERROR(INDEX(検挙罪種本年!$E$5:$U$1000,MATCH($B43,検挙罪種本年!$D$5:$D$1000,0),MATCH($A$1,検挙罪種本年!$E$4:$U$4,0)),0) -> 1433 | I43: =IFERROR(INDEX(検挙罪種前年!$E$5:$U$1000,MATCH($B43,検挙罪種前年!$D$5:$D$1000,0),MATCH($A$1,検挙罪種前年!$E$4:$U$4,0)),0) -> 1305 | J43: 128 | K43: 9.808429119 | L43: 61.1 | M43: 51 | N43: 10.1 | O43: =IFERROR(INDEX(人員罪種本年!$E$5:$U$1000,MATCH($B43,人員罪種本年!$D$5:$D$1000,0),MATCH($A$1,人員罪種本年!$E$4:$U$4,0)),0) -> 859 | P43: =IFERROR(INDEX(人員罪種前年!$E$5:$U$1000,MATCH($B43,人員罪種前年!$D$5:$D$1000,0),MATCH($A$1,人員罪種前年!$E$4:$U$4,0)),0) -> 864 | Q43: -5 | R43: -0.5787037037 | S43: =IFERROR(INDEX(少年罪種本年!$E$5:$U$1000,MATCH($B43,少年罪種本年!$D$5:$D$1000,0),MATCH($A$1,少年罪種本年!$E$4:$U$4,0)),0) -> 75 | T43: =IFERROR(INDEX(少年罪種前年!$E$5:$U$1000,MATCH($B43,少年罪種前年!$D$5:$D$1000,0),MATCH($A$1,少年罪種前年!$E$4:$U$4,0)),0) -> 78 | U43: -3 | V43: -3.846153846 | W43: 8.7 | X43: 9 | Y43: -0.3
C44: 払出盗 | D44: =IFERROR(INDEX(認知手口本年!$E$5:$U$1000,MATCH($C44,認知手口本年!$D$5:$D$1000,0),MATCH($A$1,認知手口本年!$E$4:$U$4,0)),0) -> 58 | E44: =IFERROR(INDEX(認知手口前年!$E$5:$U$1000,MATCH($C44,認知手口前年!$D$5:$D$1000,0),MATCH($A$1,認知手口前年!$E$4:$U$4,0)),0) -> 44 | F44: 14 | G44: 31.81818182 | H44: =IFERROR(INDEX(検挙手口本年!$E$5:$U$1000,MATCH($C44,検挙手口本年!$D$5:$D$1000,0),MATCH($A$1,検挙手口本年!$E$4:$U$4,0)),0) -> 70 | I44: =IFERROR(INDEX(検挙手口前年!$E$5:$U$1000,MATCH($C44,検挙手口前年!$D$5:$D$1000,0),MATCH($A$1,検挙手口前年!$E$4:$U$4,0)),0) -> 69 | J44: 1 | K44: 1.449275362 | L44: 120.7 | M44: 156.8 | N44: -36.1 | O44: =IFERROR(INDEX(人員手口本年!$E$5:$U$1000,MATCH($C44,人員手口本年!$D$5:$D$1000,0),MATCH($A$1,人員手口本年!$E$4:$U$4,0)),0) -> 8 | P44: =IFERROR(INDEX(人員手口前年!$E$5:$U$1000,MATCH($C44,人員手口前年!$D$5:$D$1000,0),MATCH($A$1,人員手口前年!$E$4:$U$4,0)),0) -> 4 | Q44: 4 | R44: 100 | S44: =IFERROR(INDEX(少年手口本年!$E$5:$U$1000,MATCH($C44,少年手口本年!$D$5:$D$1000,0),MATCH($A$1,少年手口本年!$E$4:$U$4,0)),0) -> 1 | T44: =IFERROR(INDEX(少年手口前年!$E$5:$U$1000,MATCH($C44,少年手口前年!$D$5:$D$1000,0),MATCH($A$1,少年手口前年!$E$4:$U$4,0)),0) -> 1 | U44: 0 | V44: 0 | W44: 12.5 | X44: 25 | Y44: -12.5
C45: ＡＴＭねらい | D45: =IFERROR(INDEX(認知手口本年!$E$5:$U$1000,MATCH($C45,認知手口本年!$D$5:$D$1000,0),MATCH($A$1,認知手口本年!$E$4:$U$4,0)),0) -> 1 | E45: =IFERROR(INDEX(認知手口前年!$E$5:$U$1000,MATCH($C45,認知手口前年!$D$5:$D$1000,0),MATCH($A$1,認知手口前年!$E$4:$U$4,0)),0) -> 0 | F45: 1 | G45: ― | H45: =IFERROR(INDEX(検挙手口本年!$E$5:$U$1000,MATCH($C45,検挙手口本年!$D$5:$D$1000,0),MATCH($A$1,検挙手口本年!$E$4:$U$4,0)),0) -> 0 | I45: =IFERROR(INDEX(検挙手口前年!$E$5:$U$1000,MATCH($C45,検挙手口前年!$D$5:$D$1000,0),MATCH($A$1,検挙手口前年!$E$4:$U$4,0)),0) -> 0 | J45: 0 | K45: 0 | L45: 0 | N45: ― | O45: =IFERROR(INDEX(人員手口本年!$E$5:$U$1000,MATCH($C45,人員手口本年!$D$5:$D$1000,0),MATCH($A$1,人員手口本年!$E$4:$U$4,0)),0) -> 0 | P45: =IFERROR(INDEX(人員手口前年!$E$5:$U$1000,MATCH($C45,人員手口前年!$D$5:$D$1000,0),MATCH($A$1,人員手口前年!$E$4:$U$4,0)),0) -> 0 | Q45: 0 | R45: 0 | S45: =IFERROR(INDEX(少年手口本年!$E$5:$U$1000,MATCH($C45,少年手口本年!$D$5:$D$1000,0),MATCH($A$1,少年手口本年!$E$4:$U$4,0)),0) -> 0 | T45: =IFERROR(INDEX(少年手口前年!$E$5:$U$1000,MATCH($C45,少年手口前年!$D$5:$D$1000,0),MATCH($A$1,少年手口前年!$E$4:$U$4,0)),0) -> 0 | U45: 0 | V45: 0
C46: 病室ねらい | D46: =IFERROR(INDEX(認知手口本年!$E$5:$U$1000,MATCH($C46,認知手口本年!$D$5:$D$1000,0),MATCH($A$1,認知手口本年!$E$4:$U$4,0)),0) -> 7 | E46: =IFERROR(INDEX(認知手口前年!$E$5:$U$1000,MATCH($C46,認知手口前年!$D$5:$D$1000,0),MATCH($A$1,認知手口前年!$E$4:$U$4,0)),0) -> 7 | F46: 0 | G46: 0 | H46: =IFERROR(INDEX(検挙手口本年!$E$5:$U$1000,MATCH($C46,検挙手口本年!$D$5:$D$1000,0),MATCH($A$1,検挙手口本年!$E$4:$U$4,0)),0) -> 1 | I46: =IFERROR(INDEX(検挙手口前年!$E$5:$U$1000,MATCH($C46,検挙手口前年!$D$5:$D$1000,0),MATCH($A$1,検挙手口前年!$E$4:$U$4,0)),0) -> 0 | J46: 1 | K46: ― | L46: 14.3 | M46: 0 | N46: 14.3 | O46: =IFERROR(INDEX(人員手口本年!$E$5:$U$1000,MATCH($C46,人員手口本年!$D$5:$D$1000,0),MATCH($A$1,人員手口本年!$E$4:$U$4,0)),0) -> 1 | P46: =IFERROR(INDEX(人員手口前年!$E$5:$U$1000,MATCH($C46,人員手口前年!$D$5:$D$1000,0),MATCH($A$1,人員手口前年!$E$4:$U$4,0)),0) -> 0 | Q46: 1 | R46: ― | S46: =IFERROR(INDEX(少年手口本年!$E$5:$U$1000,MATCH($C46,少年手口本年!$D$5:$D$1000,0),MATCH($A$1,少年手口本年!$E$4:$U$4,0)),0) -> 0 | T46: =IFERROR(INDEX(少年手口前年!$E$5:$U$1000,MATCH($C46,少年手口前年!$D$5:$D$1000,0),MATCH($A$1,少年手口前年!$E$4:$U$4,0)),0) -> 0 | U46: 0 | V46: 0 | W46: 0 | Y46: ―
C47: ひったくり | D47: =IFERROR(INDEX(認知手口本年!$E$5:$U$1000,MATCH($C47,認知手口本年!$D$5:$D$1000,0),MATCH($A$1,認知手口本年!$E$4:$U$4,0)),0) -> 1 | E47: =IFERROR(INDEX(認知手口前年!$E$5:$U$1000,MATCH($C47,認知手口前年!$D$5:$D$1000,0),MATCH($A$1,認知手口前年!$E$4:$U$4,0)),0) -> 3 | F47: -2 | G47: -66.66666667 | H47: =IFERROR(INDEX(検挙手口本年!$E$5:$U$1000,MATCH($C47,検挙手口本年!$D$5:$D$1000,0),MATCH($A$1,検挙手口本年!$E$4:$U$4,0)),0) -> 0 | I47: =IFERROR(INDEX(検挙手口前年!$E$5:$U$1000,MATCH($C47,検挙手口前年!$D$5:$D$1000,0),MATCH($A$1,検挙手口前年!$E$4:$U$4,0)),0) -> 5 | J47: -5 | K47: -100 | L47: 0 | M47: 166.7 | N47: -166.7 | O47: =IFERROR(INDEX(人員手口本年!$E$5:$U$1000,MATCH($C47,人員手口本年!$D$5:$D$1000,0),MATCH($A$1,人員手口本年!$E$4:$U$4,0)),0) -> 0 | P47: =IFERROR(INDEX(人員手口前年!$E$5:$U$1000,MATCH($C47,人員手口前年!$D$5:$D$1000,0),MATCH($A$1,人員手口前年!$E$4:$U$4,0)),0) -> 4 | Q47: -4 | R47: -100 | S47: =IFERROR(INDEX(少年手口本年!$E$5:$U$1000,MATCH($C47,少年手口本年!$D$5:$D$1000,0),MATCH($A$1,少年手口本年!$E$4:$U$4,0)),0) -> 0 | T47: =IFERROR(INDEX(少年手口前年!$E$5:$U$1000,MATCH($C47,少年手口前年!$D$5:$D$1000,0),MATCH($A$1,少年手口前年!$E$4:$U$4,0)),0) -> 1 | U47: -1 | V47: -100 | X47: 25 | Y47: ―
C48: すり | D48: =IFERROR(INDEX(認知手口本年!$E$5:$U$1000,MATCH($C48,認知手口本年!$D$5:$D$1000,0),MATCH($A$1,認知手口本年!$E$4:$U$4,0)),0) -> 2 | E48: =IFERROR(INDEX(認知手口前年!$E$5:$U$1000,MATCH($C48,認知手口前年!$D$5:$D$1000,0),MATCH($A$1,認知手口前年!$E$4:$U$4,0)),0) -> 6 | F48: -4 | G48: -66.66666667 | H48: =IFERROR(INDEX(検挙手口本年!$E$5:$U$1000,MATCH($C48,検挙手口本年!$D$5:$D$1000,0),MATCH($A$1,検挙手口本年!$E$4:$U$4,0)),0) -> 4 | I48: =IFERROR(INDEX(検挙手口前年!$E$5:$U$1000,MATCH($C48,検挙手口前年!$D$5:$D$1000,0),MATCH($A$1,検挙手口前年!$E$4:$U$4,0)),0) -> 0 | J48: 4 | K48: ― | L48: 200 | M48: 0 | N48: 200 | O48: =IFERROR(INDEX(人員手口本年!$E$5:$U$1000,MATCH($C48,人員手口本年!$D$5:$D$1000,0),MATCH($A$1,人員手口本年!$E$4:$U$4,0)),0) -> 1 | P48: =IFERROR(INDEX(人員手口前年!$E$5:$U$1000,MATCH($C48,人員手口前年!$D$5:$D$1000,0),MATCH($A$1,人員手口前年!$E$4:$U$4,0)),0) -> 0 | Q48: 1 | R48: ― | S48: =IFERROR(INDEX(少年手口本年!$E$5:$U$1000,MATCH($C48,少年手口本年!$D$5:$D$1000,0),MATCH($A$1,少年手口本年!$E$4:$U$4,0)),0) -> 0 | T48: =IFERROR(INDEX(少年手口前年!$E$5:$U$1000,MATCH($C48,少年手口前年!$D$5:$D$1000,0),MATCH($A$1,少年手口前年!$E$4:$U$4,0)),0) -> 0 | U48: 0 | V48: 0 | W48: 0 | Y48: ―
C49: 置引き | D49: =IFERROR(INDEX(認知手口本年!$E$5:$U$1000,MATCH($C49,認知手口本年!$D$5:$D$1000,0),MATCH($A$1,認知手口本年!$E$4:$U$4,0)),0) -> 209 | E49: =IFERROR(INDEX(認知手口前年!$E$5:$U$1000,MATCH($C49,認知手口前年!$D$5:$D$1000,0),MATCH($A$1,認知手口前年!$E$4:$U$4,0)),0) -> 207 | F49: 2 | G49: 0.9661835749 | H49: =IFERROR(INDEX(検挙手口本年!$E$5:$U$1000,MATCH($C49,検挙手口本年!$D$5:$D$1000,0),MATCH($A$1,検挙手口本年!$E$4:$U$4,0)),0) -> 92 | I49: =IFERROR(INDEX(検挙手口前年!$E$5:$U$1000,MATCH($C49,検挙手口前年!$D$5:$D$1000,0),MATCH($A$1,検挙手口前年!$E$4:$U$4,0)),0) -> 89 | J49: 3 | K49: 3.370786517 | L49: 44 | M49: 43 | N49: 1 | O49: =IFERROR(INDEX(人員手口本年!$E$5:$U$1000,MATCH($C49,人員手口本年!$D$5:$D$1000,0),MATCH($A$1,人員手口本年!$E$4:$U$4,0)),0) -> 85 | P49: =IFERROR(INDEX(人員手口前年!$E$5:$U$1000,MATCH($C49,人員手口前年!$D$5:$D$1000,0),MATCH($A$1,人員手口前年!$E$4:$U$4,0)),0) -> 80 | Q49: 5 | R49: 6.25 | S49: =IFERROR(INDEX(少年手口本年!$E$5:$U$1000,MATCH($C49,少年手口本年!$D$5:$D$1000,0),MATCH($A$1,少年手口本年!$E$4:$U$4,0)),0) -> 2 | T49: =IFERROR(INDEX(少年手口前年!$E$5:$U$1000,MATCH($C49,少年手口前年!$D$5:$D$1000,0),MATCH($A$1,少年手口前年!$E$4:$U$4,0)),0) -> 2 | U49: 0 | V49: 0 | W49: 2.4 | X49: 2.5 | Y49: -0.1
C50: 仮睡者ねらい | D50: =IFERROR(INDEX(認知手口本年!$E$5:$U$1000,MATCH($C50,認知手口本年!$D$5:$D$1000,0),MATCH($A$1,認知手口本年!$E$4:$U$4,0)),0) -> 5 | E50: =IFERROR(INDEX(認知手口前年!$E$5:$U$1000,MATCH($C50,認知手口前年!$D$5:$D$1000,0),MATCH($A$1,認知手口前年!$E$4:$U$4,0)),0) -> 7 | F50: -2 | G50: -28.57142857 | H50: =IFERROR(INDEX(検挙手口本年!$E$5:$U$1000,MATCH($C50,検挙手口本年!$D$5:$D$1000,0),MATCH($A$1,検挙手口本年!$E$4:$U$4,0)),0) -> 0 | I50: =IFERROR(INDEX(検挙手口前年!$E$5:$U$1000,MATCH($C50,検挙手口前年!$D$5:$D$1000,0),MATCH($A$1,検挙手口前年!$E$4:$U$4,0)),0) -> 0 | J50: 0 | K50: 0 | L50: 0 | M50: 0 | N50: 0 | O50: =IFERROR(INDEX(人員手口本年!$E$5:$U$1000,MATCH($C50,人員手口本年!$D$5:$D$1000,0),MATCH($A$1,人員手口本年!$E$4:$U$4,0)),0) -> 0 | P50: =IFERROR(INDEX(人員手口前年!$E$5:$U$1000,MATCH($C50,人員手口前年!$D$5:$D$1000,0),MATCH($A$1,人員手口前年!$E$4:$U$4,0)),0) -> 0 | Q50: 0 | R50: 0 | S50: =IFERROR(INDEX(少年手口本年!$E$5:$U$1000,MATCH($C50,少年手口本年!$D$5:$D$1000,0),MATCH($A$1,少年手口本年!$E$4:$U$4,0)),0) -> 0 | T50: =IFERROR(INDEX(少年手口前年!$E$5:$U$1000,MATCH($C50,少年手口前年!$D$5:$D$1000,0),MATCH($A$1,少年手口前年!$E$4:$U$4,0)),0) -> 0 | U50: 0 | V50: 0
C51: 車上ねらい | D51: =IFERROR(INDEX(認知手口本年!$E$5:$U$1000,MATCH("車上ねらい（施錠した）",認知手口本年!$D$5:$D$1000,0),MATCH($A$1,認知手口本年!$E$4:$U$4,0))+INDEX(認知手口本年!$E$5:$U$1000,MATCH("車上ねらい（施錠せず）",認知手口本年!$D$5:$D$1000,0),MATCH($A$1,認知手口本年!$E$4:$U$4,0)),0) -> 260 | E51: =IFERROR(INDEX(認知手口前年!$E$5:$U$1000,MATCH("車上ねらい（施錠した）",認知手口前年!$D$5:$D$1000,0),MATCH($A$1,認知手口前年!$E$4:$U$4,0))+INDEX(認知手口前年!$E$5:$U$1000,MATCH("車上ねらい（施錠せず）",認知手口前年!$D$5:$D$1000,0),MATCH($A$1,認知手口前年!$E$4:$U$4,0)),0) -> 269 | F51: -9 | G51: -3.345724907 | H51: =IFERROR(INDEX(検挙手口本年!$E$5:$U$1000,MATCH("車上ねらい（施錠した）",検挙手口本年!$D$5:$D$1000,0),MATCH($A$1,検挙手口本年!$E$4:$U$4,0))+INDEX(検挙手口本年!$E$5:$U$1000,MATCH("車上ねらい（施錠せず）",検挙手口本年!$D$5:$D$1000,0),MATCH($A$1,検挙手口本年!$E$4:$U$4,0)),0) -> 70 | I51: =IFERROR(INDEX(検挙手口前年!$E$5:$U$1000,MATCH("車上ねらい（施錠した）",検挙手口前年!$D$5:$D$1000,0),MATCH($A$1,検挙手口前年!$E$4:$U$4,0))+INDEX(検挙手口前年!$E$5:$U$1000,MATCH("車上ねらい（施錠せず）",検挙手口前年!$D$5:$D$1000,0),MATCH($A$1,検挙手口前年!$E$4:$U$4,0)),0) -> 73 | J51: -3 | K51: -4.109589041 | L51: 26.9 | M51: 27.1 | N51: -0.2 | O51: =IFERROR(INDEX(人員手口本年!$E$5:$U$1000,MATCH("車上ねらい（施錠した）",人員手口本年!$D$5:$D$1000,0),MATCH($A$1,人員手口本年!$E$4:$U$4,0))+INDEX(人員手口本年!$E$5:$U$1000,MATCH("車上ねらい（施錠せず）",人員手口本年!$D$5:$D$1000,0),MATCH($A$1,人員手口本年!$E$4:$U$4,0)),0) -> 22 | P51: =IFERROR(INDEX(人員手口前年!$E$5:$U$1000,MATCH("車上ねらい（施錠した）",人員手口前年!$D$5:$D$1000,0),MATCH($A$1,人員手口前年!$E$4:$U$4,0))+INDEX(人員手口前年!$E$5:$U$1000,MATCH("車上ねらい（施錠せず）",人員手口前年!$D$5:$D$1000,0),MATCH($A$1,人員手口前年!$E$4:$U$4,0)),0) -> 15 | Q51: 7 | R51: 46.66666667 | S51: =IFERROR(INDEX(少年手口本年!$E$5:$U$1000,MATCH("車上ねらい（施錠した）",少年手口本年!$D$5:$D$1000,0),MATCH($A$1,少年手口本年!$E$4:$U$4,0))+INDEX(少年手口本年!$E$5:$U$1000,MATCH("車上ねらい（施錠せず）",少年手口本年!$D$5:$D$1000,0),MATCH($A$1,少年手口本年!$E$4:$U$4,0)),0) -> 1 | T51: =IFERROR(INDEX(少年手口前年!$E$5:$U$1000,MATCH("車上ねらい（施錠した）",少年手口前年!$D$5:$D$1000,0),MATCH($A$1,少年手口前年!$E$4:$U$4,0))+INDEX(少年手口前年!$E$5:$U$1000,MATCH("車上ねらい（施錠せず）",少年手口前年!$D$5:$D$1000,0),MATCH($A$1,少年手口前年!$E$4:$U$4,0)),0) -> 2 | U51: -1 | V51: -50 | W51: 4.5 | X51: 13.3 | Y51: -8.8
C52: 部品ねらい | D52: =IFERROR(INDEX(認知手口本年!$E$5:$U$1000,MATCH($C52,認知手口本年!$D$5:$D$1000,0),MATCH($A$1,認知手口本年!$E$4:$U$4,0)),0) -> 123 | E52: =IFERROR(INDEX(認知手口前年!$E$5:$U$1000,MATCH($C52,認知手口前年!$D$5:$D$1000,0),MATCH($A$1,認知手口前年!$E$4:$U$4,0)),0) -> 138 | F52: -15 | G52: -10.86956522 | H52: =IFERROR(INDEX(検挙手口本年!$E$5:$U$1000,MATCH($C52,検挙手口本年!$D$5:$D$1000,0),MATCH($A$1,検挙手口本年!$E$4:$U$4,0)),0) -> 13 | I52: =IFERROR(INDEX(検挙手口前年!$E$5:$U$1000,MATCH($C52,検挙手口前年!$D$5:$D$1000,0),MATCH($A$1,検挙手口前年!$E$4:$U$4,0)),0) -> 21 | J52: -8 | K52: -38.0952381 | L52: 10.6 | M52: 15.2 | N52: -4.6 | O52: =IFERROR(INDEX(人員手口本年!$E$5:$U$1000,MATCH($C52,人員手口本年!$D$5:$D$1000,0),MATCH($A$1,人員手口本年!$E$4:$U$4,0)),0) -> 3 | P52: =IFERROR(INDEX(人員手口前年!$E$5:$U$1000,MATCH($C52,人員手口前年!$D$5:$D$1000,0),MATCH($A$1,人員手口前年!$E$4:$U$4,0)),0) -> 0 | Q52: 3 | R52: ― | S52: =IFERROR(INDEX(少年手口本年!$E$5:$U$1000,MATCH($C52,少年手口本年!$D$5:$D$1000,0),MATCH($A$1,少年手口本年!$E$4:$U$4,0)),0) -> 1 | T52: =IFERROR(INDEX(少年手口前年!$E$5:$U$1000,MATCH($C52,少年手口前年!$D$5:$D$1000,0),MATCH($A$1,少年手口前年!$E$4:$U$4,0)),0) -> 0 | U52: 1 | V52: ― | W52: 33.3 | Y52: ―
C53: 自動販売機ねらい | D53: =IFERROR(INDEX(認知手口本年!$E$5:$U$1000,MATCH($C53,認知手口本年!$D$5:$D$1000,0),MATCH($A$1,認知手口本年!$E$4:$U$4,0)),0) -> 33 | E53: =IFERROR(INDEX(認知手口前年!$E$5:$U$1000,MATCH($C53,認知手口前年!$D$5:$D$1000,0),MATCH($A$1,認知手口前年!$E$4:$U$4,0)),0) -> 28 | F53: 5 | G53: 17.85714286 | H53: =IFERROR(INDEX(検挙手口本年!$E$5:$U$1000,MATCH($C53,検挙手口本年!$D$5:$D$1000,0),MATCH($A$1,検挙手口本年!$E$4:$U$4,0)),0) -> 119 | I53: =IFERROR(INDEX(検挙手口前年!$E$5:$U$1000,MATCH($C53,検挙手口前年!$D$5:$D$1000,0),MATCH($A$1,検挙手口前年!$E$4:$U$4,0)),0) -> 2 | J53: 117 | K53: 5850 | L53: 360.6 | M53: 7.1 | N53: 353.5 | O53: =IFERROR(INDEX(人員手口本年!$E$5:$U$1000,MATCH($C53,人員手口本年!$D$5:$D$1000,0),MATCH($A$1,人員手口本年!$E$4:$U$4,0)),0) -> 2 | P53: =IFERROR(INDEX(人員手口前年!$E$5:$U$1000,MATCH($C53,人員手口前年!$D$5:$D$1000,0),MATCH($A$1,人員手口前年!$E$4:$U$4,0)),0) -> 0 | Q53: 2 | R53: ― | S53: =IFERROR(INDEX(少年手口本年!$E$5:$U$1000,MATCH($C53,少年手口本年!$D$5:$D$1000,0),MATCH($A$1,少年手口本年!$E$4:$U$4,0)),0) -> 0 | T53: =IFERROR(INDEX(少年手口前年!$E$5:$U$1000,MATCH($C53,少年手口前年!$D$5:$D$1000,0),MATCH($A$1,少年手口前年!$E$4:$U$4,0)),0) -> 0 | U53: 0 | V53: 0 | W53: 0 | Y53: ―
C54: 色情ねらい | D54: =IFERROR(INDEX(認知手口本年!$E$5:$U$1000,MATCH($C54,認知手口本年!$D$5:$D$1000,0),MATCH($A$1,認知手口本年!$E$4:$U$4,0)),0) -> 38 | E54: =IFERROR(INDEX(認知手口前年!$E$5:$U$1000,MATCH($C54,認知手口前年!$D$5:$D$1000,0),MATCH($A$1,認知手口前年!$E$4:$U$4,0)),0) -> 60 | F54: -22 | G54: -36.66666667 | H54: =IFERROR(INDEX(検挙手口本年!$E$5:$U$1000,MATCH($C54,検挙手口本年!$D$5:$D$1000,0),MATCH($A$1,検挙手口本年!$E$4:$U$4,0)),0) -> 14 | I54: =IFERROR(INDEX(検挙手口前年!$E$5:$U$1000,MATCH($C54,検挙手口前年!$D$5:$D$1000,0),MATCH($A$1,検挙手口前年!$E$4:$U$4,0)),0) -> 30 | J54: -16 | K54: -53.33333333 | L54: 36.8 | M54: 50 | N54: -13.2 | O54: =IFERROR(INDEX(人員手口本年!$E$5:$U$1000,MATCH($C54,人員手口本年!$D$5:$D$1000,0),MATCH($A$1,人員手口本年!$E$4:$U$4,0)),0) -> 6 | P54: =IFERROR(INDEX(人員手口前年!$E$5:$U$1000,MATCH($C54,人員手口前年!$D$5:$D$1000,0),MATCH($A$1,人員手口前年!$E$4:$U$4,0)),0) -> 11 | Q54: -5 | R54: -45.45454545 | S54: =IFERROR(INDEX(少年手口本年!$E$5:$U$1000,MATCH($C54,少年手口本年!$D$5:$D$1000,0),MATCH($A$1,少年手口本年!$E$4:$U$4,0)),0) -> 0 | T54: =IFERROR(INDEX(少年手口前年!$E$5:$U$1000,MATCH($C54,少年手口前年!$D$5:$D$1000,0),MATCH($A$1,少年手口前年!$E$4:$U$4,0)),0) -> 0 | U54: 0 | V54: 0 | W54: 0 | X54: 0 | Y54: 0
C55: 万引き | D55: =IFERROR(INDEX(認知手口本年!$E$5:$U$1000,MATCH($C55,認知手口本年!$D$5:$D$1000,0),MATCH($A$1,認知手口本年!$E$4:$U$4,0)),0) -> 925 | E55: =IFERROR(INDEX(認知手口前年!$E$5:$U$1000,MATCH($C55,認知手口前年!$D$5:$D$1000,0),MATCH($A$1,認知手口前年!$E$4:$U$4,0)),0) -> 1089 | F55: -164 | G55: -15.05968779 | H55: =IFERROR(INDEX(検挙手口本年!$E$5:$U$1000,MATCH($C55,検挙手口本年!$D$5:$D$1000,0),MATCH($A$1,検挙手口本年!$E$4:$U$4,0)),0) -> 746 | I55: =IFERROR(INDEX(検挙手口前年!$E$5:$U$1000,MATCH($C55,検挙手口前年!$D$5:$D$1000,0),MATCH($A$1,検挙手口前年!$E$4:$U$4,0)),0) -> 746 | J55: 0 | K55: 0 | L55: 80.6 | M55: 68.5 | N55: 12.1 | O55: =IFERROR(INDEX(人員手口本年!$E$5:$U$1000,MATCH($C55,人員手口本年!$D$5:$D$1000,0),MATCH($A$1,人員手口本年!$E$4:$U$4,0)),0) -> 576 | P55: =IFERROR(INDEX(人員手口前年!$E$5:$U$1000,MATCH($C55,人員手口前年!$D$5:$D$1000,0),MATCH($A$1,人員手口前年!$E$4:$U$4,0)),0) -> 578 | Q55: -2 | R55: -0.3460207612 | S55: =IFERROR(INDEX(少年手口本年!$E$5:$U$1000,MATCH($C55,少年手口本年!$D$5:$D$1000,0),MATCH($A$1,少年手口本年!$E$4:$U$4,0)),0) -> 56 | T55: =IFERROR(INDEX(少年手口前年!$E$5:$U$1000,MATCH($C55,少年手口前年!$D$5:$D$1000,0),MATCH($A$1,少年手口前年!$E$4:$U$4,0)),0) -> 56 | U55: 0 | V55: 0 | W55: 9.7 | X55: 9.7 | Y55: 0
C56: その他 | D56: =D43-SUM(D44:D55) -> 682 | E56: =E43-SUM(E44:E55) -> 699 | F56: -17 | G56: -2.43204578 | H56: =H43-SUM(H44:H55) -> 304 | I56: =I43-SUM(I44:I55) -> 270 | J56: 34 | K56: 12.59259259 | L56: 44.6 | M56: 38.6 | N56: 6 | O56: =O43-SUM(O44:O55) -> 155 | P56: =P43-SUM(P44:P55) -> 172 | Q56: -17 | R56: -9.88372093 | S56: =S43-SUM(S44:S55) -> 14 | T56: =T43-SUM(T44:T55) -> 16 | U56: -2 | V56: -12.5 | W56: 9 | X56: 9.3 | Y56: -0.3
A57: 知能犯 | D57: =IFERROR(INDEX(認知罪種本年!$E$5:$U$1000,MATCH($A57,認知罪種本年!$D$5:$D$1000,0),MATCH($A$1,認知罪種本年!$E$4:$U$4,0)),0) -> 489 | E57: =IFERROR(INDEX(認知罪種前年!$E$5:$U$1000,MATCH($A57,認知罪種前年!$D$5:$D$1000,0),MATCH($A$1,認知罪種前年!$E$4:$U$4,0)),0) -> 408 | F57: 81 | G57: 19.85294118 | H57: =IFERROR(INDEX(検挙罪種本年!$E$5:$U$1000,MATCH($A57,検挙罪種本年!$D$5:$D$1000,0),MATCH($A$1,検挙罪種本年!$E$4:$U$4,0)),0) -> 257 | I57: =IFERROR(INDEX(検挙罪種前年!$E$5:$U$1000,MATCH($A57,検挙罪種前年!$D$5:$D$1000,0),MATCH($A$1,検挙罪種前年!$E$4:$U$4,0)),0) -> 181 | J57: 76 | K57: 41.98895028 | L57: 52.6 | M57: 44.4 | N57: 8.2 | O57: =IFERROR(INDEX(人員罪種本年!$E$5:$U$1000,MATCH($A57,人員罪種本年!$D$5:$D$1000,0),MATCH($A$1,人員罪種本年!$E$4:$U$4,0)),0) -> 189 | P57: =IFERROR(INDEX(人員罪種前年!$E$5:$U$1000,MATCH($A57,人員罪種前年!$D$5:$D$1000,0),MATCH($A$1,人員罪種前年!$E$4:$U$4,0)),0) -> 113 | Q57: 76 | R57: 67.25663717 | S57: =IFERROR(INDEX(少年罪種本年!$E$5:$U$1000,MATCH($A57,少年罪種本年!$D$5:$D$1000,0),MATCH($A$1,少年罪種本年!$E$4:$U$4,0)),0) -> 10 | T57: =IFERROR(INDEX(少年罪種前年!$E$5:$U$1000,MATCH($A57,少年罪種前年!$D$5:$D$1000,0),MATCH($A$1,少年罪種前年!$E$4:$U$4,0)),0) -> 5 | U57: 5 | V57: 100 | W57: 5.3 | X57: 4.4 | Y57: 0.9
B58: 詐欺 | D58: =IFERROR(INDEX(認知罪種本年!$E$5:$U$1000,MATCH($B58,認知罪種本年!$D$5:$D$1000,0),MATCH($A$1,認知罪種本年!$E$4:$U$4,0)),0) -> 442 | E58: =IFERROR(INDEX(認知罪種前年!$E$5:$U$1000,MATCH($B58,認知罪種前年!$D$5:$D$1000,0),MATCH($A$1,認知罪種前年!$E$4:$U$4,0)),0) -> 357 | F58: 85 | G58: 23.80952381 | H58: =IFERROR(INDEX(検挙罪種本年!$E$5:$U$1000,MATCH($B58,検挙罪種本年!$D$5:$D$1000,0),MATCH($A$1,検挙罪種本年!$E$4:$U$4,0)),0) -> 218 | I58: =IFERROR(INDEX(検挙罪種前年!$E$5:$U$1000,MATCH($B58,検挙罪種前年!$D$5:$D$1000,0),MATCH($A$1,検挙罪種前年!$E$4:$U$4,0)),0) -> 138 | J58: 80 | K58: 57.97101449 | L58: 49.3 | M58: 38.7 | N58: 10.6 | O58: =IFERROR(INDEX(人員罪種本年!$E$5:$U$1000,MATCH($B58,人員罪種本年!$D$5:$D$1000,0),MATCH($A$1,人員罪種本年!$E$4:$U$4,0)),0) -> 154 | P58: =IFERROR(INDEX(人員罪種前年!$E$5:$U$1000,MATCH($B58,人員罪種前年!$D$5:$D$1000,0),MATCH($A$1,人員罪種前年!$E$4:$U$4,0)),0) -> 80 | Q58: 74 | R58: 92.5 | S58: =IFERROR(INDEX(少年罪種本年!$E$5:$U$1000,MATCH($B58,少年罪種本年!$D$5:$D$1000,0),MATCH($A$1,少年罪種本年!$E$4:$U$4,0)),0) -> 10 | T58: =IFERROR(INDEX(少年罪種前年!$E$5:$U$1000,MATCH($B58,少年罪種前年!$D$5:$D$1000,0),MATCH($A$1,少年罪種前年!$E$4:$U$4,0)),0) -> 3 | U58: 7 | V58: 233.3333333 | W58: 6.5 | X58: 3.8 | Y58: 2.7
B59: 横領 | D59: =IFERROR(INDEX(認知罪種本年!$E$5:$U$1000,MATCH($B59,認知罪種本年!$D$5:$D$1000,0),MATCH($A$1,認知罪種本年!$E$4:$U$4,0)),0) -> 25 | E59: =IFERROR(INDEX(認知罪種前年!$E$5:$U$1000,MATCH($B59,認知罪種前年!$D$5:$D$1000,0),MATCH($A$1,認知罪種前年!$E$4:$U$4,0)),0) -> 20 | F59: 5 | G59: 25 | H59: =IFERROR(INDEX(検挙罪種本年!$E$5:$U$1000,MATCH($B59,検挙罪種本年!$D$5:$D$1000,0),MATCH($A$1,検挙罪種本年!$E$4:$U$4,0)),0) -> 20 | I59: =IFERROR(INDEX(検挙罪種前年!$E$5:$U$1000,MATCH($B59,検挙罪種前年!$D$5:$D$1000,0),MATCH($A$1,検挙罪種前年!$E$4:$U$4,0)),0) -> 21 | J59: -1 | K59: -4.761904762 | L59: 80 | M59: 105 | N59: -25 | O59: =IFERROR(INDEX(人員罪種本年!$E$5:$U$1000,MATCH($B59,人員罪種本年!$D$5:$D$1000,0),MATCH($A$1,人員罪種本年!$E$4:$U$4,0)),0) -> 13 | P59: =IFERROR(INDEX(人員罪種前年!$E$5:$U$1000,MATCH($B59,人員罪種前年!$D$5:$D$1000,0),MATCH($A$1,人員罪種前年!$E$4:$U$4,0)),0) -> 17 | Q59: -4 | R59: -23.52941176 | S59: =IFERROR(INDEX(少年罪種本年!$E$5:$U$1000,MATCH($B59,少年罪種本年!$D$5:$D$1000,0),MATCH($A$1,少年罪種本年!$E$4:$U$4,0)),0) -> 0 | T59: =IFERROR(INDEX(少年罪種前年!$E$5:$U$1000,MATCH($B59,少年罪種前年!$D$5:$D$1000,0),MATCH($A$1,少年罪種前年!$E$4:$U$4,0)),0) -> 0 | U59: 0 | V59: 0 | W59: 0 | X59: 0 | Y59: 0
B60: 偽造 | D60: =IFERROR(INDEX(認知罪種本年!$E$5:$U$1000,MATCH("通貨偽造",認知罪種本年!$D$5:$D$1000,0),MATCH($A$1,認知罪種本年!$E$4:$U$4,0))+INDEX(認知罪種本年!$E$5:$U$1000,MATCH("文書偽造",認知罪種本年!$D$5:$D$1000,0),MATCH($A$1,認知罪種本年!$E$4:$U$4,0))+INDEX(認知罪種本年!$E$5:$U$1000,MATCH("支払用カード偽造",認知罪種本年!$D$5:$D$1000,0),MATCH($A$1,認知罪種本年!$E$4:$U$4,0))+INDEX(認知罪種本年!$E$5:$U$1000,MATCH("有価証券偽造",認知罪種本年!$D$5:$D$1000,0),MATCH($A$1,認知罪種本年!$E$4:$U$4,0))+INDEX(認知罪種本年!$E$5:$U$1000,MATCH("印章偽造",認知罪種本年!$D$5:$D$1000,0),MATCH($A$1,認知罪種本年!$E$4:$U$4,0)),0) -> 20 | E60: =IFERROR(INDEX(認知罪種前年!$E$5:$U$1000,MATCH("通貨偽造",認知罪種前年!$D$5:$D$1000,0),MATCH($A$1,認知罪種前年!$E$4:$U$4,0))+INDEX(認知罪種前年!$E$5:$U$1000,MATCH("文書偽造",認知罪種前年!$D$5:$D$1000,0),MATCH($A$1,認知罪種前年!$E$4:$U$4,0))+INDEX(認知罪種前年!$E$5:$U$1000,MATCH("支払用カード偽造",認知罪種前年!$D$5:$D$1000,0),MATCH($A$1,認知罪種前年!$E$4:$U$4,0))+INDEX(認知罪種前年!$E$5:$U$1000,MATCH("有価証券偽造",認知罪種前年!$D$5:$D$1000,0),MATCH($A$1,認知罪種前年!$E$4:$U$4,0))+INDEX(認知罪種前年!$E$5:$U$1000,MATCH("印章偽造",認知罪種前年!$D$5:$D$1000,0),MATCH($A$1,認知罪種前年!$E$4:$U$4,0)),0) -> 29 | F60: -9 | G60: -31.03448276 | H60: =IFERROR(INDEX(検挙罪種本年!$E$5:$U$1000,MATCH("通貨偽造",検挙罪種本年!$D$5:$D$1000,0),MATCH($A$1,検挙罪種本年!$E$4:$U$4,0))+INDEX(検挙罪種本年!$E$5:$U$1000,MATCH("文書偽造",検挙罪種本年!$D$5:$D$1000,0),MATCH($A$1,検挙罪種本年!$E$4:$U$4,0))+INDEX(検挙罪種本年!$E$5:$U$1000,MATCH("支払用カード偽造",検挙罪種本年!$D$5:$D$1000,0),MATCH($A$1,検挙罪種本年!$E$4:$U$4,0))+INDEX(検挙罪種本年!$E$5:$U$1000,MATCH("有価証券偽造",検挙罪種本年!$D$5:$D$1000,0),MATCH($A$1,検挙罪種本年!$E$4:$U$4,0))+INDEX(検挙罪種本年!$E$5:$U$1000,MATCH("印章偽造",検挙罪種本年!$D$5:$D$1000,0),MATCH($A$1,検挙罪種本年!$E$4:$U$4,0)),0) -> 18 | I60: =IFERROR(INDEX(検挙罪種前年!$E$5:$U$1000,MATCH("通貨偽造",検挙罪種前年!$D$5:$D$1000,0),MATCH($A$1,検挙罪種前年!$E$4:$U$4,0))+INDEX(検挙罪種前年!$E$5:$U$1000,MATCH("文書偽造",検挙罪種前年!$D$5:$D$1000,0),MATCH($A$1,検挙罪種前年!$E$4:$U$4,0))+INDEX(検挙罪種前年!$E$5:$U$1000,MATCH("支払用カード偽造",検挙罪種前年!$D$5:$D$1000,0),MATCH($A$1,検挙罪種前年!$E$4:$U$4,0))+INDEX(検挙罪種前年!$E$5:$U$1000,MATCH("有価証券偽造",検挙罪種前年!$D$5:$D$1000,0),MATCH($A$1,検挙罪種前年!$E$4:$U$4,0))+INDEX(検挙罪種前年!$E$5:$U$1000,MATCH("印章偽造",検挙罪種前年!$D$5:$D$1000,0),MATCH($A$1,検挙罪種前年!$E$4:$U$4,0)),0) -> 20 | J60: -2 | K60: -10 | L60: 90 | M60: 69 | N60: 21 | O60: =IFERROR(INDEX(人員罪種本年!$E$5:$U$1000,MATCH("通貨偽造",人員罪種本年!$D$5:$D$1000,0),MATCH($A$1,人員罪種本年!$E$4:$U$4,0))+INDEX(人員罪種本年!$E$5:$U$1000,MATCH("文書偽造",人員罪種本年!$D$5:$D$1000,0),MATCH($A$1,人員罪種本年!$E$4:$U$4,0))+INDEX(人員罪種本年!$E$5:$U$1000,MATCH("支払用カード偽造",人員罪種本年!$D$5:$D$1000,0),MATCH($A$1,人員罪種本年!$E$4:$U$4,0))+INDEX(人員罪種本年!$E$5:$U$1000,MATCH("有価証券偽造",人員罪種本年!$D$5:$D$1000,0),MATCH($A$1,人員罪種本年!$E$4:$U$4,0))+INDEX(人員罪種本年!$E$5:$U$1000,MATCH("印章偽造",人員罪種本年!$D$5:$D$1000,0),MATCH($A$1,人員罪種本年!$E$4:$U$4,0)),0) -> 16 | P60: =IFERROR(INDEX(人員罪種前年!$E$5:$U$1000,MATCH("通貨偽造",人員罪種前年!$D$5:$D$1000,0),MATCH($A$1,人員罪種前年!$E$4:$U$4,0))+INDEX(人員罪種前年!$E$5:$U$1000,MATCH("文書偽造",人員罪種前年!$D$5:$D$1000,0),MATCH($A$1,人員罪種前年!$E$4:$U$4,0))+INDEX(人員罪種前年!$E$5:$U$1000,MATCH("支払用カード偽造",人員罪種前年!$D$5:$D$1000,0),MATCH($A$1,人員罪種前年!$E$4:$U$4,0))+INDEX(人員罪種前年!$E$5:$U$1000,MATCH("有価証券偽造",人員罪種前年!$D$5:$D$1000,0),MATCH($A$1,人員罪種前年!$E$4:$U$4,0))+INDEX(人員罪種前年!$E$5:$U$1000,MATCH("印章偽造",人員罪種前年!$D$5:$D$1000,0),MATCH($A$1,人員罪種前年!$E$4:$U$4,0)),0) -> 11 | Q60: 5 | R60: 45.45454545 | S60: =IFERROR(INDEX(少年罪種本年!$E$5:$U$1000,MATCH("通貨偽造",少年罪種本年!$D$5:$D$1000,0),MATCH($A$1,少年罪種本年!$E$4:$U$4,0))+INDEX(少年罪種本年!$E$5:$U$1000,MATCH("文書偽造",少年罪種本年!$D$5:$D$1000,0),MATCH($A$1,少年罪種本年!$E$4:$U$4,0))+INDEX(少年罪種本年!$E$5:$U$1000,MATCH("支払用カード偽造",少年罪種本年!$D$5:$D$1000,0),MATCH($A$1,少年罪種本年!$E$4:$U$4,0))+INDEX(少年罪種本年!$E$5:$U$1000,MATCH("有価証券偽造",少年罪種本年!$D$5:$D$1000,0),MATCH($A$1,少年罪種本年!$E$4:$U$4,0))+INDEX(少年罪種本年!$E$5:$U$1000,MATCH("印章偽造",少年罪種本年!$D$5:$D$1000,0),MATCH($A$1,少年罪種本年!$E$4:$U$4,0)),0) -> 0 | T60: =IFERROR(INDEX(少年罪種前年!$E$5:$U$1000,MATCH("通貨偽造",少年罪種前年!$D$5:$D$1000,0),MATCH($A$1,少年罪種前年!$E$4:$U$4,0))+INDEX(少年罪種前年!$E$5:$U$1000,MATCH("文書偽造",少年罪種前年!$D$5:$D$1000,0),MATCH($A$1,少年罪種前年!$E$4:$U$4,0))+INDEX(少年罪種前年!$E$5:$U$1000,MATCH("支払用カード偽造",少年罪種前年!$D$5:$D$1000,0),MATCH($A$1,少年罪種前年!$E$4:$U$4,0))+INDEX(少年罪種前年!$E$5:$U$1000,MATCH("有価証券偽造",少年罪種前年!$D$5:$D$1000,0),MATCH($A$1,少年罪種前年!$E$4:$U$4,0))+INDEX(少年罪種前年!$E$5:$U$1000,MATCH("印章偽造",少年罪種前年!$D$5:$D$1000,0),MATCH($A$1,少年罪種前年!$E$4:$U$4,0)),0) -> 2 | U60: -2 | V60: -100 | W60: 0 | X60: 18.2 | Y60: -18.2
B61: 賄賂 | D61: =IFERROR(INDEX(認知罪種本年!$E$5:$U$1000,MATCH($B61,認知罪種本年!$D$5:$D$1000,0),MATCH($A$1,認知罪種本年!$E$4:$U$4,0)),0) -> 0 | E61: =IFERROR(INDEX(認知罪種前年!$E$5:$U$1000,MATCH($B61,認知罪種前年!$D$5:$D$1000,0),MATCH($A$1,認知罪種前年!$E$4:$U$4,0)),0) -> 1 | F61: -1 | G61: -100 | H61: =IFERROR(INDEX(検挙罪種本年!$E$5:$U$1000,MATCH($B61,検挙罪種本年!$D$5:$D$1000,0),MATCH($A$1,検挙罪種本年!$E$4:$U$4,0)),0) -> 0 | I61: =IFERROR(INDEX(検挙罪種前年!$E$5:$U$1000,MATCH($B61,検挙罪種前年!$D$5:$D$1000,0),MATCH($A$1,検挙罪種前年!$E$4:$U$4,0)),0) -> 1 | J61: -1 | K61: -100 | M61: 100 | N61: ― | O61: =IFERROR(INDEX(人員罪種本年!$E$5:$U$1000,MATCH($B61,人員罪種本年!$D$5:$D$1000,0),MATCH($A$1,人員罪種本年!$E$4:$U$4,0)),0) -> 0 | P61: =IFERROR(INDEX(人員罪種前年!$E$5:$U$1000,MATCH($B61,人員罪種前年!$D$5:$D$1000,0),MATCH($A$1,人員罪種前年!$E$4:$U$4,0)),0) -> 4 | Q61: -4 | R61: -100 | S61: =IFERROR(INDEX(少年罪種本年!$E$5:$U$1000,MATCH($B61,少年罪種本年!$D$5:$D$1000,0),MATCH($A$1,少年罪種本年!$E$4:$U$4,0)),0) -> 0 | T61: =IFERROR(INDEX(少年罪種前年!$E$5:$U$1000,MATCH($B61,少年罪種前年!$D$5:$D$1000,0),MATCH($A$1,少年罪種前年!$E$4:$U$4,0)),0) -> 0 | U61: 0 | V61: 0 | X61: 0 | Y61: ―
B62: 職権濫用 | D62: =IFERROR(INDEX(認知罪種本年!$E$5:$U$1000,MATCH($B62,認知罪種本年!$D$5:$D$1000,0),MATCH($A$1,認知罪種本年!$E$4:$U$4,0)),0) -> 0 | E62: =IFERROR(INDEX(認知罪種前年!$E$5:$U$1000,MATCH($B62,認知罪種前年!$D$5:$D$1000,0),MATCH($A$1,認知罪種前年!$E$4:$U$4,0)),0) -> 0 | F62: 0 | G62: 0 | H62: =IFERROR(INDEX(検挙罪種本年!$E$5:$U$1000,MATCH($B62,検挙罪種本年!$D$5:$D$1000,0),MATCH($A$1,検挙罪種本年!$E$4:$U$4,0)),0) -> 0 | I62: =IFERROR(INDEX(検挙罪種前年!$E$5:$U$1000,MATCH($B62,検挙罪種前年!$D$5:$D$1000,0),MATCH($A$1,検挙罪種前年!$E$4:$U$4,0)),0) -> 0 | J62: 0 | K62: 0 | O62: =IFERROR(INDEX(人員罪種本年!$E$5:$U$1000,MATCH($B62,人員罪種本年!$D$5:$D$1000,0),MATCH($A$1,人員罪種本年!$E$4:$U$4,0)),0) -> 0 | P62: =IFERROR(INDEX(人員罪種前年!$E$5:$U$1000,MATCH($B62,人員罪種前年!$D$5:$D$1000,0),MATCH($A$1,人員罪種前年!$E$4:$U$4,0)),0) -> 0 | Q62: 0 | R62: 0 | S62: =IFERROR(INDEX(少年罪種本年!$E$5:$U$1000,MATCH($B62,少年罪種本年!$D$5:$D$1000,0),MATCH($A$1,少年罪種本年!$E$4:$U$4,0)),0) -> 0 | T62: =IFERROR(INDEX(少年罪種前年!$E$5:$U$1000,MATCH($B62,少年罪種前年!$D$5:$D$1000,0),MATCH($A$1,少年罪種前年!$E$4:$U$4,0)),0) -> 0 | U62: 0 | V62: 0
B63: あっせん利得処罰法 | D63: =IFERROR(INDEX(認知罪種本年!$E$5:$U$1000,MATCH($B63,認知罪種本年!$D$5:$D$1000,0),MATCH($A$1,認知罪種本年!$E$4:$U$4,0)),0) -> 0 | E63: =IFERROR(INDEX(認知罪種前年!$E$5:$U$1000,MATCH($B63,認知罪種前年!$D$5:$D$1000,0),MATCH($A$1,認知罪種前年!$E$4:$U$4,0)),0) -> 0 | F63: 0 | G63: 0 | H63: =IFERROR(INDEX(検挙罪種本年!$E$5:$U$1000,MATCH($B63,検挙罪種本年!$D$5:$D$1000,0),MATCH($A$1,検挙罪種本年!$E$4:$U$4,0)),0) -> 0 | I63: =IFERROR(INDEX(検挙罪種前年!$E$5:$U$1000,MATCH($B63,検挙罪種前年!$D$5:$D$1000,0),MATCH($A$1,検挙罪種前年!$E$4:$U$4,0)),0) -> 0 | J63: 0 | K63: 0 | O63: =IFERROR(INDEX(人員罪種本年!$E$5:$U$1000,MATCH($B63,人員罪種本年!$D$5:$D$1000,0),MATCH($A$1,人員罪種本年!$E$4:$U$4,0)),0) -> 0 | P63: =IFERROR(INDEX(人員罪種前年!$E$5:$U$1000,MATCH($B63,人員罪種前年!$D$5:$D$1000,0),MATCH($A$1,人員罪種前年!$E$4:$U$4,0)),0) -> 0 | Q63: 0 | R63: 0 | S63: =IFERROR(INDEX(少年罪種本年!$E$5:$U$1000,MATCH($B63,少年罪種本年!$D$5:$D$1000,0),MATCH($A$1,少年罪種本年!$E$4:$U$4,0)),0) -> 0 | T63: =IFERROR(INDEX(少年罪種前年!$E$5:$U$1000,MATCH($B63,少年罪種前年!$D$5:$D$1000,0),MATCH($A$1,少年罪種前年!$E$4:$U$4,0)),0) -> 0 | U63: 0 | V63: 0
B64: 背任 | D64: =IFERROR(INDEX(認知罪種本年!$E$5:$U$1000,MATCH($B64,認知罪種本年!$D$5:$D$1000,0),MATCH($A$1,認知罪種本年!$E$4:$U$4,0)),0) -> 2 | E64: =IFERROR(INDEX(認知罪種前年!$E$5:$U$1000,MATCH($B64,認知罪種前年!$D$5:$D$1000,0),MATCH($A$1,認知罪種前年!$E$4:$U$4,0)),0) -> 1 | F64: 1 | G64: 100 | H64: =IFERROR(INDEX(検挙罪種本年!$E$5:$U$1000,MATCH($B64,検挙罪種本年!$D$5:$D$1000,0),MATCH($A$1,検挙罪種本年!$E$4:$U$4,0)),0) -> 1 | I64: =IFERROR(INDEX(検挙罪種前年!$E$5:$U$1000,MATCH($B64,検挙罪種前年!$D$5:$D$1000,0),MATCH($A$1,検挙罪種前年!$E$4:$U$4,0)),0) -> 1 | J64: 0 | K64: 0 | L64: 50 | M64: 100 | N64: -50 | O64: =IFERROR(INDEX(人員罪種本年!$E$5:$U$1000,MATCH($B64,人員罪種本年!$D$5:$D$1000,0),MATCH($A$1,人員罪種本年!$E$4:$U$4,0)),0) -> 6 | P64: =IFERROR(INDEX(人員罪種前年!$E$5:$U$1000,MATCH($B64,人員罪種前年!$D$5:$D$1000,0),MATCH($A$1,人員罪種前年!$E$4:$U$4,0)),0) -> 1 | Q64: 5 | R64: 500 | S64: =IFERROR(INDEX(少年罪種本年!$E$5:$U$1000,MATCH($B64,少年罪種本年!$D$5:$D$1000,0),MATCH($A$1,少年罪種本年!$E$4:$U$4,0)),0) -> 0 | T64: =IFERROR(INDEX(少年罪種前年!$E$5:$U$1000,MATCH($B64,少年罪種前年!$D$5:$D$1000,0),MATCH($A$1,少年罪種前年!$E$4:$U$4,0)),0) -> 0 | U64: 0 | V64: 0 | W64: 0 | X64: 0 | Y64: 0
A65: 風俗犯 | D65: =IFERROR(INDEX(認知罪種本年!$E$5:$U$1000,MATCH($A65,認知罪種本年!$D$5:$D$1000,0),MATCH($A$1,認知罪種本年!$E$4:$U$4,0)),0) -> 99 | E65: =IFERROR(INDEX(認知罪種前年!$E$5:$U$1000,MATCH($A65,認知罪種前年!$D$5:$D$1000,0),MATCH($A$1,認知罪種前年!$E$4:$U$4,0)),0) -> 81 | F65: 18 | G65: 22.22222222 | H65: =IFERROR(INDEX(検挙罪種本年!$E$5:$U$1000,MATCH($A65,検挙罪種本年!$D$5:$D$1000,0),MATCH($A$1,検挙罪種本年!$E$4:$U$4,0)),0) -> 71 | I65: =IFERROR(INDEX(検挙罪種前年!$E$5:$U$1000,MATCH($A65,検挙罪種前年!$D$5:$D$1000,0),MATCH($A$1,検挙罪種前年!$E$4:$U$4,0)),0) -> 58 | J65: 13 | K65: 22.4137931 | L65: 71.7 | M65: 71.6 | N65: 0.1 | O65: =IFERROR(INDEX(人員罪種本年!$E$5:$U$1000,MATCH($A65,人員罪種本年!$D$5:$D$1000,0),MATCH($A$1,人員罪種本年!$E$4:$U$4,0)),0) -> 50 | P65: =IFERROR(INDEX(人員罪種前年!$E$5:$U$1000,MATCH($A65,人員罪種前年!$D$5:$D$1000,0),MATCH($A$1,人員罪種前年!$E$4:$U$4,0)),0) -> 36 | Q65: 14 | R65: 38.88888889 | S65: =IFERROR(INDEX(少年罪種本年!$E$5:$U$1000,MATCH($A65,少年罪種本年!$D$5:$D$1000,0),MATCH($A$1,少年罪種本年!$E$4:$U$4,0)),0) -> 1 | T65: =IFERROR(INDEX(少年罪種前年!$E$5:$U$1000,MATCH($A65,少年罪種前年!$D$5:$D$1000,0),MATCH($A$1,少年罪種前年!$E$4:$U$4,0)),0) -> 2 | U65: -1 | V65: -50 | W65: 2 | X65: 5.6 | Y65: -3.6
B66: 賭博 | D66: =IFERROR(INDEX(認知罪種本年!$E$5:$U$1000,MATCH($B66,認知罪種本年!$D$5:$D$1000,0),MATCH($A$1,認知罪種本年!$E$4:$U$4,0)),0) -> 1 | E66: =IFERROR(INDEX(認知罪種前年!$E$5:$U$1000,MATCH($B66,認知罪種前年!$D$5:$D$1000,0),MATCH($A$1,認知罪種前年!$E$4:$U$4,0)),0) -> 0 | F66: 1 | G66: ― | H66: =IFERROR(INDEX(検挙罪種本年!$E$5:$U$1000,MATCH($B66,検挙罪種本年!$D$5:$D$1000,0),MATCH($A$1,検挙罪種本年!$E$4:$U$4,0)),0) -> 0 | I66: =IFERROR(INDEX(検挙罪種前年!$E$5:$U$1000,MATCH($B66,検挙罪種前年!$D$5:$D$1000,0),MATCH($A$1,検挙罪種前年!$E$4:$U$4,0)),0) -> 0 | J66: 0 | K66: 0 | L66: 0 | N66: ― | O66: =IFERROR(INDEX(人員罪種本年!$E$5:$U$1000,MATCH($B66,人員罪種本年!$D$5:$D$1000,0),MATCH($A$1,人員罪種本年!$E$4:$U$4,0)),0) -> 0 | P66: =IFERROR(INDEX(人員罪種前年!$E$5:$U$1000,MATCH($B66,人員罪種前年!$D$5:$D$1000,0),MATCH($A$1,人員罪種前年!$E$4:$U$4,0)),0) -> 0 | Q66: 0 | R66: 0 | S66: =IFERROR(INDEX(少年罪種本年!$E$5:$U$1000,MATCH($B66,少年罪種本年!$D$5:$D$1000,0),MATCH($A$1,少年罪種本年!$E$4:$U$4,0)),0) -> 0 | T66: =IFERROR(INDEX(少年罪種前年!$E$5:$U$1000,MATCH($B66,少年罪種前年!$D$5:$D$1000,0),MATCH($A$1,少年罪種前年!$E$4:$U$4,0)),0) -> 0 | U66: 0 | V66: 0
B67: 強制わいせつ | D67: =IFERROR(INDEX(認知罪種本年!$E$5:$U$1000,MATCH($B67,認知罪種本年!$D$5:$D$1000,0),MATCH($A$1,認知罪種本年!$E$4:$U$4,0)),0) -> 58 | E67: =IFERROR(INDEX(認知罪種前年!$E$5:$U$1000,MATCH($B67,認知罪種前年!$D$5:$D$1000,0),MATCH($A$1,認知罪種前年!$E$4:$U$4,0)),0) -> 44 | F67: 14 | G67: 31.81818182 | H67: =IFERROR(INDEX(検挙罪種本年!$E$5:$U$1000,MATCH($B67,検挙罪種本年!$D$5:$D$1000,0),MATCH($A$1,検挙罪種本年!$E$4:$U$4,0)),0) -> 41 | I67: =IFERROR(INDEX(検挙罪種前年!$E$5:$U$1000,MATCH($B67,検挙罪種前年!$D$5:$D$1000,0),MATCH($A$1,検挙罪種前年!$E$4:$U$4,0)),0) -> 40 | J67: 1 | K67: 2.5 | L67: 70.7 | M67: 90.9 | N67: -20.2 | O67: =IFERROR(INDEX(人員罪種本年!$E$5:$U$1000,MATCH($B67,人員罪種本年!$D$5:$D$1000,0),MATCH($A$1,人員罪種本年!$E$4:$U$4,0)),0) -> 30 | P67: =IFERROR(INDEX(人員罪種前年!$E$5:$U$1000,MATCH($B67,人員罪種前年!$D$5:$D$1000,0),MATCH($A$1,人員罪種前年!$E$4:$U$4,0)),0) -> 20 | Q67: 10 | R67: 50 | S67: =IFERROR(INDEX(少年罪種本年!$E$5:$U$1000,MATCH($B67,少年罪種本年!$D$5:$D$1000,0),MATCH($A$1,少年罪種本年!$E$4:$U$4,0)),0) -> 1 | T67: =IFERROR(INDEX(少年罪種前年!$E$5:$U$1000,MATCH($B67,少年罪種前年!$D$5:$D$1000,0),MATCH($A$1,少年罪種前年!$E$4:$U$4,0)),0) -> 2 | U67: -1 | V67: -50 | W67: 3.3 | X67: 10 | Y67: -6.7
B68: 公然わいせつ | D68: =IFERROR(INDEX(認知罪種本年!$E$5:$U$1000,MATCH($B68,認知罪種本年!$D$5:$D$1000,0),MATCH($A$1,認知罪種本年!$E$4:$U$4,0)),0) -> 30 | E68: =IFERROR(INDEX(認知罪種前年!$E$5:$U$1000,MATCH($B68,認知罪種前年!$D$5:$D$1000,0),MATCH($A$1,認知罪種前年!$E$4:$U$4,0)),0) -> 32 | F68: -2 | G68: -6.25 | H68: =IFERROR(INDEX(検挙罪種本年!$E$5:$U$1000,MATCH($B68,検挙罪種本年!$D$5:$D$1000,0),MATCH($A$1,検挙罪種本年!$E$4:$U$4,0)),0) -> 21 | I68: =IFERROR(INDEX(検挙罪種前年!$E$5:$U$1000,MATCH($B68,検挙罪種前年!$D$5:$D$1000,0),MATCH($A$1,検挙罪種前年!$E$4:$U$4,0)),0) -> 14 | J68: 7 | K68: 50 | L68: 70 | M68: 43.8 | N68: 26.2 | O68: =IFERROR(INDEX(人員罪種本年!$E$5:$U$1000,MATCH($B68,人員罪種本年!$D$5:$D$1000,0),MATCH($A$1,人員罪種本年!$E$4:$U$4,0)),0) -> 15 | P68: =IFERROR(INDEX(人員罪種前年!$E$5:$U$1000,MATCH($B68,人員罪種前年!$D$5:$D$1000,0),MATCH($A$1,人員罪種前年!$E$4:$U$4,0)),0) -> 13 | Q68: 2 | R68: 15.38461538 | S68: =IFERROR(INDEX(少年罪種本年!$E$5:$U$1000,MATCH($B68,少年罪種本年!$D$5:$D$1000,0),MATCH($A$1,少年罪種本年!$E$4:$U$4,0)),0) -> 0 | T68: =IFERROR(INDEX(少年罪種前年!$E$5:$U$1000,MATCH($B68,少年罪種前年!$D$5:$D$1000,0),MATCH($A$1,少年罪種前年!$E$4:$U$4,0)),0) -> 0 | U68: 0 | V68: 0 | W68: 0 | X68: 0 | Y68: 0
B69: わいせつ物頒布等 | D69: =IFERROR(INDEX(認知罪種本年!$E$5:$U$1000,MATCH($B69,認知罪種本年!$D$5:$D$1000,0),MATCH($A$1,認知罪種本年!$E$4:$U$4,0)),0) -> 10 | E69: =IFERROR(INDEX(認知罪種前年!$E$5:$U$1000,MATCH($B69,認知罪種前年!$D$5:$D$1000,0),MATCH($A$1,認知罪種前年!$E$4:$U$4,0)),0) -> 5 | F69: 5 | G69: 100 | H69: =IFERROR(INDEX(検挙罪種本年!$E$5:$U$1000,MATCH($B69,検挙罪種本年!$D$5:$D$1000,0),MATCH($A$1,検挙罪種本年!$E$4:$U$4,0)),0) -> 9 | I69: =IFERROR(INDEX(検挙罪種前年!$E$5:$U$1000,MATCH($B69,検挙罪種前年!$D$5:$D$1000,0),MATCH($A$1,検挙罪種前年!$E$4:$U$4,0)),0) -> 4 | J69: 5 | K69: 125 | L69: 90 | M69: =IF(E69>0,ROUND(I69/E69*100,1),IF(I69>0,"―","")) -> 80 | N69: =IF(AND(M69="",L69=""),"",IF(ISERR(L69-M69),"―",L69-M69)) -> 10 | O69: =IFERROR(INDEX(人員罪種本年!$E$5:$U$1000,MATCH($B69,人員罪種本年!$D$5:$D$1000,0),MATCH($A$1,人員罪種本年!$E$4:$U$4,0)),0) -> 5 | P69: =IFERROR(INDEX(人員罪種前年!$E$5:$U$1000,MATCH($B69,人員罪種前年!$D$5:$D$1000,0),MATCH($A$1,人員罪種前年!$E$4:$U$4,0)),0) -> 3 | Q69: 2 | R69: 66.66666667 | S69: =IFERROR(INDEX(少年罪種本年!$E$5:$U$1000,MATCH($B69,少年罪種本年!$D$5:$D$1000,0),MATCH($A$1,少年罪種本年!$E$4:$U$4,0)),0) -> 0 | T69: =IFERROR(INDEX(少年罪種前年!$E$5:$U$1000,MATCH($B69,少年罪種前年!$D$5:$D$1000,0),MATCH($A$1,少年罪種前年!$E$4:$U$4,0)),0) -> 0 | U69: 0 | V69: 0 | W69: =IF(O69>0,ROUND(S69/O69*100,1),"") -> 0 | X69: =IF(P69>0,ROUND(T69/P69*100,1),"") -> 0 | Y69: =IF(AND(X69="",W69=""),"",IF(ISERR(W69-X69),"―",W69-X69)) -> 0
A70: その他の刑法犯 | D70: =IFERROR(INDEX(認知罪種本年!$E$5:$U$1000,MATCH($A70,認知罪種本年!$D$5:$D$1000,0),MATCH($A$1,認知罪種本年!$E$4:$U$4,0)),0) -> 1003 | E70: =IFERROR(INDEX(認知罪種前年!$E$5:$U$1000,MATCH($A70,認知罪種前年!$D$5:$D$1000,0),MATCH($A$1,認知罪種前年!$E$4:$U$4,0)),0) -> 977 | F70: =D70-E70 -> 26 | G70: =IF(AND(E70=0,D70=0),0,IF(E70>0,F70/E70*100,IF(F70>0,"―",""))) -> 2.661207779 | H70: =IFERROR(INDEX(検挙罪種本年!$E$5:$U$1000,MATCH($A70,検挙罪種本年!$D$5:$D$1000,0),MATCH($A$1,検挙罪種本年!$E$4:$U$4,0)),0) -> 314 | I70: =IFERROR(INDEX(検挙罪種前年!$E$5:$U$1000,MATCH($A70,検挙罪種前年!$D$5:$D$1000,0),MATCH($A$1,検挙罪種前年!$E$4:$U$4,0)),0) -> 285 | J70: =H70-I70 -> 29 | K70: =IF(AND(I70=0,H70=0),0,IF(I70>0,J70/I70*100,IF(J70>0,"―",""))) -> 10.1754386 | L70: =IF(D70>0,ROUND(H70/D70*100,1),IF(H70>0,"―","")) -> 31.3 | M70: 29.2 | N70: 2.1 | O70: =IFERROR(INDEX(人員罪種本年!$E$5:$U$1000,MATCH($A70,人員罪種本年!$D$5:$D$1000,0),MATCH($A$1,人員罪種本年!$E$4:$U$4,0)),0) -> 224 | P70: =IFERROR(INDEX(人員罪種前年!$E$5:$U$1000,MATCH($A70,人員罪種前年!$D$5:$D$1000,0),MATCH($A$1,人員罪種前年!$E$4:$U$4,0)),0) -> 217 | Q70: =O70-P70 -> 7 | R70: =IF(AND(P70=0,O70=0),0,IF(P70>0,Q70/P70*100,IF(Q70>0,"―",""))) -> 3.225806452 | S70: =IFERROR(INDEX(少年罪種本年!$E$5:$U$1000,MATCH($A70,少年罪種本年!$D$5:$D$1000,0),MATCH($A$1,少年罪種本年!$E$4:$U$4,0)),0) -> 42 | T70: =IFERROR(INDEX(少年罪種前年!$E$5:$U$1000,MATCH($A70,少年罪種前年!$D$5:$D$1000,0),MATCH($A$1,少年罪種前年!$E$4:$U$4,0)),0) -> 33 | U70: =S70-T70 -> 9 | V70: =IF(AND(T70=0,S70=0),0,IF(T70>0,U70/T70*100,IF(U70>0,"―",""))) -> 27.27272727 | W70: 18.8 | X70: 15.2 | Y70: 3.6
B71: 占有離脱物横領 | D71: =IFERROR(INDEX(認知罪種本年!$E$5:$U$1000,MATCH($B71,認知罪種本年!$D$5:$D$1000,0),MATCH($A$1,認知罪種本年!$E$4:$U$4,0)),0) -> 125 | E71: =IFERROR(INDEX(認知罪種前年!$E$5:$U$1000,MATCH($B71,認知罪種前年!$D$5:$D$1000,0),MATCH($A$1,認知罪種前年!$E$4:$U$4,0)),0) -> 110 | F71: 15 | G71: 13.63636364 | H71: =IFERROR(INDEX(検挙罪種本年!$E$5:$U$1000,MATCH($B71,検挙罪種本年!$D$5:$D$1000,0),MATCH($A$1,検挙罪種本年!$E$4:$U$4,0)),0) -> 63 | I71: =IFERROR(INDEX(検挙罪種前年!$E$5:$U$1000,MATCH($B71,検挙罪種前年!$D$5:$D$1000,0),MATCH($A$1,検挙罪種前年!$E$4:$U$4,0)),0) -> 66 | J71: -3 | K71: -4.545454545 | L71: 50.4 | M71: 60 | N71: -9.6 | O71: =IFERROR(INDEX(人員罪種本年!$E$5:$U$1000,MATCH($B71,人員罪種本年!$D$5:$D$1000,0),MATCH($A$1,人員罪種本年!$E$4:$U$4,0)),0) -> 58 | P71: =IFERROR(INDEX(人員罪種前年!$E$5:$U$1000,MATCH($B71,人員罪種前年!$D$5:$D$1000,0),MATCH($A$1,人員罪種前年!$E$4:$U$4,0)),0) -> 68 | Q71: -10 | R71: -14.70588235 | S71: =IFERROR(INDEX(少年罪種本年!$E$5:$U$1000,MATCH($B71,少年罪種本年!$D$5:$D$1000,0),MATCH($A$1,少年罪種本年!$E$4:$U$4,0)),0) -> 12 | T71: =IFERROR(INDEX(少年罪種前年!$E$5:$U$1000,MATCH($B71,少年罪種前年!$D$5:$D$1000,0),MATCH($A$1,少年罪種前年!$E$4:$U$4,0)),0) -> 11 | U71: 1 | V71: 9.090909091 | W71: 20.7 | X71: 16.2 | Y71: 4.5
B72: 業務上等過失致死傷 | D72: =IFERROR(INDEX(認知罪種本年!$E$5:$U$1000,MATCH($B72,認知罪種本年!$D$5:$D$1000,0),MATCH($A$1,認知罪種本年!$E$4:$U$4,0)),0) -> 5 | E72: =IFERROR(INDEX(認知罪種前年!$E$5:$U$1000,MATCH($B72,認知罪種前年!$D$5:$D$1000,0),MATCH($A$1,認知罪種前年!$E$4:$U$4,0)),0) -> 6 | F72: -1 | G72: -16.66666667 | H72: =IFERROR(INDEX(検挙罪種本年!$E$5:$U$1000,MATCH($B72,検挙罪種本年!$D$5:$D$1000,0),MATCH($A$1,検挙罪種本年!$E$4:$U$4,0)),0) -> 6 | I72: =IFERROR(INDEX(検挙罪種前年!$E$5:$U$1000,MATCH($B72,検挙罪種前年!$D$5:$D$1000,0),MATCH($A$1,検挙罪種前年!$E$4:$U$4,0)),0) -> 6 | J72: 0 | K72: 0 | L72: 120 | M72: 100 | N72: 20 | O72: =IFERROR(INDEX(人員罪種本年!$E$5:$U$1000,MATCH($B72,人員罪種本年!$D$5:$D$1000,0),MATCH($A$1,人員罪種本年!$E$4:$U$4,0)),0) -> 9 | P72: =IFERROR(INDEX(人員罪種前年!$E$5:$U$1000,MATCH($B72,人員罪種前年!$D$5:$D$1000,0),MATCH($A$1,人員罪種前年!$E$4:$U$4,0)),0) -> 7 | Q72: 2 | R72: 28.57142857 | S72: =IFERROR(INDEX(少年罪種本年!$E$5:$U$1000,MATCH($B72,少年罪種本年!$D$5:$D$1000,0),MATCH($A$1,少年罪種本年!$E$4:$U$4,0)),0) -> 0 | T72: =IFERROR(INDEX(少年罪種前年!$E$5:$U$1000,MATCH($B72,少年罪種前年!$D$5:$D$1000,0),MATCH($A$1,少年罪種前年!$E$4:$U$4,0)),0) -> 0 | U72: 0 | V72: 0 | W72: 0 | X72: 0 | Y72: 0
B73: 公務執行妨害 | D73: =IFERROR(INDEX(認知罪種本年!$E$5:$U$1000,MATCH($B73,認知罪種本年!$D$5:$D$1000,0),MATCH($A$1,認知罪種本年!$E$4:$U$4,0)),0) -> 22 | E73: =IFERROR(INDEX(認知罪種前年!$E$5:$U$1000,MATCH($B73,認知罪種前年!$D$5:$D$1000,0),MATCH($A$1,認知罪種前年!$E$4:$U$4,0)),0) -> 18 | F73: 4 | G73: 22.22222222 | H73: =IFERROR(INDEX(検挙罪種本年!$E$5:$U$1000,MATCH($B73,検挙罪種本年!$D$5:$D$1000,0),MATCH($A$1,検挙罪種本年!$E$4:$U$4,0)),0) -> 22 | I73: =IFERROR(INDEX(検挙罪種前年!$E$5:$U$1000,MATCH($B73,検挙罪種前年!$D$5:$D$1000,0),MATCH($A$1,検挙罪種前年!$E$4:$U$4,0)),0) -> 15 | J73: 7 | K73: 46.66666667 | L73: 100 | M73: 83.3 | N73: 16.7 | O73: =IFERROR(INDEX(人員罪種本年!$E$5:$U$1000,MATCH($B73,人員罪種本年!$D$5:$D$1000,0),MATCH($A$1,人員罪種本年!$E$4:$U$4,0)),0) -> 19 | P73: =IFERROR(INDEX(人員罪種前年!$E$5:$U$1000,MATCH($B73,人員罪種前年!$D$5:$D$1000,0),MATCH($A$1,人員罪種前年!$E$4:$U$4,0)),0) -> 12 | Q73: 7 | R73: 58.33333333 | S73: =IFERROR(INDEX(少年罪種本年!$E$5:$U$1000,MATCH($B73,少年罪種本年!$D$5:$D$1000,0),MATCH($A$1,少年罪種本年!$E$4:$U$4,0)),0) -> 0 | T73: =IFERROR(INDEX(少年罪種前年!$E$5:$U$1000,MATCH($B73,少年罪種前年!$D$5:$D$1000,0),MATCH($A$1,少年罪種前年!$E$4:$U$4,0)),0) -> 0 | U73: 0 | V73: 0 | W73: 0 | X73: 0 | Y73: 0
B74: 失火 | D74: =IFERROR(INDEX(認知罪種本年!$E$5:$U$1000,MATCH($B74,認知罪種本年!$D$5:$D$1000,0),MATCH($A$1,認知罪種本年!$E$4:$U$4,0)),0) -> 0 | E74: =IFERROR(INDEX(認知罪種前年!$E$5:$U$1000,MATCH($B74,認知罪種前年!$D$5:$D$1000,0),MATCH($A$1,認知罪種前年!$E$4:$U$4,0)),0) -> 0 | F74: 0 | G74: 0 | H74: =IFERROR(INDEX(検挙罪種本年!$E$5:$U$1000,MATCH($B74,検挙罪種本年!$D$5:$D$1000,0),MATCH($A$1,検挙罪種本年!$E$4:$U$4,0)),0) -> 0 | I74: =IFERROR(INDEX(検挙罪種前年!$E$5:$U$1000,MATCH($B74,検挙罪種前年!$D$5:$D$1000,0),MATCH($A$1,検挙罪種前年!$E$4:$U$4,0)),0) -> 0 | J74: 0 | K74: 0 | O74: =IFERROR(INDEX(人員罪種本年!$E$5:$U$1000,MATCH($B74,人員罪種本年!$D$5:$D$1000,0),MATCH($A$1,人員罪種本年!$E$4:$U$4,0)),0) -> 0 | P74: =IFERROR(INDEX(人員罪種前年!$E$5:$U$1000,MATCH($B74,人員罪種前年!$D$5:$D$1000,0),MATCH($A$1,人員罪種前年!$E$4:$U$4,0)),0) -> 0 | Q74: 0 | R74: 0 | S74: =IFERROR(INDEX(少年罪種本年!$E$5:$U$1000,MATCH($B74,少年罪種本年!$D$5:$D$1000,0),MATCH($A$1,少年罪種本年!$E$4:$U$4,0)),0) -> 0 | T74: =IFERROR(INDEX(少年罪種前年!$E$5:$U$1000,MATCH($B74,少年罪種前年!$D$5:$D$1000,0),MATCH($A$1,少年罪種前年!$E$4:$U$4,0)),0) -> 0 | U74: 0 | V74: 0
B75: 住居侵入 | D75: =IFERROR(INDEX(認知罪種本年!$E$5:$U$1000,MATCH($B75,認知罪種本年!$D$5:$D$1000,0),MATCH($A$1,認知罪種本年!$E$4:$U$4,0)),0) -> 138 | E75: =IFERROR(INDEX(認知罪種前年!$E$5:$U$1000,MATCH($B75,認知罪種前年!$D$5:$D$1000,0),MATCH($A$1,認知罪種前年!$E$4:$U$4,0)),0) -> 135 | F75: 3 | G75: 2.222222222 | H75: =IFERROR(INDEX(検挙罪種本年!$E$5:$U$1000,MATCH($B75,検挙罪種本年!$D$5:$D$1000,0),MATCH($A$1,検挙罪種本年!$E$4:$U$4,0)),0) -> 69 | I75: =IFERROR(INDEX(検挙罪種前年!$E$5:$U$1000,MATCH($B75,検挙罪種前年!$D$5:$D$1000,0),MATCH($A$1,検挙罪種前年!$E$4:$U$4,0)),0) -> 74 | J75: -5 | K75: -6.756756757 | L75: 50 | M75: 54.8 | N75: -4.8 | O75: =IFERROR(INDEX(人員罪種本年!$E$5:$U$1000,MATCH($B75,人員罪種本年!$D$5:$D$1000,0),MATCH($A$1,人員罪種本年!$E$4:$U$4,0)),0) -> 40 | P75: =IFERROR(INDEX(人員罪種前年!$E$5:$U$1000,MATCH($B75,人員罪種前年!$D$5:$D$1000,0),MATCH($A$1,人員罪種前年!$E$4:$U$4,0)),0) -> 33 | Q75: 7 | R75: 21.21212121 | S75: =IFERROR(INDEX(少年罪種本年!$E$5:$U$1000,MATCH($B75,少年罪種本年!$D$5:$D$1000,0),MATCH($A$1,少年罪種本年!$E$4:$U$4,0)),0) -> 19 | T75: =IFERROR(INDEX(少年罪種前年!$E$5:$U$1000,MATCH($B75,少年罪種前年!$D$5:$D$1000,0),MATCH($A$1,少年罪種前年!$E$4:$U$4,0)),0) -> 14 | U75: 5 | V75: 35.71428571 | W75: 47.5 | X75: 42.4 | Y75: 5.1
B76: 逮捕監禁 | D76: =IFERROR(INDEX(認知罪種本年!$E$5:$U$1000,MATCH($B76,認知罪種本年!$D$5:$D$1000,0),MATCH($A$1,認知罪種本年!$E$4:$U$4,0)),0) -> 1 | E76: =IFERROR(INDEX(認知罪種前年!$E$5:$U$1000,MATCH($B76,認知罪種前年!$D$5:$D$1000,0),MATCH($A$1,認知罪種前年!$E$4:$U$4,0)),0) -> 1 | F76: 0 | G76: 0 | H76: =IFERROR(INDEX(検挙罪種本年!$E$5:$U$1000,MATCH($B76,検挙罪種本年!$D$5:$D$1000,0),MATCH($A$1,検挙罪種本年!$E$4:$U$4,0)),0) -> 1 | I76: =IFERROR(INDEX(検挙罪種前年!$E$5:$U$1000,MATCH($B76,検挙罪種前年!$D$5:$D$1000,0),MATCH($A$1,検挙罪種前年!$E$4:$U$4,0)),0) -> 2 | J76: -1 | K76: -50 | L76: 100 | M76: 200 | N76: -100 | O76: =IFERROR(INDEX(人員罪種本年!$E$5:$U$1000,MATCH($B76,人員罪種本年!$D$5:$D$1000,0),MATCH($A$1,人員罪種本年!$E$4:$U$4,0)),0) -> 0 | P76: =IFERROR(INDEX(人員罪種前年!$E$5:$U$1000,MATCH($B76,人員罪種前年!$D$5:$D$1000,0),MATCH($A$1,人員罪種前年!$E$4:$U$4,0)),0) -> 0 | Q76: 0 | R76: 0 | S76: =IFERROR(INDEX(少年罪種本年!$E$5:$U$1000,MATCH($B76,少年罪種本年!$D$5:$D$1000,0),MATCH($A$1,少年罪種本年!$E$4:$U$4,0)),0) -> 0 | T76: =IFERROR(INDEX(少年罪種前年!$E$5:$U$1000,MATCH($B76,少年罪種前年!$D$5:$D$1000,0),MATCH($A$1,少年罪種前年!$E$4:$U$4,0)),0) -> 0 | U76: 0 | V76: 0
B77: 略取誘拐・人身売買 | D77: =IFERROR(INDEX(認知罪種本年!$E$5:$U$1000,MATCH($B77,認知罪種本年!$D$5:$D$1000,0),MATCH($A$1,認知罪種本年!$E$4:$U$4,0)),0) -> 6 | E77: =IFERROR(INDEX(認知罪種前年!$E$5:$U$1000,MATCH($B77,認知罪種前年!$D$5:$D$1000,0),MATCH($A$1,認知罪種前年!$E$4:$U$4,0)),0) -> 2 | F77: 4 | G77: 200 | H77: =IFERROR(INDEX(検挙罪種本年!$E$5:$U$1000,MATCH($B77,検挙罪種本年!$D$5:$D$1000,0),MATCH($A$1,検挙罪種本年!$E$4:$U$4,0)),0) -> 5 | I77: =IFERROR(INDEX(検挙罪種前年!$E$5:$U$1000,MATCH($B77,検挙罪種前年!$D$5:$D$1000,0),MATCH($A$1,検挙罪種前年!$E$4:$U$4,0)),0) -> 4 | J77: 1 | K77: 25 | L77: 83.3 | M77: 200 | N77: -116.7 | O77: =IFERROR(INDEX(人員罪種本年!$E$5:$U$1000,MATCH($B77,人員罪種本年!$D$5:$D$1000,0),MATCH($A$1,人員罪種本年!$E$4:$U$4,0)),0) -> 15 | P77: =IFERROR(INDEX(人員罪種前年!$E$5:$U$1000,MATCH($B77,人員罪種前年!$D$5:$D$1000,0),MATCH($A$1,人員罪種前年!$E$4:$U$4,0)),0) -> 2 | Q77: 13 | R77: 650 | S77: =IFERROR(INDEX(少年罪種本年!$E$5:$U$1000,MATCH($B77,少年罪種本年!$D$5:$D$1000,0),MATCH($A$1,少年罪種本年!$E$4:$U$4,0)),0) -> 3 | T77: =IFERROR(INDEX(少年罪種前年!$E$5:$U$1000,MATCH($B77,少年罪種前年!$D$5:$D$1000,0),MATCH($A$1,少年罪種前年!$E$4:$U$4,0)),0) -> 0 | U77: 3 | V77: ― | W77: 20 | X77: 0 | Y77: 20
B78: 器物損壊等 | D78: =IFERROR(INDEX(認知罪種本年!$E$5:$U$1000,MATCH($B78,認知罪種本年!$D$5:$D$1000,0),MATCH($A$1,認知罪種本年!$E$4:$U$4,0)),0) -> 610 | E78: =IFERROR(INDEX(認知罪種前年!$E$5:$U$1000,MATCH($B78,認知罪種前年!$D$5:$D$1000,0),MATCH($A$1,認知罪種前年!$E$4:$U$4,0)),0) -> 639 | F78: -29 | G78: -4.538341158 | H78: =IFERROR(INDEX(検挙罪種本年!$E$5:$U$1000,MATCH($B78,検挙罪種本年!$D$5:$D$1000,0),MATCH($A$1,検挙罪種本年!$E$4:$U$4,0)),0) -> 84 | I78: =IFERROR(INDEX(検挙罪種前年!$E$5:$U$1000,MATCH($B78,検挙罪種前年!$D$5:$D$1000,0),MATCH($A$1,検挙罪種前年!$E$4:$U$4,0)),0) -> 75 | J78: 9 | K78: 12 | L78: 13.8 | M78: 11.7 | N78: 2.1 | O78: =IFERROR(INDEX(人員罪種本年!$E$5:$U$1000,MATCH($B78,人員罪種本年!$D$5:$D$1000,0),MATCH($A$1,人員罪種本年!$E$4:$U$4,0)),0) -> 43 | P78: =IFERROR(INDEX(人員罪種前年!$E$5:$U$1000,MATCH($B78,人員罪種前年!$D$5:$D$1000,0),MATCH($A$1,人員罪種前年!$E$4:$U$4,0)),0) -> 51 | Q78: -8 | R78: -15.68627451 | S78: =IFERROR(INDEX(少年罪種本年!$E$5:$U$1000,MATCH($B78,少年罪種本年!$D$5:$D$1000,0),MATCH($A$1,少年罪種本年!$E$4:$U$4,0)),0) -> 4 | T78: =IFERROR(INDEX(少年罪種前年!$E$5:$U$1000,MATCH($B78,少年罪種前年!$D$5:$D$1000,0),MATCH($A$1,少年罪種前年!$E$4:$U$4,0)),0) -> 5 | U78: -1 | V78: -20 | W78: 9.3 | X78: 9.8 | Y78: -0.5
B79: その他 | D79: =D70-SUM(D71:D78) -> 96 | E79: =E70-SUM(E71:E78) -> 66 | F79: 30 | G79: 45.45454545 | H79: =H70-SUM(H71:H78) -> 64 | I79: =I70-SUM(I71:I78) -> 43 | J79: 21 | K79: 48.8372093 | L79: 66.7 | M79: 65.2 | N79: 1.5 | O79: =O70-SUM(O71:O78) -> 40 | P79: =P70-SUM(P71:P78) -> 44 | Q79: -4 | R79: -9.090909091 | S79: =S70-SUM(S71:S78) -> 4 | T79: =T70-SUM(T71:T78) -> 3 | U79: 1 | V79: 33.33333333 | W79: 10 | X79: 6.8 | Y79: 3.2
L80: =集計現在 -> 2022-02-01 | W80: =集計現在 -> 2022-02-01

Sheet 窃盗以外
A1: 滋賀県
M2: =A1 -> 滋賀県 | X2: =A1 -> 滋賀県
A3: 区 分 | D3: 認 知 件 数 | H3: 検 挙 件 数 | L3: 検 挙 率 | O3: 検 挙 人 員 | S3: 検 挙 人 員 （ 少 年 ） | W3: 少 年 比 率
D4: =本年 -> R03 | E4: =前年 -> R02 | F4: 前 年 比 | H4: =本年 -> R03 | I4: =前年 -> R02 | J4: 前 年 比 | L4: =本年 -> R03 | M4: =前年 -> R02 | N4: 前年比 | O4: =本年 -> R03 | P4: =前年 -> R02 | Q4: 前 年 比 | S4: =本年 -> R03 | T4: =前年 -> R02 | U4: 前 年 比 | W4: =本年 -> R03 | X4: =前年 -> R02 | Y4: 前年比
D5: =累月 -> 1～12月 | E5: =累月 -> 1～12月 | F5: 件 数 | G5: 率 | H5: =累月 -> 1～12月 | I5: =累月 -> 1～12月 | J5: 件 数 | K5: 率 | L5: =累月 -> 1～12月 | M5: =累月 -> 1～12月 | N5: ポイント | O5: =累月 -> 1～12月 | P5: =累月 -> 1～12月 | Q5: 人 員 | R5: 率 | S5: =累月 -> 1～12月 | T5: =累月 -> 1～12月 | U5: 人 員 | V5: 率 | W5: =累月 -> 1～12月 | X5: =累月 -> 1～12月 | Y5: ポイント
A6: 殺人 | D6: =SUM(D7:D8) -> 3 | E6: =SUM(E7:E8) -> 3 | F6: =D6-E6 -> 0 | G6: =IF(AND(E6=0,D6=0),0,IF(E6>0,F6/E6*100,IF(F6>0,"―",""))) -> 0 | H6: =SUM(H7:H8) -> 3 | I6: =SUM(I7:I8) -> 7 | J6: =H6-I6 -> -4 | K6: =IF(AND(I6=0,H6=0),0,IF(I6>0,J6/I6*100,IF(J6>0,"―",""))) -> -57.14285714 | L6: =IF(D6>0,ROUND(H6/D6*100,1),IF(H6>0,"―","")) -> 100 | M6: =IF(E6>0,ROUND(I6/E6*100,1),IF(I6>0,"―","")) -> 233.3 | N6: =IF(AND(M6="",L6=""),"",IF(ISERR(L6-M6),"―",L6-M6)) -> -133.3 | O6: =SUM(O7:O8) -> 4 | P6: =SUM(P7:P8) -> 12 | Q6: =O6-P6 -> -8 | R6: =IF(AND(P6=0,O6=0),0,IF(P6>0,Q6/P6*100,IF(Q6>0,"―",""))) -> -66.66666667 | S6: =SUM(S7:S8) -> 0 | T6: =SUM(T7:T8) -> 7 | U6: =S6-T6 -> -7 | V6: =IF(AND(T6=0,S6=0),0,IF(T6>0,U6/T6*100,IF(U6>0,"―",""))) -> -100 | W6: =IF(O6>0,ROUND(S6/O6*100,1),"") -> 0 | X6: 58.3 | Y6: =IF(AND(X6="",W6=""),"",IF(ISERR(W6-X6),"―",W6-X6)) -> -58.3
B7: 持凶器殺人 | D7: =IFERROR(INDEX(認知手口本年!$E$5:$U$1000,MATCH($B7,認知手口本年!$D$5:$D$1000,0),MATCH($A$1,認知手口本年!$E$4:$U$4,0)),0) -> 1 | E7: =IFERROR(INDEX(認知手口前年!$E$5:$U$1000,MATCH($B7,認知手口前年!$D$5:$D$1000,0),MATCH($A$1,認知手口前年!$E$4:$U$4,0)),0) -> 1 | F7: 0 | G7: 0 | H7: =IFERROR(INDEX(検挙手口本年!$E$5:$U$1000,MATCH($B7,検挙手口本年!$D$5:$D$1000,0),MATCH($A$1,検挙手口本年!$E$4:$U$4,0)),0) -> 1 | I7: =IFERROR(INDEX(検挙手口前年!$E$5:$U$1000,MATCH($B7,検挙手口前年!$D$5:$D$1000,0),MATCH($A$1,検挙手口前年!$E$4:$U$4,0)),0) -> 3 | J7: -2 | K7: -66.66666667 | L7: 100 | M7: 300 | N7: -200 | O7: =IFERROR(INDEX(人員手口本年!$E$5:$U$1000,MATCH($B7,人員手口本年!$D$5:$D$1000,0),MATCH($A$1,人員手口本年!$E$4:$U$4,0)),0) -> 2 | P7: =IFERROR(INDEX(人員手口前年!$E$5:$U$1000,MATCH($B7,人員手口前年!$D$5:$D$1000,0),MATCH($A$1,人員手口前年!$E$4:$U$4,0)),0) -> 3 | Q7: -1 | R7: -33.33333333 | S7: =IFERROR(INDEX(少年手口本年!$E$5:$U$1000,MATCH($B7,少年手口本年!$D$5:$D$1000,0),MATCH($A$1,少年手口本年!$E$4:$U$4,0)),0) -> 0 | T7: =IFERROR(INDEX(少年手口前年!$E$5:$U$1000,MATCH($B7,少年手口前年!$D$5:$D$1000,0),MATCH($A$1,少年手口前年!$E$4:$U$4,0)),0) -> 1 | U7: -1 | V7: -100 | W7: 0 | X7: 33.3 | Y7: -33.3
B8: 殺人その他 | D8: =IFERROR(INDEX(認知手口本年!$E$5:$U$1000,MATCH($B8,認知手口本年!$D$5:$D$1000,0),MATCH($A$1,認知手口本年!$E$4:$U$4,0)),0) -> 2 | E8: =IFERROR(INDEX(認知手口前年!$E$5:$U$1000,MATCH($B8,認知手口前年!$D$5:$D$1000,0),MATCH($A$1,認知手口前年!$E$4:$U$4,0)),0) -> 2 | F8: 0 | G8: 0 | H8: =IFERROR(INDEX(検挙手口本年!$E$5:$U$1000,MATCH($B8,検挙手口本年!$D$5:$D$1000,0),MATCH($A$1,検挙手口本年!$E$4:$U$4,0)),0) -> 2 | I8: =IFERROR(INDEX(検挙手口前年!$E$5:$U$1000,MATCH($B8,検挙手口前年!$D$5:$D$1000,0),MATCH($A$1,検挙手口前年!$E$4:$U$4,0)),0) -> 4 | J8: -2 | K8: -50 | L8: 100 | M8: 200 | N8: -100 | O8: =IFERROR(INDEX(人員手口本年!$E$5:$U$1000,MATCH($B8,人員手口本年!$D$5:$D$1000,0),MATCH($A$1,人員手口本年!$E$4:$U$4,0)),0) -> 2 | P8: =IFERROR(INDEX(人員手口前年!$E$5:$U$1000,MATCH($B8,人員手口前年!$D$5:$D$1000,0),MATCH($A$1,人員手口前年!$E$4:$U$4,0)),0) -> 9 | Q8: -7 | R8: -77.77777778 | S8: =IFERROR(INDEX(少年手口本年!$E$5:$U$1000,MATCH($B8,少年手口本年!$D$5:$D$1000,0),MATCH($A$1,少年手口本年!$E$4:$U$4,0)),0) -> 0 | T8: =IFERROR(INDEX(少年手口前年!$E$5:$U$1000,MATCH($B8,少年手口前年!$D$5:$D$1000,0),MATCH($A$1,少年手口前年!$E$4:$U$4,0)),0) -> 6 | U8: -6 | V8: -100 | W8: 0 | X8: 66.7 | Y8: -66.7
A9: 強盗 | D9: =D10+D16 -> 4 | E9: =E10+E16 -> 8 | F9: -4 | G9: -50 | H9: =H10+H16 -> 5 | I9: =I10+I16 -> 12 | J9: -7 | K9: -58.33333333 | L9: 125 | M9: 150 | N9: -25 | O9: =O10+O16 -> 12 | P9: =P10+P16 -> 23 | Q9: -11 | R9: -47.82608696 | S9: =S10+S16 -> 2 | T9: =T10+T16 -> 11 | U9: -9 | V9: -81.81818182 | W9: 16.7 | X9: 47.8 | Y9: -31.1
B10: 侵入強盗 | D10: =SUM(D11:D15) -> 1 | E10: =SUM(E11:E15) -> 1 | F10: 0 | G10: 0 | H10: =SUM(H11:H15) -> 1 | I10: =SUM(I11:I15) -> 3 | J10: -2 | K10: -66.66666667 | L10: 100 | M10: 300 | N10: -200 | O10: =SUM(O11:O15) -> 2 | P10: =SUM(P11:P15) -> 4 | Q10: -2 | R10: -50 | S10: =SUM(S11:S15) -> 0 | T10: =SUM(T11:T15) -> 0 | U10: 0 | V10: 0 | W10: 0 | X10: 0 | Y10: 0
C11: 住宅強盗 | D11: =IFERROR(INDEX(認知手口本年!$E$5:$U$1000,MATCH($C11,認知手口本年!$D$5:$D$1000,0),MATCH($A$1,認知手口本年!$E$4:$U$4,0)),0) -> 0 | E11: =IFERROR(INDEX(認知手口前年!$E$5:$U$1000,MATCH($C11,認知手口前年!$D$5:$D$1000,0),MATCH($A$1,認知手口前年!$E$4:$U$4,0)),0) -> 0 | F11: 0 | G11: 0 | H11: =IFERROR(INDEX(検挙手口本年!$E$5:$U$1000,MATCH($C11,検挙手口本年!$D$5:$D$1000,0),MATCH($A$1,検挙手口本年!$E$4:$U$4,0)),0) -> 0 | I11: =IFERROR(INDEX(検挙手口前年!$E$5:$U$1000,MATCH($C11,検挙手口前年!$D$5:$D$1000,0),MATCH($A$1,検挙手口前年!$E$4:$U$4,0)),0) -> 0 | J11: 0 | K11: 0 | O11: =IFERROR(INDEX(人員手口本年!$E$5:$U$1000,MATCH($C11,人員手口本年!$D$5:$D$1000,0),MATCH($A$1,人員手口本年!$E$4:$U$4,0)),0) -> 0 | P11: =IFERROR(INDEX(人員手口前年!$E$5:$U$1000,MATCH($C11,人員手口前年!$D$5:$D$1000,0),MATCH($A$1,人員手口前年!$E$4:$U$4,0)),0) -> 0 | Q11: 0 | R11: 0 | S11: =IFERROR(INDEX(少年手口本年!$E$5:$U$1000,MATCH($C11,少年手口本年!$D$5:$D$1000,0),MATCH($A$1,少年手口本年!$E$4:$U$4,0)),0) -> 0 | T11: =IFERROR(INDEX(少年手口前年!$E$5:$U$1000,MATCH($C11,少年手口前年!$D$5:$D$1000,0),MATCH($A$1,少年手口前年!$E$4:$U$4,0)),0) -> 0 | U11: 0 | V11: 0
C12: 金融機関強盗 | D12: =IFERROR(INDEX(認知手口本年!$E$5:$U$1000,MATCH($C12,認知手口本年!$D$5:$D$1000,0),MATCH($A$1,認知手口本年!$E$4:$U$4,0)),0) -> 0 | E12: =IFERROR(INDEX(認知手口前年!$E$5:$U$1000,MATCH($C12,認知手口前年!$D$5:$D$1000,0),MATCH($A$1,認知手口前年!$E$4:$U$4,0)),0) -> 0 | F12: 0 | G12: 0 | H12: =IFERROR(INDEX(検挙手口本年!$E$5:$U$1000,MATCH($C12,検挙手口本年!$D$5:$D$1000,0),MATCH($A$1,検挙手口本年!$E$4:$U$4,0)),0) -> 0 | I12: =IFERROR(INDEX(検挙手口前年!$E$5:$U$1000,MATCH($C12,検挙手口前年!$D$5:$D$1000,0),MATCH($A$1,検挙手口前年!$E$4:$U$4,0)),0) -> 0 | J12: 0 | K12: 0 | O12: =IFERROR(INDEX(人員手口本年!$E$5:$U$1000,MATCH($C12,人員手口本年!$D$5:$D$1000,0),MATCH($A$1,人員手口本年!$E$4:$U$4,0)),0) -> 0 | P12: =IFERROR(INDEX(人員手口前年!$E$5:$U$1000,MATCH($C12,人員手口前年!$D$5:$D$1000,0),MATCH($A$1,人員手口前年!$E$4:$U$4,0)),0) -> 0 | Q12: 0 | R12: 0 | S12: =IFERROR(INDEX(少年手口本年!$E$5:$U$1000,MATCH($C12,少年手口本年!$D$5:$D$1000,0),MATCH($A$1,少年手口本年!$E$4:$U$4,0)),0) -> 0 | T12: =IFERROR(INDEX(少年手口前年!$E$5:$U$1000,MATCH($C12,少年手口前年!$D$5:$D$1000,0),MATCH($A$1,少年手口前年!$E$4:$U$4,0)),0) -> 0 | U12: 0 | V12: 0
C13: 店舗強盗（コンビニ） | D13: =IFERROR(INDEX(認知手口本年!$E$5:$U$1000,MATCH($C13,認知手口本年!$D$5:$D$1000,0),MATCH($A$1,認知手口本年!$E$4:$U$4,0)),0) -> 1 | E13: =IFERROR(INDEX(認知手口前年!$E$5:$U$1000,MATCH($C13,認知手口前年!$D$5:$D$1000,0),MATCH($A$1,認知手口前年!$E$4:$U$4,0)),0) -> 0 | F13: 1 | G13: ― | H13: =IFERROR(INDEX(検挙手口本年!$E$5:$U$1000,MATCH($C13,検挙手口本年!$D$5:$D$1000,0),MATCH($A$1,検挙手口本年!$E$4:$U$4,0)),0) -> 1 | I13: =IFERROR(INDEX(検挙手口前年!$E$5:$U$1000,MATCH($C13,検挙手口前年!$D$5:$D$1000,0),MATCH($A$1,検挙手口前年!$E$4:$U$4,0)),0) -> 0 | J13: 1 | K13: ― | L13: 100 | N13: ― | O13: =IFERROR(INDEX(人員手口本年!$E$5:$U$1000,MATCH($C13,人員手口本年!$D$5:$D$1000,0),MATCH($A$1,人員手口本年!$E$4:$U$4,0)),0) -> 2 | P13: =IFERROR(INDEX(人員手口前年!$E$5:$U$1000,MATCH($C13,人員手口前年!$D$5:$D$1000,0),MATCH($A$1,人員手口前年!$E$4:$U$4,0)),0) -> 0 | Q13: 2 | R13: ― | S13: =IFERROR(INDEX(少年手口本年!$E$5:$U$1000,MATCH($C13,少年手口本年!$D$5:$D$1000,0),MATCH($A$1,少年手口本年!$E$4:$U$4,0)),0) -> 0 | T13: =IFERROR(INDEX(少年手口前年!$E$5:$U$1000,MATCH($C13,少年手口前年!$D$5:$D$1000,0),MATCH($A$1,少年手口前年!$E$4:$U$4,0)),0) -> 0 | U13: 0 | V13: 0 | W13: 0 | Y13: ―
C14: 店舗強盗（その他の店舗） | D14: =IFERROR(INDEX(認知手口本年!$E$5:$U$1000,MATCH($C14,認知手口本年!$D$5:$D$1000,0),MATCH($A$1,認知手口本年!$E$4:$U$4,0)),0) -> 0 | E14: =IFERROR(INDEX(認知手口前年!$E$5:$U$1000,MATCH($C14,認知手口前年!$D$5:$D$1000,0),MATCH($A$1,認知手口前年!$E$4:$U$4,0)),0) -> 1 | F14: -1 | G14: -100 | H14: =IFERROR(INDEX(検挙手口本年!$E$5:$U$1000,MATCH($C14,検挙手口本年!$D$5:$D$1000,0),MATCH($A$1,検挙手口本年!$E$4:$U$4,0)),0) -> 0 | I14: =IFERROR(INDEX(検挙手口前年!$E$5:$U$1000,MATCH($C14,検挙手口前年!$D$5:$D$1000,0),MATCH($A$1,検挙手口前年!$E$4:$U$4,0)),0) -> 2 | J14: -2 | K14: -100 | M14: 200 | N14: ― | O14: =IFERROR(INDEX(人員手口本年!$E$5:$U$1000,MATCH($C14,人員手口本年!$D$5:$D$1000,0),MATCH($A$1,人員手口本年!$E$4:$U$4,0)),0) -> 0 | P14: =IFERROR(INDEX(人員手口前年!$E$5:$U$1000,MATCH($C14,人員手口前年!$D$5:$D$1000,0),MATCH($A$1,人員手口前年!$E$4:$U$4,0)),0) -> 2 | Q14: -2 | R14: -100 | S14: =IFERROR(INDEX(少年手口本年!$E$5:$U$1000,MATCH($C14,少年手口本年!$D$5:$D$1000,0),MATCH($A$1,少年手口本年!$E$4:$U$4,0)),0) -> 0 | T14: =IFERROR(INDEX(少年手口前年!$E$5:$U$1000,MATCH($C14,少年手口前年!$D$5:$D$1000,0),MATCH($A$1,少年手口前年!$E$4:$U$4,0)),0) -> 0 | U14: 0 | V14: 0 | X14: 0 | Y14: ―
C15: 侵入強盗その他 | D15: =IFERROR(INDEX(認知手口本年!$E$5:$U$1000,MATCH($C15,認知手口本年!$D$5:$D$1000,0),MATCH($A$1,認知手口本年!$E$4:$U$4,0)),0) -> 0 | E15: =IFERROR(INDEX(認知手口前年!$E$5:$U$1000,MATCH($C15,認知手口前年!$D$5:$D$1000,0),MATCH($A$1,認知手口前年!$E$4:$U$4,0)),0) -> 0 | F15: 0 | G15: 0 | H15: =IFERROR(INDEX(検挙手口本年!$E$5:$U$1000,MATCH($C15,検挙手口本年!$D$5:$D$1000,0),MATCH($A$1,検挙手口本年!$E$4:$U$4,0)),0) -> 0 | I15: =IFERROR(INDEX(検挙手口前年!$E$5:$U$1000,MATCH($C15,検挙手口前年!$D$5:$D$1000,0),MATCH($A$1,検挙手口前年!$E$4:$U$4,0)),0) -> 1 | J15: -1 | K15: -100 | M15: ― | N15: ― | O15: =IFERROR(INDEX(人員手口本年!$E$5:$U$1000,MATCH($C15,人員手口本年!$D$5:$D$1000,0),MATCH($A$1,人員手口本年!$E$4:$U$4,0)),0) -> 0 | P15: =IFERROR(INDEX(人員手口前年!$E$5:$U$1000,MATCH($C15,人員手口前年!$D$5:$D$1000,0),MATCH($A$1,人員手口前年!$E$4:$U$4,0)),0) -> 2 | Q15: -2 | R15: -100 | S15: =IFERROR(INDEX(少年手口本年!$E$5:$U$1000,MATCH($C15,少年手口本年!$D$5:$D$1000,0),MATCH($A$1,少年手口本年!$E$4:$U$4,0)),0) -> 0 | T15: =IFERROR(INDEX(少年手口前年!$E$5:$U$1000,MATCH($C15,少年手口前年!$D$5:$D$1000,0),MATCH($A$1,少年手口前年!$E$4:$U$4,0)),0) -> 0 | U15: 0 | V15: 0 | X15: 0 | Y15: ―
B16: 非侵入強盗 | D16: =SUM(D17:D21) -> 3 | E16: =SUM(E17:E21) -> 7 | F16: -4 | G16: -57.14285714 | H16: =SUM(H17:H21) -> 4 | I16: =SUM(I17:I21) -> 9 | J16: -5 | K16: -55.55555556 | L16: 133.3 | M16: 128.6 | N16: 4.7 | O16: =SUM(O17:O21) -> 10 | P16: =SUM(P17:P21) -> 19 | Q16: -9 | R16: -47.36842105 | S16: =SUM(S17:S21) -> 2 | T16: =SUM(T17:T21) -> 11 | U16: -9 | V16: -81.81818182 | W16: 20 | X16: 57.9 | Y16: -37.9
C17: 途中強盗 | D17: =IFERROR(INDEX(認知手口本年!$E$5:$U$1000,MATCH($C17,認知手口本年!$D$5:$D$1000,0),MATCH($A$1,認知手口本年!$E$4:$U$4,0)),0) -> 0 | E17: =IFERROR(INDEX(認知手口前年!$E$5:$U$1000,MATCH($C17,認知手口前年!$D$5:$D$1000,0),MATCH($A$1,認知手口前年!$E$4:$U$4,0)),0) -> 1 | F17: -1 | G17: -100 | H17: =IFERROR(INDEX(検挙手口本年!$E$5:$U$1000,MATCH($C17,検挙手口本年!$D$5:$D$1000,0),MATCH($A$1,検挙手口本年!$E$4:$U$4,0)),0) -> 1 | I17: =IFERROR(INDEX(検挙手口前年!$E$5:$U$1000,MATCH($C17,検挙手口前年!$D$5:$D$1000,0),MATCH($A$1,検挙手口前年!$E$4:$U$4,0)),0) -> 0 | J17: 1 | K17: ― | L17: ― | M17: 0 | N17: ― | O17: =IFERROR(INDEX(人員手口本年!$E$5:$U$1000,MATCH($C17,人員手口本年!$D$5:$D$1000,0),MATCH($A$1,人員手口本年!$E$4:$U$4,0)),0) -> 2 | P17: =IFERROR(INDEX(人員手口前年!$E$5:$U$1000,MATCH($C17,人員手口前年!$D$5:$D$1000,0),MATCH($A$1,人員手口前年!$E$4:$U$4,0)),0) -> 0 | Q17: 2 | R17: ― | S17: =IFERROR(INDEX(少年手口本年!$E$5:$U$1000,MATCH($C17,少年手口本年!$D$5:$D$1000,0),MATCH($A$1,少年手口本年!$E$4:$U$4,0)),0) -> 0 | T17: =IFERROR(INDEX(少年手口前年!$E$5:$U$1000,MATCH($C17,少年手口前年!$D$5:$D$1000,0),MATCH($A$1,少年手口前年!$E$4:$U$4,0)),0) -> 0 | U17: 0 | V17: 0 | W17: 0 | Y17: ―
C18: 自動車強盗（タクシー） | D18: =IFERROR(INDEX(認知手口本年!$E$5:$U$1000,MATCH($C18,認知手口本年!$D$5:$D$1000,0),MATCH($A$1,認知手口本年!$E$4:$U$4,0)),0) -> 0 | E18: =IFERROR(INDEX(認知手口前年!$E$5:$U$1000,MATCH($C18,認知手口前年!$D$5:$D$1000,0),MATCH($A$1,認知手口前年!$E$4:$U$4,0)),0) -> 0 | F18: 0 | G18: 0 | H18: =IFERROR(INDEX(検挙手口本年!$E$5:$U$1000,MATCH($C18,検挙手口本年!$D$5:$D$1000,0),MATCH($A$1,検挙手口本年!$E$4:$U$4,0)),0) -> 0 | I18: =IFERROR(INDEX(検挙手口前年!$E$5:$U$1000,MATCH($C18,検挙手口前年!$D$5:$D$1000,0),MATCH($A$1,検挙手口前年!$E$4:$U$4,0)),0) -> 0 | J18: 0 | K18: 0 | O18: =IFERROR(INDEX(人員手口本年!$E$5:$U$1000,MATCH($C18,人員手口本年!$D$5:$D$1000,0),MATCH($A$1,人員手口本年!$E$4:$U$4,0)),0) -> 0 | P18: =IFERROR(INDEX(人員手口前年!$E$5:$U$1000,MATCH($C18,人員手口前年!$D$5:$D$1000,0),MATCH($A$1,人員手口前年!$E$4:$U$4,0)),0) -> 0 | Q18: 0 | R18: 0 | S18: =IFERROR(INDEX(少年手口本年!$E$5:$U$1000,MATCH($C18,少年手口本年!$D$5:$D$1000,0),MATCH($A$1,少年手口本年!$E$4:$U$4,0)),0) -> 0 | T18: =IFERROR(INDEX(少年手口前年!$E$5:$U$1000,MATCH($C18,少年手口前年!$D$5:$D$1000,0),MATCH($A$1,少年手口前年!$E$4:$U$4,0)),0) -> 0 | U18: 0 | V18: 0
C19: 自動車強盗（その他の自動車） | D19: =IFERROR(INDEX(認知手口本年!$E$5:$U$1000,MATCH($C19,認知手口本年!$D$5:$D$1000,0),MATCH($A$1,認知手口本年!$E$4:$U$4,0)),0) -> 0 | E19: =IFERROR(INDEX(認知手口前年!$E$5:$U$1000,MATCH($C19,認知手口前年!$D$5:$D$1000,0),MATCH($A$1,認知手口前年!$E$4:$U$4,0)),0) -> 0 | F19: 0 | G19: 0 | H19: =IFERROR(INDEX(検挙手口本年!$E$5:$U$1000,MATCH($C19,検挙手口本年!$D$5:$D$1000,0),MATCH($A$1,検挙手口本年!$E$4:$U$4,0)),0) -> 0 | I19: =IFERROR(INDEX(検挙手口前年!$E$5:$U$1000,MATCH($C19,検挙手口前年!$D$5:$D$1000,0),MATCH($A$1,検挙手口前年!$E$4:$U$4,0)),0) -> 0 | J19: 0 | K19: 0 | O19: =IFERROR(INDEX(人員手口本年!$E$5:$U$1000,MATCH($C19,人員手口本年!$D$5:$D$1000,0),MATCH($A$1,人員手口本年!$E$4:$U$4,0)),0) -> 0 | P19: =IFERROR(INDEX(人員手口前年!$E$5:$U$1000,MATCH($C19,人員手口前年!$D$5:$D$1000,0),MATCH($A$1,人員手口前年!$E$4:$U$4,0)),0) -> 0 | Q19: 0 | R19: 0 | S19: =IFERROR(INDEX(少年手口本年!$E$5:$U$1000,MATCH($C19,少年手口本年!$D$5:$D$1000,0),MATCH($A$1,少年手口本年!$E$4:$U$4,0)),0) -> 0 | T19: =IFERROR(INDEX(少年手口前年!$E$5:$U$1000,MATCH($C19,少年手口前年!$D$5:$D$1000,0),MATCH($A$1,少年手口前年!$E$4:$U$4,0)),0) -> 0 | U19: 0 | V19: 0
C20: 路上強盗 | D20: =IFERROR(INDEX(認知手口本年!$E$5:$U$1000,MATCH($C20,認知手口本年!$D$5:$D$1000,0),MATCH($A$1,認知手口本年!$E$4:$U$4,0)),0) -> 1 | E20: =IFERROR(INDEX(認知手口前年!$E$5:$U$1000,MATCH($C20,認知手口前年!$D$5:$D$1000,0),MATCH($A$1,認知手口前年!$E$4:$U$4,0)),0) -> 2 | F20: -1 | G20: -50 | H20: =IFERROR(INDEX(検挙手口本年!$E$5:$U$1000,MATCH($C20,検挙手口本年!$D$5:$D$1000,0),MATCH($A$1,検挙手口本年!$E$4:$U$4,0)),0) -> 0 | I20: =IFERROR(INDEX(検挙手口前年!$E$5:$U$1000,MATCH($C20,検挙手口前年!$D$5:$D$1000,0),MATCH($A$1,検挙手口前年!$E$4:$U$4,0)),0) -> 4 | J20: -4 | K20: -100 | L20: 0 | M20: 200 | N20: -200 | O20: =IFERROR(INDEX(人員手口本年!$E$5:$U$1000,MATCH($C20,人員手口本年!$D$5:$D$1000,0),MATCH($A$1,人員手口本年!$E$4:$U$4,0)),0) -> 0 | P20: =IFERROR(INDEX(人員手口前年!$E$5:$U$1000,MATCH($C20,人員手口前年!$D$5:$D$1000,0),MATCH($A$1,人員手口前年!$E$4:$U$4,0)),0) -> 8 | Q20: -8 | R20: -100 | S20: =IFERROR(INDEX(少年手口本年!$E$5:$U$1000,MATCH($C20,少年手口本年!$D$5:$D$1000,0),MATCH($A$1,少年手口本年!$E$4:$U$4,0)),0) -> 0 | T20: =IFERROR(INDEX(少年手口前年!$E$5:$U$1000,MATCH($C20,少年手口前年!$D$5:$D$1000,0),MATCH($A$1,少年手口前年!$E$4:$U$4,0)),0) -> 6 | U20: -6 | V20: -100 | X20: 75 | Y20: ―
C21: 非侵入強盗その他 | D21: =IFERROR(INDEX(認知手口本年!$E$5:$U$1000,MATCH($C21,認知手口本年!$D$5:$D$1000,0),MATCH($A$1,認知手口本年!$E$4:$U$4,0)),0) -> 2 | E21: =IFERROR(INDEX(認知手口前年!$E$5:$U$1000,MATCH($C21,認知手口前年!$D$5:$D$1000,0),MATCH($A$1,認知手口前年!$E$4:$U$4,0)),0) -> 4 | F21: -2 | G21: -50 | H21: =IFERROR(INDEX(検挙手口本年!$E$5:$U$1000,MATCH($C21,検挙手口本年!$D$5:$D$1000,0),MATCH($A$1,検挙手口本年!$E$4:$U$4,0)),0) -> 3 | I21: =IFERROR(INDEX(検挙手口前年!$E$5:$U$1000,MATCH($C21,検挙手口前年!$D$5:$D$1000,0),MATCH($A$1,検挙手口前年!$E$4:$U$4,0)),0) -> 5 | J21: -2 | K21: -40 | L21: 150 | M21: 125 | N21: 25 | O21: =IFERROR(INDEX(人員手口本年!$E$5:$U$1000,MATCH($C21,人員手口本年!$D$5:$D$1000,0),MATCH($A$1,人員手口本年!$E$4:$U$4,0)),0) -> 8 | P21: =IFERROR(INDEX(人員手口前年!$E$5:$U$1000,MATCH($C21,人員手口前年!$D$5:$D$1000,0),MATCH($A$1,人員手口前年!$E$4:$U$4,0)),0) -> 11 | Q21: -3 | R21: -27.27272727 | S21: =IFERROR(INDEX(少年手口本年!$E$5:$U$1000,MATCH($C21,少年手口本年!$D$5:$D$1000,0),MATCH($A$1,少年手口本年!$E$4:$U$4,0)),0) -> 2 | T21: =IFERROR(INDEX(少年手口前年!$E$5:$U$1000,MATCH($C21,少年手口前年!$D$5:$D$1000,0),MATCH($A$1,少年手口前年!$E$4:$U$4,0)),0) -> 5 | U21: -3 | V21: -60 | W21: 25 | X21: 45.5 | Y21: -20.5
A22: 恐喝 | D22: =SUM(D23:D25) -> 16 | E22: =SUM(E23:E25) -> 19 | F22: -3 | G22: -15.78947368 | H22: =SUM(H23:H25) -> 18 | I22: =SUM(I23:I25) -> 14 | J22: 4 | K22: 28.57142857 | L22: 112.5 | M22: 73.7 | N22: 38.8 | O22: =SUM(O23:O25) -> 11 | P22: =SUM(P23:P25) -> 39 | Q22: -28 | R22: -71.79487179 | S22: =SUM(S23:S25) -> 4 | T22: =SUM(T23:T25) -> 8 | U22: -4 | V22: -50 | W22: =IF(O22>0,ROUND(S22/O22*100,1),"") -> 36.4 | X22: 20.5 | Y22: 15.9
B23: 通信恐喝 | D23: =IFERROR(INDEX(認知手口本年!$E$5:$U$1000,MATCH($B23,認知手口本年!$D$5:$D$1000,0),MATCH($A$1,認知手口本年!$E$4:$U$4,0)),0) -> 4 | E23: =IFERROR(INDEX(認知手口前年!$E$5:$U$1000,MATCH($B23,認知手口前年!$D$5:$D$1000,0),MATCH($A$1,認知手口前年!$E$4:$U$4,0)),0) -> 1 | F23: 3 | G23: 300 | H23: =IFERROR(INDEX(検挙手口本年!$E$5:$U$1000,MATCH($B23,検挙手口本年!$D$5:$D$1000,0),MATCH($A$1,検挙手口本年!$E$4:$U$4,0)),0) -> 3 | I23: =IFERROR(INDEX(検挙手口前年!$E$5:$U$1000,MATCH($B23,検挙手口前年!$D$5:$D$1000,0),MATCH($A$1,検挙手口前年!$E$4:$U$4,0)),0) -> 1 | J23: 2 | K23: 200 | L23: 75 | M23: 100 | N23: -25 | O23: =IFERROR(INDEX(人員手口本年!$E$5:$U$1000,MATCH($B23,人員手口本年!$D$5:$D$1000,0),MATCH($A$1,人員手口本年!$E$4:$U$4,0)),0) -> 2 | P23: =IFERROR(INDEX(人員手口前年!$E$5:$U$1000,MATCH($B23,人員手口前年!$D$5:$D$1000,0),MATCH($A$1,人員手口前年!$E$4:$U$4,0)),0) -> 1 | Q23: 1 | R23: 100 | S23: =IFERROR(INDEX(少年手口本年!$E$5:$U$1000,MATCH($B23,少年手口本年!$D$5:$D$1000,0),MATCH($A$1,少年手口本年!$E$4:$U$4,0)),0) -> 0 | T23: =IFERROR(INDEX(少年手口前年!$E$5:$U$1000,MATCH($B23,少年手口前年!$D$5:$D$1000,0),MATCH($A$1,少年手口前年!$E$4:$U$4,0)),0) -> 0 | U23: 0 | V23: 0 | W23: 0 | X23: 0 | Y23: 0
B24: たかり | D24: =IFERROR(INDEX(認知手口本年!$E$5:$U$1000,MATCH($B24,認知手口本年!$D$5:$D$1000,0),MATCH($A$1,認知手口本年!$E$4:$U$4,0)),0) -> 7 | E24: =IFERROR(INDEX(認知手口前年!$E$5:$U$1000,MATCH($B24,認知手口前年!$D$5:$D$1000,0),MATCH($A$1,認知手口前年!$E$4:$U$4,0)),0) -> 8 | F24: -1 | G24: -12.5 | H24: =IFERROR(INDEX(検挙手口本年!$E$5:$U$1000,MATCH($B24,検挙手口本年!$D$5:$D$1000,0),MATCH($A$1,検挙手口本年!$E$4:$U$4,0)),0) -> 9 | I24: =IFERROR(INDEX(検挙手口前年!$E$5:$U$1000,MATCH($B24,検挙手口前年!$D$5:$D$1000,0),MATCH($A$1,検挙手口前年!$E$4:$U$4,0)),0) -> 6 | J24: 3 | K24: 50 | L24: 128.6 | M24: 75 | N24: 53.6 | O24: =IFERROR(INDEX(人員手口本年!$E$5:$U$1000,MATCH($B24,人員手口本年!$D$5:$D$1000,0),MATCH($A$1,人員手口本年!$E$4:$U$4,0)),0) -> 7 | P24: =IFERROR(INDEX(人員手口前年!$E$5:$U$1000,MATCH($B24,人員手口前年!$D$5:$D$1000,0),MATCH($A$1,人員手口前年!$E$4:$U$4,0)),0) -> 5 | Q24: 2 | R24: 40 | S24: =IFERROR(INDEX(少年手口本年!$E$5:$U$1000,MATCH($B24,少年手口本年!$D$5:$D$1000,0),MATCH($A$1,少年手口本年!$E$4:$U$4,0)),0) -> 3 | T24: =IFERROR(INDEX(少年手口前年!$E$5:$U$1000,MATCH($B24,少年手口前年!$D$5:$D$1000,0),MATCH($A$1,少年手口前年!$E$4:$U$4,0)),0) -> 4 | U24: -1 | V24: -25 | W24: 42.9 | X24: 80 | Y24: -37.1
B25: 恐喝その他 | D25: =IFERROR(INDEX(認知手口本年!$E$5:$U$1000,MATCH($B25,認知手口本年!$D$5:$D$1000,0),MATCH($A$1,認知手口本年!$E$4:$U$4,0)),0) -> 5 | E25: =IFERROR(INDEX(認知手口前年!$E$5:$U$1000,MATCH($B25,認知手口前年!$D$5:$D$1000,0),MATCH($A$1,認知手口前年!$E$4:$U$4,0)),0) -> 10 | F25: -5 | G25: -50 | H25: =IFERROR(INDEX(検挙手口本年!$E$5:$U$1000,MATCH($B25,検挙手口本年!$D$5:$D$1000,0),MATCH($A$1,検挙手口本年!$E$4:$U$4,0)),0) -> 6 | I25: =IFERROR(INDEX(検挙手口前年!$E$5:$U$1000,MATCH($B25,検挙手口前年!$D$5:$D$1000,0),MATCH($A$1,検挙手口前年!$E$4:$U$4,0)),0) -> 7 | J25: -1 | K25: -14.28571429 | L25: 120 | M25: 70 | N25: 50 | O25: =IFERROR(INDEX(人員手口本年!$E$5:$U$1000,MATCH($B25,人員手口本年!$D$5:$D$1000,0),MATCH($A$1,人員手口本年!$E$4:$U$4,0)),0) -> 2 | P25: =IFERROR(INDEX(人員手口前年!$E$5:$U$1000,MATCH($B25,人員手口前年!$D$5:$D$1000,0),MATCH($A$1,人員手口前年!$E$4:$U$4,0)),0) -> 33 | Q25: -31 | R25: -93.93939394 | S25: =IFERROR(INDEX(少年手口本年!$E$5:$U$1000,MATCH($B25,少年手口本年!$D$5:$D$1000,0),MATCH($A$1,少年手口本年!$E$4:$U$4,0)),0) -> 1 | T25: =IFERROR(INDEX(少年手口前年!$E$5:$U$1000,MATCH($B25,少年手口前年!$D$5:$D$1000,0),MATCH($A$1,少年手口前年!$E$4:$U$4,0)),0) -> 4 | U25: -3 | V25: -75 | W25: 50 | X25: 12.1 | Y25: 37.9
A26: 詐欺 | D26: =SUM(D27,D32:D34,D35,D38:D43,D49:D51) -> 442 | E26: =SUM(E27,E32:E34,E35,E38:E43,E49:E51) -> 357 | F26: 85 | G26: 23.80952381 | H26: =SUM(H27,H32:H34,H35,H38:H43,H49:H51) -> 218 | I26: =SUM(I27,I32:I34,I35,I38:I43,I49:I51) -> 138 | J26: 80 | K26: 57.97101449 | L26: 49.3 | M26: 38.7 | N26: 10.6 | O26: =SUM(O27,O32:O34,O35,O38:O43,O49:O51) -> 154 | P26: =SUM(P27,P32:P34,P35,P38:P43,P49:P51) -> 80 | Q26: 74 | R26: 92.5 | S26: =SUM(S27,S32:S34,S35,S38:S43,S49:S51) -> 10 | T26: =SUM(T27,T32:T34,T35,T38:T43,T49:T51) -> 3 | U26: 7 | V26: 233.3333333 | W26: 6.5 | X26: 3.8 | Y26: 2.7
B27: 売り付け | D27: =SUM(D28:D31) -> 89 | E27: =SUM(E28:E31) -> 92 | F27: -3 | G27: -3.260869565 | H27: =SUM(H28:H31) -> 7 | I27: =SUM(I28:I31) -> 7 | J27: 0 | K27: 0 | L27: 7.9 | M27: 7.6 | N27: 0.3 | O27: =SUM(O28:O31) -> 3 | P27: =SUM(P28:P31) -> 3 | Q27: 0 | R27: 0 | S27: =SUM(S28:S31) -> 0 | T27: =SUM(T28:T31) -> 1 | U27: -1 | V27: -100 | W27: 0 | X27: 33.3 | Y27: -33.3
C28: インターネット利用（オークション） | D28: =IFERROR(INDEX(認知手口本年!$E$5:$U$1000,MATCH($C28,認知手口本年!$D$5:$D$1000,0),MATCH($A$1,認知手口本年!$E$4:$U$4,0)),0) -> 1 | E28: =IFERROR(INDEX(認知手口前年!$E$5:$U$1000,MATCH($C28,認知手口前年!$D$5:$D$1000,0),MATCH($A$1,認知手口前年!$E$4:$U$4,0)),0) -> 2 | F28: -1 | G28: -50 | H28: =IFERROR(INDEX(検挙手口本年!$E$5:$U$1000,MATCH($C28,検挙手口本年!$D$5:$D$1000,0),MATCH($A$1,検挙手口本年!$E$4:$U$4,0)),0) -> 0 | I28: =IFERROR(INDEX(検挙手口前年!$E$5:$U$1000,MATCH($C28,検挙手口前年!$D$5:$D$1000,0),MATCH($A$1,検挙手口前年!$E$4:$U$4,0)),0) -> 0 | J28: 0 | K28: 0 | L28: 0 | M28: 0 | N28: 0 | O28: =IFERROR(INDEX(人員手口本年!$E$5:$U$1000,MATCH($C28,人員手口本年!$D$5:$D$1000,0),MATCH($A$1,人員手口本年!$E$4:$U$4,0)),0) -> 0 | P28: =IFERROR(INDEX(人員手口前年!$E$5:$U$1000,MATCH($C28,人員手口前年!$D$5:$D$1000,0),MATCH($A$1,人員手口前年!$E$4:$U$4,0)),0) -> 0 | Q28: 0 | R28: 0 | S28: =IFERROR(INDEX(少年手口本年!$E$5:$U$1000,MATCH($C28,少年手口本年!$D$5:$D$1000,0),MATCH($A$1,少年手口本年!$E$4:$U$4,0)),0) -> 0 | T28: =IFERROR(INDEX(少年手口前年!$E$5:$U$1000,MATCH($C28,少年手口前年!$D$5:$D$1000,0),MATCH($A$1,少年手口前年!$E$4:$U$4,0)),0) -> 0 | U28: 0 | V28: 0
C29: インターネット利用（ショッピング）（フリーマーケットを含む） | D29: =IFERROR(INDEX(認知手口本年!$E$5:$U$1000,MATCH($C29,認知手口本年!$D$5:$D$1000,0),MATCH($A$1,認知手口本年!$E$4:$U$4,0)),0) -> 62 | E29: =IFERROR(INDEX(認知手口前年!$E$5:$U$1000,MATCH($C29,認知手口前年!$D$5:$D$1000,0),MATCH($A$1,認知手口前年!$E$4:$U$4,0)),0) -> 63 | F29: -1 | G29: -1.587301587 | H29: =IFERROR(INDEX(検挙手口本年!$E$5:$U$1000,MATCH($C29,検挙手口本年!$D$5:$D$1000,0),MATCH($A$1,検挙手口本年!$E$4:$U$4,0)),0) -> 1 | I29: =IFERROR(INDEX(検挙手口前年!$E$5:$U$1000,MATCH($C29,検挙手口前年!$D$5:$D$1000,0),MATCH($A$1,検挙手口前年!$E$4:$U$4,0)),0) -> 2 | J29: -1 | K29: -50 | L29: 1.6 | M29: 3.2 | N29: -1.6 | O29: =IFERROR(INDEX(人員手口本年!$E$5:$U$1000,MATCH($C29,人員手口本年!$D$5:$D$1000,0),MATCH($A$1,人員手口本年!$E$4:$U$4,0)),0) -> 0 | P29: =IFERROR(INDEX(人員手口前年!$E$5:$U$1000,MATCH($C29,人員手口前年!$D$5:$D$1000,0),MATCH($A$1,人員手口前年!$E$4:$U$4,0)),0) -> 0 | Q29: 0 | R29: 0 | S29: =IFERROR(INDEX(少年手口本年!$E$5:$U$1000,MATCH($C29,少年手口本年!$D$5:$D$1000,0),MATCH($A$1,少年手口本年!$E$4:$U$4,0)),0) -> 0 | T29: =IFERROR(INDEX(少年手口前年!$E$5:$U$1000,MATCH($C29,少年手口前年!$D$5:$D$1000,0),MATCH($A$1,少年手口前年!$E$4:$U$4,0)),0) -> 0 | U29: 0 | V29: 0
C30: インターネット利用（その他） | D30: =IFERROR(INDEX(認知手口本年!$E$5:$U$1000,MATCH($C30,認知手口本年!$D$5:$D$1000,0),MATCH($A$1,認知手口本年!$E$4:$U$4,0)),0) -> 25 | E30: =IFERROR(INDEX(認知手口前年!$E$5:$U$1000,MATCH($C30,認知手口前年!$D$5:$D$1000,0),MATCH($A$1,認知手口前年!$E$4:$U$4,0)),0) -> 23 | F30: 2 | G30: 8.695652174 | H30: =IFERROR(INDEX(検挙手口本年!$E$5:$U$1000,MATCH($C30,検挙手口本年!$D$5:$D$1000,0),MATCH($A$1,検挙手口本年!$E$4:$U$4,0)),0) -> 3 | I30: =IFERROR(INDEX(検挙手口前年!$E$5:$U$1000,MATCH($C30,検挙手口前年!$D$5:$D$1000,0),MATCH($A$1,検挙手口前年!$E$4:$U$4,0)),0) -> 1 | J30: 2 | K30: 200 | L30: 12 | M30: 4.3 | N30: 7.7 | O30: =IFERROR(INDEX(人員手口本年!$E$5:$U$1000,MATCH($C30,人員手口本年!$D$5:$D$1000,0),MATCH($A$1,人員手口本年!$E$4:$U$4,0)),0) -> 2 | P30: =IFERROR(INDEX(人員手口前年!$E$5:$U$1000,MATCH($C30,人員手口前年!$D$5:$D$1000,0),MATCH($A$1,人員手口前年!$E$4:$U$4,0)),0) -> 1 | Q30: 1 | R30: 100 | S30: =IFERROR(INDEX(少年手口本年!$E$5:$U$1000,MATCH($C30,少年手口本年!$D$5:$D$1000,0),MATCH($A$1,少年手口本年!$E$4:$U$4,0)),0) -> 0 | T30: =IFERROR(INDEX(少年手口前年!$E$5:$U$1000,MATCH($C30,少年手口前年!$D$5:$D$1000,0),MATCH($A$1,少年手口前年!$E$4:$U$4,0)),0) -> 0 | U30: 0 | V30: 0 | W30: 0 | X30: 0 | Y30: 0
C31: 売り付けその他 | D31: =IFERROR(INDEX(認知手口本年!$E$5:$U$1000,MATCH($C31,認知手口本年!$D$5:$D$1000,0),MATCH($A$1,認知手口本年!$E$4:$U$4,0)),0) -> 1 | E31: =IFERROR(INDEX(認知手口前年!$E$5:$U$1000,MATCH($C31,認知手口前年!$D$5:$D$1000,0),MATCH($A$1,認知手口前年!$E$4:$U$4,0)),0) -> 4 | F31: -3 | G31: -75 | H31: =IFERROR(INDEX(検挙手口本年!$E$5:$U$1000,MATCH($C31,検挙手口本年!$D$5:$D$1000,0),MATCH($A$1,検挙手口本年!$E$4:$U$4,0)),0) -> 3 | I31: =IFERROR(INDEX(検挙手口前年!$E$5:$U$1000,MATCH($C31,検挙手口前年!$D$5:$D$1000,0),MATCH($A$1,検挙手口前年!$E$4:$U$4,0)),0) -> 4 | J31: -1 | K31: -25 | L31: 300 | M31: 100 | N31: 200 | O31: =IFERROR(INDEX(人員手口本年!$E$5:$U$1000,MATCH($C31,人員手口本年!$D$5:$D$1000,0),MATCH($A$1,人員手口本年!$E$4:$U$4,0)),0) -> 1 | P31: =IFERROR(INDEX(人員手口前年!$E$5:$U$1000,MATCH($C31,人員手口前年!$D$5:$D$1000,0),MATCH($A$1,人員手口前年!$E$4:$U$4,0)),0) -> 2 | Q31: -1 | R31: -50 | S31: =IFERROR(INDEX(少年手口本年!$E$5:$U$1000,MATCH($C31,少年手口本年!$D$5:$D$1000,0),MATCH($A$1,少年手口本年!$E$4:$U$4,0)),0) -> 0 | T31: =IFERROR(INDEX(少年手口前年!$E$5:$U$1000,MATCH($C31,少年手口前年!$D$5:$D$1000,0),MATCH($A$1,少年手口前年!$E$4:$U$4,0)),0) -> 1 | U31: -1 | V31: -100 | W31: 0 | X31: 50 | Y31: -50
B32: 借用 | D32: =IFERROR(INDEX(認知手口本年!$E$5:$U$1000,MATCH($B32,認知手口本年!$D$5:$D$1000,0),MATCH($A$1,認知手口本年!$E$4:$U$4,0)),0) -> 12 | E32: =IFERROR(INDEX(認知手口前年!$E$5:$U$1000,MATCH($B32,認知手口前年!$D$5:$D$1000,0),MATCH($A$1,認知手口前年!$E$4:$U$4,0)),0) -> 2 | F32: 10 | G32: 500 | H32: =IFERROR(INDEX(検挙手口本年!$E$5:$U$1000,MATCH($B32,検挙手口本年!$D$5:$D$1000,0),MATCH($A$1,検挙手口本年!$E$4:$U$4,0)),0) -> 4 | I32: =IFERROR(INDEX(検挙手口前年!$E$5:$U$1000,MATCH($B32,検挙手口前年!$D$5:$D$1000,0),MATCH($A$1,検挙手口前年!$E$4:$U$4,0)),0) -> 5 | J32: -1 | K32: -20 | L32: 33.3 | M32: 250 | N32: -216.7 | O32: =IFERROR(INDEX(人員手口本年!$E$5:$U$1000,MATCH($B32,人員手口本年!$D$5:$D$1000,0),MATCH($A$1,人員手口本年!$E$4:$U$4,0)),0) -> 2 | P32: =IFERROR(INDEX(人員手口前年!$E$5:$U$1000,MATCH($B32,人員手口前年!$D$5:$D$1000,0),MATCH($A$1,人員手口前年!$E$4:$U$4,0)),0) -> 3 | Q32: -1 | R32: -33.33333333 | S32: =IFERROR(INDEX(少年手口本年!$E$5:$U$1000,MATCH($B32,少年手口本年!$D$5:$D$1000,0),MATCH($A$1,少年手口本年!$E$4:$U$4,0)),0) -> 0 | T32: =IFERROR(INDEX(少年手口前年!$E$5:$U$1000,MATCH($B32,少年手口前年!$D$5:$D$1000,0),MATCH($A$1,少年手口前年!$E$4:$U$4,0)),0) -> 0 | U32: 0 | V32: 0 | W32: 0 | X32: 0 | Y32: 0
B33: 不動産利用 | D33: =IFERROR(INDEX(認知手口本年!$E$5:$U$1000,MATCH($B33,認知手口本年!$D$5:$D$1000,0),MATCH($A$1,認知手口本年!$E$4:$U$4,0)),0) -> 1 | E33: =IFERROR(INDEX(認知手口前年!$E$5:$U$1000,MATCH($B33,認知手口前年!$D$5:$D$1000,0),MATCH($A$1,認知手口前年!$E$4:$U$4,0)),0) -> 2 | F33: -1 | G33: -50 | H33: =IFERROR(INDEX(検挙手口本年!$E$5:$U$1000,MATCH($B33,検挙手口本年!$D$5:$D$1000,0),MATCH($A$1,検挙手口本年!$E$4:$U$4,0)),0) -> 2 | I33: =IFERROR(INDEX(検挙手口前年!$E$5:$U$1000,MATCH($B33,検挙手口前年!$D$5:$D$1000,0),MATCH($A$1,検挙手口前年!$E$4:$U$4,0)),0) -> 1 | J33: 1 | K33: 100 | L33: 200 | M33: 50 | N33: 150 | O33: =IFERROR(INDEX(人員手口本年!$E$5:$U$1000,MATCH($B33,人員手口本年!$D$5:$D$1000,0),MATCH($A$1,人員手口本年!$E$4:$U$4,0)),0) -> 3 | P33: =IFERROR(INDEX(人員手口前年!$E$5:$U$1000,MATCH($B33,人員手口前年!$D$5:$D$1000,0),MATCH($A$1,人員手口前年!$E$4:$U$4,0)),0) -> 2 | Q33: 1 | R33: 50 | S33: =IFERROR(INDEX(少年手口本年!$E$5:$U$1000,MATCH($B33,少年手口本年!$D$5:$D$1000,0),MATCH($A$1,少年手口本年!$E$4:$U$4,0)),0) -> 0 | T33: =IFERROR(INDEX(少年手口前年!$E$5:$U$1000,MATCH($B33,少年手口前年!$D$5:$D$1000,0),MATCH($A$1,少年手口前年!$E$4:$U$4,0)),0) -> 0 | U33: 0 | V33: 0 | W33: 0 | X33: 0 | Y33: 0
B34: 有価証券等利用 | D34: =IFERROR(INDEX(認知手口本年!$E$5:$U$1000,MATCH($B34,認知手口本年!$D$5:$D$1000,0),MATCH($A$1,認知手口本年!$E$4:$U$4,0)),0) -> 7 | E34: =IFERROR(INDEX(認知手口前年!$E$5:$U$1000,MATCH($B34,認知手口前年!$D$5:$D$1000,0),MATCH($A$1,認知手口前年!$E$4:$U$4,0)),0) -> 5 | F34: 2 | G34: 40 | H34: =IFERROR(INDEX(検挙手口本年!$E$5:$U$1000,MATCH($B34,検挙手口本年!$D$5:$D$1000,0),MATCH($A$1,検挙手口本年!$E$4:$U$4,0)),0) -> 4 | I34: =IFERROR(INDEX(検挙手口前年!$E$5:$U$1000,MATCH($B34,検挙手口前年!$D$5:$D$1000,0),MATCH($A$1,検挙手口前年!$E$4:$U$4,0)),0) -> 5 | J34: -1 | K34: -20 | L34: 57.1 | M34: 100 | N34: -42.9 | O34: =IFERROR(INDEX(人員手口本年!$E$5:$U$1000,MATCH($B34,人員手口本年!$D$5:$D$1000,0),MATCH($A$1,人員手口本年!$E$4:$U$4,0)),0) -> 2 | P34: =IFERROR(INDEX(人員手口前年!$E$5:$U$1000,MATCH($B34,人員手口前年!$D$5:$D$1000,0),MATCH($A$1,人員手口前年!$E$4:$U$4,0)),0) -> 3 | Q34: -1 | R34: -33.33333333 | S34: =IFERROR(INDEX(少年手口本年!$E$5:$U$1000,MATCH($B34,少年手口本年!$D$5:$D$1000,0),MATCH($A$1,少年手口本年!$E$4:$U$4,0)),0) -> 0 | T34: =IFERROR(INDEX(少年手口前年!$E$5:$U$1000,MATCH($B34,少年手口前年!$D$5:$D$1000,0),MATCH($A$1,少年手口前年!$E$4:$U$4,0)),0) -> 0 | U34: 0 | V34: 0 | W34: 0 | X34: 0 | Y34: 0
B35: 買受け | D35: =SUM(D36:D37) -> 10 | E35: =SUM(E36:E37) -> 14 | F35: -4 | G35: -28.57142857 | H35: =SUM(H36:H37) -> 4 | I35: =SUM(I36:I37) -> 10 | J35: -6 | K35: -60 | L35: 40 | M35: 71.4 | N35: -31.4 | O35: =SUM(O36:O37) -> 3 | P35: =SUM(P36:P37) -> 5 | Q35: -2 | R35: -40 | S35: =SUM(S36:S37) -> 0 | T35: =SUM(T36:T37) -> 0 | U35: 0 | V35: 0 | W35: 0 | X35: 0 | Y35: 0
C36: 携帯電話契約 | D36: =IFERROR(INDEX(認知手口本年!$E$5:$U$1000,MATCH($C36,認知手口本年!$D$5:$D$1000,0),MATCH($A$1,認知手口本年!$E$4:$U$4,0)),0) -> 0 | E36: =IFERROR(INDEX(認知手口前年!$E$5:$U$1000,MATCH($C36,認知手口前年!$D$5:$D$1000,0),MATCH($A$1,認知手口前年!$E$4:$U$4,0)),0) -> 5 | F36: -5 | G36: -100 | H36: =IFERROR(INDEX(検挙手口本年!$E$5:$U$1000,MATCH($C36,検挙手口本年!$D$5:$D$1000,0),MATCH($A$1,検挙手口本年!$E$4:$U$4,0)),0) -> 0 | I36: =IFERROR(INDEX(検挙手口前年!$E$5:$U$1000,MATCH($C36,検挙手口前年!$D$5:$D$1000,0),MATCH($A$1,検挙手口前年!$E$4:$U$4,0)),0) -> 4 | J36: -4 | K36: -100 | M36: 80 | N36: ― | O36: =IFERROR(INDEX(人員手口本年!$E$5:$U$1000,MATCH($C36,人員手口本年!$D$5:$D$1000,0),MATCH($A$1,人員手口本年!$E$4:$U$4,0)),0) -> 0 | P36: =IFERROR(INDEX(人員手口前年!$E$5:$U$1000,MATCH($C36,人員手口前年!$D$5:$D$1000,0),MATCH($A$1,人員手口前年!$E$4:$U$4,0)),0) -> 1 | Q36: -1 | R36: -100 | S36: =IFERROR(INDEX(少年手口本年!$E$5:$U$1000,MATCH($C36,少年手口本年!$D$5:$D$1000,0),MATCH($A$1,少年手口本年!$E$4:$U$4,0)),0) -> 0 | T36: =IFERROR(INDEX(少年手口前年!$E$5:$U$1000,MATCH($C36,少年手口前年!$D$5:$D$1000,0),MATCH($A$1,少年手口前年!$E$4:$U$4,0)),0) -> 0 | U36: 0 | V36: 0 | X36: 0 | Y36: ―
C37: 買受けその他 | D37: =IFERROR(INDEX(認知手口本年!$E$5:$U$1000,MATCH($C37,認知手口本年!$D$5:$D$1000,0),MATCH($A$1,認知手口本年!$E$4:$U$4,0)),0) -> 10 | E37: =IFERROR(INDEX(認知手口前年!$E$5:$U$1000,MATCH($C37,認知手口前年!$D$5:$D$1000,0),MATCH($A$1,認知手口前年!$E$4:$U$4,0)),0) -> 9 | F37: 1 | G37: 11.11111111 | H37: =IFERROR(INDEX(検挙手口本年!$E$5:$U$1000,MATCH($C37,検挙手口本年!$D$5:$D$1000,0),MATCH($A$1,検挙手口本年!$E$4:$U$4,0)),0) -> 4 | I37: =IFERROR(INDEX(検挙手口前年!$E$5:$U$1000,MATCH($C37,検挙手口前年!$D$5:$D$1000,0),MATCH($A$1,検挙手口前年!$E$4:$U$4,0)),0) -> 6 | J37: -2 | K37: -33.33333333 | L37: 40 | M37: 66.7 | N37: -26.7 | O37: =IFERROR(INDEX(人員手口本年!$E$5:$U$1000,MATCH($C37,人員手口本年!$D$5:$D$1000,0),MATCH($A$1,人員手口本年!$E$4:$U$4,0)),0) -> 3 | P37: =IFERROR(INDEX(人員手口前年!$E$5:$U$1000,MATCH($C37,人員手口前年!$D$5:$D$1000,0),MATCH($A$1,人員手口前年!$E$4:$U$4,0)),0) -> 4 | Q37: -1 | R37: -25 | S37: =IFERROR(INDEX(少年手口本年!$E$5:$U$1000,MATCH($C37,少年手口本年!$D$5:$D$1000,0),MATCH($A$1,少年手口本年!$E$4:$U$4,0)),0) -> 0 | T37: =IFERROR(INDEX(少年手口前年!$E$5:$U$1000,MATCH($C37,少年手口前年!$D$5:$D$1000,0),MATCH($A$1,少年手口前年!$E$4:$U$4,0)),0) -> 0 | U37: 0 | V37: 0 | W37: 0 | X37: 0 | Y37: 0
B38: 無銭 | D38: =IFERROR(INDEX(認知手口本年!$E$5:$U$1000,MATCH($B38,認知手口本年!$D$5:$D$1000,0),MATCH($A$1,認知手口本年!$E$4:$U$4,0)),0) -> 44 | E38: =IFERROR(INDEX(認知手口前年!$E$5:$U$1000,MATCH($B38,認知手口前年!$D$5:$D$1000,0),MATCH($A$1,認知手口前年!$E$4:$U$4,0)),0) -> 38 | F38: 6 | G38: 15.78947368 | H38: =IFERROR(INDEX(検挙手口本年!$E$5:$U$1000,MATCH($B38,検挙手口本年!$D$5:$D$1000,0),MATCH($A$1,検挙手口本年!$E$4:$U$4,0)),0) -> 32 | I38: =IFERROR(INDEX(検挙手口前年!$E$5:$U$1000,MATCH($B38,検挙手口前年!$D$5:$D$1000,0),MATCH($A$1,検挙手口前年!$E$4:$U$4,0)),0) -> 18 | J38: 14 | K38: 77.77777778 | L38: 72.7 | M38: 47.4 | N38: 25.3 | O38: =IFERROR(INDEX(人員手口本年!$E$5:$U$1000,MATCH($B38,人員手口本年!$D$5:$D$1000,0),MATCH($A$1,人員手口本年!$E$4:$U$4,0)),0) -> 27 | P38: =IFERROR(INDEX(人員手口前年!$E$5:$U$1000,MATCH($B38,人員手口前年!$D$5:$D$1000,0),MATCH($A$1,人員手口前年!$E$4:$U$4,0)),0) -> 15 | Q38: 12 | R38: 80 | S38: =IFERROR(INDEX(少年手口本年!$E$5:$U$1000,MATCH($B38,少年手口本年!$D$5:$D$1000,0),MATCH($A$1,少年手口本年!$E$4:$U$4,0)),0) -> 7 | T38: =IFERROR(INDEX(少年手口前年!$E$5:$U$1000,MATCH($B38,少年手口前年!$D$5:$D$1000,0),MATCH($A$1,少年手口前年!$E$4:$U$4,0)),0) -> 1 | U38: 6 | V38: 600 | W38: 25.9 | X38: 6.7 | Y38: 19.2
B39: 募集 | D39: =IFERROR(INDEX(認知手口本年!$E$5:$U$1000,MATCH($B39,認知手口本年!$D$5:$D$1000,0),MATCH($A$1,認知手口本年!$E$4:$U$4,0)),0) -> 5 | E39: =IFERROR(INDEX(認知手口前年!$E$5:$U$1000,MATCH($B39,認知手口前年!$D$5:$D$1000,0),MATCH($A$1,認知手口前年!$E$4:$U$4,0)),0) -> 13 | F39: -8 | G39: -61.53846154 | H39: =IFERROR(INDEX(検挙手口本年!$E$5:$U$1000,MATCH($B39,検挙手口本年!$D$5:$D$1000,0),MATCH($A$1,検挙手口本年!$E$4:$U$4,0)),0) -> 2 | I39: =IFERROR(INDEX(検挙手口前年!$E$5:$U$1000,MATCH($B39,検挙手口前年!$D$5:$D$1000,0),MATCH($A$1,検挙手口前年!$E$4:$U$4,0)),0) -> 7 | J39: -5 | K39: -71.42857143 | L39: 40 | M39: 53.8 | N39: -13.8 | O39: =IFERROR(INDEX(人員手口本年!$E$5:$U$1000,MATCH($B39,人員手口本年!$D$5:$D$1000,0),MATCH($A$1,人員手口本年!$E$4:$U$4,0)),0) -> 0 | P39: =IFERROR(INDEX(人員手口前年!$E$5:$U$1000,MATCH($B39,人員手口前年!$D$5:$D$1000,0),MATCH($A$1,人員手口前年!$E$4:$U$4,0)),0) -> 3 | Q39: -3 | R39: -100 | S39: =IFERROR(INDEX(少年手口本年!$E$5:$U$1000,MATCH($B39,少年手口本年!$D$5:$D$1000,0),MATCH($A$1,少年手口本年!$E$4:$U$4,0)),0) -> 0 | T39: =IFERROR(INDEX(少年手口前年!$E$5:$U$1000,MATCH($B39,少年手口前年!$D$5:$D$1000,0),MATCH($A$1,少年手口前年!$E$4:$U$4,0)),0) -> 0 | U39: 0 | V39: 0 | X39: 0 | Y39: ―
B40: 職権 | D40: =IFERROR(INDEX(認知手口本年!$E$5:$U$1000,MATCH($B40,認知手口本年!$D$5:$D$1000,0),MATCH($A$1,認知手口本年!$E$4:$U$4,0)),0) -> 7 | E40: =IFERROR(INDEX(認知手口前年!$E$5:$U$1000,MATCH($B40,認知手口前年!$D$5:$D$1000,0),MATCH($A$1,認知手口前年!$E$4:$U$4,0)),0) -> 25 | F40: -18 | G40: -72 | H40: =IFERROR(INDEX(検挙手口本年!$E$5:$U$1000,MATCH($B40,検挙手口本年!$D$5:$D$1000,0),MATCH($A$1,検挙手口本年!$E$4:$U$4,0)),0) -> 14 | I40: =IFERROR(INDEX(検挙手口前年!$E$5:$U$1000,MATCH($B40,検挙手口前年!$D$5:$D$1000,0),MATCH($A$1,検挙手口前年!$E$4:$U$4,0)),0) -> 18 | J40: -4 | K40: -22.22222222 | L40: 200 | M40: 72 | N40: 128 | O40: =IFERROR(INDEX(人員手口本年!$E$5:$U$1000,MATCH($B40,人員手口本年!$D$5:$D$1000,0),MATCH($A$1,人員手口本年!$E$4:$U$4,0)),0) -> 4 | P40: =IFERROR(INDEX(人員手口前年!$E$5:$U$1000,MATCH($B40,人員手口前年!$D$5:$D$1000,0),MATCH($A$1,人員手口前年!$E$4:$U$4,0)),0) -> 7 | Q40: -3 | R40: -42.85714286 | S40: =IFERROR(INDEX(少年手口本年!$E$5:$U$1000,MATCH($B40,少年手口本年!$D$5:$D$1000,0),MATCH($A$1,少年手口本年!$E$4:$U$4,0)),0) -> 0 | T40: =IFERROR(INDEX(少年手口前年!$E$5:$U$1000,MATCH($B40,少年手口前年!$D$5:$D$1000,0),MATCH($A$1,少年手口前年!$E$4:$U$4,0)),0) -> 1 | U40: -1 | V40: -100 | W40: 0 | X40: 14.3 | Y40: -14.3
B41: 釣銭・両替 | D41: =IFERROR(INDEX(認知手口本年!$E$5:$U$1000,MATCH($B41,認知手口本年!$D$5:$D$1000,0),MATCH($A$1,認知手口本年!$E$4:$U$4,0)),0) -> 0 | E41: =IFERROR(INDEX(認知手口前年!$E$5:$U$1000,MATCH($B41,認知手口前年!$D$5:$D$1000,0),MATCH($A$1,認知手口前年!$E$4:$U$4,0)),0) -> 1 | F41: -1 | G41: -100 | H41: =IFERROR(INDEX(検挙手口本年!$E$5:$U$1000,MATCH($B41,検挙手口本年!$D$5:$D$1000,0),MATCH($A$1,検挙手口本年!$E$4:$U$4,0)),0) -> 0 | I41: =IFERROR(INDEX(検挙手口前年!$E$5:$U$1000,MATCH($B41,検挙手口前年!$D$5:$D$1000,0),MATCH($A$1,検挙手口前年!$E$4:$U$4,0)),0) -> 0 | J41: 0 | K41: 0 | M41: 0 | N41: ― | O41: =IFERROR(INDEX(人員手口本年!$E$5:$U$1000,MATCH($B41,人員手口本年!$D$5:$D$1000,0),MATCH($A$1,人員手口本年!$E$4:$U$4,0)),0) -> 1 | P41: =IFERROR(INDEX(人員手口前年!$E$5:$U$1000,MATCH($B41,人員手口前年!$D$5:$D$1000,0),MATCH($A$1,人員手口前年!$E$4:$U$4,0)),0) -> 0 | Q41: 1 | R41: ― | S41: =IFERROR(INDEX(少年手口本年!$E$5:$U$1000,MATCH($B41,少年手口本年!$D$5:$D$1000,0),MATCH($A$1,少年手口本年!$E$4:$U$4,0)),0) -> 1 | T41: =IFERROR(INDEX(少年手口前年!$E$5:$U$1000,MATCH($B41,少年手口前年!$D$5:$D$1000,0),MATCH($A$1,少年手口前年!$E$4:$U$4,0)),0) -> 0 | U41: 1 | V41: ― | W41: 100 | Y41: ―
B42: 留守宅 | D42: =IFERROR(INDEX(認知手口本年!$E$5:$U$1000,MATCH($B42,認知手口本年!$D$5:$D$1000,0),MATCH($A$1,認知手口本年!$E$4:$U$4,0)),0) -> 4 | E42: =IFERROR(INDEX(認知手口前年!$E$5:$U$1000,MATCH($B42,認知手口前年!$D$5:$D$1000,0),MATCH($A$1,認知手口前年!$E$4:$U$4,0)),0) -> 6 | F42: -2 | G42: -33.33333333 | H42: =IFERROR(INDEX(検挙手口本年!$E$5:$U$1000,MATCH($B42,検挙手口本年!$D$5:$D$1000,0),MATCH($A$1,検挙手口本年!$E$4:$U$4,0)),0) -> 1 | I42: =IFERROR(INDEX(検挙手口前年!$E$5:$U$1000,MATCH($B42,検挙手口前年!$D$5:$D$1000,0),MATCH($A$1,検挙手口前年!$E$4:$U$4,0)),0) -> 8 | J42: -7 | K42: -87.5 | L42: 25 | M42: 133.3 | N42: -108.3 | O42: =IFERROR(INDEX(人員手口本年!$E$5:$U$1000,MATCH($B42,人員手口本年!$D$5:$D$1000,0),MATCH($A$1,人員手口本年!$E$4:$U$4,0)),0) -> 0 | P42: =IFERROR(INDEX(人員手口前年!$E$5:$U$1000,MATCH($B42,人員手口前年!$D$5:$D$1000,0),MATCH($A$1,人員手口前年!$E$4:$U$4,0)),0) -> 1 | Q42: -1 | R42: -100 | S42: =IFERROR(INDEX(少年手口本年!$E$5:$U$1000,MATCH($B42,少年手口本年!$D$5:$D$1000,0),MATCH($A$1,少年手口本年!$E$4:$U$4,0)),0) -> 0 | T42: =IFERROR(INDEX(少年手口前年!$E$5:$U$1000,MATCH($B42,少年手口前年!$D$5:$D$1000,0),MATCH($A$1,少年手口前年!$E$4:$U$4,0)),0) -> 0 | U42: 0 | V42: 0 | X42: 0 | Y42: ―
B43: 保険 | D43: =SUM(D44:D48) -> 3 | E43: =SUM(E44:E48) -> 1 | F43: 2 | G43: 200 | H43: =SUM(H44:H48) -> 2 | I43: =SUM(I44:I48) -> 1 | J43: 1 | K43: 100 | L43: 66.7 | M43: 100 | N43: -33.3 | O43: =SUM(O44:O48) -> 1 | P43: =SUM(P44:P48) -> 3 | Q43: -2 | R43: -66.66666667 | S43: =SUM(S44:S48) -> 0 | T43: =SUM(T44:T48) -> 0 | U43: 0 | V43: 0 | W43: 0 | X43: 0 | Y43: 0
C44: 生命 | D44: =IFERROR(INDEX(認知手口本年!$E$5:$U$1000,MATCH($C44,認知手口本年!$D$5:$D$1000,0),MATCH($A$1,認知手口本年!$E$4:$U$4,0)),0) -> 0 | E44: =IFERROR(INDEX(認知手口前年!$E$5:$U$1000,MATCH($C44,認知手口前年!$D$5:$D$1000,0),MATCH($A$1,認知手口前年!$E$4:$U$4,0)),0) -> 0 | F44: 0 | G44: 0 | H44: =IFERROR(INDEX(検挙手口本年!$E$5:$U$1000,MATCH($C44,検挙手口本年!$D$5:$D$1000,0),MATCH($A$1,検挙手口本年!$E$4:$U$4,0)),0) -> 0 | I44: =IFERROR(INDEX(検挙手口前年!$E$5:$U$1000,MATCH($C44,検挙手口前年!$D$5:$D$1000,0),MATCH($A$1,検挙手口前年!$E$4:$U$4,0)),0) -> 0 | J44: 0 | K44: 0 | O44: =IFERROR(INDEX(人員手口本年!$E$5:$U$1000,MATCH($C44,人員手口本年!$D$5:$D$1000,0),MATCH($A$1,人員手口本年!$E$4:$U$4,0)),0) -> 0 | P44: =IFERROR(INDEX(人員手口前年!$E$5:$U$1000,MATCH($C44,人員手口前年!$D$5:$D$1000,0),MATCH($A$1,人員手口前年!$E$4:$U$4,0)),0) -> 0 | Q44: 0 | R44: 0 | S44: =IFERROR(INDEX(少年手口本年!$E$5:$U$1000,MATCH($C44,少年手口本年!$D$5:$D$1000,0),MATCH($A$1,少年手口本年!$E$4:$U$4,0)),0) -> 0 | T44: =IFERROR(INDEX(少年手口前年!$E$5:$U$1000,MATCH($C44,少年手口前年!$D$5:$D$1000,0),MATCH($A$1,少年手口前年!$E$4:$U$4,0)),0) -> 0 | U44: 0 | V44: 0
C45: 自動車（自賠責を含む） | D45: =IFERROR(INDEX(認知手口本年!$E$5:$U$1000,MATCH($C45,認知手口本年!$D$5:$D$1000,0),MATCH($A$1,認知手口本年!$E$4:$U$4,0)),0) -> 3 | E45: =IFERROR(INDEX(認知手口前年!$E$5:$U$1000,MATCH($C45,認知手口前年!$D$5:$D$1000,0),MATCH($A$1,認知手口前年!$E$4:$U$4,0)),0) -> 1 | F45: 2 | G45: 200 | H45: =IFERROR(INDEX(検挙手口本年!$E$5:$U$1000,MATCH($C45,検挙手口本年!$D$5:$D$1000,0),MATCH($A$1,検挙手口本年!$E$4:$U$4,0)),0) -> 2 | I45: =IFERROR(INDEX(検挙手口前年!$E$5:$U$1000,MATCH($C45,検挙手口前年!$D$5:$D$1000,0),MATCH($A$1,検挙手口前年!$E$4:$U$4,0)),0) -> 0 | J45: 2 | K45: ― | L45: 66.7 | M45: 0 | N45: 66.7 | O45: =IFERROR(INDEX(人員手口本年!$E$5:$U$1000,MATCH($C45,人員手口本年!$D$5:$D$1000,0),MATCH($A$1,人員手口本年!$E$4:$U$4,0)),0) -> 1 | P45: =IFERROR(INDEX(人員手口前年!$E$5:$U$1000,MATCH($C45,人員手口前年!$D$5:$D$1000,0),MATCH($A$1,人員手口前年!$E$4:$U$4,0)),0) -> 0 | Q45: 1 | R45: ― | S45: =IFERROR(INDEX(少年手口本年!$E$5:$U$1000,MATCH($C45,少年手口本年!$D$5:$D$1000,0),MATCH($A$1,少年手口本年!$E$4:$U$4,0)),0) -> 0 | T45: =IFERROR(INDEX(少年手口前年!$E$5:$U$1000,MATCH($C45,少年手口前年!$D$5:$D$1000,0),MATCH($A$1,少年手口前年!$E$4:$U$4,0)),0) -> 0 | U45: 0 | V45: 0 | W45: 0 | Y45: ―
C46: 傷害 | D46: =IFERROR(INDEX(認知手口本年!$E$5:$U$1000,MATCH($C46,認知手口本年!$D$5:$D$1000,0),MATCH($A$1,認知手口本年!$E$4:$U$4,0)),0) -> 0 | E46: =IFERROR(INDEX(認知手口前年!$E$5:$U$1000,MATCH($C46,認知手口前年!$D$5:$D$1000,0),MATCH($A$1,認知手口前年!$E$4:$U$4,0)),0) -> 0 | F46: 0 | G46: 0 | H46: =IFERROR(INDEX(検挙手口本年!$E$5:$U$1000,MATCH($C46,検挙手口本年!$D$5:$D$1000,0),MATCH($A$1,検挙手口本年!$E$4:$U$4,0)),0) -> 0 | I46: =IFERROR(INDEX(検挙手口前年!$E$5:$U$1000,MATCH($C46,検挙手口前年!$D$5:$D$1000,0),MATCH($A$1,検挙手口前年!$E$4:$U$4,0)),0) -> 1 | J46: -1 | K46: -100 | M46: ― | N46: ― | O46: =IFERROR(INDEX(人員手口本年!$E$5:$U$1000,MATCH($C46,人員手口本年!$D$5:$D$1000,0),MATCH($A$1,人員手口本年!$E$4:$U$4,0)),0) -> 0 | P46: =IFERROR(INDEX(人員手口前年!$E$5:$U$1000,MATCH($C46,人員手口前年!$D$5:$D$1000,0),MATCH($A$1,人員手口前年!$E$4:$U$4,0)),0) -> 3 | Q46: -3 | R46: -100 | S46: =IFERROR(INDEX(少年手口本年!$E$5:$U$1000,MATCH($C46,少年手口本年!$D$5:$D$1000,0),MATCH($A$1,少年手口本年!$E$4:$U$4,0)),0) -> 0 | T46: =IFERROR(INDEX(少年手口前年!$E$5:$U$1000,MATCH($C46,少年手口前年!$D$5:$D$1000,0),MATCH($A$1,少年手口前年!$E$4:$U$4,0)),0) -> 0 | U46: 0 | V46: 0 | X46: 0 | Y46: ―
C47: 火災 | D47: =IFERROR(INDEX(認知手口本年!$E$5:$U$1000,MATCH($C47,認知手口本年!$D$5:$D$1000,0),MATCH($A$1,認知手口本年!$E$4:$U$4,0)),0) -> 0 | E47: =IFERROR(INDEX(認知手口前年!$E$5:$U$1000,MATCH($C47,認知手口前年!$D$5:$D$1000,0),MATCH($A$1,認知手口前年!$E$4:$U$4,0)),0) -> 0 | F47: 0 | G47: 0 | H47: =IFERROR(INDEX(検挙手口本年!$E$5:$U$1000,MATCH($C47,検挙手口本年!$D$5:$D$1000,0),MATCH($A$1,検挙手口本年!$E$4:$U$4,0)),0) -> 0 | I47: =IFERROR(INDEX(検挙手口前年!$E$5:$U$1000,MATCH($C47,検挙手口前年!$D$5:$D$1000,0),MATCH($A$1,検挙手口前年!$E$4:$U$4,0)),0) -> 0 | J47: 0 | K47: 0 | O47: =IFERROR(INDEX(人員手口本年!$E$5:$U$1000,MATCH($C47,人員手口本年!$D$5:$D$1000,0),MATCH($A$1,人員手口本年!$E$4:$U$4,0)),0) -> 0 | P47: =IFERROR(INDEX(人員手口前年!$E$5:$U$1000,MATCH($C47,人員手口前年!$D$5:$D$1000,0),MATCH($A$1,人員手口前年!$E$4:$U$4,0)),0) -> 0 | Q47: 0 | R47: 0 | S47: =IFERROR(INDEX(少年手口本年!$E$5:$U$1000,MATCH($C47,少年手口本年!$D$5:$D$1000,0),MATCH($A$1,少年手口本年!$E$4:$U$4,0)),0) -> 0 | T47: =IFERROR(INDEX(少年手口前年!$E$5:$U$1000,MATCH($C47,少年手口前年!$D$5:$D$1000,0),MATCH($A$1,少年手口前年!$E$4:$U$4,0)),0) -> 0 | U47: 0 | V47: 0
C48: 保険その他 | D48: =IFERROR(INDEX(認知手口本年!$E$5:$U$1000,MATCH($C48,認知手口本年!$D$5:$D$1000,0),MATCH($A$1,認知手口本年!$E$4:$U$4,0)),0) -> 0 | E48: =IFERROR(INDEX(認知手口前年!$E$5:$U$1000,MATCH($C48,認知手口前年!$D$5:$D$1000,0),MATCH($A$1,認知手口前年!$E$4:$U$4,0)),0) -> 0 | F48: 0 | G48: 0 | H48: =IFERROR(INDEX(検挙手口本年!$E$5:$U$1000,MATCH($C48,検挙手口本年!$D$5:$D$1000,0),MATCH($A$1,検挙手口本年!$E$4:$U$4,0)),0) -> 0 | I48: =IFERROR(INDEX(検挙手口前年!$E$5:$U$1000,MATCH($C48,検挙手口前年!$D$5:$D$1000,0),MATCH($A$1,検挙手口前年!$E$4:$U$4,0)),0) -> 0 | J48: 0 | K48: 0 | O48: =IFERROR(INDEX(人員手口本年!$E$5:$U$1000,MATCH($C48,人員手口本年!$D$5:$D$1000,0),MATCH($A$1,人員手口本年!$E$4:$U$4,0)),0) -> 0 | P48: =IFERROR(INDEX(人員手口前年!$E$5:$U$1000,MATCH($C48,人員手口前年!$D$5:$D$1000,0),MATCH($A$1,人員手口前年!$E$4:$U$4,0)),0) -> 0 | Q48: 0 | R48: 0 | S48: =IFERROR(INDEX(少年手口本年!$E$5:$U$1000,MATCH($C48,少年手口本年!$D$5:$D$1000,0),MATCH($A$1,少年手口本年!$E$4:$U$4,0)),0) -> 0 | T48: =IFERROR(INDEX(少年手口前年!$E$5:$U$1000,MATCH($C48,少年手口前年!$D$5:$D$1000,0),MATCH($A$1,少年手口前年!$E$4:$U$4,0)),0) -> 0 | U48: 0 | V48: 0
B49: 横取り | D49: =IFERROR(INDEX(認知手口本年!$E$5:$U$1000,MATCH($B49,認知手口本年!$D$5:$D$1000,0),MATCH($A$1,認知手口本年!$E$4:$U$4,0)),0) -> 1 | E49: =IFERROR(INDEX(認知手口前年!$E$5:$U$1000,MATCH($B49,認知手口前年!$D$5:$D$1000,0),MATCH($A$1,認知手口前年!$E$4:$U$4,0)),0) -> 2 | F49: -1 | G49: -50 | H49: =IFERROR(INDEX(検挙手口本年!$E$5:$U$1000,MATCH($B49,検挙手口本年!$D$5:$D$1000,0),MATCH($A$1,検挙手口本年!$E$4:$U$4,0)),0) -> 2 | I49: =IFERROR(INDEX(検挙手口前年!$E$5:$U$1000,MATCH($B49,検挙手口前年!$D$5:$D$1000,0),MATCH($A$1,検挙手口前年!$E$4:$U$4,0)),0) -> 0 | J49: 2 | K49: ― | L49: 200 | M49: 0 | N49: 200 | O49: =IFERROR(INDEX(人員手口本年!$E$5:$U$1000,MATCH($B49,人員手口本年!$D$5:$D$1000,0),MATCH($A$1,人員手口本年!$E$4:$U$4,0)),0) -> 3 | P49: =IFERROR(INDEX(人員手口前年!$E$5:$U$1000,MATCH($B49,人員手口前年!$D$5:$D$1000,0),MATCH($A$1,人員手口前年!$E$4:$U$4,0)),0) -> 0 | Q49: 3 | R49: ― | S49: =IFERROR(INDEX(少年手口本年!$E$5:$U$1000,MATCH($B49,少年手口本年!$D$5:$D$1000,0),MATCH($A$1,少年手口本年!$E$4:$U$4,0)),0) -> 0 | T49: =IFERROR(INDEX(少年手口前年!$E$5:$U$1000,MATCH($B49,少年手口前年!$D$5:$D$1000,0),MATCH($A$1,少年手口前年!$E$4:$U$4,0)),0) -> 0 | U49: 0 | V49: 0 | W49: 0 | Y49: ―
B50: 受託 | D50: =IFERROR(INDEX(認知手口本年!$E$5:$U$1000,MATCH($B50,認知手口本年!$D$5:$D$1000,0),MATCH($A$1,認知手口本年!$E$4:$U$4,0)),0) -> 3 | E50: =IFERROR(INDEX(認知手口前年!$E$5:$U$1000,MATCH($B50,認知手口前年!$D$5:$D$1000,0),MATCH($A$1,認知手口前年!$E$4:$U$4,0)),0) -> 6 | F50: -3 | G50: -50 | H50: =IFERROR(INDEX(検挙手口本年!$E$5:$U$1000,MATCH($B50,検挙手口本年!$D$5:$D$1000,0),MATCH($A$1,検挙手口本年!$E$4:$U$4,0)),0) -> 2 | I50: =IFERROR(INDEX(検挙手口前年!$E$5:$U$1000,MATCH($B50,検挙手口前年!$D$5:$D$1000,0),MATCH($A$1,検挙手口前年!$E$4:$U$4,0)),0) -> 4 | J50: -2 | K50: -50 | L50: 66.7 | M50: 66.7 | N50: 0 | O50: =IFERROR(INDEX(人員手口本年!$E$5:$U$1000,MATCH($B50,人員手口本年!$D$5:$D$1000,0),MATCH($A$1,人員手口本年!$E$4:$U$4,0)),0) -> 0 | P50: =IFERROR(INDEX(人員手口前年!$E$5:$U$1000,MATCH($B50,人員手口前年!$D$5:$D$1000,0),MATCH($A$1,人員手口前年!$E$4:$U$4,0)),0) -> 0 | Q50: 0 | R50: 0 | S50: =IFERROR(INDEX(少年手口本年!$E$5:$U$1000,MATCH($B50,少年手口本年!$D$5:$D$1000,0),MATCH($A$1,少年手口本年!$E$4:$U$4,0)),0) -> 0 | T50: =IFERROR(INDEX(少年手口前年!$E$5:$U$1000,MATCH($B50,少年手口前年!$D$5:$D$1000,0),MATCH($A$1,少年手口前年!$E$4:$U$4,0)),0) -> 0 | U50: 0 | V50: 0
B51: 詐欺その他 | D51: =SUM(D52:D53) -> 256 | E51: =SUM(E52:E53) -> 150 | F51: 106 | G51: 70.66666667 | H51: =SUM(H52:H53) -> 142 | I51: =SUM(I52:I53) -> 54 | J51: 88 | K51: 162.962963 | L51: 55.5 | M51: 36 | N51: 19.5 | O51: =SUM(O52:O53) -> 105 | P51: =SUM(P52:P53) -> 35 | Q51: 70 | R51: 200 | S51: =SUM(S52:S53) -> 2 | T51: =SUM(T52:T53) -> 0 | U51: 2 | V51: ― | W51: 1.9 | X51: 0 | Y51: 1.9
C52: 口座開設 | D52: =IFERROR(INDEX(認知手口本年!$E$5:$U$1000,MATCH($C52,認知手口本年!$D$5:$D$1000,0),MATCH($A$1,認知手口本年!$E$4:$U$4,0)),0) -> 12 | E52: =IFERROR(INDEX(認知手口前年!$E$5:$U$1000,MATCH($C52,認知手口前年!$D$5:$D$1000,0),MATCH($A$1,認知手口前年!$E$4:$U$4,0)),0) -> 8 | F52: 4 | G52: 50 | H52: =IFERROR(INDEX(検挙手口本年!$E$5:$U$1000,MATCH($C52,検挙手口本年!$D$5:$D$1000,0),MATCH($A$1,検挙手口本年!$E$4:$U$4,0)),0) -> 10 | I52: =IFERROR(INDEX(検挙手口前年!$E$5:$U$1000,MATCH($C52,検挙手口前年!$D$5:$D$1000,0),MATCH($A$1,検挙手口前年!$E$4:$U$4,0)),0) -> 13 | J52: -3 | K52: -23.07692308 | L52: 83.3 | M52: 162.5 | N52: -79.2 | O52: =IFERROR(INDEX(人員手口本年!$E$5:$U$1000,MATCH($C52,人員手口本年!$D$5:$D$1000,0),MATCH($A$1,人員手口本年!$E$4:$U$4,0)),0) -> 5 | P52: =IFERROR(INDEX(人員手口前年!$E$5:$U$1000,MATCH($C52,人員手口前年!$D$5:$D$1000,0),MATCH($A$1,人員手口前年!$E$4:$U$4,0)),0) -> 7 | Q52: -2 | R52: -28.57142857 | S52: =IFERROR(INDEX(少年手口本年!$E$5:$U$1000,MATCH($C52,少年手口本年!$D$5:$D$1000,0),MATCH($A$1,少年手口本年!$E$4:$U$4,0)),0) -> 0 | T52: =IFERROR(INDEX(少年手口前年!$E$5:$U$1000,MATCH($C52,少年手口前年!$D$5:$D$1000,0),MATCH($A$1,少年手口前年!$E$4:$U$4,0)),0) -> 0 | U52: 0 | V52: 0 | W52: 0 | X52: 0 | Y52: 0
C53: 詐欺その他その他 | D53: =IFERROR(INDEX(認知手口本年!$E$5:$U$1000,MATCH($C53,認知手口本年!$D$5:$D$1000,0),MATCH($A$1,認知手口本年!$E$4:$U$4,0)),0) -> 244 | E53: =IFERROR(INDEX(認知手口前年!$E$5:$U$1000,MATCH($C53,認知手口前年!$D$5:$D$1000,0),MATCH($A$1,認知手口前年!$E$4:$U$4,0)),0) -> 142 | F53: 102 | G53: 71.83098592 | H53: =IFERROR(INDEX(検挙手口本年!$E$5:$U$1000,MATCH($C53,検挙手口本年!$D$5:$D$1000,0),MATCH($A$1,検挙手口本年!$E$4:$U$4,0)),0) -> 132 | I53: =IFERROR(INDEX(検挙手口前年!$E$5:$U$1000,MATCH($C53,検挙手口前年!$D$5:$D$1000,0),MATCH($A$1,検挙手口前年!$E$4:$U$4,0)),0) -> 41 | J53: 91 | K53: 221.9512195 | L53: 54.1 | M53: 28.9 | N53: 25.2 | O53: =IFERROR(INDEX(人員手口本年!$E$5:$U$1000,MATCH($C53,人員手口本年!$D$5:$D$1000,0),MATCH($A$1,人員手口本年!$E$4:$U$4,0)),0) -> 100 | P53: =IFERROR(INDEX(人員手口前年!$E$5:$U$1000,MATCH($C53,人員手口前年!$D$5:$D$1000,0),MATCH($A$1,人員手口前年!$E$4:$U$4,0)),0) -> 28 | Q53: 72 | R53: 257.1428571 | S53: =IFERROR(INDEX(少年手口本年!$E$5:$U$1000,MATCH($C53,少年手口本年!$D$5:$D$1000,0),MATCH($A$1,少年手口本年!$E$4:$U$4,0)),0) -> 2 | T53: =IFERROR(INDEX(少年手口前年!$E$5:$U$1000,MATCH($C53,少年手口前年!$D$5:$D$1000,0),MATCH($A$1,少年手口前年!$E$4:$U$4,0)),0) -> 0 | U53: 2 | V53: ― | W53: 2 | X53: 0 | Y53: 2
L54: =集計現在 -> 2022-02-01 | W54: =集計現在 -> 2022-02-01

Sheet 窃盗
A1: 滋賀県
M2: =A1 -> 滋賀県 | X2: =A1 -> 滋賀県
A3: 区 分 | D3: 認 知 件 数 | H3: 検 挙 件 数 | L3: 検 挙 率 | O3: 検 挙 人 員 | S3: 検 挙 人 員 （ 少 年 ） | W3: 少 年 比 率
D4: =本年 -> R03 | E4: =前年 -> R02 | F4: 前 年 比 | H4: =本年 -> R03 | I4: =前年 -> R02 | J4: 前 年 比 | L4: =本年 -> R03 | M4: =前年 -> R02 | N4: 前年比 | O4: =本年 -> R03 | P4: =前年 -> R02 | Q4: 前 年 比 | S4: =本年 -> R03 | T4: =前年 -> R02 | U4: 前 年 比 | W4: =本年 -> R03 | X4: =前年 -> R02 | Y4: 前年比
D5: =累月 -> 1～12月 | E5: =累月 -> 1～12月 | F5: 件 数 | G5: 率 | H5: =累月 -> 1～12月 | I5: =累月 -> 1～12月 | J5: 件 数 | K5: 率 | L5: =累月 -> 1～12月 | M5: =累月 -> 1～12月 | N5: ポイント | O5: =累月 -> 1～12月 | P5: =累月 -> 1～12月 | Q5: 人 員 | R5: 率 | S5: =累月 -> 1～12月 | T5: =累月 -> 1～12月 | U5: 人 員 | V5: 率 | W5: =累月 -> 1～12月 | X5: =累月 -> 1～12月 | Y5: ポイント
A6: 窃盗犯 | D6: =D7+D24+D34 -> 3695 | E6: =E7+E24+E34 -> 4172 | F6: =D6-E6 -> -477 | G6: =IF(AND(E6=0,D6=0),0,IF(E6>0,F6/E6*100,IF(F6>0,"―",""))) -> -11.43336529 | H6: =H7+H24+H34 -> 1872 | I6: =I7+I24+I34 -> 1641 | J6: =H6-I6 -> 231 | K6: =IF(AND(I6=0,H6=0),0,IF(I6>0,J6/I6*100,IF(J6>0,"―",""))) -> 14.07678245 | L6: =IF(D6>0,ROUND(H6/D6*100,1),IF(H6>0,"―","")) -> 50.7 | M6: =IF(E6>0,ROUND(I6/E6*100,1),IF(I6>0,"―","")) -> 39.3 | N6: =IF(AND(M6="",L6=""),"",IF(ISERR(L6-M6),"―",L6-M6)) -> 11.4 | O6: =O7+O24+O34 -> 1006 | P6: =P7+P24+P34 -> 1048 | Q6: =O6-P6 -> -42 | R6: =IF(AND(P6=0,O6=0),0,IF(P6>0,Q6/P6*100,IF(Q6>0,"―",""))) -> -4.007633588 | S6: =S7+S24+S34 -> 115 | T6: =T7+T24+T34 -> 134 | U6: =S6-T6 -> -19 | V6: =IF(AND(T6=0,S6=0),0,IF(T6>0,U6/T6*100,IF(U6>0,"―",""))) -> -14.17910448 | W6: =IF(O6>0,ROUND(S6/O6*100,1),"") -> 11.4 | X6: 12.8 | Y6: =IF(AND(X6="",W6=""),"",IF(ISERR(W6-X6),"―",W6-X6)) -> -1.4
A7: 侵入窃盗 | D7: =SUM(D8:D23) -> 374 | E7: =SUM(E8:E23) -> 434 | F7: -60 | G7: -13.82488479 | H7: =SUM(H8:H23) -> 319 | I7: =SUM(I8:I23) -> 233 | J7: 86 | K7: 36.90987124 | L7: 85.3 | M7: =IF(E7>0,ROUND(I7/E7*100,1),IF(I7>0,"―","")) -> 53.7 | N7: =IF(AND(M7="",L7=""),"",IF(ISERR(L7-M7),"―",L7-M7)) -> 31.6 | O7: =SUM(O8:O23) -> 87 | P7: =SUM(P8:P23) -> 107 | Q7: -20 | R7: -18.69158879 | S7: =SUM(S8:S23) -> 16 | T7: =SUM(T8:T23) -> 9 | U7: 7 | V7: 77.77777778 | W7: =IF(O7>0,ROUND(S7/O7*100,1),"") -> 18.4 | X7: =IF(P7>0,ROUND(T7/P7*100,1),"") -> 8.4 | Y7: =IF(AND(X7="",W7=""),"",IF(ISERR(W7-X7),"―",W7-X7)) -> 10
B8: 空き巣 | D8: =IFERROR(INDEX(認知罪種本年!$E$5:$U$1000,MATCH($B8,認知罪種本年!$D$5:$D$1000,0),MATCH($A$1,認知罪種本年!$E$4:$U$4,0)),0) -> 90 | E8: =IFERROR(INDEX(認知罪種前年!$E$5:$U$1000,MATCH($B8,認知罪種前年!$D$5:$D$1000,0),MATCH($A$1,認知罪種前年!$E$4:$U$4,0)),0) -> 131 | F8: -41 | G8: -31.29770992 | H8: =IFERROR(INDEX(検挙罪種本年!$E$5:$U$1000,MATCH($B8,検挙罪種本年!$D$5:$D$1000,0),MATCH($A$1,検挙罪種本年!$E$4:$U$4,0)),0) -> 67 | I8: =IFERROR(INDEX(検挙罪種前年!$E$5:$U$1000,MATCH($B8,検挙罪種前年!$D$5:$D$1000,0),MATCH($A$1,検挙罪種前年!$E$4:$U$4,0)),0) -> 67 | J8: 0 | K8: 0 | L8: 74.4 | M8: 51.1 | N8: 23.3 | O8: =IFERROR(INDEX(人員罪種本年!$E$5:$U$1000,MATCH($B8,人員罪種本年!$D$5:$D$1000,0),MATCH($A$1,人員罪種本年!$E$4:$U$4,0)),0) -> 21 | P8: =IFERROR(INDEX(人員罪種前年!$E$5:$U$1000,MATCH($B8,人員罪種前年!$D$5:$D$1000,0),MATCH($A$1,人員罪種前年!$E$4:$U$4,0)),0) -> 26 | Q8: -5 | R8: -19.23076923 | S8: =IFERROR(INDEX(少年罪種本年!$E$5:$U$1000,MATCH($B8,少年罪種本年!$D$5:$D$1000,0),MATCH($A$1,少年罪種本年!$E$4:$U$4,0)),0) -> 5 | T8: =IFERROR(INDEX(少年罪種前年!$E$5:$U$1000,MATCH($B8,少年罪種前年!$D$5:$D$1000,0),MATCH($A$1,少年罪種前年!$E$4:$U$4,0)),0) -> 2 | U8: 3 | V8: 150 | W8: 23.8 | X8: 7.7 | Y8: 16.1
B9: 忍込み | D9: =IFERROR(INDEX(認知罪種本年!$E$5:$U$1000,MATCH($B9,認知罪種本年!$D$5:$D$1000,0),MATCH($A$1,認知罪種本年!$E$4:$U$4,0)),0) -> 39 | E9: =IFERROR(INDEX(認知罪種前年!$E$5:$U$1000,MATCH($B9,認知罪種前年!$D$5:$D$1000,0),MATCH($A$1,認知罪種前年!$E$4:$U$4,0)),0) -> 46 | F9: -7 | G9: -15.2173913 | H9: =IFERROR(INDEX(検挙罪種本年!$E$5:$U$1000,MATCH($B9,検挙罪種本年!$D$5:$D$1000,0),MATCH($A$1,検挙罪種本年!$E$4:$U$4,0)),0) -> 17 | I9: =IFERROR(INDEX(検挙罪種前年!$E$5:$U$1000,MATCH($B9,検挙罪種前年!$D$5:$D$1000,0),MATCH($A$1,検挙罪種前年!$E$4:$U$4,0)),0) -> 32 | J9: -15 | K9: -46.875 | L9: 43.6 | M9: 69.6 | N9: -26 | O9: =IFERROR(INDEX(人員罪種本年!$E$5:$U$1000,MATCH($B9,人員罪種本年!$D$5:$D$1000,0),MATCH($A$1,人員罪種本年!$E$4:$U$4,0)),0) -> 3 | P9: =IFERROR(INDEX(人員罪種前年!$E$5:$U$1000,MATCH($B9,人員罪種前年!$D$5:$D$1000,0),MATCH($A$1,人員罪種前年!$E$4:$U$4,0)),0) -> 6 | Q9: -3 | R9: -50 | S9: =IFERROR(INDEX(少年罪種本年!$E$5:$U$1000,MATCH($B9,少年罪種本年!$D$5:$D$1000,0),MATCH($A$1,少年罪種本年!$E$4:$U$4,0)),0) -> 1 | T9: =IFERROR(INDEX(少年罪種前年!$E$5:$U$1000,MATCH($B9,少年罪種前年!$D$5:$D$1000,0),MATCH($A$1,少年罪種前年!$E$4:$U$4,0)),0) -> 3 | U9: -2 | V9: -66.66666667 | W9: 33.3 | X9: 50 | Y9: -16.7
B10: 居空き | D10: =IFERROR(INDEX(認知罪種本年!$E$5:$U$1000,MATCH($B10,認知罪種本年!$D$5:$D$1000,0),MATCH($A$1,認知罪種本年!$E$4:$U$4,0)),0) -> 16 | E10: =IFERROR(INDEX(認知罪種前年!$E$5:$U$1000,MATCH($B10,認知罪種前年!$D$5:$D$1000,0),MATCH($A$1,認知罪種前年!$E$4:$U$4,0)),0) -> 13 | F10: 3 | G10: 23.07692308 | H10: =IFERROR(INDEX(検挙罪種本年!$E$5:$U$1000,MATCH($B10,検挙罪種本年!$D$5:$D$1000,0),MATCH($A$1,検挙罪種本年!$E$4:$U$4,0)),0) -> 9 | I10: =IFERROR(INDEX(検挙罪種前年!$E$5:$U$1000,MATCH($B10,検挙罪種前年!$D$5:$D$1000,0),MATCH($A$1,検挙罪種前年!$E$4:$U$4,0)),0) -> 4 | J10: 5 | K10: 125 | L10: 56.3 | M10: 30.8 | N10: 25.5 | O10: =IFERROR(INDEX(人員罪種本年!$E$5:$U$1000,MATCH($B10,人員罪種本年!$D$5:$D$1000,0),MATCH($A$1,人員罪種本年!$E$4:$U$4,0)),0) -> 3 | P10: =IFERROR(INDEX(人員罪種前年!$E$5:$U$1000,MATCH($B10,人員罪種前年!$D$5:$D$1000,0),MATCH($A$1,人員罪種前年!$E$4:$U$4,0)),0) -> 3 | Q10: 0 | R10: 0 | S10: =IFERROR(INDEX(少年罪種本年!$E$5:$U$1000,MATCH($B10,少年罪種本年!$D$5:$D$1000,0),MATCH($A$1,少年罪種本年!$E$4:$U$4,0)),0) -> 0 | T10: =IFERROR(INDEX(少年罪種前年!$E$5:$U$1000,MATCH($B10,少年罪種前年!$D$5:$D$1000,0),MATCH($A$1,少年罪種前年!$E$4:$U$4,0)),0) -> 0 | U10: 0 | V10: 0 | W10: 0 | X10: 0 | Y10: 0
B11: ATM破り | D11: =IFERROR(INDEX(認知罪種本年!$E$5:$U$1000,MATCH($B11,認知罪種本年!$D$5:$D$1000,0),MATCH($A$1,認知罪種本年!$E$4:$U$4,0)),0) -> 0 | E11: =IFERROR(INDEX(認知罪種前年!$E$5:$U$1000,MATCH($B11,認知罪種前年!$D$5:$D$1000,0),MATCH($A$1,認知罪種前年!$E$4:$U$4,0)),0) -> 0 | F11: 0 | G11: 0 | H11: =IFERROR(INDEX(検挙罪種本年!$E$5:$U$1000,MATCH($B11,検挙罪種本年!$D$5:$D$1000,0),MATCH($A$1,検挙罪種本年!$E$4:$U$4,0)),0) -> 0 | I11: =IFERROR(INDEX(検挙罪種前年!$E$5:$U$1000,MATCH($B11,検挙罪種前年!$D$5:$D$1000,0),MATCH($A$1,検挙罪種前年!$E$4:$U$4,0)),0) -> 0 | J11: 0 | K11: 0 | O11: =IFERROR(INDEX(人員罪種本年!$E$5:$U$1000,MATCH($B11,人員罪種本年!$D$5:$D$1000,0),MATCH($A$1,人員罪種本年!$E$4:$U$4,0)),0) -> 0 | P11: =IFERROR(INDEX(人員罪種前年!$E$5:$U$1000,MATCH($B11,人員罪種前年!$D$5:$D$1000,0),MATCH($A$1,人員罪種前年!$E$4:$U$4,0)),0) -> 0 | Q11: 0 | R11: 0 | S11: =IFERROR(INDEX(少年罪種本年!$E$5:$U$1000,MATCH($B11,少年罪種本年!$D$5:$D$1000,0),MATCH($A$1,少年罪種本年!$E$4:$U$4,0)),0) -> 0 | T11: =IFERROR(INDEX(少年罪種前年!$E$5:$U$1000,MATCH($B11,少年罪種前年!$D$5:$D$1000,0),MATCH($A$1,少年罪種前年!$E$4:$U$4,0)),0) -> 0 | U11: 0 | V11: 0
B12: 金庫破り | D12: =IFERROR(INDEX(認知罪種本年!$E$5:$U$1000,MATCH($B12,認知罪種本年!$D$5:$D$1000,0),MATCH($A$1,認知罪種本年!$E$4:$U$4,0)),0) -> 6 | E12: =IFERROR(INDEX(認知罪種前年!$E$5:$U$1000,MATCH($B12,認知罪種前年!$D$5:$D$1000,0),MATCH($A$1,認知罪種前年!$E$4:$U$4,0)),0) -> 18 | F12: -12 | G12: -66.66666667 | H12: =IFERROR(INDEX(検挙罪種本年!$E$5:$U$1000,MATCH($B12,検挙罪種本年!$D$5:$D$1000,0),MATCH($A$1,検挙罪種本年!$E$4:$U$4,0)),0) -> 6 | I12: =IFERROR(INDEX(検挙罪種前年!$E$5:$U$1000,MATCH($B12,検挙罪種前年!$D$5:$D$1000,0),MATCH($A$1,検挙罪種前年!$E$4:$U$4,0)),0) -> 12 | J12: -6 | K12: -50 | L12: 100 | M12: 66.7 | N12: 33.3 | O12: =IFERROR(INDEX(人員罪種本年!$E$5:$U$1000,MATCH($B12,人員罪種本年!$D$5:$D$1000,0),MATCH($A$1,人員罪種本年!$E$4:$U$4,0)),0) -> 6 | P12: =IFERROR(INDEX(人員罪種前年!$E$5:$U$1000,MATCH($B12,人員罪種前年!$D$5:$D$1000,0),MATCH($A$1,人員罪種前年!$E$4:$U$4,0)),0) -> 12 | Q12: -6 | R12: -50 | S12: =IFERROR(INDEX(少年罪種本年!$E$5:$U$1000,MATCH($B12,少年罪種本年!$D$5:$D$1000,0),MATCH($A$1,少年罪種本年!$E$4:$U$4,0)),0) -> 2 | T12: =IFERROR(INDEX(少年罪種前年!$E$5:$U$1000,MATCH($B12,少年罪種前年!$D$5:$D$1000,0),MATCH($A$1,少年罪種前年!$E$4:$U$4,0)),0) -> 0 | U12: 2 | V12: ― | W12: 33.3 | X12: 0 | Y12: 33.3
B13: 旅館荒し | D13: =IFERROR(INDEX(認知罪種本年!$E$5:$U$1000,MATCH($B13,認知罪種本年!$D$5:$D$1000,0),MATCH($A$1,認知罪種本年!$E$4:$U$4,0)),0) -> 1 | E13: =IFERROR(INDEX(認知罪種前年!$E$5:$U$1000,MATCH($B13,認知罪種前年!$D$5:$D$1000,0),MATCH($A$1,認知罪種前年!$E$4:$U$4,0)),0) -> 1 | F13: 0 | G13: 0 | H13: =IFERROR(INDEX(検挙罪種本年!$E$5:$U$1000,MATCH($B13,検挙罪種本年!$D$5:$D$1000,0),MATCH($A$1,検挙罪種本年!$E$4:$U$4,0)),0) -> 2 | I13: =IFERROR(INDEX(検挙罪種前年!$E$5:$U$1000,MATCH($B13,検挙罪種前年!$D$5:$D$1000,0),MATCH($A$1,検挙罪種前年!$E$4:$U$4,0)),0) -> 1 | J13: 1 | K13: 100 | L13: 200 | M13: 100 | N13: 100 | O13: =IFERROR(INDEX(人員罪種本年!$E$5:$U$1000,MATCH($B13,人員罪種本年!$D$5:$D$1000,0),MATCH($A$1,人員罪種本年!$E$4:$U$4,0)),0) -> 1 | P13: =IFERROR(INDEX(人員罪種前年!$E$5:$U$1000,MATCH($B13,人員罪種前年!$D$5:$D$1000,0),MATCH($A$1,人員罪種前年!$E$4:$U$4,0)),0) -> 1 | Q13: 0 | R13: 0 | S13: =IFERROR(INDEX(少年罪種本年!$E$5:$U$1000,MATCH($B13,少年罪種本年!$D$5:$D$1000,0),MATCH($A$1,少年罪種本年!$E$4:$U$4,0)),0) -> 0 | T13: =IFERROR(INDEX(少年罪種前年!$E$5:$U$1000,MATCH($B13,少年罪種前年!$D$5:$D$1000,0),MATCH($A$1,少年罪種前年!$E$4:$U$4,0)),0) -> 0 | U13: 0 | V13: 0 | W13: 0 | X13: 0 | Y13: 0
B14: 官公署荒し | D14: =IFERROR(INDEX(認知罪種本年!$E$5:$U$1000,MATCH($B14,認知罪種本年!$D$5:$D$1000,0),MATCH($A$1,認知罪種本年!$E$4:$U$4,0)),0) -> 3 | E14: =IFERROR(INDEX(認知罪種前年!$E$5:$U$1000,MATCH($B14,認知罪種前年!$D$5:$D$1000,0),MATCH($A$1,認知罪種前年!$E$4:$U$4,0)),0) -> 0 | F14: 3 | G14: ― | H14: =IFERROR(INDEX(検挙罪種本年!$E$5:$U$1000,MATCH($B14,検挙罪種本年!$D$5:$D$1000,0),MATCH($A$1,検挙罪種本年!$E$4:$U$4,0)),0) -> 3 | I14: =IFERROR(INDEX(検挙罪種前年!$E$5:$U$1000,MATCH($B14,検挙罪種前年!$D$5:$D$1000,0),MATCH($A$1,検挙罪種前年!$E$4:$U$4,0)),0) -> 3 | J14: 0 | K14: 0 | L14: 100 | M14: =IF(E14>0,ROUND(I14/E14*100,1),IF(I14>0,"―","")) -> ― | N14: =IF(AND(M14="",L14=""),"",IF(ISERR(L14-M14),"―",L14-M14)) -> ― | O14: =IFERROR(INDEX(人員罪種本年!$E$5:$U$1000,MATCH($B14,人員罪種本年!$D$5:$D$1000,0),MATCH($A$1,人員罪種本年!$E$4:$U$4,0)),0) -> 3 | P14: =IFERROR(INDEX(人員罪種前年!$E$5:$U$1000,MATCH($B14,人員罪種前年!$D$5:$D$1000,0),MATCH($A$1,人員罪種前年!$E$4:$U$4,0)),0) -> 0 | Q14: 3 | R14: ― | S14: =IFERROR(INDEX(少年罪種本年!$E$5:$U$1000,MATCH($B14,少年罪種本年!$D$5:$D$1000,0),MATCH($A$1,少年罪種本年!$E$4:$U$4,0)),0) -> 0 | T14: =IFERROR(INDEX(少年罪種前年!$E$5:$U$1000,MATCH($B14,少年罪種前年!$D$5:$D$1000,0),MATCH($A$1,少年罪種前年!$E$4:$U$4,0)),0) -> 0 | U14: 0 | V14: 0 | W14: 0 | Y14: ―
B15: 学校荒し | D15: =IFERROR(INDEX(認知罪種本年!$E$5:$U$1000,MATCH($B15,認知罪種本年!$D$5:$D$1000,0),MATCH($A$1,認知罪種本年!$E$4:$U$4,0)),0) -> 1 | E15: =IFERROR(INDEX(認知罪種前年!$E$5:$U$1000,MATCH($B15,認知罪種前年!$D$5:$D$1000,0),MATCH($A$1,認知罪種前年!$E$4:$U$4,0)),0) -> 2 | F15: -1 | G15: -50 | H15: =IFERROR(INDEX(検挙罪種本年!$E$5:$U$1000,MATCH($B15,検挙罪種本年!$D$5:$D$1000,0),MATCH($A$1,検挙罪種本年!$E$4:$U$4,0)),0) -> 1 | I15: =IFERROR(INDEX(検挙罪種前年!$E$5:$U$1000,MATCH($B15,検挙罪種前年!$D$5:$D$1000,0),MATCH($A$1,検挙罪種前年!$E$4:$U$4,0)),0) -> 3 | J15: -2 | K15: -66.66666667 | L15: 100 | M15: 150 | N15: -50 | O15: =IFERROR(INDEX(人員罪種本年!$E$5:$U$1000,MATCH($B15,人員罪種本年!$D$5:$D$1000,0),MATCH($A$1,人員罪種本年!$E$4:$U$4,0)),0) -> 1 | P15: =IFERROR(INDEX(人員罪種前年!$E$5:$U$1000,MATCH($B15,人員罪種前年!$D$5:$D$1000,0),MATCH($A$1,人員罪種前年!$E$4:$U$4,0)),0) -> 4 | Q15: -3 | R15: -75 | S15: =IFERROR(INDEX(少年罪種本年!$E$5:$U$1000,MATCH($B15,少年罪種本年!$D$5:$D$1000,0),MATCH($A$1,少年罪種本年!$E$4:$U$4,0)),0) -> 0 | T15: =IFERROR(INDEX(少年罪種前年!$E$5:$U$1000,MATCH($B15,少年罪種前年!$D$5:$D$1000,0),MATCH($A$1,少年罪種前年!$E$4:$U$4,0)),0) -> 2 | U15: -2 | V15: -100 | W15: 0 | X15: 50 | Y15: -50
B16: 病院荒し | D16: =IFERROR(INDEX(認知罪種本年!$E$5:$U$1000,MATCH($B16,認知罪種本年!$D$5:$D$1000,0),MATCH($A$1,認知罪種本年!$E$4:$U$4,0)),0) -> 7 | E16: =IFERROR(INDEX(認知罪種前年!$E$5:$U$1000,MATCH($B16,認知罪種前年!$D$5:$D$1000,0),MATCH($A$1,認知罪種前年!$E$4:$U$4,0)),0) -> 4 | F16: 3 | G16: 75 | H16: =IFERROR(INDEX(検挙罪種本年!$E$5:$U$1000,MATCH($B16,検挙罪種本年!$D$5:$D$1000,0),MATCH($A$1,検挙罪種本年!$E$4:$U$4,0)),0) -> 3 | I16: =IFERROR(INDEX(検挙罪種前年!$E$5:$U$1000,MATCH($B16,検挙罪種前年!$D$5:$D$1000,0),MATCH($A$1,検挙罪種前年!$E$4:$U$4,0)),0) -> 0 | J16: 3 | K16: ― | L16: 42.9 | M16: 0 | N16: 42.9 | O16: =IFERROR(INDEX(人員罪種本年!$E$5:$U$1000,MATCH($B16,人員罪種本年!$D$5:$D$1000,0),MATCH($A$1,人員罪種本年!$E$4:$U$4,0)),0) -> 1 | P16: =IFERROR(INDEX(人員罪種前年!$E$5:$U$1000,MATCH($B16,人員罪種前年!$D$5:$D$1000,0),MATCH($A$1,人員罪種前年!$E$4:$U$4,0)),0) -> 0 | Q16: 1 | R16: ― | S16: =IFERROR(INDEX(少年罪種本年!$E$5:$U$1000,MATCH($B16,少年罪種本年!$D$5:$D$1000,0),MATCH($A$1,少年罪種本年!$E$4:$U$4,0)),0) -> 0 | T16: =IFERROR(INDEX(少年罪種前年!$E$5:$U$1000,MATCH($B16,少年罪種前年!$D$5:$D$1000,0),MATCH($A$1,少年罪種前年!$E$4:$U$4,0)),0) -> 0 | U16: 0 | V16: 0 | W16: 0 | Y16: ―
B17: 給油所荒し | D17: =IFERROR(INDEX(認知罪種本年!$E$5:$U$1000,MATCH($B17,認知罪種本年!$D$5:$D$1000,0),MATCH($A$1,認知罪種本年!$E$4:$U$4,0)),0) -> 0 | E17: =IFERROR(INDEX(認知罪種前年!$E$5:$U$1000,MATCH($B17,認知罪種前年!$D$5:$D$1000,0),MATCH($A$1,認知罪種前年!$E$4:$U$4,0)),0) -> 1 | F17: -1 | G17: -100 | H17: =IFERROR(INDEX(検挙罪種本年!$E$5:$U$1000,MATCH($B17,検挙罪種本年!$D$5:$D$1000,0),MATCH($A$1,検挙罪種本年!$E$4:$U$4,0)),0) -> 0 | I17: =IFERROR(INDEX(検挙罪種前年!$E$5:$U$1000,MATCH($B17,検挙罪種前年!$D$5:$D$1000,0),MATCH($A$1,検挙罪種前年!$E$4:$U$4,0)),0) -> 0 | J17: 0 | K17: 0 | M17: 0 | N17: ― | O17: =IFERROR(INDEX(人員罪種本年!$E$5:$U$1000,MATCH($B17,人員罪種本年!$D$5:$D$1000,0),MATCH($A$1,人員罪種本年!$E$4:$U$4,0)),0) -> 0 | P17: =IFERROR(INDEX(人員罪種前年!$E$5:$U$1000,MATCH($B17,人員罪種前年!$D$5:$D$1000,0),MATCH($A$1,人員罪種前年!$E$4:$U$4,0)),0) -> 0 | Q17: 0 | R17: 0 | S17: =IFERROR(INDEX(少年罪種本年!$E$5:$U$1000,MATCH($B17,少年罪種本年!$D$5:$D$1000,0),MATCH($A$1,少年罪種本年!$E$4:$U$4,0)),0) -> 0 | T17: =IFERROR(INDEX(少年罪種前年!$E$5:$U$1000,MATCH($B17,少年罪種前年!$D$5:$D$1000,0),MATCH($A$1,少年罪種前年!$E$4:$U$4,0)),0) -> 0 | U17: 0 | V17: 0
B18: 事務所荒し | D18: =IFERROR(INDEX(認知罪種本年!$E$5:$U$1000,MATCH($B18,認知罪種本年!$D$5:$D$1000,0),MATCH($A$1,認知罪種本年!$E$4:$U$4,0)),0) -> 27 | E18: =IFERROR(INDEX(認知罪種前年!$E$5:$U$1000,MATCH($B18,認知罪種前年!$D$5:$D$1000,0),MATCH($A$1,認知罪種前年!$E$4:$U$4,0)),0) -> 26 | F18: 1 | G18: 3.846153846 | H18: =IFERROR(INDEX(検挙罪種本年!$E$5:$U$1000,MATCH($B18,検挙罪種本年!$D$5:$D$1000,0),MATCH($A$1,検挙罪種本年!$E$4:$U$4,0)),0) -> 28 | I18: =IFERROR(INDEX(検挙罪種前年!$E$5:$U$1000,MATCH($B18,検挙罪種前年!$D$5:$D$1000,0),MATCH($A$1,検挙罪種前年!$E$4:$U$4,0)),0) -> 12 | J18: 16 | K18: 133.3333333 | L18: 103.7 | M18: 46.2 | N18: 57.5 | O18: =IFERROR(INDEX(人員罪種本年!$E$5:$U$1000,MATCH($B18,人員罪種本年!$D$5:$D$1000,0),MATCH($A$1,人員罪種本年!$E$4:$U$4,0)),0) -> 5 | P18: =IFERROR(INDEX(人員罪種前年!$E$5:$U$1000,MATCH($B18,人員罪種前年!$D$5:$D$1000,0),MATCH($A$1,人員罪種前年!$E$4:$U$4,0)),0) -> 6 | Q18: -1 | R18: -16.66666667 | S18: =IFERROR(INDEX(少年罪種本年!$E$5:$U$1000,MATCH($B18,少年罪種本年!$D$5:$D$1000,0),MATCH($A$1,少年罪種本年!$E$4:$U$4,0)),0) -> 1 | T18: =IFERROR(INDEX(少年罪種前年!$E$5:$U$1000,MATCH($B18,少年罪種前年!$D$5:$D$1000,0),MATCH($A$1,少年罪種前年!$E$4:$U$4,0)),0) -> 0 | U18: 1 | V18: ― | W18: 20 | X18: 0 | Y18: 20
B19: 出店荒し | D19: =IFERROR(INDEX(認知罪種本年!$E$5:$U$1000,MATCH($B19,認知罪種本年!$D$5:$D$1000,0),MATCH($A$1,認知罪種本年!$E$4:$U$4,0)),0) -> 51 | E19: =IFERROR(INDEX(認知罪種前年!$E$5:$U$1000,MATCH($B19,認知罪種前年!$D$5:$D$1000,0),MATCH($A$1,認知罪種前年!$E$4:$U$4,0)),0) -> 53 | F19: -2 | G19: -3.773584906 | H19: =IFERROR(INDEX(検挙罪種本年!$E$5:$U$1000,MATCH($B19,検挙罪種本年!$D$5:$D$1000,0),MATCH($A$1,検挙罪種本年!$E$4:$U$4,0)),0) -> 57 | I19: =IFERROR(INDEX(検挙罪種前年!$E$5:$U$1000,MATCH($B19,検挙罪種前年!$D$5:$D$1000,0),MATCH($A$1,検挙罪種前年!$E$4:$U$4,0)),0) -> 33 | J19: 24 | K19: 72.72727273 | L19: 111.8 | M19: 62.3 | N19: 49.5 | O19: =IFERROR(INDEX(人員罪種本年!$E$5:$U$1000,MATCH($B19,人員罪種本年!$D$5:$D$1000,0),MATCH($A$1,人員罪種本年!$E$4:$U$4,0)),0) -> 8 | P19: =IFERROR(INDEX(人員罪種前年!$E$5:$U$1000,MATCH($B19,人員罪種前年!$D$5:$D$1000,0),MATCH($A$1,人員罪種前年!$E$4:$U$4,0)),0) -> 12 | Q19: -4 | R19: -33.33333333 | S19: =IFERROR(INDEX(少年罪種本年!$E$5:$U$1000,MATCH($B19,少年罪種本年!$D$5:$D$1000,0),MATCH($A$1,少年罪種本年!$E$4:$U$4,0)),0) -> 2 | T19: =IFERROR(INDEX(少年罪種前年!$E$5:$U$1000,MATCH($B19,少年罪種前年!$D$5:$D$1000,0),MATCH($A$1,少年罪種前年!$E$4:$U$4,0)),0) -> 0 | U19: 2 | V19: ― | W19: 25 | X19: 0 | Y19: 25
B20: 工場荒し | D20: =IFERROR(INDEX(認知罪種本年!$E$5:$U$1000,MATCH($B20,認知罪種本年!$D$5:$D$1000,0),MATCH($A$1,認知罪種本年!$E$4:$U$4,0)),0) -> 5 | E20: =IFERROR(INDEX(認知罪種前年!$E$5:$U$1000,MATCH($B20,認知罪種前年!$D$5:$D$1000,0),MATCH($A$1,認知罪種前年!$E$4:$U$4,0)),0) -> 5 | F20: 0 | G20: 0 | H20: =IFERROR(INDEX(検挙罪種本年!$E$5:$U$1000,MATCH($B20,検挙罪種本年!$D$5:$D$1000,0),MATCH($A$1,検挙罪種本年!$E$4:$U$4,0)),0) -> 4 | I20: =IFERROR(INDEX(検挙罪種前年!$E$5:$U$1000,MATCH($B20,検挙罪種前年!$D$5:$D$1000,0),MATCH($A$1,検挙罪種前年!$E$4:$U$4,0)),0) -> 3 | J20: 1 | K20: 33.33333333 | L20: 80 | M20: 60 | N20: 20 | O20: =IFERROR(INDEX(人員罪種本年!$E$5:$U$1000,MATCH($B20,人員罪種本年!$D$5:$D$1000,0),MATCH($A$1,人員罪種本年!$E$4:$U$4,0)),0) -> 3 | P20: =IFERROR(INDEX(人員罪種前年!$E$5:$U$1000,MATCH($B20,人員罪種前年!$D$5:$D$1000,0),MATCH($A$1,人員罪種前年!$E$4:$U$4,0)),0) -> 4 | Q20: -1 | R20: -25 | S20: =IFERROR(INDEX(少年罪種本年!$E$5:$U$1000,MATCH($B20,少年罪種本年!$D$5:$D$1000,0),MATCH($A$1,少年罪種本年!$E$4:$U$4,0)),0) -> 0 | T20: =IFERROR(INDEX(少年罪種前年!$E$5:$U$1000,MATCH($B20,少年罪種前年!$D$5:$D$1000,0),MATCH($A$1,少年罪種前年!$E$4:$U$4,0)),0) -> 0 | U20: 0 | V20: 0 | W20: 0 | X20: 0 | Y20: 0
B21: 更衣室荒し | D21: =IFERROR(INDEX(認知罪種本年!$E$5:$U$1000,MATCH($B21,認知罪種本年!$D$5:$D$1000,0),MATCH($A$1,認知罪種本年!$E$4:$U$4,0)),0) -> 8 | E21: =IFERROR(INDEX(認知罪種前年!$E$5:$U$1000,MATCH($B21,認知罪種前年!$D$5:$D$1000,0),MATCH($A$1,認知罪種前年!$E$4:$U$4,0)),0) -> 19 | F21: -11 | G21: -57.89473684 | H21: =IFERROR(INDEX(検挙罪種本年!$E$5:$U$1000,MATCH($B21,検挙罪種本年!$D$5:$D$1000,0),MATCH($A$1,検挙罪種本年!$E$4:$U$4,0)),0) -> 3 | I21: =IFERROR(INDEX(検挙罪種前年!$E$5:$U$1000,MATCH($B21,検挙罪種前年!$D$5:$D$1000,0),MATCH($A$1,検挙罪種前年!$E$4:$U$4,0)),0) -> 14 | J21: -11 | K21: -78.57142857 | L21: 37.5 | M21: 73.7 | N21: -36.2 | O21: =IFERROR(INDEX(人員罪種本年!$E$5:$U$1000,MATCH($B21,人員罪種本年!$D$5:$D$1000,0),MATCH($A$1,人員罪種本年!$E$4:$U$4,0)),0) -> 7 | P21: =IFERROR(INDEX(人員罪種前年!$E$5:$U$1000,MATCH($B21,人員罪種前年!$D$5:$D$1000,0),MATCH($A$1,人員罪種前年!$E$4:$U$4,0)),0) -> 5 | Q21: 2 | R21: 40 | S21: =IFERROR(INDEX(少年罪種本年!$E$5:$U$1000,MATCH($B21,少年罪種本年!$D$5:$D$1000,0),MATCH($A$1,少年罪種本年!$E$4:$U$4,0)),0) -> 4 | T21: =IFERROR(INDEX(少年罪種前年!$E$5:$U$1000,MATCH($B21,少年罪種前年!$D$5:$D$1000,0),MATCH($A$1,少年罪種前年!$E$4:$U$4,0)),0) -> 1 | U21: 3 | V21: 300 | W21: 57.1 | X21: 20 | Y21: 37.1
B22: 倉庫荒し | D22: =IFERROR(INDEX(認知罪種本年!$E$5:$U$1000,MATCH($B22,認知罪種本年!$D$5:$D$1000,0),MATCH($A$1,認知罪種本年!$E$4:$U$4,0)),0) -> 44 | E22: =IFERROR(INDEX(認知罪種前年!$E$5:$U$1000,MATCH($B22,認知罪種前年!$D$5:$D$1000,0),MATCH($A$1,認知罪種前年!$E$4:$U$4,0)),0) -> 52 | F22: -8 | G22: -15.38461538 | H22: =IFERROR(INDEX(検挙罪種本年!$E$5:$U$1000,MATCH($B22,検挙罪種本年!$D$5:$D$1000,0),MATCH($A$1,検挙罪種本年!$E$4:$U$4,0)),0) -> 41 | I22: =IFERROR(INDEX(検挙罪種前年!$E$5:$U$1000,MATCH($B22,検挙罪種前年!$D$5:$D$1000,0),MATCH($A$1,検挙罪種前年!$E$4:$U$4,0)),0) -> 27 | J22: 14 | K22: 51.85185185 | L22: 93.2 | M22: 51.9 | N22: 41.3 | O22: =IFERROR(INDEX(人員罪種本年!$E$5:$U$1000,MATCH($B22,人員罪種本年!$D$5:$D$1000,0),MATCH($A$1,人員罪種本年!$E$4:$U$4,0)),0) -> 8 | P22: =IFERROR(INDEX(人員罪種前年!$E$5:$U$1000,MATCH($B22,人員罪種前年!$D$5:$D$1000,0),MATCH($A$1,人員罪種前年!$E$4:$U$4,0)),0) -> 14 | Q22: -6 | R22: -42.85714286 | S22: =IFERROR(INDEX(少年罪種本年!$E$5:$U$1000,MATCH($B22,少年罪種本年!$D$5:$D$1000,0),MATCH($A$1,少年罪種本年!$E$4:$U$4,0)),0) -> 0 | T22: =IFERROR(INDEX(少年罪種前年!$E$5:$U$1000,MATCH($B22,少年罪種前年!$D$5:$D$1000,0),MATCH($A$1,少年罪種前年!$E$4:$U$4,0)),0) -> 1 | U22: -1 | V22: -100 | W22: 0 | X22: 7.1 | Y22: -7.1
B23: 侵入窃盗その他 | D23: =IFERROR(INDEX(認知罪種本年!$E$5:$U$1000,MATCH($B23,認知罪種本年!$D$5:$D$1000,0),MATCH($A$1,認知罪種本年!$E$4:$U$4,0)),0) -> 76 | E23: =IFERROR(INDEX(認知罪種前年!$E$5:$U$1000,MATCH($B23,認知罪種前年!$D$5:$D$1000,0),MATCH($A$1,認知罪種前年!$E$4:$U$4,0)),0) -> 63 | F23: 13 | G23: 20.63492063 | H23: =IFERROR(INDEX(検挙罪種本年!$E$5:$U$1000,MATCH($B23,検挙罪種本年!$D$5:$D$1000,0),MATCH($A$1,検挙罪種本年!$E$4:$U$4,0)),0) -> 78 | I23: =IFERROR(INDEX(検挙罪種前年!$E$5:$U$1000,MATCH($B23,検挙罪種前年!$D$5:$D$1000,0),MATCH($A$1,検挙罪種前年!$E$4:$U$4,0)),0) -> 22 | J23: 56 | K23: 254.5454545 | L23: 102.6 | M23: 34.9 | N23: 67.7 | O23: =IFERROR(INDEX(人員罪種本年!$E$5:$U$1000,MATCH($B23,人員罪種本年!$D$5:$D$1000,0),MATCH($A$1,人員罪種本年!$E$4:$U$4,0)),0) -> 17 | P23: =IFERROR(INDEX(人員罪種前年!$E$5:$U$1000,MATCH($B23,人員罪種前年!$D$5:$D$1000,0),MATCH($A$1,人員罪種前年!$E$4:$U$4,0)),0) -> 14 | Q23: 3 | R23: 21.42857143 | S23: =IFERROR(INDEX(少年罪種本年!$E$5:$U$1000,MATCH($B23,少年罪種本年!$D$5:$D$1000,0),MATCH($A$1,少年罪種本年!$E$4:$U$4,0)),0) -> 1 | T23: =IFERROR(INDEX(少年罪種前年!$E$5:$U$1000,MATCH($B23,少年罪種前年!$D$5:$D$1000,0),MATCH($A$1,少年罪種前年!$E$4:$U$4,0)),0) -> 0 | U23: 1 | V23: ― | W23: 5.9 | X23: 0 | Y23: 5.9
A24: 乗り物盗 | D24: =SUM(D25,D28,D31) -> 978 | E24: =SUM(E25,E28,E31) -> 1181 | F24: -203 | G24: -17.18882303 | H24: =SUM(H25,H28,H31) -> 120 | I24: =SUM(I25,I28,I31) -> 103 | J24: 17 | K24: 16.50485437 | L24: 12.3 | M24: 8.7 | N24: 3.6 | O24: =SUM(O25,O28,O31) -> 60 | P24: =SUM(P25,P28,P31) -> 77 | Q24: -17 | R24: -22.07792208 | S24: =SUM(S25,S28,S31) -> 24 | T24: =SUM(T25,T28,T31) -> 47 | U24: -23 | V24: -48.93617021 | W24: 40 | X24: 61 | Y24: -21
B25: 自動車盗 | D25: =SUM(D26:D27) -> 37 | E25: =SUM(E26:E27) -> 65 | F25: -28 | G25: -43.07692308 | H25: =SUM(H26:H27) -> 20 | I25: =SUM(I26:I27) -> 16 | J25: 4 | K25: 25 | L25: 54.1 | M25: 24.6 | N25: 29.5 | O25: =SUM(O26:O27) -> 8 | P25: =SUM(P26:P27) -> 11 | Q25: -3 | R25: -27.27272727 | S25: =SUM(S26:S27) -> 0 | T25: =SUM(T26:T27) -> 3 | U25: -3 | V25: -100 | W25: 0 | X25: 27.3 | Y25: -27.3
C26: 〃 （キーあり） | D26: =IFERROR(INDEX(認知罪種本年!$E$5:$U$1000,MATCH("自動車盗（キーあり）",認知罪種本年!$D$5:$D$1000,0),MATCH($A$1,認知罪種本年!$E$4:$U$4,0)),0) -> 16 | E26: =IFERROR(INDEX(認知罪種前年!$E$5:$U$1000,MATCH("自動車盗（キーあり）",認知罪種前年!$D$5:$D$1000,0),MATCH($A$1,認知罪種前年!$E$4:$U$4,0)),0) -> 17 | F26: -1 | G26: -5.882352941 | H26: =IFERROR(INDEX(検挙罪種本年!$E$5:$U$1000,MATCH("自動車盗（キーあり）",検挙罪種本年!$D$5:$D$1000,0),MATCH($A$1,検挙罪種本年!$E$4:$U$4,0)),0) -> 9 | I26: =IFERROR(INDEX(検挙罪種前年!$E$5:$U$1000,MATCH("自動車盗（キーあり）",検挙罪種前年!$D$5:$D$1000,0),MATCH($A$1,検挙罪種前年!$E$4:$U$4,0)),0) -> 8 | J26: 1 | K26: 12.5 | L26: 56.3 | M26: 47.1 | N26: 9.2 | O26: =IFERROR(INDEX(人員罪種本年!$E$5:$U$1000,MATCH("自動車盗（キーあり）",人員罪種本年!$D$5:$D$1000,0),MATCH($A$1,人員罪種本年!$E$4:$U$4,0)),0) -> 4 | P26: =IFERROR(INDEX(人員罪種前年!$E$5:$U$1000,MATCH("自動車盗（キーあり）",人員罪種前年!$D$5:$D$1000,0),MATCH($A$1,人員罪種前年!$E$4:$U$4,0)),0) -> 7 | Q26: -3 | R26: -42.85714286 | S26: =IFERROR(INDEX(少年罪種本年!$E$5:$U$1000,MATCH("自動車盗（キーあり）",少年罪種本年!$D$5:$D$1000,0),MATCH($A$1,少年罪種本年!$E$4:$U$4,0)),0) -> 0 | T26: =IFERROR(INDEX(少年罪種前年!$E$5:$U$1000,MATCH("自動車盗（キーあり）",少年罪種前年!$D$5:$D$1000,0),MATCH($A$1,少年罪種前年!$E$4:$U$4,0)),0) -> 3 | U26: -3 | V26: -100 | W26: 0 | X26: 42.9 | Y26: -42.9
C27: 〃 （キーなし） | D27: =IFERROR(INDEX(認知罪種本年!$E$5:$U$1000,MATCH("自動車盗（キーなし）",認知罪種本年!$D$5:$D$1000,0),MATCH($A$1,認知罪種本年!$E$4:$U$4,0)),0) -> 21 | E27: =IFERROR(INDEX(認知罪種前年!$E$5:$U$1000,MATCH("自動車盗（キーなし）",認知罪種前年!$D$5:$D$1000,0),MATCH($A$1,認知罪種前年!$E$4:$U$4,0)),0) -> 48 | F27: -27 | G27: -56.25 | H27: =IFERROR(INDEX(検挙罪種本年!$E$5:$U$1000,MATCH("自動車盗（キーなし）",検挙罪種本年!$D$5:$D$1000,0),MATCH($A$1,検挙罪種本年!$E$4:$U$4,0)),0) -> 11 | I27: =IFERROR(INDEX(検挙罪種前年!$E$5:$U$1000,MATCH("自動車盗（キーなし）",検挙罪種前年!$D$5:$D$1000,0),MATCH($A$1,検挙罪種前年!$E$4:$U$4,0)),0) -> 8 | J27: 3 | K27: 37.5 | L27: 52.4 | M27: 16.7 | N27: 35.7 | O27: =IFERROR(INDEX(人員罪種本年!$E$5:$U$1000,MATCH("自動車盗（キーなし）",人員罪種本年!$D$5:$D$1000,0),MATCH($A$1,人員罪種本年!$E$4:$U$4,0)),0) -> 4 | P27: =IFERROR(INDEX(人員罪種前年!$E$5:$U$1000,MATCH("自動車盗（キーなし）",人員罪種前年!$D$5:$D$1000,0),MATCH($A$1,人員罪種前年!$E$4:$U$4,0)),0) -> 4 | Q27: 0 | R27: 0 | S27: =IFERROR(INDEX(少年罪種本年!$E$5:$U$1000,MATCH("自動車盗（キーなし）",少年罪種本年!$D$5:$D$1000,0),MATCH($A$1,少年罪種本年!$E$4:$U$4,0)),0) -> 0 | T27: =IFERROR(INDEX(少年罪種前年!$E$5:$U$1000,MATCH("自動車盗（キーなし）",少年罪種前年!$D$5:$D$1000,0),MATCH($A$1,少年罪種前年!$E$4:$U$4,0)),0) -> 0 | U27: 0 | V27: 0 | W27: 0 | X27: 0 | Y27: 0
B28: オートバイ盗 | D28: =SUM(D29:D30) -> 52 | E28: =SUM(E29:E30) -> 83 | F28: -31 | G28: -37.34939759 | H28: =SUM(H29:H30) -> 18 | I28: =SUM(I29:I30) -> 22 | J28: -4 | K28: -18.18181818 | L28: 34.6 | M28: 26.5 | N28: 8.1 | O28: =SUM(O29:O30) -> 7 | P28: =SUM(P29:P30) -> 21 | Q28: -14 | R28: -66.66666667 | S28: =SUM(S29:S30) -> 6 | T28: =SUM(T29:T30) -> 19 | U28: -13 | V28: -68.42105263 | W28: 85.7 | X28: 90.5 | Y28: -4.8
C29: 〃 （キーあり） | D29: =IFERROR(INDEX(認知罪種本年!$E$5:$U$1000,MATCH("オートバイ盗（キーあり）",認知罪種本年!$D$5:$D$1000,0),MATCH($A$1,認知罪種本年!$E$4:$U$4,0)),0) -> 17 | E29: =IFERROR(INDEX(認知罪種前年!$E$5:$U$1000,MATCH("オートバイ盗（キーあり）",認知罪種前年!$D$5:$D$1000,0),MATCH($A$1,認知罪種前年!$E$4:$U$4,0)),0) -> 38 | F29: -21 | G29: -55.26315789 | H29: =IFERROR(INDEX(検挙罪種本年!$E$5:$U$1000,MATCH("オートバイ盗（キーあり）",検挙罪種本年!$D$5:$D$1000,0),MATCH($A$1,検挙罪種本年!$E$4:$U$4,0)),0) -> 9 | I29: =IFERROR(INDEX(検挙罪種前年!$E$5:$U$1000,MATCH("オートバイ盗（キーあり）",検挙罪種前年!$D$5:$D$1000,0),MATCH($A$1,検挙罪種前年!$E$4:$U$4,0)),0) -> 13 | J29: -4 | K29: -30.76923077 | L29: 52.9 | M29: 34.2 | N29: 18.7 | O29: =IFERROR(INDEX(人員罪種本年!$E$5:$U$1000,MATCH("オートバイ盗（キーあり）",人員罪種本年!$D$5:$D$1000,0),MATCH($A$1,人員罪種本年!$E$4:$U$4,0)),0) -> 6 | P29: =IFERROR(INDEX(人員罪種前年!$E$5:$U$1000,MATCH("オートバイ盗（キーあり）",人員罪種前年!$D$5:$D$1000,0),MATCH($A$1,人員罪種前年!$E$4:$U$4,0)),0) -> 13 | Q29: -7 | R29: -53.84615385 | S29: =IFERROR(INDEX(少年罪種本年!$E$5:$U$1000,MATCH("オートバイ盗（キーあり）",少年罪種本年!$D$5:$D$1000,0),MATCH($A$1,少年罪種本年!$E$4:$U$4,0)),0) -> 5 | T29: =IFERROR(INDEX(少年罪種前年!$E$5:$U$1000,MATCH("オートバイ盗（キーあり）",少年罪種前年!$D$5:$D$1000,0),MATCH($A$1,少年罪種前年!$E$4:$U$4,0)),0) -> 13 | U29: -8 | V29: -61.53846154 | W29: 83.3 | X29: 100 | Y29: -16.7
C30: 〃 （キーなし） | D30: =IFERROR(INDEX(認知罪種本年!$E$5:$U$1000,MATCH("オートバイ盗（キーなし）",認知罪種本年!$D$5:$D$1000,0),MATCH($A$1,認知罪種本年!$E$4:$U$4,0)),0) -> 35 | E30: =IFERROR(INDEX(認知罪種前年!$E$5:$U$1000,MATCH("オートバイ盗（キーなし）",認知罪種前年!$D$5:$D$1000,0),MATCH($A$1,認知罪種前年!$E$4:$U$4,0)),0) -> 45 | F30: -10 | G30: -22.22222222 | H30: =IFERROR(INDEX(検挙罪種本年!$E$5:$U$1000,MATCH("オートバイ盗（キーなし）",検挙罪種本年!$D$5:$D$1000,0),MATCH($A$1,検挙罪種本年!$E$4:$U$4,0)),0) -> 9 | I30: =IFERROR(INDEX(検挙罪種前年!$E$5:$U$1000,MATCH("オートバイ盗（キーなし）",検挙罪種前年!$D$5:$D$1000,0),MATCH($A$1,検挙罪種前年!$E$4:$U$4,0)),0) -> 9 | J30: 0 | K30: 0 | L30: 25.7 | M30: 20 | N30: 5.7 | O30: =IFERROR(INDEX(人員罪種本年!$E$5:$U$1000,MATCH("オートバイ盗（キーなし）",人員罪種本年!$D$5:$D$1000,0),MATCH($A$1,人員罪種本年!$E$4:$U$4,0)),0) -> 1 | P30: =IFERROR(INDEX(人員罪種前年!$E$5:$U$1000,MATCH("オートバイ盗（キーなし）",人員罪種前年!$D$5:$D$1000,0),MATCH($A$1,人員罪種前年!$E$4:$U$4,0)),0) -> 8 | Q30: -7 | R30: -87.5 | S30: =IFERROR(INDEX(少年罪種本年!$E$5:$U$1000,MATCH("オートバイ盗（キーなし）",少年罪種本年!$D$5:$D$1000,0),MATCH($A$1,少年罪種本年!$E$4:$U$4,0)),0) -> 1 | T30: =IFERROR(INDEX(少年罪種前年!$E$5:$U$1000,MATCH("オートバイ盗（キーなし）",少年罪種前年!$D$5:$D$1000,0),MATCH($A$1,少年罪種前年!$E$4:$U$4,0)),0) -> 6 | U30: -5 | V30: -83.33333333 | W30: 100 | X30: 75 | Y30: 25
B31: 自転車盗 | D31: =SUM(D32:D33) -> 889 | E31: =SUM(E32:E33) -> 1033 | F31: -144 | G31: -13.93998064 | H31: =SUM(H32:H33) -> 82 | I31: =SUM(I32:I33) -> 65 | J31: 17 | K31: 26.15384615 | L31: 9.2 | M31: 6.3 | N31: 2.9 | O31: =SUM(O32:O33) -> 45 | P31: =SUM(P32:P33) -> 45 | Q31: 0 | R31: 0 | S31: =SUM(S32:S33) -> 18 | T31: =SUM(T32:T33) -> 25 | U31: -7 | V31: -28 | W31: 40 | X31: 55.6 | Y31: -15.6
C32: 〃 （施錠した） | D32: =IFERROR(INDEX(認知罪種本年!$E$5:$U$1000,MATCH("自転車盗（施錠した）",認知罪種本年!$D$5:$D$1000,0),MATCH($A$1,認知罪種本年!$E$4:$U$4,0)),0) -> 247 | E32: =IFERROR(INDEX(認知罪種前年!$E$5:$U$1000,MATCH("自転車盗（施錠した）",認知罪種前年!$D$5:$D$1000,0),MATCH($A$1,認知罪種前年!$E$4:$U$4,0)),0) -> 286 | F32: -39 | G32: -13.63636364 | H32: =IFERROR(INDEX(検挙罪種本年!$E$5:$U$1000,MATCH("自転車盗（施錠した）",検挙罪種本年!$D$5:$D$1000,0),MATCH($A$1,検挙罪種本年!$E$4:$U$4,0)),0) -> 14 | I32: =IFERROR(INDEX(検挙罪種前年!$E$5:$U$1000,MATCH("自転車盗（施錠した）",検挙罪種前年!$D$5:$D$1000,0),MATCH($A$1,検挙罪種前年!$E$4:$U$4,0)),0) -> 14 | J32: 0 | K32: 0 | L32: 5.7 | M32: 4.9 | N32: 0.8 | O32: =IFERROR(INDEX(人員罪種本年!$E$5:$U$1000,MATCH("自転車盗（施錠した）",人員罪種本年!$D$5:$D$1000,0),MATCH($A$1,人員罪種本年!$E$4:$U$4,0)),0) -> 2 | P32: =IFERROR(INDEX(人員罪種前年!$E$5:$U$1000,MATCH("自転車盗（施錠した）",人員罪種前年!$D$5:$D$1000,0),MATCH($A$1,人員罪種前年!$E$4:$U$4,0)),0) -> 2 | Q32: 0 | R32: 0 | S32: =IFERROR(INDEX(少年罪種本年!$E$5:$U$1000,MATCH("自転車盗（施錠した）",少年罪種本年!$D$5:$D$1000,0),MATCH($A$1,少年罪種本年!$E$4:$U$4,0)),0) -> 2 | T32: =IFERROR(INDEX(少年罪種前年!$E$5:$U$1000,MATCH("自転車盗（施錠した）",少年罪種前年!$D$5:$D$1000,0),MATCH($A$1,少年罪種前年!$E$4:$U$4,0)),0) -> 1 | U32: 1 | V32: 100 | W32: 100 | X32: 50 | Y32: 50
C33: 〃 （施錠せず） | D33: =IFERROR(INDEX(認知罪種本年!$E$5:$U$1000,MATCH("自転車盗（施錠せず）",認知罪種本年!$D$5:$D$1000,0),MATCH($A$1,認知罪種本年!$E$4:$U$4,0)),0) -> 642 | E33: =IFERROR(INDEX(認知罪種前年!$E$5:$U$1000,MATCH("自転車盗（施錠せず）",認知罪種前年!$D$5:$D$1000,0),MATCH($A$1,認知罪種前年!$E$4:$U$4,0)),0) -> 747 | F33: -105 | G33: -14.0562249 | H33: =IFERROR(INDEX(検挙罪種本年!$E$5:$U$1000,MATCH("自転車盗（施錠せず）",検挙罪種本年!$D$5:$D$1000,0),MATCH($A$1,検挙罪種本年!$E$4:$U$4,0)),0) -> 68 | I33: =IFERROR(INDEX(検挙罪種前年!$E$5:$U$1000,MATCH("自転車盗（施錠せず）",検挙罪種前年!$D$5:$D$1000,0),MATCH($A$1,検挙罪種前年!$E$4:$U$4,0)),0) -> 51 | J33: 17 | K33: 33.33333333 | L33: 10.6 | M33: 6.8 | N33: 3.8 | O33: =IFERROR(INDEX(人員罪種本年!$E$5:$U$1000,MATCH("自転車盗（施錠せず）",人員罪種本年!$D$5:$D$1000,0),MATCH($A$1,人員罪種本年!$E$4:$U$4,0)),0) -> 43 | P33: =IFERROR(INDEX(人員罪種前年!$E$5:$U$1000,MATCH("自転車盗（施錠せず）",人員罪種前年!$D$5:$D$1000,0),MATCH($A$1,人員罪種前年!$E$4:$U$4,0)),0) -> 43 | Q33: 0 | R33: 0 | S33: =IFERROR(INDEX(少年罪種本年!$E$5:$U$1000,MATCH("自転車盗（施錠せず）",少年罪種本年!$D$5:$D$1000,0),MATCH($A$1,少年罪種本年!$E$4:$U$4,0)),0) -> 16 | T33: =IFERROR(INDEX(少年罪種前年!$E$5:$U$1000,MATCH("自転車盗（施錠せず）",少年罪種前年!$D$5:$D$1000,0),MATCH($A$1,少年罪種前年!$E$4:$U$4,0)),0) -> 24 | U33: -8 | V33: -33.33333333 | W33: 37.2 | X33: 55.8 | Y33: -18.6
A34: 非侵入窃盗 | D34: =D35+D42 -> 2343 | E34: =E35+E42 -> 2557 | F34: -214 | G34: -8.369182636 | H34: =H35+H42 -> 1433 | I34: =I35+I42 -> 1305 | J34: 128 | K34: 9.808429119 | L34: 61.2 | M34: 51 | N34: 10.2 | O34: =O35+O42 -> 859 | P34: =P35+P42 -> 864 | Q34: -5 | R34: -0.5787037037 | S34: =S35+S42 -> 75 | T34: =T35+T42 -> 78 | U34: -3 | V34: -3.846153846 | W34: 8.7 | X34: 9 | Y34: -0.3
B35: 詐欺盗 | D35: =SUM(D36:D41) -> 31 | E35: =SUM(E36:E41) -> 25 | F35: 6 | G35: 24 | H35: =SUM(H36:H41) -> 24 | I35: =SUM(I36:I41) -> 23 | J35: 1 | K35: 4.347826087 | L35: 77.4 | M35: 92 | N35: -14.6 | O35: =SUM(O36:O41) -> 12 | P35: =SUM(P36:P41) -> 13 | Q35: -1 | R35: -7.692307692 | S35: =SUM(S36:S41) -> 3 | T35: =SUM(T36:T41) -> 2 | U35: 1 | V35: 50 | W35: 25 | X35: 15.4 | Y35: 9.6
C36: 職権盗 | D36: =IFERROR(INDEX(認知罪種本年!$E$5:$U$1000,MATCH($C36,認知罪種本年!$D$5:$D$1000,0),MATCH($A$1,認知罪種本年!$E$4:$U$4,0)),0) -> 13 | E36: =IFERROR(INDEX(認知罪種前年!$E$5:$U$1000,MATCH($C36,認知罪種前年!$D$5:$D$1000,0),MATCH($A$1,認知罪種前年!$E$4:$U$4,0)),0) -> 10 | F36: 3 | G36: 30 | H36: =IFERROR(INDEX(検挙罪種本年!$E$5:$U$1000,MATCH($C36,検挙罪種本年!$D$5:$D$1000,0),MATCH($A$1,検挙罪種本年!$E$4:$U$4,0)),0) -> 18 | I36: =IFERROR(INDEX(検挙罪種前年!$E$5:$U$1000,MATCH($C36,検挙罪種前年!$D$5:$D$1000,0),MATCH($A$1,検挙罪種前年!$E$4:$U$4,0)),0) -> 18 | J36: 0 | K36: 0 | L36: 138.5 | M36: 180 | N36: -41.5 | O36: =IFERROR(INDEX(人員罪種本年!$E$5:$U$1000,MATCH($C36,人員罪種本年!$D$5:$D$1000,0),MATCH($A$1,人員罪種本年!$E$4:$U$4,0)),0) -> 9 | P36: =IFERROR(INDEX(人員罪種前年!$E$5:$U$1000,MATCH($C36,人員罪種前年!$D$5:$D$1000,0),MATCH($A$1,人員罪種前年!$E$4:$U$4,0)),0) -> 7 | Q36: 2 | R36: 28.57142857 | S36: =IFERROR(INDEX(少年罪種本年!$E$5:$U$1000,MATCH($C36,少年罪種本年!$D$5:$D$1000,0),MATCH($A$1,少年罪種本年!$E$4:$U$4,0)),0) -> 3 | T36: =IFERROR(INDEX(少年罪種前年!$E$5:$U$1000,MATCH($C36,少年罪種前年!$D$5:$D$1000,0),MATCH($A$1,少年罪種前年!$E$4:$U$4,0)),0) -> 1 | U36: 2 | V36: 200 | W36: 33.3 | X36: 14.3 | Y36: 19
C37: 慶弔盗 | D37: =IFERROR(INDEX(認知罪種本年!$E$5:$U$1000,MATCH($C37,認知罪種本年!$D$5:$D$1000,0),MATCH($A$1,認知罪種本年!$E$4:$U$4,0)),0) -> 0 | E37: =IFERROR(INDEX(認知罪種前年!$E$5:$U$1000,MATCH($C37,認知罪種前年!$D$5:$D$1000,0),MATCH($A$1,認知罪種前年!$E$4:$U$4,0)),0) -> 0 | F37: 0 | G37: 0 | H37: =IFERROR(INDEX(検挙罪種本年!$E$5:$U$1000,MATCH($C37,検挙罪種本年!$D$5:$D$1000,0),MATCH($A$1,検挙罪種本年!$E$4:$U$4,0)),0) -> 0 | I37: =IFERROR(INDEX(検挙罪種前年!$E$5:$U$1000,MATCH($C37,検挙罪種前年!$D$5:$D$1000,0),MATCH($A$1,検挙罪種前年!$E$4:$U$4,0)),0) -> 0 | J37: 0 | K37: 0 | O37: =IFERROR(INDEX(人員罪種本年!$E$5:$U$1000,MATCH($C37,人員罪種本年!$D$5:$D$1000,0),MATCH($A$1,人員罪種本年!$E$4:$U$4,0)),0) -> 0 | P37: =IFERROR(INDEX(人員罪種前年!$E$5:$U$1000,MATCH($C37,人員罪種前年!$D$5:$D$1000,0),MATCH($A$1,人員罪種前年!$E$4:$U$4,0)),0) -> 0 | Q37: 0 | R37: 0 | S37: =IFERROR(INDEX(少年罪種本年!$E$5:$U$1000,MATCH($C37,少年罪種本年!$D$5:$D$1000,0),MATCH($A$1,少年罪種本年!$E$4:$U$4,0)),0) -> 0 | T37: =IFERROR(INDEX(少年罪種前年!$E$5:$U$1000,MATCH($C37,少年罪種前年!$D$5:$D$1000,0),MATCH($A$1,少年罪種前年!$E$4:$U$4,0)),0) -> 0 | U37: 0 | V37: 0
C38: 追出し盗 | D38: =IFERROR(INDEX(認知罪種本年!$E$5:$U$1000,MATCH($C38,認知罪種本年!$D$5:$D$1000,0),MATCH($A$1,認知罪種本年!$E$4:$U$4,0)),0) -> 0 | E38: =IFERROR(INDEX(認知罪種前年!$E$5:$U$1000,MATCH($C38,認知罪種前年!$D$5:$D$1000,0),MATCH($A$1,認知罪種前年!$E$4:$U$4,0)),0) -> 0 | F38: =D38-E38 -> 0 | G38: =IF(AND(E38=0,D38=0),0,IF(E38>0,F38/E38*100,IF(F38>0,"―",""))) -> 0 | H38: =IFERROR(INDEX(検挙罪種本年!$E$5:$U$1000,MATCH($C38,検挙罪種本年!$D$5:$D$1000,0),MATCH($A$1,検挙罪種本年!$E$4:$U$4,0)),0) -> 0 | I38: =IFERROR(INDEX(検挙罪種前年!$E$5:$U$1000,MATCH($C38,検挙罪種前年!$D$5:$D$1000,0),MATCH($A$1,検挙罪種前年!$E$4:$U$4,0)),0) -> 0 | J38: =H38-I38 -> 0 | K38: =IF(AND(I38=0,H38=0),0,IF(I38>0,J38/I38*100,IF(J38>0,"―",""))) -> 0 | L38: =IF(D38>0,ROUND(H38/D38*100,1),IF(H38>0,"―","")) ->  | O38: =IFERROR(INDEX(人員罪種本年!$E$5:$U$1000,MATCH($C38,人員罪種本年!$D$5:$D$1000,0),MATCH($A$1,人員罪種本年!$E$4:$U$4,0)),0) -> 0 | P38: =IFERROR(INDEX(人員罪種前年!$E$5:$U$1000,MATCH($C38,人員罪種前年!$D$5:$D$1000,0),MATCH($A$1,人員罪種前年!$E$4:$U$4,0)),0) -> 0 | Q38: =O38-P38 -> 0 | R38: =IF(AND(P38=0,O38=0),0,IF(P38>0,Q38/P38*100,IF(Q38>0,"―",""))) -> 0 | S38: =IFERROR(INDEX(少年罪種本年!$E$5:$U$1000,MATCH($C38,少年罪種本年!$D$5:$D$1000,0),MATCH($A$1,少年罪種本年!$E$4:$U$4,0)),0) -> 0 | T38: =IFERROR(INDEX(少年罪種前年!$E$5:$U$1000,MATCH($C38,少年罪種前年!$D$5:$D$1000,0),MATCH($A$1,少年罪種前年!$E$4:$U$4,0)),0) -> 0 | U38: =S38-T38 -> 0 | V38: =IF(AND(T38=0,S38=0),0,IF(T38>0,U38/T38*100,IF(U38>0,"―",""))) -> 0
C39: 買物盗 | D39: =IFERROR(INDEX(認知罪種本年!$E$5:$U$1000,MATCH($C39,認知罪種本年!$D$5:$D$1000,0),MATCH($A$1,認知罪種本年!$E$4:$U$4,0)),0) -> 3 | E39: =IFERROR(INDEX(認知罪種前年!$E$5:$U$1000,MATCH($C39,認知罪種前年!$D$5:$D$1000,0),MATCH($A$1,認知罪種前年!$E$4:$U$4,0)),0) -> 0 | F39: 3 | G39: ― | H39: =IFERROR(INDEX(検挙罪種本年!$E$5:$U$1000,MATCH($C39,検挙罪種本年!$D$5:$D$1000,0),MATCH($A$1,検挙罪種本年!$E$4:$U$4,0)),0) -> 1 | I39: =IFERROR(INDEX(検挙罪種前年!$E$5:$U$1000,MATCH($C39,検挙罪種前年!$D$5:$D$1000,0),MATCH($A$1,検挙罪種前年!$E$4:$U$4,0)),0) -> 2 | J39: -1 | K39: -50 | L39: 33.3 | M39: ― | N39: ― | O39: =IFERROR(INDEX(人員罪種本年!$E$5:$U$1000,MATCH($C39,人員罪種本年!$D$5:$D$1000,0),MATCH($A$1,人員罪種本年!$E$4:$U$4,0)),0) -> 3 | P39: =IFERROR(INDEX(人員罪種前年!$E$5:$U$1000,MATCH($C39,人員罪種前年!$D$5:$D$1000,0),MATCH($A$1,人員罪種前年!$E$4:$U$4,0)),0) -> 3 | Q39: 0 | R39: 0 | S39: =IFERROR(INDEX(少年罪種本年!$E$5:$U$1000,MATCH($C39,少年罪種本年!$D$5:$D$1000,0),MATCH($A$1,少年罪種本年!$E$4:$U$4,0)),0) -> 0 | T39: =IFERROR(INDEX(少年罪種前年!$E$5:$U$1000,MATCH($C39,少年罪種前年!$D$5:$D$1000,0),MATCH($A$1,少年罪種前年!$E$4:$U$4,0)),0) -> 0 | U39: 0 | V39: 0 | W39: 0 | X39: 0 | Y39: 0
C40: 訪問盗 | D40: =IFERROR(INDEX(認知罪種本年!$E$5:$U$1000,MATCH($C40,認知罪種本年!$D$5:$D$1000,0),MATCH($A$1,認知罪種本年!$E$4:$U$4,0)),0) -> 12 | E40: =IFERROR(INDEX(認知罪種前年!$E$5:$U$1000,MATCH($C40,認知罪種前年!$D$5:$D$1000,0),MATCH($A$1,認知罪種前年!$E$4:$U$4,0)),0) -> 15 | F40: -3 | G40: -20 | H40: =IFERROR(INDEX(検挙罪種本年!$E$5:$U$1000,MATCH($C40,検挙罪種本年!$D$5:$D$1000,0),MATCH($A$1,検挙罪種本年!$E$4:$U$4,0)),0) -> 4 | I40: =IFERROR(INDEX(検挙罪種前年!$E$5:$U$1000,MATCH($C40,検挙罪種前年!$D$5:$D$1000,0),MATCH($A$1,検挙罪種前年!$E$4:$U$4,0)),0) -> 3 | J40: 1 | K40: 33.33333333 | L40: 33.3 | M40: 20 | N40: 13.3 | O40: =IFERROR(INDEX(人員罪種本年!$E$5:$U$1000,MATCH($C40,人員罪種本年!$D$5:$D$1000,0),MATCH($A$1,人員罪種本年!$E$4:$U$4,0)),0) -> 0 | P40: =IFERROR(INDEX(人員罪種前年!$E$5:$U$1000,MATCH($C40,人員罪種前年!$D$5:$D$1000,0),MATCH($A$1,人員罪種前年!$E$4:$U$4,0)),0) -> 3 | Q40: -3 | R40: -100 | S40: =IFERROR(INDEX(少年罪種本年!$E$5:$U$1000,MATCH($C40,少年罪種本年!$D$5:$D$1000,0),MATCH($A$1,少年罪種本年!$E$4:$U$4,0)),0) -> 0 | T40: =IFERROR(INDEX(少年罪種前年!$E$5:$U$1000,MATCH($C40,少年罪種前年!$D$5:$D$1000,0),MATCH($A$1,少年罪種前年!$E$4:$U$4,0)),0) -> 1 | U40: -1 | V40: -100 | X40: 33.3 | Y40: ―
C41: 詐欺盗その他 | D41: =IFERROR(INDEX(認知罪種本年!$E$5:$U$1000,MATCH($C41,認知罪種本年!$D$5:$D$1000,0),MATCH($A$1,認知罪種本年!$E$4:$U$4,0)),0) -> 3 | E41: =IFERROR(INDEX(認知罪種前年!$E$5:$U$1000,MATCH($C41,認知罪種前年!$D$5:$D$1000,0),MATCH($A$1,認知罪種前年!$E$4:$U$4,0)),0) -> 0 | F41: 3 | G41: ― | H41: =IFERROR(INDEX(検挙罪種本年!$E$5:$U$1000,MATCH($C41,検挙罪種本年!$D$5:$D$1000,0),MATCH($A$1,検挙罪種本年!$E$4:$U$4,0)),0) -> 1 | I41: =IFERROR(INDEX(検挙罪種前年!$E$5:$U$1000,MATCH($C41,検挙罪種前年!$D$5:$D$1000,0),MATCH($A$1,検挙罪種前年!$E$4:$U$4,0)),0) -> 0 | J41: 1 | K41: ― | L41: 33.3 | N41: ― | O41: =IFERROR(INDEX(人員罪種本年!$E$5:$U$1000,MATCH($C41,人員罪種本年!$D$5:$D$1000,0),MATCH($A$1,人員罪種本年!$E$4:$U$4,0)),0) -> 0 | P41: =IFERROR(INDEX(人員罪種前年!$E$5:$U$1000,MATCH($C41,人員罪種前年!$D$5:$D$1000,0),MATCH($A$1,人員罪種前年!$E$4:$U$4,0)),0) -> 0 | Q41: 0 | R41: 0 | S41: =IFERROR(INDEX(少年罪種本年!$E$5:$U$1000,MATCH($C41,少年罪種本年!$D$5:$D$1000,0),MATCH($A$1,少年罪種本年!$E$4:$U$4,0)),0) -> 0 | T41: =IFERROR(INDEX(少年罪種前年!$E$5:$U$1000,MATCH($C41,少年罪種前年!$D$5:$D$1000,0),MATCH($A$1,少年罪種前年!$E$4:$U$4,0)),0) -> 0 | U41: 0 | V41: 0
B42: その他 | D42: =SUM(D43:D54,D57:D68) -> 2312 | E42: =SUM(E43:E54,E57:E68) -> 2532 | F42: -220 | G42: -8.68878357 | H42: =SUM(H43:H54,H57:H68) -> 1409 | I42: =SUM(I43:I54,I57:I68) -> 1282 | J42: 127 | K42: 9.906396256 | L42: 60.9 | M42: 50.6 | N42: 10.3 | O42: =SUM(O43:O54,O57:O68) -> 847 | P42: =SUM(P43:P54,P57:P68) -> 851 | Q42: -4 | R42: -0.4700352526 | S42: =SUM(S43:S54,S57:S68) -> 72 | T42: =SUM(T43:T54,T57:T68) -> 76 | U42: -4 | V42: -5.263157895 | W42: 8.5 | X42: 8.9 | Y42: -0.4
C43: 払出盗 | D43: =IFERROR(INDEX(認知罪種本年!$E$5:$U$1000,MATCH($C43,認知罪種本年!$D$5:$D$1000,0),MATCH($A$1,認知罪種本年!$E$4:$U$4,0)),0) -> 58 | E43: =IFERROR(INDEX(認知罪種前年!$E$5:$U$1000,MATCH($C43,認知罪種前年!$D$5:$D$1000,0),MATCH($A$1,認知罪種前年!$E$4:$U$4,0)),0) -> 44 | F43: 14 | G43: 31.81818182 | H43: =IFERROR(INDEX(検挙罪種本年!$E$5:$U$1000,MATCH($C43,検挙罪種本年!$D$5:$D$1000,0),MATCH($A$1,検挙罪種本年!$E$4:$U$4,0)),0) -> 70 | I43: =IFERROR(INDEX(検挙罪種前年!$E$5:$U$1000,MATCH($C43,検挙罪種前年!$D$5:$D$1000,0),MATCH($A$1,検挙罪種前年!$E$4:$U$4,0)),0) -> 69 | J43: 1 | K43: 1.449275362 | L43: 120.7 | M43: 156.8 | N43: -36.1 | O43: =IFERROR(INDEX(人員罪種本年!$E$5:$U$1000,MATCH($C43,人員罪種本年!$D$5:$D$1000,0),MATCH($A$1,人員罪種本年!$E$4:$U$4,0)),0) -> 8 | P43: =IFERROR(INDEX(人員罪種前年!$E$5:$U$1000,MATCH($C43,人員罪種前年!$D$5:$D$1000,0),MATCH($A$1,人員罪種前年!$E$4:$U$4,0)),0) -> 4 | Q43: 4 | R43: 100 | S43: =IFERROR(INDEX(少年罪種本年!$E$5:$U$1000,MATCH($C43,少年罪種本年!$D$5:$D$1000,0),MATCH($A$1,少年罪種本年!$E$4:$U$4,0)),0) -> 1 | T43: =IFERROR(INDEX(少年罪種前年!$E$5:$U$1000,MATCH($C43,少年罪種前年!$D$5:$D$1000,0),MATCH($A$1,少年罪種前年!$E$4:$U$4,0)),0) -> 1 | U43: 0 | V43: 0 | W43: 12.5 | X43: 25 | Y43: -12.5
C44: ATMねらい | D44: =IFERROR(INDEX(認知罪種本年!$E$5:$U$1000,MATCH($C44,認知罪種本年!$D$5:$D$1000,0),MATCH($A$1,認知罪種本年!$E$4:$U$4,0)),0) -> 0 | E44: =IFERROR(INDEX(認知罪種前年!$E$5:$U$1000,MATCH($C44,認知罪種前年!$D$5:$D$1000,0),MATCH($A$1,認知罪種前年!$E$4:$U$4,0)),0) -> 0 | F44: 0 | G44: 0 | H44: =IFERROR(INDEX(検挙罪種本年!$E$5:$U$1000,MATCH($C44,検挙罪種本年!$D$5:$D$1000,0),MATCH($A$1,検挙罪種本年!$E$4:$U$4,0)),0) -> 0 | I44: =IFERROR(INDEX(検挙罪種前年!$E$5:$U$1000,MATCH($C44,検挙罪種前年!$D$5:$D$1000,0),MATCH($A$1,検挙罪種前年!$E$4:$U$4,0)),0) -> 0 | J44: 0 | K44: 0 | O44: =IFERROR(INDEX(人員罪種本年!$E$5:$U$1000,MATCH($C44,人員罪種本年!$D$5:$D$1000,0),MATCH($A$1,人員罪種本年!$E$4:$U$4,0)),0) -> 0 | P44: =IFERROR(INDEX(人員罪種前年!$E$5:$U$1000,MATCH($C44,人員罪種前年!$D$5:$D$1000,0),MATCH($A$1,人員罪種前年!$E$4:$U$4,0)),0) -> 0 | Q44: 0 | R44: 0 | S44: =IFERROR(INDEX(少年罪種本年!$E$5:$U$1000,MATCH($C44,少年罪種本年!$D$5:$D$1000,0),MATCH($A$1,少年罪種本年!$E$4:$U$4,0)),0) -> 0 | T44: =IFERROR(INDEX(少年罪種前年!$E$5:$U$1000,MATCH($C44,少年罪種前年!$D$5:$D$1000,0),MATCH($A$1,少年罪種前年!$E$4:$U$4,0)),0) -> 0 | U44: 0 | V44: 0
C45: 窓口ねらい | D45: =IFERROR(INDEX(認知罪種本年!$E$5:$U$1000,MATCH($C45,認知罪種本年!$D$5:$D$1000,0),MATCH($A$1,認知罪種本年!$E$4:$U$4,0)),0) -> 0 | E45: =IFERROR(INDEX(認知罪種前年!$E$5:$U$1000,MATCH($C45,認知罪種前年!$D$5:$D$1000,0),MATCH($A$1,認知罪種前年!$E$4:$U$4,0)),0) -> 0 | F45: 0 | G45: 0 | H45: =IFERROR(INDEX(検挙罪種本年!$E$5:$U$1000,MATCH($C45,検挙罪種本年!$D$5:$D$1000,0),MATCH($A$1,検挙罪種本年!$E$4:$U$4,0)),0) -> 0 | I45: =IFERROR(INDEX(検挙罪種前年!$E$5:$U$1000,MATCH($C45,検挙罪種前年!$D$5:$D$1000,0),MATCH($A$1,検挙罪種前年!$E$4:$U$4,0)),0) -> 0 | J45: 0 | K45: 0 | O45: =IFERROR(INDEX(人員罪種本年!$E$5:$U$1000,MATCH($C45,人員罪種本年!$D$5:$D$1000,0),MATCH($A$1,人員罪種本年!$E$4:$U$4,0)),0) -> 0 | P45: =IFERROR(INDEX(人員罪種前年!$E$5:$U$1000,MATCH($C45,人員罪種前年!$D$5:$D$1000,0),MATCH($A$1,人員罪種前年!$E$4:$U$4,0)),0) -> 0 | Q45: 0 | R45: 0 | S45: =IFERROR(INDEX(少年罪種本年!$E$5:$U$1000,MATCH($C45,少年罪種本年!$D$5:$D$1000,0),MATCH($A$1,少年罪種本年!$E$4:$U$4,0)),0) -> 0 | T45: =IFERROR(INDEX(少年罪種前年!$E$5:$U$1000,MATCH($C45,少年罪種前年!$D$5:$D$1000,0),MATCH($A$1,少年罪種前年!$E$4:$U$4,0)),0) -> 0 | U45: 0 | V45: 0
C46: 途中ねらい | D46: =IFERROR(INDEX(認知罪種本年!$E$5:$U$1000,MATCH($C46,認知罪種本年!$D$5:$D$1000,0),MATCH($A$1,認知罪種本年!$E$4:$U$4,0)),0) -> 0 | E46: =IFERROR(INDEX(認知罪種前年!$E$5:$U$1000,MATCH($C46,認知罪種前年!$D$5:$D$1000,0),MATCH($A$1,認知罪種前年!$E$4:$U$4,0)),0) -> 0 | F46: 0 | G46: 0 | H46: =IFERROR(INDEX(検挙罪種本年!$E$5:$U$1000,MATCH($C46,検挙罪種本年!$D$5:$D$1000,0),MATCH($A$1,検挙罪種本年!$E$4:$U$4,0)),0) -> 0 | I46: =IFERROR(INDEX(検挙罪種前年!$E$5:$U$1000,MATCH($C46,検挙罪種前年!$D$5:$D$1000,0),MATCH($A$1,検挙罪種前年!$E$4:$U$4,0)),0) -> 0 | J46: 0 | K46: 0 | O46: =IFERROR(INDEX(人員罪種本年!$E$5:$U$1000,MATCH($C46,人員罪種本年!$D$5:$D$1000,0),MATCH($A$1,人員罪種本年!$E$4:$U$4,0)),0) -> 0 | P46: =IFERROR(INDEX(人員罪種前年!$E$5:$U$1000,MATCH($C46,人員罪種前年!$D$5:$D$1000,0),MATCH($A$1,人員罪種前年!$E$4:$U$4,0)),0) -> 0 | Q46: 0 | R46: 0 | S46: =IFERROR(INDEX(少年罪種本年!$E$5:$U$1000,MATCH($C46,少年罪種本年!$D$5:$D$1000,0),MATCH($A$1,少年罪種本年!$E$4:$U$4,0)),0) -> 0 | T46: =IFERROR(INDEX(少年罪種前年!$E$5:$U$1000,MATCH($C46,少年罪種前年!$D$5:$D$1000,0),MATCH($A$1,少年罪種前年!$E$4:$U$4,0)),0) -> 0 | U46: 0 | V46: 0
C47: 室内ねらい | D47: =IFERROR(INDEX(認知罪種本年!$E$5:$U$1000,MATCH($C47,認知罪種本年!$D$5:$D$1000,0),MATCH($A$1,認知罪種本年!$E$4:$U$4,0)),0) -> 5 | E47: =IFERROR(INDEX(認知罪種前年!$E$5:$U$1000,MATCH($C47,認知罪種前年!$D$5:$D$1000,0),MATCH($A$1,認知罪種前年!$E$4:$U$4,0)),0) -> 1 | F47: 4 | G47: 400 | H47: =IFERROR(INDEX(検挙罪種本年!$E$5:$U$1000,MATCH($C47,検挙罪種本年!$D$5:$D$1000,0),MATCH($A$1,検挙罪種本年!$E$4:$U$4,0)),0) -> 0 | I47: =IFERROR(INDEX(検挙罪種前年!$E$5:$U$1000,MATCH($C47,検挙罪種前年!$D$5:$D$1000,0),MATCH($A$1,検挙罪種前年!$E$4:$U$4,0)),0) -> 0 | J47: 0 | K47: 0 | L47: 0 | M47: 0 | N47: 0 | O47: =IFERROR(INDEX(人員罪種本年!$E$5:$U$1000,MATCH($C47,人員罪種本年!$D$5:$D$1000,0),MATCH($A$1,人員罪種本年!$E$4:$U$4,0)),0) -> 0 | P47: =IFERROR(INDEX(人員罪種前年!$E$5:$U$1000,MATCH($C47,人員罪種前年!$D$5:$D$1000,0),MATCH($A$1,人員罪種前年!$E$4:$U$4,0)),0) -> 0 | Q47: 0 | R47: 0 | S47: =IFERROR(INDEX(少年罪種本年!$E$5:$U$1000,MATCH($C47,少年罪種本年!$D$5:$D$1000,0),MATCH($A$1,少年罪種本年!$E$4:$U$4,0)),0) -> 0 | T47: =IFERROR(INDEX(少年罪種前年!$E$5:$U$1000,MATCH($C47,少年罪種前年!$D$5:$D$1000,0),MATCH($A$1,少年罪種前年!$E$4:$U$4,0)),0) -> 0 | U47: 0 | V47: 0
C48: 客室ねらい | D48: =IFERROR(INDEX(認知罪種本年!$E$5:$U$1000,MATCH($C48,認知罪種本年!$D$5:$D$1000,0),MATCH($A$1,認知罪種本年!$E$4:$U$4,0)),0) -> 0 | E48: =IFERROR(INDEX(認知罪種前年!$E$5:$U$1000,MATCH($C48,認知罪種前年!$D$5:$D$1000,0),MATCH($A$1,認知罪種前年!$E$4:$U$4,0)),0) -> 1 | F48: -1 | G48: -100 | H48: =IFERROR(INDEX(検挙罪種本年!$E$5:$U$1000,MATCH($C48,検挙罪種本年!$D$5:$D$1000,0),MATCH($A$1,検挙罪種本年!$E$4:$U$4,0)),0) -> 0 | I48: =IFERROR(INDEX(検挙罪種前年!$E$5:$U$1000,MATCH($C48,検挙罪種前年!$D$5:$D$1000,0),MATCH($A$1,検挙罪種前年!$E$4:$U$4,0)),0) -> 0 | J48: 0 | K48: 0 | M48: 0 | N48: ― | O48: =IFERROR(INDEX(人員罪種本年!$E$5:$U$1000,MATCH($C48,人員罪種本年!$D$5:$D$1000,0),MATCH($A$1,人員罪種本年!$E$4:$U$4,0)),0) -> 0 | P48: =IFERROR(INDEX(人員罪種前年!$E$5:$U$1000,MATCH($C48,人員罪種前年!$D$5:$D$1000,0),MATCH($A$1,人員罪種前年!$E$4:$U$4,0)),0) -> 0 | Q48: 0 | R48: 0 | S48: =IFERROR(INDEX(少年罪種本年!$E$5:$U$1000,MATCH($C48,少年罪種本年!$D$5:$D$1000,0),MATCH($A$1,少年罪種本年!$E$4:$U$4,0)),0) -> 0 | T48: =IFERROR(INDEX(少年罪種前年!$E$5:$U$1000,MATCH($C48,少年罪種前年!$D$5:$D$1000,0),MATCH($A$1,少年罪種前年!$E$4:$U$4,0)),0) -> 0 | U48: 0 | V48: 0
C49: 病室ねらい | D49: =IFERROR(INDEX(認知罪種本年!$E$5:$U$1000,MATCH($C49,認知罪種本年!$D$5:$D$1000,0),MATCH($A$1,認知罪種本年!$E$4:$U$4,0)),0) -> 7 | E49: =IFERROR(INDEX(認知罪種前年!$E$5:$U$1000,MATCH($C49,認知罪種前年!$D$5:$D$1000,0),MATCH($A$1,認知罪種前年!$E$4:$U$4,0)),0) -> 7 | F49: 0 | G49: 0 | H49: =IFERROR(INDEX(検挙罪種本年!$E$5:$U$1000,MATCH($C49,検挙罪種本年!$D$5:$D$1000,0),MATCH($A$1,検挙罪種本年!$E$4:$U$4,0)),0) -> 1 | I49: =IFERROR(INDEX(検挙罪種前年!$E$5:$U$1000,MATCH($C49,検挙罪種前年!$D$5:$D$1000,0),MATCH($A$1,検挙罪種前年!$E$4:$U$4,0)),0) -> 0 | J49: 1 | K49: ― | L49: 14.3 | M49: 0 | N49: 14.3 | O49: =IFERROR(INDEX(人員罪種本年!$E$5:$U$1000,MATCH($C49,人員罪種本年!$D$5:$D$1000,0),MATCH($A$1,人員罪種本年!$E$4:$U$4,0)),0) -> 1 | P49: =IFERROR(INDEX(人員罪種前年!$E$5:$U$1000,MATCH($C49,人員罪種前年!$D$5:$D$1000,0),MATCH($A$1,人員罪種前年!$E$4:$U$4,0)),0) -> 0 | Q49: 1 | R49: ― | S49: =IFERROR(INDEX(少年罪種本年!$E$5:$U$1000,MATCH($C49,少年罪種本年!$D$5:$D$1000,0),MATCH($A$1,少年罪種本年!$E$4:$U$4,0)),0) -> 0 | T49: =IFERROR(INDEX(少年罪種前年!$E$5:$U$1000,MATCH($C49,少年罪種前年!$D$5:$D$1000,0),MATCH($A$1,少年罪種前年!$E$4:$U$4,0)),0) -> 0 | U49: 0 | V49: 0 | W49: 0 | Y49: ―
C50: ひったくり | D50: =IFERROR(INDEX(認知罪種本年!$E$5:$U$1000,MATCH($C50,認知罪種本年!$D$5:$D$1000,0),MATCH($A$1,認知罪種本年!$E$4:$U$4,0)),0) -> 1 | E50: =IFERROR(INDEX(認知罪種前年!$E$5:$U$1000,MATCH($C50,認知罪種前年!$D$5:$D$1000,0),MATCH($A$1,認知罪種前年!$E$4:$U$4,0)),0) -> 3 | F50: -2 | G50: -66.66666667 | H50: =IFERROR(INDEX(検挙罪種本年!$E$5:$U$1000,MATCH($C50,検挙罪種本年!$D$5:$D$1000,0),MATCH($A$1,検挙罪種本年!$E$4:$U$4,0)),0) -> 0 | I50: =IFERROR(INDEX(検挙罪種前年!$E$5:$U$1000,MATCH($C50,検挙罪種前年!$D$5:$D$1000,0),MATCH($A$1,検挙罪種前年!$E$4:$U$4,0)),0) -> 5 | J50: -5 | K50: -100 | L50: 0 | M50: 166.7 | N50: -166.7 | O50: =IFERROR(INDEX(人員罪種本年!$E$5:$U$1000,MATCH($C50,人員罪種本年!$D$5:$D$1000,0),MATCH($A$1,人員罪種本年!$E$4:$U$4,0)),0) -> 0 | P50: =IFERROR(INDEX(人員罪種前年!$E$5:$U$1000,MATCH($C50,人員罪種前年!$D$5:$D$1000,0),MATCH($A$1,人員罪種前年!$E$4:$U$4,0)),0) -> 4 | Q50: -4 | R50: -100 | S50: =IFERROR(INDEX(少年罪種本年!$E$5:$U$1000,MATCH($C50,少年罪種本年!$D$5:$D$1000,0),MATCH($A$1,少年罪種本年!$E$4:$U$4,0)),0) -> 0 | T50: =IFERROR(INDEX(少年罪種前年!$E$5:$U$1000,MATCH($C50,少年罪種前年!$D$5:$D$1000,0),MATCH($A$1,少年罪種前年!$E$4:$U$4,0)),0) -> 1 | U50: -1 | V50: -100 | X50: 25 | Y50: ―
C51: すり | D51: =IFERROR(INDEX(認知罪種本年!$E$5:$U$1000,MATCH($C51,認知罪種本年!$D$5:$D$1000,0),MATCH($A$1,認知罪種本年!$E$4:$U$4,0)),0) -> 2 | E51: =IFERROR(INDEX(認知罪種前年!$E$5:$U$1000,MATCH($C51,認知罪種前年!$D$5:$D$1000,0),MATCH($A$1,認知罪種前年!$E$4:$U$4,0)),0) -> 6 | F51: -4 | G51: -66.66666667 | H51: =IFERROR(INDEX(検挙罪種本年!$E$5:$U$1000,MATCH($C51,検挙罪種本年!$D$5:$D$1000,0),MATCH($A$1,検挙罪種本年!$E$4:$U$4,0)),0) -> 4 | I51: =IFERROR(INDEX(検挙罪種前年!$E$5:$U$1000,MATCH($C51,検挙罪種前年!$D$5:$D$1000,0),MATCH($A$1,検挙罪種前年!$E$4:$U$4,0)),0) -> 0 | J51: 4 | K51: ― | L51: 200 | M51: 0 | N51: 200 | O51: =IFERROR(INDEX(人員罪種本年!$E$5:$U$1000,MATCH($C51,人員罪種本年!$D$5:$D$1000,0),MATCH($A$1,人員罪種本年!$E$4:$U$4,0)),0) -> 1 | P51: =IFERROR(INDEX(人員罪種前年!$E$5:$U$1000,MATCH($C51,人員罪種前年!$D$5:$D$1000,0),MATCH($A$1,人員罪種前年!$E$4:$U$4,0)),0) -> 0 | Q51: 1 | R51: ― | S51: =IFERROR(INDEX(少年罪種本年!$E$5:$U$1000,MATCH($C51,少年罪種本年!$D$5:$D$1000,0),MATCH($A$1,少年罪種本年!$E$4:$U$4,0)),0) -> 0 | T51: =IFERROR(INDEX(少年罪種前年!$E$5:$U$1000,MATCH($C51,少年罪種前年!$D$5:$D$1000,0),MATCH($A$1,少年罪種前年!$E$4:$U$4,0)),0) -> 0 | U51: 0 | V51: 0 | W51: 0 | Y51: ―
C52: 置引き | D52: =IFERROR(INDEX(認知罪種本年!$E$5:$U$1000,MATCH($C52,認知罪種本年!$D$5:$D$1000,0),MATCH($A$1,認知罪種本年!$E$4:$U$4,0)),0) -> 209 | E52: =IFERROR(INDEX(認知罪種前年!$E$5:$U$1000,MATCH($C52,認知罪種前年!$D$5:$D$1000,0),MATCH($A$1,認知罪種前年!$E$4:$U$4,0)),0) -> 207 | F52: 2 | G52: 0.9661835749 | H52: =IFERROR(INDEX(検挙罪種本年!$E$5:$U$1000,MATCH($C52,検挙罪種本年!$D$5:$D$1000,0),MATCH($A$1,検挙罪種本年!$E$4:$U$4,0)),0) -> 92 | I52: =IFERROR(INDEX(検挙罪種前年!$E$5:$U$1000,MATCH($C52,検挙罪種前年!$D$5:$D$1000,0),MATCH($A$1,検挙罪種前年!$E$4:$U$4,0)),0) -> 89 | J52: 3 | K52: 3.370786517 | L52: 44 | M52: =IF(E52>0,ROUND(I52/E52*100,1),IF(I52>0,"―","")) -> 43 | N52: =IF(AND(M52="",L52=""),"",IF(ISERR(L52-M52),"―",L52-M52)) -> 1 | O52: =IFERROR(INDEX(人員罪種本年!$E$5:$U$1000,MATCH($C52,人員罪種本年!$D$5:$D$1000,0),MATCH($A$1,人員罪種本年!$E$4:$U$4,0)),0) -> 85 | P52: =IFERROR(INDEX(人員罪種前年!$E$5:$U$1000,MATCH($C52,人員罪種前年!$D$5:$D$1000,0),MATCH($A$1,人員罪種前年!$E$4:$U$4,0)),0) -> 80 | Q52: 5 | R52: 6.25 | S52: =IFERROR(INDEX(少年罪種本年!$E$5:$U$1000,MATCH($C52,少年罪種本年!$D$5:$D$1000,0),MATCH($A$1,少年罪種本年!$E$4:$U$4,0)),0) -> 2 | T52: =IFERROR(INDEX(少年罪種前年!$E$5:$U$1000,MATCH($C52,少年罪種前年!$D$5:$D$1000,0),MATCH($A$1,少年罪種前年!$E$4:$U$4,0)),0) -> 2 | U52: 0 | V52: 0 | W52: 2.4 | X52: 2.5 | Y52: -0.1
C53: 仮睡者ねらい | D53: =IFERROR(INDEX(認知罪種本年!$E$5:$U$1000,MATCH($C53,認知罪種本年!$D$5:$D$1000,0),MATCH($A$1,認知罪種本年!$E$4:$U$4,0)),0) -> 5 | E53: =IFERROR(INDEX(認知罪種前年!$E$5:$U$1000,MATCH($C53,認知罪種前年!$D$5:$D$1000,0),MATCH($A$1,認知罪種前年!$E$4:$U$4,0)),0) -> 7 | F53: -2 | G53: -28.57142857 | H53: =IFERROR(INDEX(検挙罪種本年!$E$5:$U$1000,MATCH($C53,検挙罪種本年!$D$5:$D$1000,0),MATCH($A$1,検挙罪種本年!$E$4:$U$4,0)),0) -> 0 | I53: =IFERROR(INDEX(検挙罪種前年!$E$5:$U$1000,MATCH($C53,検挙罪種前年!$D$5:$D$1000,0),MATCH($A$1,検挙罪種前年!$E$4:$U$4,0)),0) -> 0 | J53: 0 | K53: 0 | L53: 0 | M53: 0 | N53: 0 | O53: =IFERROR(INDEX(人員罪種本年!$E$5:$U$1000,MATCH($C53,人員罪種本年!$D$5:$D$1000,0),MATCH($A$1,人員罪種本年!$E$4:$U$4,0)),0) -> 0 | P53: =IFERROR(INDEX(人員罪種前年!$E$5:$U$1000,MATCH($C53,人員罪種前年!$D$5:$D$1000,0),MATCH($A$1,人員罪種前年!$E$4:$U$4,0)),0) -> 0 | Q53: 0 | R53: 0 | S53: =IFERROR(INDEX(少年罪種本年!$E$5:$U$1000,MATCH($C53,少年罪種本年!$D$5:$D$1000,0),MATCH($A$1,少年罪種本年!$E$4:$U$4,0)),0) -> 0 | T53: =IFERROR(INDEX(少年罪種前年!$E$5:$U$1000,MATCH($C53,少年罪種前年!$D$5:$D$1000,0),MATCH($A$1,少年罪種前年!$E$4:$U$4,0)),0) -> 0 | U53: 0 | V53: 0
C54: 車上ねらい | D54: =SUM(D55:D56) -> 260 | E54: =SUM(E55:E56) -> 269 | F54: -9 | G54: -3.345724907 | H54: =SUM(H55:H56) -> 70 | I54: =SUM(I55:I56) -> 73 | J54: -3 | K54: -4.109589041 | L54: 26.9 | M54: 27.1 | N54: -0.2 | O54: =SUM(O55:O56) -> 22 | P54: =SUM(P55:P56) -> 15 | Q54: 7 | R54: 46.66666667 | S54: =SUM(S55:S56) -> 1 | T54: =SUM(T55:T56) -> 2 | U54: -1 | V54: -50 | W54: 4.5 | X54: 13.3 | Y54: -8.8
C55: 〃 （施錠した） | D55: =IFERROR(INDEX(認知罪種本年!$E$5:$U$1000,MATCH("車上ねらい（施錠した）",認知罪種本年!$D$5:$D$1000,0),MATCH($A$1,認知罪種本年!$E$4:$U$4,0)),0) -> 109 | E55: =IFERROR(INDEX(認知罪種前年!$E$5:$U$1000,MATCH("車上ねらい（施錠した）",認知罪種前年!$D$5:$D$1000,0),MATCH($A$1,認知罪種前年!$E$4:$U$4,0)),0) -> 122 | F55: -13 | G55: -10.6557377 | H55: =IFERROR(INDEX(検挙罪種本年!$E$5:$U$1000,MATCH("車上ねらい（施錠した）",検挙罪種本年!$D$5:$D$1000,0),MATCH($A$1,検挙罪種本年!$E$4:$U$4,0)),0) -> 19 | I55: =IFERROR(INDEX(検挙罪種前年!$E$5:$U$1000,MATCH("車上ねらい（施錠した）",検挙罪種前年!$D$5:$D$1000,0),MATCH($A$1,検挙罪種前年!$E$4:$U$4,0)),0) -> 31 | J55: -12 | K55: -38.70967742 | L55: 17.4 | M55: 25.4 | N55: -8 | O55: =IFERROR(INDEX(人員罪種本年!$E$5:$U$1000,MATCH("車上ねらい（施錠した）",人員罪種本年!$D$5:$D$1000,0),MATCH($A$1,人員罪種本年!$E$4:$U$4,0)),0) -> 3 | P55: =IFERROR(INDEX(人員罪種前年!$E$5:$U$1000,MATCH("車上ねらい（施錠した）",人員罪種前年!$D$5:$D$1000,0),MATCH($A$1,人員罪種前年!$E$4:$U$4,0)),0) -> 3 | Q55: 0 | R55: 0 | S55: =IFERROR(INDEX(少年罪種本年!$E$5:$U$1000,MATCH("車上ねらい（施錠した）",少年罪種本年!$D$5:$D$1000,0),MATCH($A$1,少年罪種本年!$E$4:$U$4,0)),0) -> 0 | T55: =IFERROR(INDEX(少年罪種前年!$E$5:$U$1000,MATCH("車上ねらい（施錠した）",少年罪種前年!$D$5:$D$1000,0),MATCH($A$1,少年罪種前年!$E$4:$U$4,0)),0) -> 0 | U55: 0 | V55: 0 | W55: 0 | X55: 0 | Y55: 0
C56: 〃 （施錠せず） | D56: =IFERROR(INDEX(認知罪種本年!$E$5:$U$1000,MATCH("車上ねらい（施錠せず）",認知罪種本年!$D$5:$D$1000,0),MATCH($A$1,認知罪種本年!$E$4:$U$4,0)),0) -> 151 | E56: =IFERROR(INDEX(認知罪種前年!$E$5:$U$1000,MATCH("車上ねらい（施錠せず）",認知罪種前年!$D$5:$D$1000,0),MATCH($A$1,認知罪種前年!$E$4:$U$4,0)),0) -> 147 | F56: 4 | G56: 2.721088435 | H56: =IFERROR(INDEX(検挙罪種本年!$E$5:$U$1000,MATCH("車上ねらい（施錠せず）",検挙罪種本年!$D$5:$D$1000,0),MATCH($A$1,検挙罪種本年!$E$4:$U$4,0)),0) -> 51 | I56: =IFERROR(INDEX(検挙罪種前年!$E$5:$U$1000,MATCH("車上ねらい（施錠せず）",検挙罪種前年!$D$5:$D$1000,0),MATCH($A$1,検挙罪種前年!$E$4:$U$4,0)),0) -> 42 | J56: 9 | K56: 21.42857143 | L56: 33.8 | M56: 28.6 | N56: 5.2 | O56: =IFERROR(INDEX(人員罪種本年!$E$5:$U$1000,MATCH("車上ねらい（施錠せず）",人員罪種本年!$D$5:$D$1000,0),MATCH($A$1,人員罪種本年!$E$4:$U$4,0)),0) -> 19 | P56: =IFERROR(INDEX(人員罪種前年!$E$5:$U$1000,MATCH("車上ねらい（施錠せず）",人員罪種前年!$D$5:$D$1000,0),MATCH($A$1,人員罪種前年!$E$4:$U$4,0)),0) -> 12 | Q56: 7 | R56: 58.33333333 | S56: =IFERROR(INDEX(少年罪種本年!$E$5:$U$1000,MATCH("車上ねらい（施錠せず）",少年罪種本年!$D$5:$D$1000,0),MATCH($A$1,少年罪種本年!$E$4:$U$4,0)),0) -> 1 | T56: =IFERROR(INDEX(少年罪種前年!$E$5:$U$1000,MATCH("車上ねらい（施錠せず）",少年罪種前年!$D$5:$D$1000,0),MATCH($A$1,少年罪種前年!$E$4:$U$4,0)),0) -> 2 | U56: -1 | V56: -50 | W56: 5.3 | X56: 16.7 | Y56: -11.4
C57: 部品ねらい | D57: =IFERROR(INDEX(認知罪種本年!$E$5:$U$1000,MATCH($C57,認知罪種本年!$D$5:$D$1000,0),MATCH($A$1,認知罪種本年!$E$4:$U$4,0)),0) -> 123 | E57: =IFERROR(INDEX(認知罪種前年!$E$5:$U$1000,MATCH($C57,認知罪種前年!$D$5:$D$1000,0),MATCH($A$1,認知罪種前年!$E$4:$U$4,0)),0) -> 138 | F57: -15 | G57: -10.86956522 | H57: =IFERROR(INDEX(検挙罪種本年!$E$5:$U$1000,MATCH($C57,検挙罪種本年!$D$5:$D$1000,0),MATCH($A$1,検挙罪種本年!$E$4:$U$4,0)),0) -> 13 | I57: =IFERROR(INDEX(検挙罪種前年!$E$5:$U$1000,MATCH($C57,検挙罪種前年!$D$5:$D$1000,0),MATCH($A$1,検挙罪種前年!$E$4:$U$4,0)),0) -> 21 | J57: -8 | K57: -38.0952381 | L57: 10.6 | M57: 15.2 | N57: -4.6 | O57: =IFERROR(INDEX(人員罪種本年!$E$5:$U$1000,MATCH($C57,人員罪種本年!$D$5:$D$1000,0),MATCH($A$1,人員罪種本年!$E$4:$U$4,0)),0) -> 3 | P57: =IFERROR(INDEX(人員罪種前年!$E$5:$U$1000,MATCH($C57,人員罪種前年!$D$5:$D$1000,0),MATCH($A$1,人員罪種前年!$E$4:$U$4,0)),0) -> 0 | Q57: 3 | R57: ― | S57: =IFERROR(INDEX(少年罪種本年!$E$5:$U$1000,MATCH($C57,少年罪種本年!$D$5:$D$1000,0),MATCH($A$1,少年罪種本年!$E$4:$U$4,0)),0) -> 1 | T57: =IFERROR(INDEX(少年罪種前年!$E$5:$U$1000,MATCH($C57,少年罪種前年!$D$5:$D$1000,0),MATCH($A$1,少年罪種前年!$E$4:$U$4,0)),0) -> 0 | U57: 1 | V57: ― | W57: 33.3 | Y57: ―
C58: 脱衣場ねらい | D58: =IFERROR(INDEX(認知罪種本年!$E$5:$U$1000,MATCH($C58,認知罪種本年!$D$5:$D$1000,0),MATCH($A$1,認知罪種本年!$E$4:$U$4,0)),0) -> 7 | E58: =IFERROR(INDEX(認知罪種前年!$E$5:$U$1000,MATCH($C58,認知罪種前年!$D$5:$D$1000,0),MATCH($A$1,認知罪種前年!$E$4:$U$4,0)),0) -> 14 | F58: -7 | G58: -50 | H58: =IFERROR(INDEX(検挙罪種本年!$E$5:$U$1000,MATCH($C58,検挙罪種本年!$D$5:$D$1000,0),MATCH($A$1,検挙罪種本年!$E$4:$U$4,0)),0) -> 1 | I58: =IFERROR(INDEX(検挙罪種前年!$E$5:$U$1000,MATCH($C58,検挙罪種前年!$D$5:$D$1000,0),MATCH($A$1,検挙罪種前年!$E$4:$U$4,0)),0) -> 0 | J58: 1 | K58: ― | L58: 14.3 | M58: 0 | N58: 14.3 | O58: =IFERROR(INDEX(人員罪種本年!$E$5:$U$1000,MATCH($C58,人員罪種本年!$D$5:$D$1000,0),MATCH($A$1,人員罪種本年!$E$4:$U$4,0)),0) -> 1 | P58: =IFERROR(INDEX(人員罪種前年!$E$5:$U$1000,MATCH($C58,人員罪種前年!$D$5:$D$1000,0),MATCH($A$1,人員罪種前年!$E$4:$U$4,0)),0) -> 0 | Q58: 1 | R58: ― | S58: =IFERROR(INDEX(少年罪種本年!$E$5:$U$1000,MATCH($C58,少年罪種本年!$D$5:$D$1000,0),MATCH($A$1,少年罪種本年!$E$4:$U$4,0)),0) -> 0 | T58: =IFERROR(INDEX(少年罪種前年!$E$5:$U$1000,MATCH($C58,少年罪種前年!$D$5:$D$1000,0),MATCH($A$1,少年罪種前年!$E$4:$U$4,0)),0) -> 0 | U58: 0 | V58: 0 | W58: 0 | Y58: ―
C59: 自動販売機ねらい | D59: =IFERROR(INDEX(認知罪種本年!$E$5:$U$1000,MATCH($C59,認知罪種本年!$D$5:$D$1000,0),MATCH($A$1,認知罪種本年!$E$4:$U$4,0)),0) -> 33 | E59: =IFERROR(INDEX(認知罪種前年!$E$5:$U$1000,MATCH($C59,認知罪種前年!$D$5:$D$1000,0),MATCH($A$1,認知罪種前年!$E$4:$U$4,0)),0) -> 28 | F59: 5 | G59: 17.85714286 | H59: =IFERROR(INDEX(検挙罪種本年!$E$5:$U$1000,MATCH($C59,検挙罪種本年!$D$5:$D$1000,0),MATCH($A$1,検挙罪種本年!$E$4:$U$4,0)),0) -> 119 | I59: =IFERROR(INDEX(検挙罪種前年!$E$5:$U$1000,MATCH($C59,検挙罪種前年!$D$5:$D$1000,0),MATCH($A$1,検挙罪種前年!$E$4:$U$4,0)),0) -> 2 | J59: 117 | K59: 5850 | L59: 360.6 | M59: 7.1 | N59: 353.5 | O59: =IFERROR(INDEX(人員罪種本年!$E$5:$U$1000,MATCH($C59,人員罪種本年!$D$5:$D$1000,0),MATCH($A$1,人員罪種本年!$E$4:$U$4,0)),0) -> 2 | P59: =IFERROR(INDEX(人員罪種前年!$E$5:$U$1000,MATCH($C59,人員罪種前年!$D$5:$D$1000,0),MATCH($A$1,人員罪種前年!$E$4:$U$4,0)),0) -> 0 | Q59: 2 | R59: ― | S59: =IFERROR(INDEX(少年罪種本年!$E$5:$U$1000,MATCH($C59,少年罪種本年!$D$5:$D$1000,0),MATCH($A$1,少年罪種本年!$E$4:$U$4,0)),0) -> 0 | T59: =IFERROR(INDEX(少年罪種前年!$E$5:$U$1000,MATCH($C59,少年罪種前年!$D$5:$D$1000,0),MATCH($A$1,少年罪種前年!$E$4:$U$4,0)),0) -> 0 | U59: 0 | V59: 0 | W59: 0 | Y59: ―
C60: 色情ねらい | D60: =IFERROR(INDEX(認知罪種本年!$E$5:$U$1000,MATCH($C60,認知罪種本年!$D$5:$D$1000,0),MATCH($A$1,認知罪種本年!$E$4:$U$4,0)),0) -> 38 | E60: =IFERROR(INDEX(認知罪種前年!$E$5:$U$1000,MATCH($C60,認知罪種前年!$D$5:$D$1000,0),MATCH($A$1,認知罪種前年!$E$4:$U$4,0)),0) -> 60 | F60: -22 | G60: -36.66666667 | H60: =IFERROR(INDEX(検挙罪種本年!$E$5:$U$1000,MATCH($C60,検挙罪種本年!$D$5:$D$1000,0),MATCH($A$1,検挙罪種本年!$E$4:$U$4,0)),0) -> 14 | I60: =IFERROR(INDEX(検挙罪種前年!$E$5:$U$1000,MATCH($C60,検挙罪種前年!$D$5:$D$1000,0),MATCH($A$1,検挙罪種前年!$E$4:$U$4,0)),0) -> 30 | J60: -16 | K60: -53.33333333 | L60: 36.8 | M60: 50 | N60: -13.2 | O60: =IFERROR(INDEX(人員罪種本年!$E$5:$U$1000,MATCH($C60,人員罪種本年!$D$5:$D$1000,0),MATCH($A$1,人員罪種本年!$E$4:$U$4,0)),0) -> 6 | P60: =IFERROR(INDEX(人員罪種前年!$E$5:$U$1000,MATCH($C60,人員罪種前年!$D$5:$D$1000,0),MATCH($A$1,人員罪種前年!$E$4:$U$4,0)),0) -> 11 | Q60: -5 | R60: -45.45454545 | S60: =IFERROR(INDEX(少年罪種本年!$E$5:$U$1000,MATCH($C60,少年罪種本年!$D$5:$D$1000,0),MATCH($A$1,少年罪種本年!$E$4:$U$4,0)),0) -> 0 | T60: =IFERROR(INDEX(少年罪種前年!$E$5:$U$1000,MATCH($C60,少年罪種前年!$D$5:$D$1000,0),MATCH($A$1,少年罪種前年!$E$4:$U$4,0)),0) -> 0 | U60: 0 | V60: 0 | W60: 0 | X60: 0 | Y60: 0
C61: 工事場ねらい | D61: =IFERROR(INDEX(認知罪種本年!$E$5:$U$1000,MATCH($C61,認知罪種本年!$D$5:$D$1000,0),MATCH($A$1,認知罪種本年!$E$4:$U$4,0)),0) -> 15 | E61: =IFERROR(INDEX(認知罪種前年!$E$5:$U$1000,MATCH($C61,認知罪種前年!$D$5:$D$1000,0),MATCH($A$1,認知罪種前年!$E$4:$U$4,0)),0) -> 24 | F61: -9 | G61: -37.5 | H61: =IFERROR(INDEX(検挙罪種本年!$E$5:$U$1000,MATCH($C61,検挙罪種本年!$D$5:$D$1000,0),MATCH($A$1,検挙罪種本年!$E$4:$U$4,0)),0) -> 8 | I61: =IFERROR(INDEX(検挙罪種前年!$E$5:$U$1000,MATCH($C61,検挙罪種前年!$D$5:$D$1000,0),MATCH($A$1,検挙罪種前年!$E$4:$U$4,0)),0) -> 12 | J61: -4 | K61: -33.33333333 | L61: 53.3 | M61: 50 | N61: 3.3 | O61: =IFERROR(INDEX(人員罪種本年!$E$5:$U$1000,MATCH($C61,人員罪種本年!$D$5:$D$1000,0),MATCH($A$1,人員罪種本年!$E$4:$U$4,0)),0) -> 0 | P61: =IFERROR(INDEX(人員罪種前年!$E$5:$U$1000,MATCH($C61,人員罪種前年!$D$5:$D$1000,0),MATCH($A$1,人員罪種前年!$E$4:$U$4,0)),0) -> 3 | Q61: -3 | R61: -100 | S61: =IFERROR(INDEX(少年罪種本年!$E$5:$U$1000,MATCH($C61,少年罪種本年!$D$5:$D$1000,0),MATCH($A$1,少年罪種本年!$E$4:$U$4,0)),0) -> 0 | T61: =IFERROR(INDEX(少年罪種前年!$E$5:$U$1000,MATCH($C61,少年罪種前年!$D$5:$D$1000,0),MATCH($A$1,少年罪種前年!$E$4:$U$4,0)),0) -> 0 | U61: 0 | V61: 0 | X61: 0 | Y61: ―
C62: 万引き | D62: =IFERROR(INDEX(認知罪種本年!$E$5:$U$1000,MATCH($C62,認知罪種本年!$D$5:$D$1000,0),MATCH($A$1,認知罪種本年!$E$4:$U$4,0)),0) -> 925 | E62: =IFERROR(INDEX(認知罪種前年!$E$5:$U$1000,MATCH($C62,認知罪種前年!$D$5:$D$1000,0),MATCH($A$1,認知罪種前年!$E$4:$U$4,0)),0) -> 1089 | F62: -164 | G62: -15.05968779 | H62: =IFERROR(INDEX(検挙罪種本年!$E$5:$U$1000,MATCH($C62,検挙罪種本年!$D$5:$D$1000,0),MATCH($A$1,検挙罪種本年!$E$4:$U$4,0)),0) -> 746 | I62: =IFERROR(INDEX(検挙罪種前年!$E$5:$U$1000,MATCH($C62,検挙罪種前年!$D$5:$D$1000,0),MATCH($A$1,検挙罪種前年!$E$4:$U$4,0)),0) -> 746 | J62: 0 | K62: 0 | L62: 80.6 | M62: 68.5 | N62: 12.1 | O62: =IFERROR(INDEX(人員罪種本年!$E$5:$U$1000,MATCH($C62,人員罪種本年!$D$5:$D$1000,0),MATCH($A$1,人員罪種本年!$E$4:$U$4,0)),0) -> 576 | P62: =IFERROR(INDEX(人員罪種前年!$E$5:$U$1000,MATCH($C62,人員罪種前年!$D$5:$D$1000,0),MATCH($A$1,人員罪種前年!$E$4:$U$4,0)),0) -> 578 | Q62: -2 | R62: -0.3460207612 | S62: =IFERROR(INDEX(少年罪種本年!$E$5:$U$1000,MATCH($C62,少年罪種本年!$D$5:$D$1000,0),MATCH($A$1,少年罪種本年!$E$4:$U$4,0)),0) -> 56 | T62: =IFERROR(INDEX(少年罪種前年!$E$5:$U$1000,MATCH($C62,少年罪種前年!$D$5:$D$1000,0),MATCH($A$1,少年罪種前年!$E$4:$U$4,0)),0) -> 56 | U62: 0 | V62: 0 | W62: 9.7 | X62: 9.7 | Y62: 0
C63: 職場ねらい | D63: =IFERROR(INDEX(認知罪種本年!$E$5:$U$1000,MATCH($C63,認知罪種本年!$D$5:$D$1000,0),MATCH($A$1,認知罪種本年!$E$4:$U$4,0)),0) -> 92 | E63: =IFERROR(INDEX(認知罪種前年!$E$5:$U$1000,MATCH($C63,認知罪種前年!$D$5:$D$1000,0),MATCH($A$1,認知罪種前年!$E$4:$U$4,0)),0) -> 102 | F63: -10 | G63: -9.803921569 | H63: =IFERROR(INDEX(検挙罪種本年!$E$5:$U$1000,MATCH($C63,検挙罪種本年!$D$5:$D$1000,0),MATCH($A$1,検挙罪種本年!$E$4:$U$4,0)),0) -> 30 | I63: =IFERROR(INDEX(検挙罪種前年!$E$5:$U$1000,MATCH($C63,検挙罪種前年!$D$5:$D$1000,0),MATCH($A$1,検挙罪種前年!$E$4:$U$4,0)),0) -> 35 | J63: -5 | K63: -14.28571429 | L63: 32.6 | M63: 34.3 | N63: -1.7 | O63: =IFERROR(INDEX(人員罪種本年!$E$5:$U$1000,MATCH($C63,人員罪種本年!$D$5:$D$1000,0),MATCH($A$1,人員罪種本年!$E$4:$U$4,0)),0) -> 23 | P63: =IFERROR(INDEX(人員罪種前年!$E$5:$U$1000,MATCH($C63,人員罪種前年!$D$5:$D$1000,0),MATCH($A$1,人員罪種前年!$E$4:$U$4,0)),0) -> 24 | Q63: -1 | R63: -4.166666667 | S63: =IFERROR(INDEX(少年罪種本年!$E$5:$U$1000,MATCH($C63,少年罪種本年!$D$5:$D$1000,0),MATCH($A$1,少年罪種本年!$E$4:$U$4,0)),0) -> 6 | T63: =IFERROR(INDEX(少年罪種前年!$E$5:$U$1000,MATCH($C63,少年罪種前年!$D$5:$D$1000,0),MATCH($A$1,少年罪種前年!$E$4:$U$4,0)),0) -> 4 | U63: 2 | V63: 50 | W63: 26.1 | X63: 16.7 | Y63: 9.4
C64: 同居ねらい | D64: =IFERROR(INDEX(認知罪種本年!$E$5:$U$1000,MATCH($C64,認知罪種本年!$D$5:$D$1000,0),MATCH($A$1,認知罪種本年!$E$4:$U$4,0)),0) -> 6 | E64: =IFERROR(INDEX(認知罪種前年!$E$5:$U$1000,MATCH($C64,認知罪種前年!$D$5:$D$1000,0),MATCH($A$1,認知罪種前年!$E$4:$U$4,0)),0) -> 5 | F64: 1 | G64: 20 | H64: =IFERROR(INDEX(検挙罪種本年!$E$5:$U$1000,MATCH($C64,検挙罪種本年!$D$5:$D$1000,0),MATCH($A$1,検挙罪種本年!$E$4:$U$4,0)),0) -> 5 | I64: =IFERROR(INDEX(検挙罪種前年!$E$5:$U$1000,MATCH($C64,検挙罪種前年!$D$5:$D$1000,0),MATCH($A$1,検挙罪種前年!$E$4:$U$4,0)),0) -> 1 | J64: 4 | K64: 400 | L64: 83.3 | M64: 20 | N64: 63.3 | O64: =IFERROR(INDEX(人員罪種本年!$E$5:$U$1000,MATCH($C64,人員罪種本年!$D$5:$D$1000,0),MATCH($A$1,人員罪種本年!$E$4:$U$4,0)),0) -> 3 | P64: =IFERROR(INDEX(人員罪種前年!$E$5:$U$1000,MATCH($C64,人員罪種前年!$D$5:$D$1000,0),MATCH($A$1,人員罪種前年!$E$4:$U$4,0)),0) -> 0 | Q64: 3 | R64: ― | S64: =IFERROR(INDEX(少年罪種本年!$E$5:$U$1000,MATCH($C64,少年罪種本年!$D$5:$D$1000,0),MATCH($A$1,少年罪種本年!$E$4:$U$4,0)),0) -> 0 | T64: =IFERROR(INDEX(少年罪種前年!$E$5:$U$1000,MATCH($C64,少年罪種前年!$D$5:$D$1000,0),MATCH($A$1,少年罪種前年!$E$4:$U$4,0)),0) -> 0 | U64: 0 | V64: 0 | W64: 0 | Y64: ―
C65: さい銭ねらい | D65: =IFERROR(INDEX(認知罪種本年!$E$5:$U$1000,MATCH($C65,認知罪種本年!$D$5:$D$1000,0),MATCH($A$1,認知罪種本年!$E$4:$U$4,0)),0) -> 41 | E65: =IFERROR(INDEX(認知罪種前年!$E$5:$U$1000,MATCH($C65,認知罪種前年!$D$5:$D$1000,0),MATCH($A$1,認知罪種前年!$E$4:$U$4,0)),0) -> 64 | F65: -23 | G65: -35.9375 | H65: =IFERROR(INDEX(検挙罪種本年!$E$5:$U$1000,MATCH($C65,検挙罪種本年!$D$5:$D$1000,0),MATCH($A$1,検挙罪種本年!$E$4:$U$4,0)),0) -> 18 | I65: =IFERROR(INDEX(検挙罪種前年!$E$5:$U$1000,MATCH($C65,検挙罪種前年!$D$5:$D$1000,0),MATCH($A$1,検挙罪種前年!$E$4:$U$4,0)),0) -> 18 | J65: 0 | K65: 0 | L65: 43.9 | M65: 28.1 | N65: 15.8 | O65: =IFERROR(INDEX(人員罪種本年!$E$5:$U$1000,MATCH($C65,人員罪種本年!$D$5:$D$1000,0),MATCH($A$1,人員罪種本年!$E$4:$U$4,0)),0) -> 8 | P65: =IFERROR(INDEX(人員罪種前年!$E$5:$U$1000,MATCH($C65,人員罪種前年!$D$5:$D$1000,0),MATCH($A$1,人員罪種前年!$E$4:$U$4,0)),0) -> 8 | Q65: 0 | R65: 0 | S65: =IFERROR(INDEX(少年罪種本年!$E$5:$U$1000,MATCH($C65,少年罪種本年!$D$5:$D$1000,0),MATCH($A$1,少年罪種本年!$E$4:$U$4,0)),0) -> 0 | T65: =IFERROR(INDEX(少年罪種前年!$E$5:$U$1000,MATCH($C65,少年罪種前年!$D$5:$D$1000,0),MATCH($A$1,少年罪種前年!$E$4:$U$4,0)),0) -> 0 | U65: 0 | V65: 0 | W65: 0 | X65: 0 | Y65: 0
C66: ゴト | D66: =IFERROR(INDEX(認知罪種本年!$E$5:$U$1000,MATCH("非侵入窃盗その他（ゴト）",認知罪種本年!$D$5:$D$1000,0),MATCH($A$1,認知罪種本年!$E$4:$U$4,0)),0) -> 0 | E66: =IFERROR(INDEX(認知罪種前年!$E$5:$U$1000,MATCH("非侵入窃盗その他（ゴト）",認知罪種前年!$D$5:$D$1000,0),MATCH($A$1,認知罪種前年!$E$4:$U$4,0)),0) -> 0 | F66: 0 | G66: 0 | H66: =IFERROR(INDEX(検挙罪種本年!$E$5:$U$1000,MATCH("非侵入窃盗その他（ゴト）",検挙罪種本年!$D$5:$D$1000,0),MATCH($A$1,検挙罪種本年!$E$4:$U$4,0)),0) -> 0 | I66: =IFERROR(INDEX(検挙罪種前年!$E$5:$U$1000,MATCH("非侵入窃盗その他（ゴト）",検挙罪種前年!$D$5:$D$1000,0),MATCH($A$1,検挙罪種前年!$E$4:$U$4,0)),0) -> 0 | J66: 0 | K66: 0 | O66: =IFERROR(INDEX(人員罪種本年!$E$5:$U$1000,MATCH("非侵入窃盗その他（ゴト）",人員罪種本年!$D$5:$D$1000,0),MATCH($A$1,人員罪種本年!$E$4:$U$4,0)),0) -> 0 | P66: =IFERROR(INDEX(人員罪種前年!$E$5:$U$1000,MATCH("非侵入窃盗その他（ゴト）",人員罪種前年!$D$5:$D$1000,0),MATCH($A$1,人員罪種前年!$E$4:$U$4,0)),0) -> 0 | Q66: 0 | R66: 0 | S66: =IFERROR(INDEX(少年罪種本年!$E$5:$U$1000,MATCH("非侵入窃盗その他（ゴト）",少年罪種本年!$D$5:$D$1000,0),MATCH($A$1,少年罪種本年!$E$4:$U$4,0)),0) -> 0 | T66: =IFERROR(INDEX(少年罪種前年!$E$5:$U$1000,MATCH("非侵入窃盗その他（ゴト）",少年罪種前年!$D$5:$D$1000,0),MATCH($A$1,少年罪種前年!$E$4:$U$4,0)),0) -> 0 | U66: 0 | V66: 0
C67: 乗り物盗その他 | D67: =IFERROR(INDEX(認知罪種本年!$E$5:$U$1000,MATCH($C67,認知罪種本年!$D$5:$D$1000,0),MATCH($A$1,認知罪種本年!$E$4:$U$4,0)),0) -> 1 | E67: =IFERROR(INDEX(認知罪種前年!$E$5:$U$1000,MATCH($C67,認知罪種前年!$D$5:$D$1000,0),MATCH($A$1,認知罪種前年!$E$4:$U$4,0)),0) -> 2 | F67: -1 | G67: -50 | H67: =IFERROR(INDEX(検挙罪種本年!$E$5:$U$1000,MATCH($C67,検挙罪種本年!$D$5:$D$1000,0),MATCH($A$1,検挙罪種本年!$E$4:$U$4,0)),0) -> 0 | I67: =IFERROR(INDEX(検挙罪種前年!$E$5:$U$1000,MATCH($C67,検挙罪種前年!$D$5:$D$1000,0),MATCH($A$1,検挙罪種前年!$E$4:$U$4,0)),0) -> 0 | J67: 0 | K67: 0 | L67: 0 | M67: 0 | N67: 0 | O67: =IFERROR(INDEX(人員罪種本年!$E$5:$U$1000,MATCH($C67,人員罪種本年!$D$5:$D$1000,0),MATCH($A$1,人員罪種本年!$E$4:$U$4,0)),0) -> 0 | P67: =IFERROR(INDEX(人員罪種前年!$E$5:$U$1000,MATCH($C67,人員罪種前年!$D$5:$D$1000,0),MATCH($A$1,人員罪種前年!$E$4:$U$4,0)),0) -> 0 | Q67: 0 | R67: 0 | S67: =IFERROR(INDEX(少年罪種本年!$E$5:$U$1000,MATCH($C67,少年罪種本年!$D$5:$D$1000,0),MATCH($A$1,少年罪種本年!$E$4:$U$4,0)),0) -> 0 | T67: =IFERROR(INDEX(少年罪種前年!$E$5:$U$1000,MATCH($C67,少年罪種前年!$D$5:$D$1000,0),MATCH($A$1,少年罪種前年!$E$4:$U$4,0)),0) -> 0 | U67: 0 | V67: 0
C68: 非侵入窃盗その他 | D68: =IFERROR(INDEX(認知罪種本年!$E$5:$U$1000,MATCH("非侵入窃盗その他（その他）",認知罪種本年!$D$5:$D$1000,0),MATCH($A$1,認知罪種本年!$E$4:$U$4,0)),0) -> 484 | E68: =IFERROR(INDEX(認知罪種前年!$E$5:$U$1000,MATCH("非侵入窃盗その他（その他）",認知罪種前年!$D$5:$D$1000,0),MATCH($A$1,認知罪種前年!$E$4:$U$4,0)),0) -> 461 | F68: 23 | G68: 4.989154013 | H68: =IFERROR(INDEX(検挙罪種本年!$E$5:$U$1000,MATCH("非侵入窃盗その他（その他）",検挙罪種本年!$D$5:$D$1000,0),MATCH($A$1,検挙罪種本年!$E$4:$U$4,0)),0) -> 218 | I68: =IFERROR(INDEX(検挙罪種前年!$E$5:$U$1000,MATCH("非侵入窃盗その他（その他）",検挙罪種前年!$D$5:$D$1000,0),MATCH($A$1,検挙罪種前年!$E$4:$U$4,0)),0) -> 181 | J68: 37 | K68: 20.44198895 | L68: 45 | M68: 39.3 | N68: 5.7 | O68: =IFERROR(INDEX(人員罪種本年!$E$5:$U$1000,MATCH("非侵入窃盗その他（その他）",人員罪種本年!$D$5:$D$1000,0),MATCH($A$1,人員罪種本年!$E$4:$U$4,0)),0) -> 108 | P68: =IFERROR(INDEX(人員罪種前年!$E$5:$U$1000,MATCH("非侵入窃盗その他（その他）",人員罪種前年!$D$5:$D$1000,0),MATCH($A$1,人員罪種前年!$E$4:$U$4,0)),0) -> 124 | Q68: -16 | R68: -12.90322581 | S68: =IFERROR(INDEX(少年罪種本年!$E$5:$U$1000,MATCH("非侵入窃盗その他（その他）",少年罪種本年!$D$5:$D$1000,0),MATCH($A$1,少年罪種本年!$E$4:$U$4,0)),0) -> 5 | T68: =IFERROR(INDEX(少年罪種前年!$E$5:$U$1000,MATCH("非侵入窃盗その他（その他）",少年罪種前年!$D$5:$D$1000,0),MATCH($A$1,少年罪種前年!$E$4:$U$4,0)),0) -> 10 | U68: -5 | V68: -50 | W68: 4.6 | X68: 8.1 | Y68: -3.5
L69: =集計現在 -> 2022-02-01 | W69: =集計現在 -> 2022-02-01

Sheet 警察署別
A1: 総計 | G1: データソース： | I1: =VLOOKUP($A$1,罪名・手口,2,FALSE) -> 罪種 | K1: 親階層： | M1: =IF(OR(VLOOKUP($A$1,罪名・手口,3,FALSE)="",ISERR(VLOOKUP($A$1,罪名・手口,3,FALSE))),"",VLOOKUP($A$1,罪名・手口,3,FALSE)) ->  | V1: 車上ねらい・乗り物盗個別集計 | AE1: 重要犯罪個別集計 | AN1: 重要窃盗犯個別集計
M2: =IF(M1="","《 "&TRIM(A1)&" 》","《 " & M1 & "（" & TRIM(A1) & "） 》") -> 《 総計 》 | V2: 条件１： | W2: =IF(TRIM($A$1)="自動車盗","自動車盗（キーあり）",IF(TRIM($A$1)="オートバイ盗","オートバイ盗（キーあり）",IF(TRIM($A$1)="自転車盗","自転車盗（施錠した）",IF(TRIM($A$1)="車上ねらい","車上ねらい（施錠した）","")))) ->  | Z2: 条件２： | AA2: =IF(TRIM($A$1)="自動車盗","自動車盗（キーなし）",IF(TRIM($A$1)="オートバイ盗","オートバイ盗（キーなし）",IF(TRIM($A$1)="自転車盗","自転車盗（施錠せず）",IF(TRIM($A$1)="車上ねらい","車上ねらい（施錠せず）","")))) -> 
A3: 区 分 | B3: 認 知 件 数 | F3: 検 挙 件 数 | J3: 検 挙 率 | M3: 検 挙 人 員 （ 総 数 ） | Q3: 検 挙 人 員 （ 少 年 ） | V3: 認知件数 | X3: 検挙件数 | Z3: 検挙人員（総） | AB3: 検挙人員（少） | AE3: 認知件数 | AG3: 検挙件数 | AI3: 検挙人員（総） | AK3: 検挙人員（少） | AN3: 認知件数 | AP3: 検挙件数 | AR3: 検挙人員（総） | AT3: 検挙人員（少）
B4: =本年 -> R03 | C4: =前年 -> R02 | D4: 増 減 | F4: =本年 -> R03 | G4: =前年 -> R02 | H4: 増 減 | J4: =本年 -> R03 | K4: =前年 -> R02 | L4: 増 減 | M4: =本年 -> R03 | N4: =前年 -> R02 | O4: 増 減 | Q4: =本年 -> R03 | R4: =前年 -> R02 | S4: 増 減 | V4: =本年 -> R03 | W4: =前年 -> R02 | X4: =本年 -> R03 | Y4: =前年 -> R02 | Z4: =本年 -> R03 | AA4: =前年 -> R02 | AB4: =本年 -> R03 | AC4: =前年 -> R02 | AE4: =本年 -> R03 | AF4: =前年 -> R02 | AG4: =本年 -> R03 | AH4: =前年 -> R02 | AI4: =本年 -> R03 | AJ4: =前年 -> R02 | AK4: =本年 -> R03 | AL4: =前年 -> R02 | AN4: =本年 -> R03 | AO4: =前年 -> R02 | AP4: =本年 -> R03 | AQ4: =前年 -> R02 | AR4: =本年 -> R03 | AS4: =前年 -> R02 | AT4: =本年 -> R03 | AU4: =前年 -> R02
B5: =累月 -> 1～12月 | C5: =累月 -> 1～12月 | D5: 件 数 | E5: 率 | F5: =累月 -> 1～12月 | G5: =累月 -> 1～12月 | H5: 件 数 | I5: 率 | J5: =累月 -> 1～12月 | K5: =累月 -> 1～12月 | L5: ポイント | M5: =累月 -> 1～12月 | N5: =累月 -> 1～12月 | O5: 件 数 | P5: 率 | Q5: =累月 -> 1～12月 | R5: =累月 -> 1～12月 | S5: 件 数 | T5: 率 | V5: =累月 -> 1～12月 | W5: 1～12月 | X5: 1～12月 | Y5: 1～12月 | Z5: 1～12月 | AA5: 1～12月 | AB5: 1～12月 | AC5: 1～12月 | AE5: =累月 -> 1～12月 | AF5: 1～12月 | AG5: 1～12月 | AH5: 1～12月 | AI5: 1～12月 | AJ5: 1～12月 | AK5: 1～12月 | AL5: 1～12月 | AN5: =累月 -> 1～12月 | AO5: 1～12月 | AP5: 1～12月 | AQ5: 1～12月 | AR5: 1～12月 | AS5: 1～12月 | AT5: 1～12月 | AU5: 1～12月
A6: 滋賀県 | B6: =IFERROR(IF($W$2<>"",$V6,IF($A$1="重要犯罪",$AE6,IF($A$1="重要窃盗犯",$AN6,INDEX(INDIRECT("認知" & $I$1 & "本年!$E$5:$U$1000"),MATCH(TRIM($A$1),INDIRECT("認知" & $I$1 & "本年!$D$5:$D$1000"),0),MATCH($A6,INDIRECT("認知" & $I$1 & "本年!$E$4:$U$4"),0))))),"") -> 5814 | C6: =IFERROR(IF($W$2<>"",$W6,IF($A$1="重要犯罪",$AF6,IF($A$1="重要窃盗犯",$AO6,INDEX(INDIRECT("認知" & $I$1 & "前年!$E$5:$U$1000"),MATCH(TRIM($A$1),INDIRECT("認知" & $I$1 & "前年!$D$5:$D$1000"),0),MATCH($A6,INDIRECT("認知" & $I$1 & "前年!$E$4:$U$4"),0))))),"") -> 6039 | D6: =B6-C6 -> -225 | E6: =IF(AND(C6=0,B6=0),0,IF(C6>0,D6/C6*100,IF(D6>0,"―",""))) -> -3.725782414 | F6: =IFERROR(IF($W$2<>"",$X6,IF($A$1="重要犯罪",$AG6,IF($A$1="重要窃盗犯",$AP6,INDEX(INDIRECT("検挙" & $I$1 & "本年!$E$5:$U$1000"),MATCH(TRIM($A$1),INDIRECT("検挙" & $I$1 & "本年!$D$5:$D$1000"),0),MATCH($A6,INDIRECT("検挙" & $I$1 & "本年!$E$4:$U$4"),0))))),"") -> 2952 | G6: =IFERROR(IF($W$2<>"",$Y6,IF($A$1="重要犯罪",$AH6,IF($A$1="重要窃盗犯",$AQ6,INDEX(INDIRECT("検挙" & $I$1 & "前年!$E$5:$U$1000"),MATCH(TRIM($A$1),INDIRECT("検挙" & $I$1 & "前年!$D$5:$D$1000"),0),MATCH($A6,INDIRECT("検挙" & $I$1 & "前年!$E$4:$U$4"),0))))),"") -> 2511 | H6: =F6-G6 -> 441 | I6: =IF(AND(G6=0,F6=0),0,IF(G6>0,H6/G6*100,IF(H6>0,"―",""))) -> 17.56272401 | J6: =IF(B6>0,ROUND(F6/B6*100,1),IF(F6>0,"―","")) -> 50.8 | K6: 41.6 | L6: =IF(AND(K6="",J6=""),"",IF(ISERR(J6-K6),"―",J6-K6)) -> 9.2 | M6: =IFERROR(IF($W$2<>"",$Z6,IF($A$1="重要犯罪",$AI6,IF($A$1="重要窃盗犯",$AR6,INDEX(INDIRECT("人員" & $I$1 & "本年!$E$5:$U$1000"),MATCH(TRIM($A$1),INDIRECT("人員" & $I$1 & "本年!$D$5:$D$1000"),0),MATCH($A6,INDIRECT("人員" & $I$1 & "本年!$E$4:$U$4"),0))))),"") -> 1893 | N6: =IFERROR(IF($W$2<>"",$AA6,IF($A$1="重要犯罪",$AJ6,IF($A$1="重要窃盗犯",$AS6,INDEX(INDIRECT("人員" & $I$1 & "前年!$E$5:$U$1000"),MATCH(TRIM($A$1),INDIRECT("人員" & $I$1 & "前年!$D$5:$D$1000"),0),MATCH($A6,INDIRECT("人員" & $I$1 & "前年!$E$4:$U$4"),0))))),"") -> 1807 | O6: =M6-N6 -> 86 | P6: =IF(AND(N6=0,M6=0),0,IF(N6>0,O6/N6*100,IF(O6>0,"―",""))) -> 4.759269507 | Q6: =IFERROR(IF($W$2<>"",$AB6,IF($A$1="重要犯罪",$AK6,IF($A$1="重要窃盗犯",$AT6,INDEX(INDIRECT("少年" & $I$1 & "本年!$E$5:$U$1000"),MATCH(TRIM($A$1),INDIRECT("少年" & $I$1 & "本年!$D$5:$D$1000"),0),MATCH($A6,INDIRECT("少年" & $I$1 & "本年!$E$4:$U$4"),0))))),"") -> 227 | R6: =IFERROR(IF($W$2<>"",$AC6,IF($A$1="重要犯罪",$AL6,IF($A$1="重要窃盗犯",$AU6,INDEX(INDIRECT("少年" & $I$1 & "前年!$E$5:$U$1000"),MATCH(TRIM($A$1),INDIRECT("少年" & $I$1 & "前年!$D$5:$D$1000"),0),MATCH($A6,INDIRECT("少年" & $I$1 & "前年!$E$4:$U$4"),0))))),"") -> 236 | S6: =Q6-R6 -> -9 | T6: =IF(AND(R6=0,Q6=0),0,IF(R6>0,S6/R6*100,IF(S6>0,"―",""))) -> -3.813559322 | V6: =IFERROR(INDEX(認知罪種本年!$E$5:$U$1000,MATCH($W$2,認知罪種本年!$D$5:$D$1000,0),MATCH($A6,認知罪種本年!$E$4:$U$4,0))+INDEX(認知罪種本年!$E$5:$U$1000,MATCH($AA$2,認知罪種本年!$D$5:$D$1000,0),MATCH($A6,認知罪種本年!$E$4:$U$4,0)),0) -> 0 | W6: =IFERROR(INDEX(認知罪種前年!$E$5:$U$1000,MATCH($W$2,認知罪種前年!$D$5:$D$1000,0),MATCH($A6,認知罪種前年!$E$4:$U$4,0))+INDEX(認知罪種前年!$E$5:$U$1000,MATCH($AA$2,認知罪種前年!$D$5:$D$1000,0),MATCH($A6,認知罪種前年!$E$4:$U$4,0)),0) -> 0 | X6: =IFERROR(INDEX(検挙罪種本年!$E$5:$U$1000,MATCH($W$2,検挙罪種本年!$D$5:$D$1000,0),MATCH($A6,検挙罪種本年!$E$4:$U$4,0))+INDEX(検挙罪種本年!$E$5:$U$1000,MATCH($AA$2,検挙罪種本年!$D$5:$D$1000,0),MATCH($A6,検挙罪種本年!$E$4:$U$4,0)),0) -> 0 | Y6: =IFERROR(INDEX(検挙罪種前年!$E$5:$U$1000,MATCH($W$2,検挙罪種前年!$D$5:$D$1000,0),MATCH($A6,検挙罪種前年!$E$4:$U$4,0))+INDEX(検挙罪種前年!$E$5:$U$1000,MATCH($AA$2,検挙罪種前年!$D$5:$D$1000,0),MATCH($A6,検挙罪種前年!$E$4:$U$4,0)),0) -> 0 | Z6: =IFERROR(INDEX(人員罪種本年!$E$5:$U$1000,MATCH($W$2,人員罪種本年!$D$5:$D$1000,0),MATCH($A6,人員罪種本年!$E$4:$U$4,0))+INDEX(人員罪種本年!$E$5:$U$1000,MATCH($AA$2,人員罪種本年!$D$5:$D$1000,0),MATCH($A6,人員罪種本年!$E$4:$U$4,0)),0) -> 0 | AA6: =IFERROR(INDEX(人員罪種前年!$E$5:$U$1000,MATCH($W$2,人員罪種前年!$D$5:$D$1000,0),MATCH($A6,人員罪種前年!$E$4:$U$4,0))+INDEX(人員罪種前年!$E$5:$U$1000,MATCH($AA$2,人員罪種前年!$D$5:$D$1000,0),MATCH($A6,人員罪種前年!$E$4:$U$4,0)),0) -> 0 | AB6: =IFERROR(INDEX(少年罪種本年!$E$5:$U$1000,MATCH($W$2,少年罪種本年!$D$5:$D$1000,0),MATCH($A6,少年罪種本年!$E$4:$U$4,0))+INDEX(少年罪種本年!$E$5:$U$1000,MATCH($AA$2,少年罪種本年!$D$5:$D$1000,0),MATCH($A6,少年罪種本年!$E$4:$U$4,0)),0) -> 0 | AC6: =IFERROR(INDEX(少年罪種前年!$E$5:$U$1000,MATCH($W$2,少年罪種前年!$D$5:$D$1000,0),MATCH($A6,少年罪種前年!$E$4:$U$4,0))+INDEX(少年罪種前年!$E$5:$U$1000,MATCH($AA$2,少年罪種前年!$D$5:$D$1000,0),MATCH($A6,少年罪種前年!$E$4:$U$4,0)),0) -> 0 | AE6: =IFERROR(INDEX(認知罪種本年!$E$5:$U$1000,MATCH("凶悪犯",認知罪種本年!$D$5:$D$1000,0),MATCH($A6,認知罪種本年!$E$4:$U$4,0))+INDEX(認知罪種本年!$E$5:$U$1000,MATCH("強制わいせつ",認知罪種本年!$D$5:$D$1000,0),MATCH($A6,認知罪種本年!$E$4:$U$4,0))+INDEX(認知罪種本年!$E$5:$U$1000,MATCH("略取誘拐・人身売買",認知罪種本年!$D$5:$D$1000,0),MATCH($A6,認知罪種本年!$E$4:$U$4,0)),0) -> 102 | AF6: =IFERROR(INDEX(認知罪種前年!$E$5:$U$1000,MATCH("凶悪犯",認知罪種前年!$D$5:$D$1000,0),MATCH($A6,認知罪種前年!$E$4:$U$4,0))+INDEX(認知罪種前年!$E$5:$U$1000,MATCH("強制わいせつ",認知罪種前年!$D$5:$D$1000,0),MATCH($A6,認知罪種前年!$E$4:$U$4,0))+INDEX(認知罪種前年!$E$5:$U$1000,MATCH("略取誘拐・人身売買",認知罪種前年!$D$5:$D$1000,0),MATCH($A6,認知罪種前年!$E$4:$U$4,0)),0) -> 84 | AG6: =IFERROR(INDEX(検挙罪種本年!$E$5:$U$1000,MATCH("凶悪犯",検挙罪種本年!$D$5:$D$1000,0),MATCH($A6,検挙罪種本年!$E$4:$U$4,0))+INDEX(検挙罪種本年!$E$5:$U$1000,MATCH("強制わいせつ",検挙罪種本年!$D$5:$D$1000,0),MATCH($A6,検挙罪種本年!$E$4:$U$4,0))+INDEX(検挙罪種本年!$E$5:$U$1000,MATCH("略取誘拐・人身売買",検挙罪種本年!$D$5:$D$1000,0),MATCH($A6,検挙罪種本年!$E$4:$U$4,0)),0) -> 80 | AH6: =IFERROR(INDEX(検挙罪種前年!$E$5:$U$1000,MATCH("凶悪犯",検挙罪種前年!$D$5:$D$1000,0),MATCH($A6,検挙罪種前年!$E$4:$U$4,0))+INDEX(検挙罪種前年!$E$5:$U$1000,MATCH("強制わいせつ",検挙罪種前年!$D$5:$D$1000,0),MATCH($A6,検挙罪種前年!$E$4:$U$4,0))+INDEX(検挙罪種前年!$E$5:$U$1000,MATCH("略取誘拐・人身売買",検挙罪種前年!$D$5:$D$1000,0),MATCH($A6,検挙罪種前年!$E$4:$U$4,0)),0) -> 85 | AI6: =IFERROR(INDEX(人員罪種本年!$E$5:$U$1000,MATCH("凶悪犯",人員罪種本年!$D$5:$D$1000,0),MATCH($A6,人員罪種本年!$E$4:$U$4,0))+INDEX(人員罪種本年!$E$5:$U$1000,MATCH("強制わいせつ",人員罪種本年!$D$5:$D$1000,0),MATCH($A6,人員罪種本年!$E$4:$U$4,0))+INDEX(人員罪種本年!$E$5:$U$1000,MATCH("略取誘拐・人身売買",人員罪種本年!$D$5:$D$1000,0),MATCH($A6,人員罪種本年!$E$4:$U$4,0)),0) -> 79 | AJ6: =IFERROR(INDEX(人員罪種前年!$E$5:$U$1000,MATCH("凶悪犯",人員罪種前年!$D$5:$D$1000,0),MATCH($A6,人員罪種前年!$E$4:$U$4,0))+INDEX(人員罪種前年!$E$5:$U$1000,MATCH("強制わいせつ",人員罪種前年!$D$5:$D$1000,0),MATCH($A6,人員罪種前年!$E$4:$U$4,0))+INDEX(人員罪種前年!$E$5:$U$1000,MATCH("略取誘拐・人身売買",人員罪種前年!$D$5:$D$1000,0),MATCH($A6,人員罪種前年!$E$4:$U$4,0)),0) -> 77 | AK6: =IFERROR(INDEX(少年罪種本年!$E$5:$U$1000,MATCH("凶悪犯",少年罪種本年!$D$5:$D$1000,0),MATCH($A6,少年罪種本年!$E$4:$U$4,0))+INDEX(少年罪種本年!$E$5:$U$1000,MATCH("強制わいせつ",少年罪種本年!$D$5:$D$1000,0),MATCH($A6,少年罪種本年!$E$4:$U$4,0))+INDEX(少年罪種本年!$E$5:$U$1000,MATCH("略取誘拐・人身売買",少年罪種本年!$D$5:$D$1000,0),MATCH($A6,少年罪種本年!$E$4:$U$4,0)),0) -> 6 | AL6: =IFERROR(INDEX(少年罪種前年!$E$5:$U$1000,MATCH("凶悪犯",少年罪種前年!$D$5:$D$1000,0),MATCH($A6,少年罪種前年!$E$4:$U$4,0))+INDEX(少年罪種前年!$E$5:$U$1000,MATCH("強制わいせつ",少年罪種前年!$D$5:$D$1000,0),MATCH($A6,少年罪種前年!$E$4:$U$4,0))+INDEX(少年罪種前年!$E$5:$U$1000,MATCH("略取誘拐・人身売買",少年罪種前年!$D$5:$D$1000,0),MATCH($A6,少年罪種前年!$E$4:$U$4,0)),0) -> 24 | AN6: =IFERROR(INDEX(認知罪種本年!$E$5:$U$1000,MATCH("侵入窃盗",認知罪種本年!$D$5:$D$1000,0),MATCH($A6,認知罪種本年!$E$4:$U$4,0))+INDEX(認知罪種本年!$E$5:$U$1000,MATCH("自動車盗（キーあり）",認知罪種本年!$D$5:$D$1000,0),MATCH($A6,認知罪種本年!$E$4:$U$4,0))+INDEX(認知罪種本年!$E$5:$U$1000,MATCH("自動車盗（キーなし）",認知罪種本年!$D$5:$D$1000,0),MATCH($A6,認知罪種本年!$E$4:$U$4,0))+INDEX(認知罪種本年!$E$5:$U$1000,MATCH("ひったくり",認知罪種本年!$D$5:$D$1000,0),MATCH($A6,認知罪種本年!$E$4:$U$4,0))+INDEX(認知罪種本年!$E$5:$U$1000,MATCH("すり",認知罪種本年!$D$5:$D$1000,0),MATCH($A6,認知罪種本年!$E$4:$U$4,0)),0) -> 414 | AO6: =IFERROR(INDEX(認知罪種前年!$E$5:$U$1000,MATCH("侵入窃盗",認知罪種前年!$D$5:$D$1000,0),MATCH($A6,認知罪種前年!$E$4:$U$4,0))+INDEX(認知罪種前年!$E$5:$U$1000,MATCH("自動車盗（キーあり）",認知罪種前年!$D$5:$D$1000,0),MATCH($A6,認知罪種前年!$E$4:$U$4,0))+INDEX(認知罪種前年!$E$5:$U$1000,MATCH("自動車盗（キーなし）",認知罪種前年!$D$5:$D$1000,0),MATCH($A6,認知罪種前年!$E$4:$U$4,0))+INDEX(認知罪種前年!$E$5:$U$1000,MATCH("ひったくり",認知罪種前年!$D$5:$D$1000,0),MATCH($A6,認知罪種前年!$E$4:$U$4,0))+INDEX(認知罪種前年!$E$5:$U$1000,MATCH("すり",認知罪種前年!$D$5:$D$1000,0),MATCH($A6,認知罪種前年!$E$4:$U$4,0)),0) -> 508 | AP6: =IFERROR(INDEX(検挙罪種本年!$E$5:$U$1000,MATCH("侵入窃盗",検挙罪種本年!$D$5:$D$1000,0),MATCH($A6,検挙罪種本年!$E$4:$U$4,0))+INDEX(検挙罪種本年!$E$5:$U$1000,MATCH("自動車盗（キーあり）",検挙罪種本年!$D$5:$D$1000,0),MATCH($A6,検挙罪種本年!$E$4:$U$4,0))+INDEX(検挙罪種本年!$E$5:$U$1000,MATCH("自動車盗（キーなし）",検挙罪種本年!$D$5:$D$1000,0),MATCH($A6,検挙罪種本年!$E$4:$U$4,0))+INDEX(検挙罪種本年!$E$5:$U$1000,MATCH("ひったくり",検挙罪種本年!$D$5:$D$1000,0),MATCH($A6,検挙罪種本年!$E$4:$U$4,0))+INDEX(検挙罪種本年!$E$5:$U$1000,MATCH("すり",検挙罪種本年!$D$5:$D$1000,0),MATCH($A6,検挙罪種本年!$E$4:$U$4,0)),0) -> 343 | AQ6: =IFERROR(INDEX(検挙罪種前年!$E$5:$U$1000,MATCH("侵入窃盗",検挙罪種前年!$D$5:$D$1000,0),MATCH($A6,検挙罪種前年!$E$4:$U$4,0))+INDEX(検挙罪種前年!$E$5:$U$1000,MATCH("自動車盗（キーあり）",検挙罪種前年!$D$5:$D$1000,0),MATCH($A6,検挙罪種前年!$E$4:$U$4,0))+INDEX(検挙罪種前年!$E$5:$U$1000,MATCH("自動車盗（キーなし）",検挙罪種前年!$D$5:$D$1000,0),MATCH($A6,検挙罪種前年!$E$4:$U$4,0))+INDEX(検挙罪種前年!$E$5:$U$1000,MATCH("ひったくり",検挙罪種前年!$D$5:$D$1000,0),MATCH($A6,検挙罪種前年!$E$4:$U$4,0))+INDEX(検挙罪種前年!$E$5:$U$1000,MATCH("すり",検挙罪種前年!$D$5:$D$1000,0),MATCH($A6,検挙罪種前年!$E$4:$U$4,0)),0) -> 254 | AR6: =IFERROR(INDEX(人員罪種本年!$E$5:$U$1000,MATCH("侵入窃盗",人員罪種本年!$D$5:$D$1000,0),MATCH($A6,人員罪種本年!$E$4:$U$4,0))+INDEX(人員罪種本年!$E$5:$U$1000,MATCH("自動車盗（キーあり）",人員罪種本年!$D$5:$D$1000,0),MATCH($A6,人員罪種本年!$E$4:$U$4,0))+INDEX(人員罪種本年!$E$5:$U$1000,MATCH("自動車盗（キーなし）",人員罪種本年!$D$5:$D$1000,0),MATCH($A6,人員罪種本年!$E$4:$U$4,0))+INDEX(人員罪種本年!$E$5:$U$1000,MATCH("ひったくり",人員罪種本年!$D$5:$D$1000,0),MATCH($A6,人員罪種本年!$E$4:$U$4,0))+INDEX(人員罪種本年!$E$5:$U$1000,MATCH("すり",人員罪種本年!$D$5:$D$1000,0),MATCH($A6,人員罪種本年!$E$4:$U$4,0)),0) -> 96 | AS6: =IFERROR(INDEX(人員罪種前年!$E$5:$U$1000,MATCH("侵入窃盗",人員罪種前年!$D$5:$D$1000,0),MATCH($A6,人員罪種前年!$E$4:$U$4,0))+INDEX(人員罪種前年!$E$5:$U$1000,MATCH("自動車盗（キーあり）",人員罪種前年!$D$5:$D$1000,0),MATCH($A6,人員罪種前年!$E$4:$U$4,0))+INDEX(人員罪種前年!$E$5:$U$1000,MATCH("自動車盗（キーなし）",人員罪種前年!$D$5:$D$1000,0),MATCH($A6,人員罪種前年!$E$4:$U$4,0))+INDEX(人員罪種前年!$E$5:$U$1000,MATCH("ひったくり",人員罪種前年!$D$5:$D$1000,0),MATCH($A6,人員罪種前年!$E$4:$U$4,0))+INDEX(人員罪種前年!$E$5:$U$1000,MATCH("すり",人員罪種前年!$D$5:$D$1000,0),MATCH($A6,人員罪種前年!$E$4:$U$4,0)),0) -> 122 | AT6: =IFERROR(INDEX(少年罪種本年!$E$5:$U$1000,MATCH("侵入窃盗",少年罪種本年!$D$5:$D$1000,0),MATCH($A6,少年罪種本年!$E$4:$U$4,0))+INDEX(少年罪種本年!$E$5:$U$1000,MATCH("自動車盗（キーあり）",少年罪種本年!$D$5:$D$1000,0),MATCH($A6,少年罪種本年!$E$4:$U$4,0))+INDEX(少年罪種本年!$E$5:$U$1000,MATCH("自動車盗（キーなし）",少年罪種本年!$D$5:$D$1000,0),MATCH($A6,少年罪種本年!$E$4:$U$4,0))+INDEX(少年罪種本年!$E$5:$U$1000,MATCH("ひったくり",少年罪種本年!$D$5:$D$1000,0),MATCH($A6,少年罪種本年!$E$4:$U$4,0))+INDEX(少年罪種本年!$E$5:$U$1000,MATCH("すり",少年罪種本年!$D$5:$D$1000,0),MATCH($A6,少年罪種本年!$E$4:$U$4,0)),0) -> 16 | AU6: =IFERROR(INDEX(少年罪種前年!$E$5:$U$1000,MATCH("侵入窃盗",少年罪種前年!$D$5:$D$1000,0),MATCH($A6,少年罪種前年!$E$4:$U$4,0))+INDEX(少年罪種前年!$E$5:$U$1000,MATCH("自動車盗（キーあり）",少年罪種前年!$D$5:$D$1000,0),MATCH($A6,少年罪種前年!$E$4:$U$4,0))+INDEX(少年罪種前年!$E$5:$U$1000,MATCH("自動車盗（キーなし）",少年罪種前年!$D$5:$D$1000,0),MATCH($A6,少年罪種前年!$E$4:$U$4,0))+INDEX(少年罪種前年!$E$5:$U$1000,MATCH("ひったくり",少年罪種前年!$D$5:$D$1000,0),MATCH($A6,少年罪種前年!$E$4:$U$4,0))+INDEX(少年罪種前年!$E$5:$U$1000,MATCH("すり",少年罪種前年!$D$5:$D$1000,0),MATCH($A6,少年罪種前年!$E$4:$U$4,0)),0) -> 13
A7: 大津 | B7: 1227 | C7: 1234 | D7: -7 | E7: -0.56726094 | F7: 562 | G7: 493 | H7: 69 | I7: 13.9959432 | J7: 45.8 | K7: 40 | L7: 5.8 | M7: 381 | N7: 369 | O7: 12 | P7: 3.25203252 | Q7: 64 | R7: 52 | S7: 12 | T7: 23.07692308 | V7: =IFERROR(INDEX(認知罪種本年!$E$5:$U$1000,MATCH($W$2,認知罪種本年!$D$5:$D$1000,0),MATCH($A7,認知罪種本年!$E$4:$U$4,0))+INDEX(認知罪種本年!$E$5:$U$1000,MATCH($AA$2,認知罪種本年!$D$5:$D$1000,0),MATCH($A7,認知罪種本年!$E$4:$U$4,0)),0) -> 0 | W7: =IFERROR(INDEX(認知罪種前年!$E$5:$U$1000,MATCH($W$2,認知罪種前年!$D$5:$D$1000,0),MATCH($A7,認知罪種前年!$E$4:$U$4,0))+INDEX(認知罪種前年!$E$5:$U$1000,MATCH($AA$2,認知罪種前年!$D$5:$D$1000,0),MATCH($A7,認知罪種前年!$E$4:$U$4,0)),0) -> 0 | X7: =IFERROR(INDEX(検挙罪種本年!$E$5:$U$1000,MATCH($W$2,検挙罪種本年!$D$5:$D$1000,0),MATCH($A7,検挙罪種本年!$E$4:$U$4,0))+INDEX(検挙罪種本年!$E$5:$U$1000,MATCH($AA$2,検挙罪種本年!$D$5:$D$1000,0),MATCH($A7,検挙罪種本年!$E$4:$U$4,0)),0) -> 0 | Y7: =IFERROR(INDEX(検挙罪種前年!$E$5:$U$1000,MATCH($W$2,検挙罪種前年!$D$5:$D$1000,0),MATCH($A7,検挙罪種前年!$E$4:$U$4,0))+INDEX(検挙罪種前年!$E$5:$U$1000,MATCH($AA$2,検挙罪種前年!$D$5:$D$1000,0),MATCH($A7,検挙罪種前年!$E$4:$U$4,0)),0) -> 0 | Z7: =IFERROR(INDEX(人員罪種本年!$E$5:$U$1000,MATCH($W$2,人員罪種本年!$D$5:$D$1000,0),MATCH($A7,人員罪種本年!$E$4:$U$4,0))+INDEX(人員罪種本年!$E$5:$U$1000,MATCH($AA$2,人員罪種本年!$D$5:$D$1000,0),MATCH($A7,人員罪種本年!$E$4:$U$4,0)),0) -> 0 | AA7: =IFERROR(INDEX(人員罪種前年!$E$5:$U$1000,MATCH($W$2,人員罪種前年!$D$5:$D$1000,0),MATCH($A7,人員罪種前年!$E$4:$U$4,0))+INDEX(人員罪種前年!$E$5:$U$1000,MATCH($AA$2,人員罪種前年!$D$5:$D$1000,0),MATCH($A7,人員罪種前年!$E$4:$U$4,0)),0) -> 0 | AB7: =IFERROR(INDEX(少年罪種本年!$E$5:$U$1000,MATCH($W$2,少年罪種本年!$D$5:$D$1000,0),MATCH($A7,少年罪種本年!$E$4:$U$4,0))+INDEX(少年罪種本年!$E$5:$U$1000,MATCH($AA$2,少年罪種本年!$D$5:$D$1000,0),MATCH($A7,少年罪種本年!$E$4:$U$4,0)),0) -> 0 | AC7: =IFERROR(INDEX(少年罪種前年!$E$5:$U$1000,MATCH($W$2,少年罪種前年!$D$5:$D$1000,0),MATCH($A7,少年罪種前年!$E$4:$U$4,0))+INDEX(少年罪種前年!$E$5:$U$1000,MATCH($AA$2,少年罪種前年!$D$5:$D$1000,0),MATCH($A7,少年罪種前年!$E$4:$U$4,0)),0) -> 0 | AE7: =IFERROR(INDEX(認知罪種本年!$E$5:$U$1000,MATCH("凶悪犯",認知罪種本年!$D$5:$D$1000,0),MATCH($A7,認知罪種本年!$E$4:$U$4,0))+INDEX(認知罪種本年!$E$5:$U$1000,MATCH("強制わいせつ",認知罪種本年!$D$5:$D$1000,0),MATCH($A7,認知罪種本年!$E$4:$U$4,0))+INDEX(認知罪種本年!$E$5:$U$1000,MATCH("略取誘拐・人身売買",認知罪種本年!$D$5:$D$1000,0),MATCH($A7,認知罪種本年!$E$4:$U$4,0)),0) -> 15 | AF7: =IFERROR(INDEX(認知罪種前年!$E$5:$U$1000,MATCH("凶悪犯",認知罪種前年!$D$5:$D$1000,0),MATCH($A7,認知罪種前年!$E$4:$U$4,0))+INDEX(認知罪種前年!$E$5:$U$1000,MATCH("強制わいせつ",認知罪種前年!$D$5:$D$1000,0),MATCH($A7,認知罪種前年!$E$4:$U$4,0))+INDEX(認知罪種前年!$E$5:$U$1000,MATCH("略取誘拐・人身売買",認知罪種前年!$D$5:$D$1000,0),MATCH($A7,認知罪種前年!$E$4:$U$4,0)),0) -> 18 | AG7: =IFERROR(INDEX(検挙罪種本年!$E$5:$U$1000,MATCH("凶悪犯",検挙罪種本年!$D$5:$D$1000,0),MATCH($A7,検挙罪種本年!$E$4:$U$4,0))+INDEX(検挙罪種本年!$E$5:$U$1000,MATCH("強制わいせつ",検挙罪種本年!$D$5:$D$1000,0),MATCH($A7,検挙罪種本年!$E$4:$U$4,0))+INDEX(検挙罪種本年!$E$5:$U$1000,MATCH("略取誘拐・人身売買",検挙罪種本年!$D$5:$D$1000,0),MATCH($A7,検挙罪種本年!$E$4:$U$4,0)),0) -> 20 | AH7: =IFERROR(INDEX(検挙罪種前年!$E$5:$U$1000,MATCH("凶悪犯",検挙罪種前年!$D$5:$D$1000,0),MATCH($A7,検挙罪種前年!$E$4:$U$4,0))+INDEX(検挙罪種前年!$E$5:$U$1000,MATCH("強制わいせつ",検挙罪種前年!$D$5:$D$1000,0),MATCH($A7,検挙罪種前年!$E$4:$U$4,0))+INDEX(検挙罪種前年!$E$5:$U$1000,MATCH("略取誘拐・人身売買",検挙罪種前年!$D$5:$D$1000,0),MATCH($A7,検挙罪種前年!$E$4:$U$4,0)),0) -> 12 | AI7: =IFERROR(INDEX(人員罪種本年!$E$5:$U$1000,MATCH("凶悪犯",人員罪種本年!$D$5:$D$1000,0),MATCH($A7,人員罪種本年!$E$4:$U$4,0))+INDEX(人員罪種本年!$E$5:$U$1000,MATCH("強制わいせつ",人員罪種本年!$D$5:$D$1000,0),MATCH($A7,人員罪種本年!$E$4:$U$4,0))+INDEX(人員罪種本年!$E$5:$U$1000,MATCH("略取誘拐・人身売買",人員罪種本年!$D$5:$D$1000,0),MATCH($A7,人員罪種本年!$E$4:$U$4,0)),0) -> 20 | AJ7: =IFERROR(INDEX(人員罪種前年!$E$5:$U$1000,MATCH("凶悪犯",人員罪種前年!$D$5:$D$1000,0),MATCH($A7,人員罪種前年!$E$4:$U$4,0))+INDEX(人員罪種前年!$E$5:$U$1000,MATCH("強制わいせつ",人員罪種前年!$D$5:$D$1000,0),MATCH($A7,人員罪種前年!$E$4:$U$4,0))+INDEX(人員罪種前年!$E$5:$U$1000,MATCH("略取誘拐・人身売買",人員罪種前年!$D$5:$D$1000,0),MATCH($A7,人員罪種前年!$E$4:$U$4,0)),0) -> 10 | AK7: =IFERROR(INDEX(少年罪種本年!$E$5:$U$1000,MATCH("凶悪犯",少年罪種本年!$D$5:$D$1000,0),MATCH($A7,少年罪種本年!$E$4:$U$4,0))+INDEX(少年罪種本年!$E$5:$U$1000,MATCH("強制わいせつ",少年罪種本年!$D$5:$D$1000,0),MATCH($A7,少年罪種本年!$E$4:$U$4,0))+INDEX(少年罪種本年!$E$5:$U$1000,MATCH("略取誘拐・人身売買",少年罪種本年!$D$5:$D$1000,0),MATCH($A7,少年罪種本年!$E$4:$U$4,0)),0) -> 3 | AL7: =IFERROR(INDEX(少年罪種前年!$E$5:$U$1000,MATCH("凶悪犯",少年罪種前年!$D$5:$D$1000,0),MATCH($A7,少年罪種前年!$E$4:$U$4,0))+INDEX(少年罪種前年!$E$5:$U$1000,MATCH("強制わいせつ",少年罪種前年!$D$5:$D$1000,0),MATCH($A7,少年罪種前年!$E$4:$U$4,0))+INDEX(少年罪種前年!$E$5:$U$1000,MATCH("略取誘拐・人身売買",少年罪種前年!$D$5:$D$1000,0),MATCH($A7,少年罪種前年!$E$4:$U$4,0)),0) -> 3 | AN7: =IFERROR(INDEX(認知罪種本年!$E$5:$U$1000,MATCH("侵入窃盗",認知罪種本年!$D$5:$D$1000,0),MATCH($A7,認知罪種本年!$E$4:$U$4,0))+INDEX(認知罪種本年!$E$5:$U$1000,MATCH("自動車盗（キーあり）",認知罪種本年!$D$5:$D$1000,0),MATCH($A7,認知罪種本年!$E$4:$U$4,0))+INDEX(認知罪種本年!$E$5:$U$1000,MATCH("自動車盗（キーなし）",認知罪種本年!$D$5:$D$1000,0),MATCH($A7,認知罪種本年!$E$4:$U$4,0))+INDEX(認知罪種本年!$E$5:$U$1000,MATCH("ひったくり",認知罪種本年!$D$5:$D$1000,0),MATCH($A7,認知罪種本年!$E$4:$U$4,0))+INDEX(認知罪種本年!$E$5:$U$1000,MATCH("すり",認知罪種本年!$D$5:$D$1000,0),MATCH($A7,認知罪種本年!$E$4:$U$4,0)),0) -> 62 | AO7: =IFERROR(INDEX(認知罪種前年!$E$5:$U$1000,MATCH("侵入窃盗",認知罪種前年!$D$5:$D$1000,0),MATCH($A7,認知罪種前年!$E$4:$U$4,0))+INDEX(認知罪種前年!$E$5:$U$1000,MATCH("自動車盗（キーあり）",認知罪種前年!$D$5:$D$1000,0),MATCH($A7,認知罪種前年!$E$4:$U$4,0))+INDEX(認知罪種前年!$E$5:$U$1000,MATCH("自動車盗（キーなし）",認知罪種前年!$D$5:$D$1000,0),MATCH($A7,認知罪種前年!$E$4:$U$4,0))+INDEX(認知罪種前年!$E$5:$U$1000,MATCH("ひったくり",認知罪種前年!$D$5:$D$1000,0),MATCH($A7,認知罪種前年!$E$4:$U$4,0))+INDEX(認知罪種前年!$E$5:$U$1000,MATCH("すり",認知罪種前年!$D$5:$D$1000,0),MATCH($A7,認知罪種前年!$E$4:$U$4,0)),0) -> 112 | AP7: =IFERROR(INDEX(検挙罪種本年!$E$5:$U$1000,MATCH("侵入窃盗",検挙罪種本年!$D$5:$D$1000,0),MATCH($A7,検挙罪種本年!$E$4:$U$4,0))+INDEX(検挙罪種本年!$E$5:$U$1000,MATCH("自動車盗（キーあり）",検挙罪種本年!$D$5:$D$1000,0),MATCH($A7,検挙罪種本年!$E$4:$U$4,0))+INDEX(検挙罪種本年!$E$5:$U$1000,MATCH("自動車盗（キーなし）",検挙罪種本年!$D$5:$D$1000,0),MATCH($A7,検挙罪種本年!$E$4:$U$4,0))+INDEX(検挙罪種本年!$E$5:$U$1000,MATCH("ひったくり",検挙罪種本年!$D$5:$D$1000,0),MATCH($A7,検挙罪種本年!$E$4:$U$4,0))+INDEX(検挙罪種本年!$E$5:$U$1000,MATCH("すり",検挙罪種本年!$D$5:$D$1000,0),MATCH($A7,検挙罪種本年!$E$4:$U$4,0)),0) -> 42 | AQ7: =IFERROR(INDEX(検挙罪種前年!$E$5:$U$1000,MATCH("侵入窃盗",検挙罪種前年!$D$5:$D$1000,0),MATCH($A7,検挙罪種前年!$E$4:$U$4,0))+INDEX(検挙罪種前年!$E$5:$U$1000,MATCH("自動車盗（キーあり）",検挙罪種前年!$D$5:$D$1000,0),MATCH($A7,検挙罪種前年!$E$4:$U$4,0))+INDEX(検挙罪種前年!$E$5:$U$1000,MATCH("自動車盗（キーなし）",検挙罪種前年!$D$5:$D$1000,0),MATCH($A7,検挙罪種前年!$E$4:$U$4,0))+INDEX(検挙罪種前年!$E$5:$U$1000,MATCH("ひったくり",検挙罪種前年!$D$5:$D$1000,0),MATCH($A7,検挙罪種前年!$E$4:$U$4,0))+INDEX(検挙罪種前年!$E$5:$U$1000,MATCH("すり",検挙罪種前年!$D$5:$D$1000,0),MATCH($A7,検挙罪種前年!$E$4:$U$4,0)),0) -> 53 | AR7: =IFERROR(INDEX(人員罪種本年!$E$5:$U$1000,MATCH("侵入窃盗",人員罪種本年!$D$5:$D$1000,0),MATCH($A7,人員罪種本年!$E$4:$U$4,0))+INDEX(人員罪種本年!$E$5:$U$1000,MATCH("自動車盗（キーあり）",人員罪種本年!$D$5:$D$1000,0),MATCH($A7,人員罪種本年!$E$4:$U$4,0))+INDEX(人員罪種本年!$E$5:$U$1000,MATCH("自動車盗（キーなし）",人員罪種本年!$D$5:$D$1000,0),MATCH($A7,人員罪種本年!$E$4:$U$4,0))+INDEX(人員罪種本年!$E$5:$U$1000,MATCH("ひったくり",人員罪種本年!$D$5:$D$1000,0),MATCH($A7,人員罪種本年!$E$4:$U$4,0))+INDEX(人員罪種本年!$E$5:$U$1000,MATCH("すり",人員罪種本年!$D$5:$D$1000,0),MATCH($A7,人員罪種本年!$E$4:$U$4,0)),0) -> 16 | AS7: =IFERROR(INDEX(人員罪種前年!$E$5:$U$1000,MATCH("侵入窃盗",人員罪種前年!$D$5:$D$1000,0),MATCH($A7,人員罪種前年!$E$4:$U$4,0))+INDEX(人員罪種前年!$E$5:$U$1000,MATCH("自動車盗（キーあり）",人員罪種前年!$D$5:$D$1000,0),MATCH($A7,人員罪種前年!$E$4:$U$4,0))+INDEX(人員罪種前年!$E$5:$U$1000,MATCH("自動車盗（キーなし）",人員罪種前年!$D$5:$D$1000,0),MATCH($A7,人員罪種前年!$E$4:$U$4,0))+INDEX(人員罪種前年!$E$5:$U$1000,MATCH("ひったくり",人員罪種前年!$D$5:$D$1000,0),MATCH($A7,人員罪種前年!$E$4:$U$4,0))+INDEX(人員罪種前年!$E$5:$U$1000,MATCH("すり",人員罪種前年!$D$5:$D$1000,0),MATCH($A7,人員罪種前年!$E$4:$U$4,0)),0) -> 27 | AT7: =IFERROR(INDEX(少年罪種本年!$E$5:$U$1000,MATCH("侵入窃盗",少年罪種本年!$D$5:$D$1000,0),MATCH($A7,少年罪種本年!$E$4:$U$4,0))+INDEX(少年罪種本年!$E$5:$U$1000,MATCH("自動車盗（キーあり）",少年罪種本年!$D$5:$D$1000,0),MATCH($A7,少年罪種本年!$E$4:$U$4,0))+INDEX(少年罪種本年!$E$5:$U$1000,MATCH("自動車盗（キーなし）",少年罪種本年!$D$5:$D$1000,0),MATCH($A7,少年罪種本年!$E$4:$U$4,0))+INDEX(少年罪種本年!$E$5:$U$1000,MATCH("ひったくり",少年罪種本年!$D$5:$D$1000,0),MATCH($A7,少年罪種本年!$E$4:$U$4,0))+INDEX(少年罪種本年!$E$5:$U$1000,MATCH("すり",少年罪種本年!$D$5:$D$1000,0),MATCH($A7,少年罪種本年!$E$4:$U$4,0)),0) -> 5 | AU7: =IFERROR(INDEX(少年罪種前年!$E$5:$U$1000,MATCH("侵入窃盗",少年罪種前年!$D$5:$D$1000,0),MATCH($A7,少年罪種前年!$E$4:$U$4,0))+INDEX(少年罪種前年!$E$5:$U$1000,MATCH("自動車盗（キーあり）",少年罪種前年!$D$5:$D$1000,0),MATCH($A7,少年罪種前年!$E$4:$U$4,0))+INDEX(少年罪種前年!$E$5:$U$1000,MATCH("自動車盗（キーなし）",少年罪種前年!$D$5:$D$1000,0),MATCH($A7,少年罪種前年!$E$4:$U$4,0))+INDEX(少年罪種前年!$E$5:$U$1000,MATCH("ひったくり",少年罪種前年!$D$5:$D$1000,0),MATCH($A7,少年罪種前年!$E$4:$U$4,0))+INDEX(少年罪種前年!$E$5:$U$1000,MATCH("すり",少年罪種前年!$D$5:$D$1000,0),MATCH($A7,少年罪種前年!$E$4:$U$4,0)),0) -> 2
A8: 草津 | B8: 881 | C8: 991 | D8: -110 | E8: -11.09989909 | F8: 392 | G8: 453 | H8: -61 | I8: -13.46578366 | J8: 44.5 | K8: 45.7 | L8: -1.2 | M8: 282 | N8: 316 | O8: -34 | P8: -10.75949367 | Q8: 41 | R8: 59 | S8: -18 | T8: -30.50847458 | V8: =IFERROR(INDEX(認知罪種本年!$E$5:$U$1000,MATCH($W$2,認知罪種本年!$D$5:$D$1000,0),MATCH($A8,認知罪種本年!$E$4:$U$4,0))+INDEX(認知罪種本年!$E$5:$U$1000,MATCH($AA$2,認知罪種本年!$D$5:$D$1000,0),MATCH($A8,認知罪種本年!$E$4:$U$4,0)),0) -> 0 | W8: =IFERROR(INDEX(認知罪種前年!$E$5:$U$1000,MATCH($W$2,認知罪種前年!$D$5:$D$1000,0),MATCH($A8,認知罪種前年!$E$4:$U$4,0))+INDEX(認知罪種前年!$E$5:$U$1000,MATCH($AA$2,認知罪種前年!$D$5:$D$1000,0),MATCH($A8,認知罪種前年!$E$4:$U$4,0)),0) -> 0 | X8: =IFERROR(INDEX(検挙罪種本年!$E$5:$U$1000,MATCH($W$2,検挙罪種本年!$D$5:$D$1000,0),MATCH($A8,検挙罪種本年!$E$4:$U$4,0))+INDEX(検挙罪種本年!$E$5:$U$1000,MATCH($AA$2,検挙罪種本年!$D$5:$D$1000,0),MATCH($A8,検挙罪種本年!$E$4:$U$4,0)),0) -> 0 | Y8: =IFERROR(INDEX(検挙罪種前年!$E$5:$U$1000,MATCH($W$2,検挙罪種前年!$D$5:$D$1000,0),MATCH($A8,検挙罪種前年!$E$4:$U$4,0))+INDEX(検挙罪種前年!$E$5:$U$1000,MATCH($AA$2,検挙罪種前年!$D$5:$D$1000,0),MATCH($A8,検挙罪種前年!$E$4:$U$4,0)),0) -> 0 | Z8: =IFERROR(INDEX(人員罪種本年!$E$5:$U$1000,MATCH($W$2,人員罪種本年!$D$5:$D$1000,0),MATCH($A8,人員罪種本年!$E$4:$U$4,0))+INDEX(人員罪種本年!$E$5:$U$1000,MATCH($AA$2,人員罪種本年!$D$5:$D$1000,0),MATCH($A8,人員罪種本年!$E$4:$U$4,0)),0) -> 0 | AA8: =IFERROR(INDEX(人員罪種前年!$E$5:$U$1000,MATCH($W$2,人員罪種前年!$D$5:$D$1000,0),MATCH($A8,人員罪種前年!$E$4:$U$4,0))+INDEX(人員罪種前年!$E$5:$U$1000,MATCH($AA$2,人員罪種前年!$D$5:$D$1000,0),MATCH($A8,人員罪種前年!$E$4:$U$4,0)),0) -> 0 | AB8: =IFERROR(INDEX(少年罪種本年!$E$5:$U$1000,MATCH($W$2,少年罪種本年!$D$5:$D$1000,0),MATCH($A8,少年罪種本年!$E$4:$U$4,0))+INDEX(少年罪種本年!$E$5:$U$1000,MATCH($AA$2,少年罪種本年!$D$5:$D$1000,0),MATCH($A8,少年罪種本年!$E$4:$U$4,0)),0) -> 0 | AC8: =IFERROR(INDEX(少年罪種前年!$E$5:$U$1000,MATCH($W$2,少年罪種前年!$D$5:$D$1000,0),MATCH($A8,少年罪種前年!$E$4:$U$4,0))+INDEX(少年罪種前年!$E$5:$U$1000,MATCH($AA$2,少年罪種前年!$D$5:$D$1000,0),MATCH($A8,少年罪種前年!$E$4:$U$4,0)),0) -> 0 | AE8: =IFERROR(INDEX(認知罪種本年!$E$5:$U$1000,MATCH("凶悪犯",認知罪種本年!$D$5:$D$1000,0),MATCH($A8,認知罪種本年!$E$4:$U$4,0))+INDEX(認知罪種本年!$E$5:$U$1000,MATCH("強制わいせつ",認知罪種本年!$D$5:$D$1000,0),MATCH($A8,認知罪種本年!$E$4:$U$4,0))+INDEX(認知罪種本年!$E$5:$U$1000,MATCH("略取誘拐・人身売買",認知罪種本年!$D$5:$D$1000,0),MATCH($A8,認知罪種本年!$E$4:$U$4,0)),0) -> 18 | AF8: =IFERROR(INDEX(認知罪種前年!$E$5:$U$1000,MATCH("凶悪犯",認知罪種前年!$D$5:$D$1000,0),MATCH($A8,認知罪種前年!$E$4:$U$4,0))+INDEX(認知罪種前年!$E$5:$U$1000,MATCH("強制わいせつ",認知罪種前年!$D$5:$D$1000,0),MATCH($A8,認知罪種前年!$E$4:$U$4,0))+INDEX(認知罪種前年!$E$5:$U$1000,MATCH("略取誘拐・人身売買",認知罪種前年!$D$5:$D$1000,0),MATCH($A8,認知罪種前年!$E$4:$U$4,0)),0) -> 19 | AG8: =IFERROR(INDEX(検挙罪種本年!$E$5:$U$1000,MATCH("凶悪犯",検挙罪種本年!$D$5:$D$1000,0),MATCH($A8,検挙罪種本年!$E$4:$U$4,0))+INDEX(検挙罪種本年!$E$5:$U$1000,MATCH("強制わいせつ",検挙罪種本年!$D$5:$D$1000,0),MATCH($A8,検挙罪種本年!$E$4:$U$4,0))+INDEX(検挙罪種本年!$E$5:$U$1000,MATCH("略取誘拐・人身売買",検挙罪種本年!$D$5:$D$1000,0),MATCH($A8,検挙罪種本年!$E$4:$U$4,0)),0) -> 17 | AH8: =IFERROR(INDEX(検挙罪種前年!$E$5:$U$1000,MATCH("凶悪犯",検挙罪種前年!$D$5:$D$1000,0),MATCH($A8,検挙罪種前年!$E$4:$U$4,0))+INDEX(検挙罪種前年!$E$5:$U$1000,MATCH("強制わいせつ",検挙罪種前年!$D$5:$D$1000,0),MATCH($A8,検挙罪種前年!$E$4:$U$4,0))+INDEX(検挙罪種前年!$E$5:$U$1000,MATCH("略取誘拐・人身売買",検挙罪種前年!$D$5:$D$1000,0),MATCH($A8,検挙罪種前年!$E$4:$U$4,0)),0) -> 21 | AI8: =IFERROR(INDEX(人員罪種本年!$E$5:$U$1000,MATCH("凶悪犯",人員罪種本年!$D$5:$D$1000,0),MATCH($A8,人員罪種本年!$E$4:$U$4,0))+INDEX(人員罪種本年!$E$5:$U$1000,MATCH("強制わいせつ",人員罪種本年!$D$5:$D$1000,0),MATCH($A8,人員罪種本年!$E$4:$U$4,0))+INDEX(人員罪種本年!$E$5:$U$1000,MATCH("略取誘拐・人身売買",人員罪種本年!$D$5:$D$1000,0),MATCH($A8,人員罪種本年!$E$4:$U$4,0)),0) -> 12 | AJ8: =IFERROR(INDEX(人員罪種前年!$E$5:$U$1000,MATCH("凶悪犯",人員罪種前年!$D$5:$D$1000,0),MATCH($A8,人員罪種前年!$E$4:$U$4,0))+INDEX(人員罪種前年!$E$5:$U$1000,MATCH("強制わいせつ",人員罪種前年!$D$5:$D$1000,0),MATCH($A8,人員罪種前年!$E$4:$U$4,0))+INDEX(人員罪種前年!$E$5:$U$1000,MATCH("略取誘拐・人身売買",人員罪種前年!$D$5:$D$1000,0),MATCH($A8,人員罪種前年!$E$4:$U$4,0)),0) -> 26 | AK8: =IFERROR(INDEX(少年罪種本年!$E$5:$U$1000,MATCH("凶悪犯",少年罪種本年!$D$5:$D$1000,0),MATCH($A8,少年罪種本年!$E$4:$U$4,0))+INDEX(少年罪種本年!$E$5:$U$1000,MATCH("強制わいせつ",少年罪種本年!$D$5:$D$1000,0),MATCH($A8,少年罪種本年!$E$4:$U$4,0))+INDEX(少年罪種本年!$E$5:$U$1000,MATCH("略取誘拐・人身売買",少年罪種本年!$D$5:$D$1000,0),MATCH($A8,少年罪種本年!$E$4:$U$4,0)),0) -> 1 | AL8: =IFERROR(INDEX(少年罪種前年!$E$5:$U$1000,MATCH("凶悪犯",少年罪種前年!$D$5:$D$1000,0),MATCH($A8,少年罪種前年!$E$4:$U$4,0))+INDEX(少年罪種前年!$E$5:$U$1000,MATCH("強制わいせつ",少年罪種前年!$D$5:$D$1000,0),MATCH($A8,少年罪種前年!$E$4:$U$4,0))+INDEX(少年罪種前年!$E$5:$U$1000,MATCH("略取誘拐・人身売買",少年罪種前年!$D$5:$D$1000,0),MATCH($A8,少年罪種前年!$E$4:$U$4,0)),0) -> 12 | AN8: =IFERROR(INDEX(認知罪種本年!$E$5:$U$1000,MATCH("侵入窃盗",認知罪種本年!$D$5:$D$1000,0),MATCH($A8,認知罪種本年!$E$4:$U$4,0))+INDEX(認知罪種本年!$E$5:$U$1000,MATCH("自動車盗（キーあり）",認知罪種本年!$D$5:$D$1000,0),MATCH($A8,認知罪種本年!$E$4:$U$4,0))+INDEX(認知罪種本年!$E$5:$U$1000,MATCH("自動車盗（キーなし）",認知罪種本年!$D$5:$D$1000,0),MATCH($A8,認知罪種本年!$E$4:$U$4,0))+INDEX(認知罪種本年!$E$5:$U$1000,MATCH("ひったくり",認知罪種本年!$D$5:$D$1000,0),MATCH($A8,認知罪種本年!$E$4:$U$4,0))+INDEX(認知罪種本年!$E$5:$U$1000,MATCH("すり",認知罪種本年!$D$5:$D$1000,0),MATCH($A8,認知罪種本年!$E$4:$U$4,0)),0) -> 45 | AO8: =IFERROR(INDEX(認知罪種前年!$E$5:$U$1000,MATCH("侵入窃盗",認知罪種前年!$D$5:$D$1000,0),MATCH($A8,認知罪種前年!$E$4:$U$4,0))+INDEX(認知罪種前年!$E$5:$U$1000,MATCH("自動車盗（キーあり）",認知罪種前年!$D$5:$D$1000,0),MATCH($A8,認知罪種前年!$E$4:$U$4,0))+INDEX(認知罪種前年!$E$5:$U$1000,MATCH("自動車盗（キーなし）",認知罪種前年!$D$5:$D$1000,0),MATCH($A8,認知罪種前年!$E$4:$U$4,0))+INDEX(認知罪種前年!$E$5:$U$1000,MATCH("ひったくり",認知罪種前年!$D$5:$D$1000,0),MATCH($A8,認知罪種前年!$E$4:$U$4,0))+INDEX(認知罪種前年!$E$5:$U$1000,MATCH("すり",認知罪種前年!$D$5:$D$1000,0),MATCH($A8,認知罪種前年!$E$4:$U$4,0)),0) -> 61 | AP8: =IFERROR(INDEX(検挙罪種本年!$E$5:$U$1000,MATCH("侵入窃盗",検挙罪種本年!$D$5:$D$1000,0),MATCH($A8,検挙罪種本年!$E$4:$U$4,0))+INDEX(検挙罪種本年!$E$5:$U$1000,MATCH("自動車盗（キーあり）",検挙罪種本年!$D$5:$D$1000,0),MATCH($A8,検挙罪種本年!$E$4:$U$4,0))+INDEX(検挙罪種本年!$E$5:$U$1000,MATCH("自動車盗（キーなし）",検挙罪種本年!$D$5:$D$1000,0),MATCH($A8,検挙罪種本年!$E$4:$U$4,0))+INDEX(検挙罪種本年!$E$5:$U$1000,MATCH("ひったくり",検挙罪種本年!$D$5:$D$1000,0),MATCH($A8,検挙罪種本年!$E$4:$U$4,0))+INDEX(検挙罪種本年!$E$5:$U$1000,MATCH("すり",検挙罪種本年!$D$5:$D$1000,0),MATCH($A8,検挙罪種本年!$E$4:$U$4,0)),0) -> 27 | AQ8: =IFERROR(INDEX(検挙罪種前年!$E$5:$U$1000,MATCH("侵入窃盗",検挙罪種前年!$D$5:$D$1000,0),MATCH($A8,検挙罪種前年!$E$4:$U$4,0))+INDEX(検挙罪種前年!$E$5:$U$1000,MATCH("自動車盗（キーあり）",検挙罪種前年!$D$5:$D$1000,0),MATCH($A8,検挙罪種前年!$E$4:$U$4,0))+INDEX(検挙罪種前年!$E$5:$U$1000,MATCH("自動車盗（キーなし）",検挙罪種前年!$D$5:$D$1000,0),MATCH($A8,検挙罪種前年!$E$4:$U$4,0))+INDEX(検挙罪種前年!$E$5:$U$1000,MATCH("ひったくり",検挙罪種前年!$D$5:$D$1000,0),MATCH($A8,検挙罪種前年!$E$4:$U$4,0))+INDEX(検挙罪種前年!$E$5:$U$1000,MATCH("すり",検挙罪種前年!$D$5:$D$1000,0),MATCH($A8,検挙罪種前年!$E$4:$U$4,0)),0) -> 37 | AR8: =IFERROR(INDEX(人員罪種本年!$E$5:$U$1000,MATCH("侵入窃盗",人員罪種本年!$D$5:$D$1000,0),MATCH($A8,人員罪種本年!$E$4:$U$4,0))+INDEX(人員罪種本年!$E$5:$U$1000,MATCH("自動車盗（キーあり）",人員罪種本年!$D$5:$D$1000,0),MATCH($A8,人員罪種本年!$E$4:$U$4,0))+INDEX(人員罪種本年!$E$5:$U$1000,MATCH("自動車盗（キーなし）",人員罪種本年!$D$5:$D$1000,0),MATCH($A8,人員罪種本年!$E$4:$U$4,0))+INDEX(人員罪種本年!$E$5:$U$1000,MATCH("ひったくり",人員罪種本年!$D$5:$D$1000,0),MATCH($A8,人員罪種本年!$E$4:$U$4,0))+INDEX(人員罪種本年!$E$5:$U$1000,MATCH("すり",人員罪種本年!$D$5:$D$1000,0),MATCH($A8,人員罪種本年!$E$4:$U$4,0)),0) -> 12 | AS8: =IFERROR(INDEX(人員罪種前年!$E$5:$U$1000,MATCH("侵入窃盗",人員罪種前年!$D$5:$D$1000,0),MATCH($A8,人員罪種前年!$E$4:$U$4,0))+INDEX(人員罪種前年!$E$5:$U$1000,MATCH("自動車盗（キーあり）",人員罪種前年!$D$5:$D$1000,0),MATCH($A8,人員罪種前年!$E$4:$U$4,0))+INDEX(人員罪種前年!$E$5:$U$1000,MATCH("自動車盗（キーなし）",人員罪種前年!$D$5:$D$1000,0),MATCH($A8,人員罪種前年!$E$4:$U$4,0))+INDEX(人員罪種前年!$E$5:$U$1000,MATCH("ひったくり",人員罪種前年!$D$5:$D$1000,0),MATCH($A8,人員罪種前年!$E$4:$U$4,0))+INDEX(人員罪種前年!$E$5:$U$1000,MATCH("すり",人員罪種前年!$D$5:$D$1000,0),MATCH($A8,人員罪種前年!$E$4:$U$4,0)),0) -> 21 | AT8: =IFERROR(INDEX(少年罪種本年!$E$5:$U$1000,MATCH("侵入窃盗",少年罪種本年!$D$5:$D$1000,0),MATCH($A8,少年罪種本年!$E$4:$U$4,0))+INDEX(少年罪種本年!$E$5:$U$1000,MATCH("自動車盗（キーあり）",少年罪種本年!$D$5:$D$1000,0),MATCH($A8,少年罪種本年!$E$4:$U$4,0))+INDEX(少年罪種本年!$E$5:$U$1000,MATCH("自動車盗（キーなし）",少年罪種本年!$D$5:$D$1000,0),MATCH($A8,少年罪種本年!$E$4:$U$4,0))+INDEX(少年罪種本年!$E$5:$U$1000,MATCH("ひったくり",少年罪種本年!$D$5:$D$1000,0),MATCH($A8,少年罪種本年!$E$4:$U$4,0))+INDEX(少年罪種本年!$E$5:$U$1000,MATCH("すり",少年罪種本年!$D$5:$D$1000,0),MATCH($A8,少年罪種本年!$E$4:$U$4,0)),0) -> 3 | AU8: =IFERROR(INDEX(少年罪種前年!$E$5:$U$1000,MATCH("侵入窃盗",少年罪種前年!$D$5:$D$1000,0),MATCH($A8,少年罪種前年!$E$4:$U$4,0))+INDEX(少年罪種前年!$E$5:$U$1000,MATCH("自動車盗（キーあり）",少年罪種前年!$D$5:$D$1000,0),MATCH($A8,少年罪種前年!$E$4:$U$4,0))+INDEX(少年罪種前年!$E$5:$U$1000,MATCH("自動車盗（キーなし）",少年罪種前年!$D$5:$D$1000,0),MATCH($A8,少年罪種前年!$E$4:$U$4,0))+INDEX(少年罪種前年!$E$5:$U$1000,MATCH("ひったくり",少年罪種前年!$D$5:$D$1000,0),MATCH($A8,少年罪種前年!$E$4:$U$4,0))+INDEX(少年罪種前年!$E$5:$U$1000,MATCH("すり",少年罪種前年!$D$5:$D$1000,0),MATCH($A8,少年罪種前年!$E$4:$U$4,0)),0) -> 4
A9: 守山 | B9: 440 | C9: 433 | D9: 7 | E9: 1.616628176 | F9: 301 | G9: 179 | H9: 122 | I9: 68.15642458 | J9: 68.4 | K9: 41.3 | L9: 27.1 | M9: 128 | N9: 143 | O9: -15 | P9: -10.48951049 | Q9: 14 | R9: 12 | S9: 2 | T9: 16.66666667 | V9: =IFERROR(INDEX(認知罪種本年!$E$5:$U$1000,MATCH($W$2,認知罪種本年!$D$5:$D$1000,0),MATCH($A9,認知罪種本年!$E$4:$U$4,0))+INDEX(認知罪種本年!$E$5:$U$1000,MATCH($AA$2,認知罪種本年!$D$5:$D$1000,0),MATCH($A9,認知罪種本年!$E$4:$U$4,0)),0) -> 0 | W9: =IFERROR(INDEX(認知罪種前年!$E$5:$U$1000,MATCH($W$2,認知罪種前年!$D$5:$D$1000,0),MATCH($A9,認知罪種前年!$E$4:$U$4,0))+INDEX(認知罪種前年!$E$5:$U$1000,MATCH($AA$2,認知罪種前年!$D$5:$D$1000,0),MATCH($A9,認知罪種前年!$E$4:$U$4,0)),0) -> 0 | X9: =IFERROR(INDEX(検挙罪種本年!$E$5:$U$1000,MATCH($W$2,検挙罪種本年!$D$5:$D$1000,0),MATCH($A9,検挙罪種本年!$E$4:$U$4,0))+INDEX(検挙罪種本年!$E$5:$U$1000,MATCH($AA$2,検挙罪種本年!$D$5:$D$1000,0),MATCH($A9,検挙罪種本年!$E$4:$U$4,0)),0) -> 0 | Y9: =IFERROR(INDEX(検挙罪種前年!$E$5:$U$1000,MATCH($W$2,検挙罪種前年!$D$5:$D$1000,0),MATCH($A9,検挙罪種前年!$E$4:$U$4,0))+INDEX(検挙罪種前年!$E$5:$U$1000,MATCH($AA$2,検挙罪種前年!$D$5:$D$1000,0),MATCH($A9,検挙罪種前年!$E$4:$U$4,0)),0) -> 0 | Z9: =IFERROR(INDEX(人員罪種本年!$E$5:$U$1000,MATCH($W$2,人員罪種本年!$D$5:$D$1000,0),MATCH($A9,人員罪種本年!$E$4:$U$4,0))+INDEX(人員罪種本年!$E$5:$U$1000,MATCH($AA$2,人員罪種本年!$D$5:$D$1000,0),MATCH($A9,人員罪種本年!$E$4:$U$4,0)),0) -> 0 | AA9: =IFERROR(INDEX(人員罪種前年!$E$5:$U$1000,MATCH($W$2,人員罪種前年!$D$5:$D$1000,0),MATCH($A9,人員罪種前年!$E$4:$U$4,0))+INDEX(人員罪種前年!$E$5:$U$1000,MATCH($AA$2,人員罪種前年!$D$5:$D$1000,0),MATCH($A9,人員罪種前年!$E$4:$U$4,0)),0) -> 0 | AB9: =IFERROR(INDEX(少年罪種本年!$E$5:$U$1000,MATCH($W$2,少年罪種本年!$D$5:$D$1000,0),MATCH($A9,少年罪種本年!$E$4:$U$4,0))+INDEX(少年罪種本年!$E$5:$U$1000,MATCH($AA$2,少年罪種本年!$D$5:$D$1000,0),MATCH($A9,少年罪種本年!$E$4:$U$4,0)),0) -> 0 | AC9: =IFERROR(INDEX(少年罪種前年!$E$5:$U$1000,MATCH($W$2,少年罪種前年!$D$5:$D$1000,0),MATCH($A9,少年罪種前年!$E$4:$U$4,0))+INDEX(少年罪種前年!$E$5:$U$1000,MATCH($AA$2,少年罪種前年!$D$5:$D$1000,0),MATCH($A9,少年罪種前年!$E$4:$U$4,0)),0) -> 0 | AE9: =IFERROR(INDEX(認知罪種本年!$E$5:$U$1000,MATCH("凶悪犯",認知罪種本年!$D$5:$D$1000,0),MATCH($A9,認知罪種本年!$E$4:$U$4,0))+INDEX(認知罪種本年!$E$5:$U$1000,MATCH("強制わいせつ",認知罪種本年!$D$5:$D$1000,0),MATCH($A9,認知罪種本年!$E$4:$U$4,0))+INDEX(認知罪種本年!$E$5:$U$1000,MATCH("略取誘拐・人身売買",認知罪種本年!$D$5:$D$1000,0),MATCH($A9,認知罪種本年!$E$4:$U$4,0)),0) -> 9 | AF9: =IFERROR(INDEX(認知罪種前年!$E$5:$U$1000,MATCH("凶悪犯",認知罪種前年!$D$5:$D$1000,0),MATCH($A9,認知罪種前年!$E$4:$U$4,0))+INDEX(認知罪種前年!$E$5:$U$1000,MATCH("強制わいせつ",認知罪種前年!$D$5:$D$1000,0),MATCH($A9,認知罪種前年!$E$4:$U$4,0))+INDEX(認知罪種前年!$E$5:$U$1000,MATCH("略取誘拐・人身売買",認知罪種前年!$D$5:$D$1000,0),MATCH($A9,認知罪種前年!$E$4:$U$4,0)),0) -> 7 | AG9: =IFERROR(INDEX(検挙罪種本年!$E$5:$U$1000,MATCH("凶悪犯",検挙罪種本年!$D$5:$D$1000,0),MATCH($A9,検挙罪種本年!$E$4:$U$4,0))+INDEX(検挙罪種本年!$E$5:$U$1000,MATCH("強制わいせつ",検挙罪種本年!$D$5:$D$1000,0),MATCH($A9,検挙罪種本年!$E$4:$U$4,0))+INDEX(検挙罪種本年!$E$5:$U$1000,MATCH("略取誘拐・人身売買",検挙罪種本年!$D$5:$D$1000,0),MATCH($A9,検挙罪種本年!$E$4:$U$4,0)),0) -> 4 | AH9: =IFERROR(INDEX(検挙罪種前年!$E$5:$U$1000,MATCH("凶悪犯",検挙罪種前年!$D$5:$D$1000,0),MATCH($A9,検挙罪種前年!$E$4:$U$4,0))+INDEX(検挙罪種前年!$E$5:$U$1000,MATCH("強制わいせつ",検挙罪種前年!$D$5:$D$1000,0),MATCH($A9,検挙罪種前年!$E$4:$U$4,0))+INDEX(検挙罪種前年!$E$5:$U$1000,MATCH("略取誘拐・人身売買",検挙罪種前年!$D$5:$D$1000,0),MATCH($A9,検挙罪種前年!$E$4:$U$4,0)),0) -> 6 | AI9: =IFERROR(INDEX(人員罪種本年!$E$5:$U$1000,MATCH("凶悪犯",人員罪種本年!$D$5:$D$1000,0),MATCH($A9,人員罪種本年!$E$4:$U$4,0))+INDEX(人員罪種本年!$E$5:$U$1000,MATCH("強制わいせつ",人員罪種本年!$D$5:$D$1000,0),MATCH($A9,人員罪種本年!$E$4:$U$4,0))+INDEX(人員罪種本年!$E$5:$U$1000,MATCH("略取誘拐・人身売買",人員罪種本年!$D$5:$D$1000,0),MATCH($A9,人員罪種本年!$E$4:$U$4,0)),0) -> 3 | AJ9: =IFERROR(INDEX(人員罪種前年!$E$5:$U$1000,MATCH("凶悪犯",人員罪種前年!$D$5:$D$1000,0),MATCH($A9,人員罪種前年!$E$4:$U$4,0))+INDEX(人員罪種前年!$E$5:$U$1000,MATCH("強制わいせつ",人員罪種前年!$D$5:$D$1000,0),MATCH($A9,人員罪種前年!$E$4:$U$4,0))+INDEX(人員罪種前年!$E$5:$U$1000,MATCH("略取誘拐・人身売買",人員罪種前年!$D$5:$D$1000,0),MATCH($A9,人員罪種前年!$E$4:$U$4,0)),0) -> 5 | AK9: =IFERROR(INDEX(少年罪種本年!$E$5:$U$1000,MATCH("凶悪犯",少年罪種本年!$D$5:$D$1000,0),MATCH($A9,少年罪種本年!$E$4:$U$4,0))+INDEX(少年罪種本年!$E$5:$U$1000,MATCH("強制わいせつ",少年罪種本年!$D$5:$D$1000,0),MATCH($A9,少年罪種本年!$E$4:$U$4,0))+INDEX(少年罪種本年!$E$5:$U$1000,MATCH("略取誘拐・人身売買",少年罪種本年!$D$5:$D$1000,0),MATCH($A9,少年罪種本年!$E$4:$U$4,0)),0) -> 0 | AL9: =IFERROR(INDEX(少年罪種前年!$E$5:$U$1000,MATCH("凶悪犯",少年罪種前年!$D$5:$D$1000,0),MATCH($A9,少年罪種前年!$E$4:$U$4,0))+INDEX(少年罪種前年!$E$5:$U$1000,MATCH("強制わいせつ",少年罪種前年!$D$5:$D$1000,0),MATCH($A9,少年罪種前年!$E$4:$U$4,0))+INDEX(少年罪種前年!$E$5:$U$1000,MATCH("略取誘拐・人身売買",少年罪種前年!$D$5:$D$1000,0),MATCH($A9,少年罪種前年!$E$4:$U$4,0)),0) -> 0 | AN9: =IFERROR(INDEX(認知罪種本年!$E$5:$U$1000,MATCH("侵入窃盗",認知罪種本年!$D$5:$D$1000,0),MATCH($A9,認知罪種本年!$E$4:$U$4,0))+INDEX(認知罪種本年!$E$5:$U$1000,MATCH("自動車盗（キーあり）",認知罪種本年!$D$5:$D$1000,0),MATCH($A9,認知罪種本年!$E$4:$U$4,0))+INDEX(認知罪種本年!$E$5:$U$1000,MATCH("自動車盗（キーなし）",認知罪種本年!$D$5:$D$1000,0),MATCH($A9,認知罪種本年!$E$4:$U$4,0))+INDEX(認知罪種本年!$E$5:$U$1000,MATCH("ひったくり",認知罪種本年!$D$5:$D$1000,0),MATCH($A9,認知罪種本年!$E$4:$U$4,0))+INDEX(認知罪種本年!$E$5:$U$1000,MATCH("すり",認知罪種本年!$D$5:$D$1000,0),MATCH($A9,認知罪種本年!$E$4:$U$4,0)),0) -> 38 | AO9: =IFERROR(INDEX(認知罪種前年!$E$5:$U$1000,MATCH("侵入窃盗",認知罪種前年!$D$5:$D$1000,0),MATCH($A9,認知罪種前年!$E$4:$U$4,0))+INDEX(認知罪種前年!$E$5:$U$1000,MATCH("自動車盗（キーあり）",認知罪種前年!$D$5:$D$1000,0),MATCH($A9,認知罪種前年!$E$4:$U$4,0))+INDEX(認知罪種前年!$E$5:$U$1000,MATCH("自動車盗（キーなし）",認知罪種前年!$D$5:$D$1000,0),MATCH($A9,認知罪種前年!$E$4:$U$4,0))+INDEX(認知罪種前年!$E$5:$U$1000,MATCH("ひったくり",認知罪種前年!$D$5:$D$1000,0),MATCH($A9,認知罪種前年!$E$4:$U$4,0))+INDEX(認知罪種前年!$E$5:$U$1000,MATCH("すり",認知罪種前年!$D$5:$D$1000,0),MATCH($A9,認知罪種前年!$E$4:$U$4,0)),0) -> 40 | AP9: =IFERROR(INDEX(検挙罪種本年!$E$5:$U$1000,MATCH("侵入窃盗",検挙罪種本年!$D$5:$D$1000,0),MATCH($A9,検挙罪種本年!$E$4:$U$4,0))+INDEX(検挙罪種本年!$E$5:$U$1000,MATCH("自動車盗（キーあり）",検挙罪種本年!$D$5:$D$1000,0),MATCH($A9,検挙罪種本年!$E$4:$U$4,0))+INDEX(検挙罪種本年!$E$5:$U$1000,MATCH("自動車盗（キーなし）",検挙罪種本年!$D$5:$D$1000,0),MATCH($A9,検挙罪種本年!$E$4:$U$4,0))+INDEX(検挙罪種本年!$E$5:$U$1000,MATCH("ひったくり",検挙罪種本年!$D$5:$D$1000,0),MATCH($A9,検挙罪種本年!$E$4:$U$4,0))+INDEX(検挙罪種本年!$E$5:$U$1000,MATCH("すり",検挙罪種本年!$D$5:$D$1000,0),MATCH($A9,検挙罪種本年!$E$4:$U$4,0)),0) -> 68 | AQ9: =IFERROR(INDEX(検挙罪種前年!$E$5:$U$1000,MATCH("侵入窃盗",検挙罪種前年!$D$5:$D$1000,0),MATCH($A9,検挙罪種前年!$E$4:$U$4,0))+INDEX(検挙罪種前年!$E$5:$U$1000,MATCH("自動車盗（キーあり）",検挙罪種前年!$D$5:$D$1000,0),MATCH($A9,検挙罪種前年!$E$4:$U$4,0))+INDEX(検挙罪種前年!$E$5:$U$1000,MATCH("自動車盗（キーなし）",検挙罪種前年!$D$5:$D$1000,0),MATCH($A9,検挙罪種前年!$E$4:$U$4,0))+INDEX(検挙罪種前年!$E$5:$U$1000,MATCH("ひったくり",検挙罪種前年!$D$5:$D$1000,0),MATCH($A9,検挙罪種前年!$E$4:$U$4,0))+INDEX(検挙罪種前年!$E$5:$U$1000,MATCH("すり",検挙罪種前年!$D$5:$D$1000,0),MATCH($A9,検挙罪種前年!$E$4:$U$4,0)),0) -> 20 | AR9: =IFERROR(INDEX(人員罪種本年!$E$5:$U$1000,MATCH("侵入窃盗",人員罪種本年!$D$5:$D$1000,0),MATCH($A9,人員罪種本年!$E$4:$U$4,0))+INDEX(人員罪種本年!$E$5:$U$1000,MATCH("自動車盗（キーあり）",人員罪種本年!$D$5:$D$1000,0),MATCH($A9,人員罪種本年!$E$4:$U$4,0))+INDEX(人員罪種本年!$E$5:$U$1000,MATCH("自動車盗（キーなし）",人員罪種本年!$D$5:$D$1000,0),MATCH($A9,人員罪種本年!$E$4:$U$4,0))+INDEX(人員罪種本年!$E$5:$U$1000,MATCH("ひったくり",人員罪種本年!$D$5:$D$1000,0),MATCH($A9,人員罪種本年!$E$4:$U$4,0))+INDEX(人員罪種本年!$E$5:$U$1000,MATCH("すり",人員罪種本年!$D$5:$D$1000,0),MATCH($A9,人員罪種本年!$E$4:$U$4,0)),0) -> 11 | AS9: =IFERROR(INDEX(人員罪種前年!$E$5:$U$1000,MATCH("侵入窃盗",人員罪種前年!$D$5:$D$1000,0),MATCH($A9,人員罪種前年!$E$4:$U$4,0))+INDEX(人員罪種前年!$E$5:$U$1000,MATCH("自動車盗（キーあり）",人員罪種前年!$D$5:$D$1000,0),MATCH($A9,人員罪種前年!$E$4:$U$4,0))+INDEX(人員罪種前年!$E$5:$U$1000,MATCH("自動車盗（キーなし）",人員罪種前年!$D$5:$D$1000,0),MATCH($A9,人員罪種前年!$E$4:$U$4,0))+INDEX(人員罪種前年!$E$5:$U$1000,MATCH("ひったくり",人員罪種前年!$D$5:$D$1000,0),MATCH($A9,人員罪種前年!$E$4:$U$4,0))+INDEX(人員罪種前年!$E$5:$U$1000,MATCH("すり",人員罪種前年!$D$5:$D$1000,0),MATCH($A9,人員罪種前年!$E$4:$U$4,0)),0) -> 13 | AT9: =IFERROR(INDEX(少年罪種本年!$E$5:$U$1000,MATCH("侵入窃盗",少年罪種本年!$D$5:$D$1000,0),MATCH($A9,少年罪種本年!$E$4:$U$4,0))+INDEX(少年罪種本年!$E$5:$U$1000,MATCH("自動車盗（キーあり）",少年罪種本年!$D$5:$D$1000,0),MATCH($A9,少年罪種本年!$E$4:$U$4,0))+INDEX(少年罪種本年!$E$5:$U$1000,MATCH("自動車盗（キーなし）",少年罪種本年!$D$5:$D$1000,0),MATCH($A9,少年罪種本年!$E$4:$U$4,0))+INDEX(少年罪種本年!$E$5:$U$1000,MATCH("ひったくり",少年罪種本年!$D$5:$D$1000,0),MATCH($A9,少年罪種本年!$E$4:$U$4,0))+INDEX(少年罪種本年!$E$5:$U$1000,MATCH("すり",少年罪種本年!$D$5:$D$1000,0),MATCH($A9,少年罪種本年!$E$4:$U$4,0)),0) -> 1 | AU9: =IFERROR(INDEX(少年罪種前年!$E$5:$U$1000,MATCH("侵入窃盗",少年罪種前年!$D$5:$D$1000,0),MATCH($A9,少年罪種前年!$E$4:$U$4,0))+INDEX(少年罪種前年!$E$5:$U$1000,MATCH("自動車盗（キーあり）",少年罪種前年!$D$5:$D$1000,0),MATCH($A9,少年罪種前年!$E$4:$U$4,0))+INDEX(少年罪種前年!$E$5:$U$1000,MATCH("自動車盗（キーなし）",少年罪種前年!$D$5:$D$1000,0),MATCH($A9,少年罪種前年!$E$4:$U$4,0))+INDEX(少年罪種前年!$E$5:$U$1000,MATCH("ひったくり",少年罪種前年!$D$5:$D$1000,0),MATCH($A9,少年罪種前年!$E$4:$U$4,0))+INDEX(少年罪種前年!$E$5:$U$1000,MATCH("すり",少年罪種前年!$D$5:$D$1000,0),MATCH($A9,少年罪種前年!$E$4:$U$4,0)),0) -> 0
A10: 甲賀 | B10: 542 | C10: 590 | D10: -48 | E10: -8.13559322 | F10: 286 | G10: 298 | H10: -12 | I10: -4.026845638 | J10: 52.8 | K10: 50.5 | L10: 2.3 | M10: 162 | N10: 189 | O10: -27 | P10: -14.28571429 | Q10: 20 | R10: 12 | S10: 8 | T10: 66.66666667 | V10: =IFERROR(INDEX(認知罪種本年!$E$5:$U$1000,MATCH($W$2,認知罪種本年!$D$5:$D$1000,0),MATCH($A10,認知罪種本年!$E$4:$U$4,0))+INDEX(認知罪種本年!$E$5:$U$1000,MATCH($AA$2,認知罪種本年!$D$5:$D$1000,0),MATCH($A10,認知罪種本年!$E$4:$U$4,0)),0) -> 0 | W10: =IFERROR(INDEX(認知罪種前年!$E$5:$U$1000,MATCH($W$2,認知罪種前年!$D$5:$D$1000,0),MATCH($A10,認知罪種前年!$E$4:$U$4,0))+INDEX(認知罪種前年!$E$5:$U$1000,MATCH($AA$2,認知罪種前年!$D$5:$D$1000,0),MATCH($A10,認知罪種前年!$E$4:$U$4,0)),0) -> 0 | X10: =IFERROR(INDEX(検挙罪種本年!$E$5:$U$1000,MATCH($W$2,検挙罪種本年!$D$5:$D$1000,0),MATCH($A10,検挙罪種本年!$E$4:$U$4,0))+INDEX(検挙罪種本年!$E$5:$U$1000,MATCH($AA$2,検挙罪種本年!$D$5:$D$1000,0),MATCH($A10,検挙罪種本年!$E$4:$U$4,0)),0) -> 0 | Y10: =IFERROR(INDEX(検挙罪種前年!$E$5:$U$1000,MATCH($W$2,検挙罪種前年!$D$5:$D$1000,0),MATCH($A10,検挙罪種前年!$E$4:$U$4,0))+INDEX(検挙罪種前年!$E$5:$U$1000,MATCH($AA$2,検挙罪種前年!$D$5:$D$1000,0),MATCH($A10,検挙罪種前年!$E$4:$U$4,0)),0) -> 0 | Z10: =IFERROR(INDEX(人員罪種本年!$E$5:$U$1000,MATCH($W$2,人員罪種本年!$D$5:$D$1000,0),MATCH($A10,人員罪種本年!$E$4:$U$4,0))+INDEX(人員罪種本年!$E$5:$U$1000,MATCH($AA$2,人員罪種本年!$D$5:$D$1000,0),MATCH($A10,人員罪種本年!$E$4:$U$4,0)),0) -> 0 | AA10: =IFERROR(INDEX(人員罪種前年!$E$5:$U$1000,MATCH($W$2,人員罪種前年!$D$5:$D$1000,0),MATCH($A10,人員罪種前年!$E$4:$U$4,0))+INDEX(人員罪種前年!$E$5:$U$1000,MATCH($AA$2,人員罪種前年!$D$5:$D$1000,0),MATCH($A10,人員罪種前年!$E$4:$U$4,0)),0) -> 0 | AB10: =IFERROR(INDEX(少年罪種本年!$E$5:$U$1000,MATCH($W$2,少年罪種本年!$D$5:$D$1000,0),MATCH($A10,少年罪種本年!$E$4:$U$4,0))+INDEX(少年罪種本年!$E$5:$U$1000,MATCH($AA$2,少年罪種本年!$D$5:$D$1000,0),MATCH($A10,少年罪種本年!$E$4:$U$4,0)),0) -> 0 | AC10: =IFERROR(INDEX(少年罪種前年!$E$5:$U$1000,MATCH($W$2,少年罪種前年!$D$5:$D$1000,0),MATCH($A10,少年罪種前年!$E$4:$U$4,0))+INDEX(少年罪種前年!$E$5:$U$1000,MATCH($AA$2,少年罪種前年!$D$5:$D$1000,0),MATCH($A10,少年罪種前年!$E$4:$U$4,0)),0) -> 0 | AE10: =IFERROR(INDEX(認知罪種本年!$E$5:$U$1000,MATCH("凶悪犯",認知罪種本年!$D$5:$D$1000,0),MATCH($A10,認知罪種本年!$E$4:$U$4,0))+INDEX(認知罪種本年!$E$5:$U$1000,MATCH("強制わいせつ",認知罪種本年!$D$5:$D$1000,0),MATCH($A10,認知罪種本年!$E$4:$U$4,0))+INDEX(認知罪種本年!$E$5:$U$1000,MATCH("略取誘拐・人身売買",認知罪種本年!$D$5:$D$1000,0),MATCH($A10,認知罪種本年!$E$4:$U$4,0)),0) -> 11 | AF10: =IFERROR(INDEX(認知罪種前年!$E$5:$U$1000,MATCH("凶悪犯",認知罪種前年!$D$5:$D$1000,0),MATCH($A10,認知罪種前年!$E$4:$U$4,0))+INDEX(認知罪種前年!$E$5:$U$1000,MATCH("強制わいせつ",認知罪種前年!$D$5:$D$1000,0),MATCH($A10,認知罪種前年!$E$4:$U$4,0))+INDEX(認知罪種前年!$E$5:$U$1000,MATCH("略取誘拐・人身売買",認知罪種前年!$D$5:$D$1000,0),MATCH($A10,認知罪種前年!$E$4:$U$4,0)),0) -> 4 | AG10: =IFERROR(INDEX(検挙罪種本年!$E$5:$U$1000,MATCH("凶悪犯",検挙罪種本年!$D$5:$D$1000,0),MATCH($A10,検挙罪種本年!$E$4:$U$4,0))+INDEX(検挙罪種本年!$E$5:$U$1000,MATCH("強制わいせつ",検挙罪種本年!$D$5:$D$1000,0),MATCH($A10,検挙罪種本年!$E$4:$U$4,0))+INDEX(検挙罪種本年!$E$5:$U$1000,MATCH("略取誘拐・人身売買",検挙罪種本年!$D$5:$D$1000,0),MATCH($A10,検挙罪種本年!$E$4:$U$4,0)),0) -> 5 | AH10: =IFERROR(INDEX(検挙罪種前年!$E$5:$U$1000,MATCH("凶悪犯",検挙罪種前年!$D$5:$D$1000,0),MATCH($A10,検挙罪種前年!$E$4:$U$4,0))+INDEX(検挙罪種前年!$E$5:$U$1000,MATCH("強制わいせつ",検挙罪種前年!$D$5:$D$1000,0),MATCH($A10,検挙罪種前年!$E$4:$U$4,0))+INDEX(検挙罪種前年!$E$5:$U$1000,MATCH("略取誘拐・人身売買",検挙罪種前年!$D$5:$D$1000,0),MATCH($A10,検挙罪種前年!$E$4:$U$4,0)),0) -> 4 | AI10: =IFERROR(INDEX(人員罪種本年!$E$5:$U$1000,MATCH("凶悪犯",人員罪種本年!$D$5:$D$1000,0),MATCH($A10,人員罪種本年!$E$4:$U$4,0))+INDEX(人員罪種本年!$E$5:$U$1000,MATCH("強制わいせつ",人員罪種本年!$D$5:$D$1000,0),MATCH($A10,人員罪種本年!$E$4:$U$4,0))+INDEX(人員罪種本年!$E$5:$U$1000,MATCH("略取誘拐・人身売買",人員罪種本年!$D$5:$D$1000,0),MATCH($A10,人員罪種本年!$E$4:$U$4,0)),0) -> 5 | AJ10: =IFERROR(INDEX(人員罪種前年!$E$5:$U$1000,MATCH("凶悪犯",人員罪種前年!$D$5:$D$1000,0),MATCH($A10,人員罪種前年!$E$4:$U$4,0))+INDEX(人員罪種前年!$E$5:$U$1000,MATCH("強制わいせつ",人員罪種前年!$D$5:$D$1000,0),MATCH($A10,人員罪種前年!$E$4:$U$4,0))+INDEX(人員罪種前年!$E$5:$U$1000,MATCH("略取誘拐・人身売買",人員罪種前年!$D$5:$D$1000,0),MATCH($A10,人員罪種前年!$E$4:$U$4,0)),0) -> 5 | AK10: =IFERROR(INDEX(少年罪種本年!$E$5:$U$1000,MATCH("凶悪犯",少年罪種本年!$D$5:$D$1000,0),MATCH($A10,少年罪種本年!$E$4:$U$4,0))+INDEX(少年罪種本年!$E$5:$U$1000,MATCH("強制わいせつ",少年罪種本年!$D$5:$D$1000,0),MATCH($A10,少年罪種本年!$E$4:$U$4,0))+INDEX(少年罪種本年!$E$5:$U$1000,MATCH("略取誘拐・人身売買",少年罪種本年!$D$5:$D$1000,0),MATCH($A10,少年罪種本年!$E$4:$U$4,0)),0) -> 0 | AL10: =IFERROR(INDEX(少年罪種前年!$E$5:$U$1000,MATCH("凶悪犯",少年罪種前年!$D$5:$D$1000,0),MATCH($A10,少年罪種前年!$E$4:$U$4,0))+INDEX(少年罪種前年!$E$5:$U$1000,MATCH("強制わいせつ",少年罪種前年!$D$5:$D$1000,0),MATCH($A10,少年罪種前年!$E$4:$U$4,0))+INDEX(少年罪種前年!$E$5:$U$1000,MATCH("略取誘拐・人身売買",少年罪種前年!$D$5:$D$1000,0),MATCH($A10,少年罪種前年!$E$4:$U$4,0)),0) -> 1 | AN10: =IFERROR(INDEX(認知罪種本年!$E$5:$U$1000,MATCH("侵入窃盗",認知罪種本年!$D$5:$D$1000,0),MATCH($A10,認知罪種本年!$E$4:$U$4,0))+INDEX(認知罪種本年!$E$5:$U$1000,MATCH("自動車盗（キーあり）",認知罪種本年!$D$5:$D$1000,0),MATCH($A10,認知罪種本年!$E$4:$U$4,0))+INDEX(認知罪種本年!$E$5:$U$1000,MATCH("自動車盗（キーなし）",認知罪種本年!$D$5:$D$1000,0),MATCH($A10,認知罪種本年!$E$4:$U$4,0))+INDEX(認知罪種本年!$E$5:$U$1000,MATCH("ひったくり",認知罪種本年!$D$5:$D$1000,0),MATCH($A10,認知罪種本年!$E$4:$U$4,0))+INDEX(認知罪種本年!$E$5:$U$1000,MATCH("すり",認知罪種本年!$D$5:$D$1000,0),MATCH($A10,認知罪種本年!$E$4:$U$4,0)),0) -> 29 | AO10: =IFERROR(INDEX(認知罪種前年!$E$5:$U$1000,MATCH("侵入窃盗",認知罪種前年!$D$5:$D$1000,0),MATCH($A10,認知罪種前年!$E$4:$U$4,0))+INDEX(認知罪種前年!$E$5:$U$1000,MATCH("自動車盗（キーあり）",認知罪種前年!$D$5:$D$1000,0),MATCH($A10,認知罪種前年!$E$4:$U$4,0))+INDEX(認知罪種前年!$E$5:$U$1000,MATCH("自動車盗（キーなし）",認知罪種前年!$D$5:$D$1000,0),MATCH($A10,認知罪種前年!$E$4:$U$4,0))+INDEX(認知罪種前年!$E$5:$U$1000,MATCH("ひったくり",認知罪種前年!$D$5:$D$1000,0),MATCH($A10,認知罪種前年!$E$4:$U$4,0))+INDEX(認知罪種前年!$E$5:$U$1000,MATCH("すり",認知罪種前年!$D$5:$D$1000,0),MATCH($A10,認知罪種前年!$E$4:$U$4,0)),0) -> 42 | AP10: =IFERROR(INDEX(検挙罪種本年!$E$5:$U$1000,MATCH("侵入窃盗",検挙罪種本年!$D$5:$D$1000,0),MATCH($A10,検挙罪種本年!$E$4:$U$4,0))+INDEX(検挙罪種本年!$E$5:$U$1000,MATCH("自動車盗（キーあり）",検挙罪種本年!$D$5:$D$1000,0),MATCH($A10,検挙罪種本年!$E$4:$U$4,0))+INDEX(検挙罪種本年!$E$5:$U$1000,MATCH("自動車盗（キーなし）",検挙罪種本年!$D$5:$D$1000,0),MATCH($A10,検挙罪種本年!$E$4:$U$4,0))+INDEX(検挙罪種本年!$E$5:$U$1000,MATCH("ひったくり",検挙罪種本年!$D$5:$D$1000,0),MATCH($A10,検挙罪種本年!$E$4:$U$4,0))+INDEX(検挙罪種本年!$E$5:$U$1000,MATCH("すり",検挙罪種本年!$D$5:$D$1000,0),MATCH($A10,検挙罪種本年!$E$4:$U$4,0)),0) -> 18 | AQ10: =IFERROR(INDEX(検挙罪種前年!$E$5:$U$1000,MATCH("侵入窃盗",検挙罪種前年!$D$5:$D$1000,0),MATCH($A10,検挙罪種前年!$E$4:$U$4,0))+INDEX(検挙罪種前年!$E$5:$U$1000,MATCH("自動車盗（キーあり）",検挙罪種前年!$D$5:$D$1000,0),MATCH($A10,検挙罪種前年!$E$4:$U$4,0))+INDEX(検挙罪種前年!$E$5:$U$1000,MATCH("自動車盗（キーなし）",検挙罪種前年!$D$5:$D$1000,0),MATCH($A10,検挙罪種前年!$E$4:$U$4,0))+INDEX(検挙罪種前年!$E$5:$U$1000,MATCH("ひったくり",検挙罪種前年!$D$5:$D$1000,0),MATCH($A10,検挙罪種前年!$E$4:$U$4,0))+INDEX(検挙罪種前年!$E$5:$U$1000,MATCH("すり",検挙罪種前年!$D$5:$D$1000,0),MATCH($A10,検挙罪種前年!$E$4:$U$4,0)),0) -> 32 | AR10: =IFERROR(INDEX(人員罪種本年!$E$5:$U$1000,MATCH("侵入窃盗",人員罪種本年!$D$5:$D$1000,0),MATCH($A10,人員罪種本年!$E$4:$U$4,0))+INDEX(人員罪種本年!$E$5:$U$1000,MATCH("自動車盗（キーあり）",人員罪種本年!$D$5:$D$1000,0),MATCH($A10,人員罪種本年!$E$4:$U$4,0))+INDEX(人員罪種本年!$E$5:$U$1000,MATCH("自動車盗（キーなし）",人員罪種本年!$D$5:$D$1000,0),MATCH($A10,人員罪種本年!$E$4:$U$4,0))+INDEX(人員罪種本年!$E$5:$U$1000,MATCH("ひったくり",人員罪種本年!$D$5:$D$1000,0),MATCH($A10,人員罪種本年!$E$4:$U$4,0))+INDEX(人員罪種本年!$E$5:$U$1000,MATCH("すり",人員罪種本年!$D$5:$D$1000,0),MATCH($A10,人員罪種本年!$E$4:$U$4,0)),0) -> 10 | AS10: =IFERROR(INDEX(人員罪種前年!$E$5:$U$1000,MATCH("侵入窃盗",人員罪種前年!$D$5:$D$1000,0),MATCH($A10,人員罪種前年!$E$4:$U$4,0))+INDEX(人員罪種前年!$E$5:$U$1000,MATCH("自動車盗（キーあり）",人員罪種前年!$D$5:$D$1000,0),MATCH($A10,人員罪種前年!$E$4:$U$4,0))+INDEX(人員罪種前年!$E$5:$U$1000,MATCH("自動車盗（キーなし）",人員罪種前年!$D$5:$D$1000,0),MATCH($A10,人員罪種前年!$E$4:$U$4,0))+INDEX(人員罪種前年!$E$5:$U$1000,MATCH("ひったくり",人員罪種前年!$D$5:$D$1000,0),MATCH($A10,人員罪種前年!$E$4:$U$4,0))+INDEX(人員罪種前年!$E$5:$U$1000,MATCH("すり",人員罪種前年!$D$5:$D$1000,0),MATCH($A10,人員罪種前年!$E$4:$U$4,0)),0) -> 14 | AT10: =IFERROR(INDEX(少年罪種本年!$E$5:$U$1000,MATCH("侵入窃盗",少年罪種本年!$D$5:$D$1000,0),MATCH($A10,少年罪種本年!$E$4:$U$4,0))+INDEX(少年罪種本年!$E$5:$U$1000,MATCH("自動車盗（キーあり）",少年罪種本年!$D$5:$D$1000,0),MATCH($A10,少年罪種本年!$E$4:$U$4,0))+INDEX(少年罪種本年!$E$5:$U$1000,MATCH("自動車盗（キーなし）",少年罪種本年!$D$5:$D$1000,0),MATCH($A10,少年罪種本年!$E$4:$U$4,0))+INDEX(少年罪種本年!$E$5:$U$1000,MATCH("ひったくり",少年罪種本年!$D$5:$D$1000,0),MATCH($A10,少年罪種本年!$E$4:$U$4,0))+INDEX(少年罪種本年!$E$5:$U$1000,MATCH("すり",少年罪種本年!$D$5:$D$1000,0),MATCH($A10,少年罪種本年!$E$4:$U$4,0)),0) -> 0 | AU10: =IFERROR(INDEX(少年罪種前年!$E$5:$U$1000,MATCH("侵入窃盗",少年罪種前年!$D$5:$D$1000,0),MATCH($A10,少年罪種前年!$E$4:$U$4,0))+INDEX(少年罪種前年!$E$5:$U$1000,MATCH("自動車盗（キーあり）",少年罪種前年!$D$5:$D$1000,0),MATCH($A10,少年罪種前年!$E$4:$U$4,0))+INDEX(少年罪種前年!$E$5:$U$1000,MATCH("自動車盗（キーなし）",少年罪種前年!$D$5:$D$1000,0),MATCH($A10,少年罪種前年!$E$4:$U$4,0))+INDEX(少年罪種前年!$E$5:$U$1000,MATCH("ひったくり",少年罪種前年!$D$5:$D$1000,0),MATCH($A10,少年罪種前年!$E$4:$U$4,0))+INDEX(少年罪種前年!$E$5:$U$1000,MATCH("すり",少年罪種前年!$D$5:$D$1000,0),MATCH($A10,少年罪種前年!$E$4:$U$4,0)),0) -> 1
A11: 近江八幡 | B11: 430 | C11: 437 | D11: -7 | E11: -1.601830664 | F11: 210 | G11: 124 | H11: 86 | I11: 69.35483871 | J11: 48.8 | K11: 28.4 | L11: 20.4 | M11: 131 | N11: 115 | O11: 16 | P11: 13.91304348 | Q11: 18 | R11: 24 | S11: -6 | T11: -25 | V11: =IFERROR(INDEX(認知罪種本年!$E$5:$U$1000,MATCH($W$2,認知罪種本年!$D$5:$D$1000,0),MATCH($A11,認知罪種本年!$E$4:$U$4,0))+INDEX(認知罪種本年!$E$5:$U$1000,MATCH($AA$2,認知罪種本年!$D$5:$D$1000,0),MATCH($A11,認知罪種本年!$E$4:$U$4,0)),0) -> 0 | W11: =IFERROR(INDEX(認知罪種前年!$E$5:$U$1000,MATCH($W$2,認知罪種前年!$D$5:$D$1000,0),MATCH($A11,認知罪種前年!$E$4:$U$4,0))+INDEX(認知罪種前年!$E$5:$U$1000,MATCH($AA$2,認知罪種前年!$D$5:$D$1000,0),MATCH($A11,認知罪種前年!$E$4:$U$4,0)),0) -> 0 | X11: =IFERROR(INDEX(検挙罪種本年!$E$5:$U$1000,MATCH($W$2,検挙罪種本年!$D$5:$D$1000,0),MATCH($A11,検挙罪種本年!$E$4:$U$4,0))+INDEX(検挙罪種本年!$E$5:$U$1000,MATCH($AA$2,検挙罪種本年!$D$5:$D$1000,0),MATCH($A11,検挙罪種本年!$E$4:$U$4,0)),0) -> 0 | Y11: =IFERROR(INDEX(検挙罪種前年!$E$5:$U$1000,MATCH($W$2,検挙罪種前年!$D$5:$D$1000,0),MATCH($A11,検挙罪種前年!$E$4:$U$4,0))+INDEX(検挙罪種前年!$E$5:$U$1000,MATCH($AA$2,検挙罪種前年!$D$5:$D$1000,0),MATCH($A11,検挙罪種前年!$E$4:$U$4,0)),0) -> 0 | Z11: =IFERROR(INDEX(人員罪種本年!$E$5:$U$1000,MATCH($W$2,人員罪種本年!$D$5:$D$1000,0),MATCH($A11,人員罪種本年!$E$4:$U$4,0))+INDEX(人員罪種本年!$E$5:$U$1000,MATCH($AA$2,人員罪種本年!$D$5:$D$1000,0),MATCH($A11,人員罪種本年!$E$4:$U$4,0)),0) -> 0 | AA11: =IFERROR(INDEX(人員罪種前年!$E$5:$U$1000,MATCH($W$2,人員罪種前年!$D$5:$D$1000,0),MATCH($A11,人員罪種前年!$E$4:$U$4,0))+INDEX(人員罪種前年!$E$5:$U$1000,MATCH($AA$2,人員罪種前年!$D$5:$D$1000,0),MATCH($A11,人員罪種前年!$E$4:$U$4,0)),0) -> 0 | AB11: =IFERROR(INDEX(少年罪種本年!$E$5:$U$1000,MATCH($W$2,少年罪種本年!$D$5:$D$1000,0),MATCH($A11,少年罪種本年!$E$4:$U$4,0))+INDEX(少年罪種本年!$E$5:$U$1000,MATCH($AA$2,少年罪種本年!$D$5:$D$1000,0),MATCH($A11,少年罪種本年!$E$4:$U$4,0)),0) -> 0 | AC11: =IFERROR(INDEX(少年罪種前年!$E$5:$U$1000,MATCH($W$2,少年罪種前年!$D$5:$D$1000,0),MATCH($A11,少年罪種前年!$E$4:$U$4,0))+INDEX(少年罪種前年!$E$5:$U$1000,MATCH($AA$2,少年罪種前年!$D$5:$D$1000,0),MATCH($A11,少年罪種前年!$E$4:$U$4,0)),0) -> 0 | AE11: =IFERROR(INDEX(認知罪種本年!$E$5:$U$1000,MATCH("凶悪犯",認知罪種本年!$D$5:$D$1000,0),MATCH($A11,認知罪種本年!$E$4:$U$4,0))+INDEX(認知罪種本年!$E$5:$U$1000,MATCH("強制わいせつ",認知罪種本年!$D$5:$D$1000,0),MATCH($A11,認知罪種本年!$E$4:$U$4,0))+INDEX(認知罪種本年!$E$5:$U$1000,MATCH("略取誘拐・人身売買",認知罪種本年!$D$5:$D$1000,0),MATCH($A11,認知罪種本年!$E$4:$U$4,0)),0) -> 8 | AF11: =IFERROR(INDEX(認知罪種前年!$E$5:$U$1000,MATCH("凶悪犯",認知罪種前年!$D$5:$D$1000,0),MATCH($A11,認知罪種前年!$E$4:$U$4,0))+INDEX(認知罪種前年!$E$5:$U$1000,MATCH("強制わいせつ",認知罪種前年!$D$5:$D$1000,0),MATCH($A11,認知罪種前年!$E$4:$U$4,0))+INDEX(認知罪種前年!$E$5:$U$1000,MATCH("略取誘拐・人身売買",認知罪種前年!$D$5:$D$1000,0),MATCH($A11,認知罪種前年!$E$4:$U$4,0)),0) -> 2 | AG11: =IFERROR(INDEX(検挙罪種本年!$E$5:$U$1000,MATCH("凶悪犯",検挙罪種本年!$D$5:$D$1000,0),MATCH($A11,検挙罪種本年!$E$4:$U$4,0))+INDEX(検挙罪種本年!$E$5:$U$1000,MATCH("強制わいせつ",検挙罪種本年!$D$5:$D$1000,0),MATCH($A11,検挙罪種本年!$E$4:$U$4,0))+INDEX(検挙罪種本年!$E$5:$U$1000,MATCH("略取誘拐・人身売買",検挙罪種本年!$D$5:$D$1000,0),MATCH($A11,検挙罪種本年!$E$4:$U$4,0)),0) -> 7 | AH11: =IFERROR(INDEX(検挙罪種前年!$E$5:$U$1000,MATCH("凶悪犯",検挙罪種前年!$D$5:$D$1000,0),MATCH($A11,検挙罪種前年!$E$4:$U$4,0))+INDEX(検挙罪種前年!$E$5:$U$1000,MATCH("強制わいせつ",検挙罪種前年!$D$5:$D$1000,0),MATCH($A11,検挙罪種前年!$E$4:$U$4,0))+INDEX(検挙罪種前年!$E$5:$U$1000,MATCH("略取誘拐・人身売買",検挙罪種前年!$D$5:$D$1000,0),MATCH($A11,検挙罪種前年!$E$4:$U$4,0)),0) -> 2 | AI11: =IFERROR(INDEX(人員罪種本年!$E$5:$U$1000,MATCH("凶悪犯",人員罪種本年!$D$5:$D$1000,0),MATCH($A11,人員罪種本年!$E$4:$U$4,0))+INDEX(人員罪種本年!$E$5:$U$1000,MATCH("強制わいせつ",人員罪種本年!$D$5:$D$1000,0),MATCH($A11,人員罪種本年!$E$4:$U$4,0))+INDEX(人員罪種本年!$E$5:$U$1000,MATCH("略取誘拐・人身売買",人員罪種本年!$D$5:$D$1000,0),MATCH($A11,人員罪種本年!$E$4:$U$4,0)),0) -> 5 | AJ11: =IFERROR(INDEX(人員罪種前年!$E$5:$U$1000,MATCH("凶悪犯",人員罪種前年!$D$5:$D$1000,0),MATCH($A11,人員罪種前年!$E$4:$U$4,0))+INDEX(人員罪種前年!$E$5:$U$1000,MATCH("強制わいせつ",人員罪種前年!$D$5:$D$1000,0),MATCH($A11,人員罪種前年!$E$4:$U$4,0))+INDEX(人員罪種前年!$E$5:$U$1000,MATCH("略取誘拐・人身売買",人員罪種前年!$D$5:$D$1000,0),MATCH($A11,人員罪種前年!$E$4:$U$4,0)),0) -> 1 | AK11: =IFERROR(INDEX(少年罪種本年!$E$5:$U$1000,MATCH("凶悪犯",少年罪種本年!$D$5:$D$1000,0),MATCH($A11,少年罪種本年!$E$4:$U$4,0))+INDEX(少年罪種本年!$E$5:$U$1000,MATCH("強制わいせつ",少年罪種本年!$D$5:$D$1000,0),MATCH($A11,少年罪種本年!$E$4:$U$4,0))+INDEX(少年罪種本年!$E$5:$U$1000,MATCH("略取誘拐・人身売買",少年罪種本年!$D$5:$D$1000,0),MATCH($A11,少年罪種本年!$E$4:$U$4,0)),0) -> 0 | AL11: =IFERROR(INDEX(少年罪種前年!$E$5:$U$1000,MATCH("凶悪犯",少年罪種前年!$D$5:$D$1000,0),MATCH($A11,少年罪種前年!$E$4:$U$4,0))+INDEX(少年罪種前年!$E$5:$U$1000,MATCH("強制わいせつ",少年罪種前年!$D$5:$D$1000,0),MATCH($A11,少年罪種前年!$E$4:$U$4,0))+INDEX(少年罪種前年!$E$5:$U$1000,MATCH("略取誘拐・人身売買",少年罪種前年!$D$5:$D$1000,0),MATCH($A11,少年罪種前年!$E$4:$U$4,0)),0) -> 0 | AN11: =IFERROR(INDEX(認知罪種本年!$E$5:$U$1000,MATCH("侵入窃盗",認知罪種本年!$D$5:$D$1000,0),MATCH($A11,認知罪種本年!$E$4:$U$4,0))+INDEX(認知罪種本年!$E$5:$U$1000,MATCH("自動車盗（キーあり）",認知罪種本年!$D$5:$D$1000,0),MATCH($A11,認知罪種本年!$E$4:$U$4,0))+INDEX(認知罪種本年!$E$5:$U$1000,MATCH("自動車盗（キーなし）",認知罪種本年!$D$5:$D$1000,0),MATCH($A11,認知罪種本年!$E$4:$U$4,0))+INDEX(認知罪種本年!$E$5:$U$1000,MATCH("ひったくり",認知罪種本年!$D$5:$D$1000,0),MATCH($A11,認知罪種本年!$E$4:$U$4,0))+INDEX(認知罪種本年!$E$5:$U$1000,MATCH("すり",認知罪種本年!$D$5:$D$1000,0),MATCH($A11,認知罪種本年!$E$4:$U$4,0)),0) -> 33 | AO11: =IFERROR(INDEX(認知罪種前年!$E$5:$U$1000,MATCH("侵入窃盗",認知罪種前年!$D$5:$D$1000,0),MATCH($A11,認知罪種前年!$E$4:$U$4,0))+INDEX(認知罪種前年!$E$5:$U$1000,MATCH("自動車盗（キーあり）",認知罪種前年!$D$5:$D$1000,0),MATCH($A11,認知罪種前年!$E$4:$U$4,0))+INDEX(認知罪種前年!$E$5:$U$1000,MATCH("自動車盗（キーなし）",認知罪種前年!$D$5:$D$1000,0),MATCH($A11,認知罪種前年!$E$4:$U$4,0))+INDEX(認知罪種前年!$E$5:$U$1000,MATCH("ひったくり",認知罪種前年!$D$5:$D$1000,0),MATCH($A11,認知罪種前年!$E$4:$U$4,0))+INDEX(認知罪種前年!$E$5:$U$1000,MATCH("すり",認知罪種前年!$D$5:$D$1000,0),MATCH($A11,認知罪種前年!$E$4:$U$4,0)),0) -> 40 | AP11: =IFERROR(INDEX(検挙罪種本年!$E$5:$U$1000,MATCH("侵入窃盗",検挙罪種本年!$D$5:$D$1000,0),MATCH($A11,検挙罪種本年!$E$4:$U$4,0))+INDEX(検挙罪種本年!$E$5:$U$1000,MATCH("自動車盗（キーあり）",検挙罪種本年!$D$5:$D$1000,0),MATCH($A11,検挙罪種本年!$E$4:$U$4,0))+INDEX(検挙罪種本年!$E$5:$U$1000,MATCH("自動車盗（キーなし）",検挙罪種本年!$D$5:$D$1000,0),MATCH($A11,検挙罪種本年!$E$4:$U$4,0))+INDEX(検挙罪種本年!$E$5:$U$1000,MATCH("ひったくり",検挙罪種本年!$D$5:$D$1000,0),MATCH($A11,検挙罪種本年!$E$4:$U$4,0))+INDEX(検挙罪種本年!$E$5:$U$1000,MATCH("すり",検挙罪種本年!$D$5:$D$1000,0),MATCH($A11,検挙罪種本年!$E$4:$U$4,0)),0) -> 45 | AQ11: =IFERROR(INDEX(検挙罪種前年!$E$5:$U$1000,MATCH("侵入窃盗",検挙罪種前年!$D$5:$D$1000,0),MATCH($A11,検挙罪種前年!$E$4:$U$4,0))+INDEX(検挙罪種前年!$E$5:$U$1000,MATCH("自動車盗（キーあり）",検挙罪種前年!$D$5:$D$1000,0),MATCH($A11,検挙罪種前年!$E$4:$U$4,0))+INDEX(検挙罪種前年!$E$5:$U$1000,MATCH("自動車盗（キーなし）",検挙罪種前年!$D$5:$D$1000,0),MATCH($A11,検挙罪種前年!$E$4:$U$4,0))+INDEX(検挙罪種前年!$E$5:$U$1000,MATCH("ひったくり",検挙罪種前年!$D$5:$D$1000,0),MATCH($A11,検挙罪種前年!$E$4:$U$4,0))+INDEX(検挙罪種前年!$E$5:$U$1000,MATCH("すり",検挙罪種前年!$D$5:$D$1000,0),MATCH($A11,検挙罪種前年!$E$4:$U$4,0)),0) -> 8 | AR11: =IFERROR(INDEX(人員罪種本年!$E$5:$U$1000,MATCH("侵入窃盗",人員罪種本年!$D$5:$D$1000,0),MATCH($A11,人員罪種本年!$E$4:$U$4,0))+INDEX(人員罪種本年!$E$5:$U$1000,MATCH("自動車盗（キーあり）",人員罪種本年!$D$5:$D$1000,0),MATCH($A11,人員罪種本年!$E$4:$U$4,0))+INDEX(人員罪種本年!$E$5:$U$1000,MATCH("自動車盗（キーなし）",人員罪種本年!$D$5:$D$1000,0),MATCH($A11,人員罪種本年!$E$4:$U$4,0))+INDEX(人員罪種本年!$E$5:$U$1000,MATCH("ひったくり",人員罪種本年!$D$5:$D$1000,0),MATCH($A11,人員罪種本年!$E$4:$U$4,0))+INDEX(人員罪種本年!$E$5:$U$1000,MATCH("すり",人員罪種本年!$D$5:$D$1000,0),MATCH($A11,人員罪種本年!$E$4:$U$4,0)),0) -> 6 | AS11: =IFERROR(INDEX(人員罪種前年!$E$5:$U$1000,MATCH("侵入窃盗",人員罪種前年!$D$5:$D$1000,0),MATCH($A11,人員罪種前年!$E$4:$U$4,0))+INDEX(人員罪種前年!$E$5:$U$1000,MATCH("自動車盗（キーあり）",人員罪種前年!$D$5:$D$1000,0),MATCH($A11,人員罪種前年!$E$4:$U$4,0))+INDEX(人員罪種前年!$E$5:$U$1000,MATCH("自動車盗（キーなし）",人員罪種前年!$D$5:$D$1000,0),MATCH($A11,人員罪種前年!$E$4:$U$4,0))+INDEX(人員罪種前年!$E$5:$U$1000,MATCH("ひったくり",人員罪種前年!$D$5:$D$1000,0),MATCH($A11,人員罪種前年!$E$4:$U$4,0))+INDEX(人員罪種前年!$E$5:$U$1000,MATCH("すり",人員罪種前年!$D$5:$D$1000,0),MATCH($A11,人員罪種前年!$E$4:$U$4,0)),0) -> 8 | AT11: =IFERROR(INDEX(少年罪種本年!$E$5:$U$1000,MATCH("侵入窃盗",少年罪種本年!$D$5:$D$1000,0),MATCH($A11,少年罪種本年!$E$4:$U$4,0))+INDEX(少年罪種本年!$E$5:$U$1000,MATCH("自動車盗（キーあり）",少年罪種本年!$D$5:$D$1000,0),MATCH($A11,少年罪種本年!$E$4:$U$4,0))+INDEX(少年罪種本年!$E$5:$U$1000,MATCH("自動車盗（キーなし）",少年罪種本年!$D$5:$D$1000,0),MATCH($A11,少年罪種本年!$E$4:$U$4,0))+INDEX(少年罪種本年!$E$5:$U$1000,MATCH("ひったくり",少年罪種本年!$D$5:$D$1000,0),MATCH($A11,少年罪種本年!$E$4:$U$4,0))+INDEX(少年罪種本年!$E$5:$U$1000,MATCH("すり",少年罪種本年!$D$5:$D$1000,0),MATCH($A11,少年罪種本年!$E$4:$U$4,0)),0) -> 0 | AU11: =IFERROR(INDEX(少年罪種前年!$E$5:$U$1000,MATCH("侵入窃盗",少年罪種前年!$D$5:$D$1000,0),MATCH($A11,少年罪種前年!$E$4:$U$4,0))+INDEX(少年罪種前年!$E$5:$U$1000,MATCH("自動車盗（キーあり）",少年罪種前年!$D$5:$D$1000,0),MATCH($A11,少年罪種前年!$E$4:$U$4,0))+INDEX(少年罪種前年!$E$5:$U$1000,MATCH("自動車盗（キーなし）",少年罪種前年!$D$5:$D$1000,0),MATCH($A11,少年罪種前年!$E$4:$U$4,0))+INDEX(少年罪種前年!$E$5:$U$1000,MATCH("ひったくり",少年罪種前年!$D$5:$D$1000,0),MATCH($A11,少年罪種前年!$E$4:$U$4,0))+INDEX(少年罪種前年!$E$5:$U$1000,MATCH("すり",少年罪種前年!$D$5:$D$1000,0),MATCH($A11,少年罪種前年!$E$4:$U$4,0)),0) -> 1
A12: 東近江 | B12: 525 | C12: 569 | D12: -44 | E12: -7.732864675 | F12: 236 | G12: 219 | H12: 17 | I12: 7.762557078 | J12: 45 | K12: 38.5 | L12: 6.5 | M12: 162 | N12: 154 | O12: 8 | P12: 5.194805195 | Q12: 21 | R12: 18 | S12: 3 | T12: 16.66666667 | V12: =IFERROR(INDEX(認知罪種本年!$E$5:$U$1000,MATCH($W$2,認知罪種本年!$D$5:$D$1000,0),MATCH($A12,認知罪種本年!$E$4:$U$4,0))+INDEX(認知罪種本年!$E$5:$U$1000,MATCH($AA$2,認知罪種本年!$D$5:$D$1000,0),MATCH($A12,認知罪種本年!$E$4:$U$4,0)),0) -> 0 | W12: =IFERROR(INDEX(認知罪種前年!$E$5:$U$1000,MATCH($W$2,認知罪種前年!$D$5:$D$1000,0),MATCH($A12,認知罪種前年!$E$4:$U$4,0))+INDEX(認知罪種前年!$E$5:$U$1000,MATCH($AA$2,認知罪種前年!$D$5:$D$1000,0),MATCH($A12,認知罪種前年!$E$4:$U$4,0)),0) -> 0 | X12: =IFERROR(INDEX(検挙罪種本年!$E$5:$U$1000,MATCH($W$2,検挙罪種本年!$D$5:$D$1000,0),MATCH($A12,検挙罪種本年!$E$4:$U$4,0))+INDEX(検挙罪種本年!$E$5:$U$1000,MATCH($AA$2,検挙罪種本年!$D$5:$D$1000,0),MATCH($A12,検挙罪種本年!$E$4:$U$4,0)),0) -> 0 | Y12: =IFERROR(INDEX(検挙罪種前年!$E$5:$U$1000,MATCH($W$2,検挙罪種前年!$D$5:$D$1000,0),MATCH($A12,検挙罪種前年!$E$4:$U$4,0))+INDEX(検挙罪種前年!$E$5:$U$1000,MATCH($AA$2,検挙罪種前年!$D$5:$D$1000,0),MATCH($A12,検挙罪種前年!$E$4:$U$4,0)),0) -> 0 | Z12: =IFERROR(INDEX(人員罪種本年!$E$5:$U$1000,MATCH($W$2,人員罪種本年!$D$5:$D$1000,0),MATCH($A12,人員罪種本年!$E$4:$U$4,0))+INDEX(人員罪種本年!$E$5:$U$1000,MATCH($AA$2,人員罪種本年!$D$5:$D$1000,0),MATCH($A12,人員罪種本年!$E$4:$U$4,0)),0) -> 0 | AA12: =IFERROR(INDEX(人員罪種前年!$E$5:$U$1000,MATCH($W$2,人員罪種前年!$D$5:$D$1000,0),MATCH($A12,人員罪種前年!$E$4:$U$4,0))+INDEX(人員罪種前年!$E$5:$U$1000,MATCH($AA$2,人員罪種前年!$D$5:$D$1000,0),MATCH($A12,人員罪種前年!$E$4:$U$4,0)),0) -> 0 | AB12: =IFERROR(INDEX(少年罪種本年!$E$5:$U$1000,MATCH($W$2,少年罪種本年!$D$5:$D$1000,0),MATCH($A12,少年罪種本年!$E$4:$U$4,0))+INDEX(少年罪種本年!$E$5:$U$1000,MATCH($AA$2,少年罪種本年!$D$5:$D$1000,0),MATCH($A12,少年罪種本年!$E$4:$U$4,0)),0) -> 0 | AC12: =IFERROR(INDEX(少年罪種前年!$E$5:$U$1000,MATCH($W$2,少年罪種前年!$D$5:$D$1000,0),MATCH($A12,少年罪種前年!$E$4:$U$4,0))+INDEX(少年罪種前年!$E$5:$U$1000,MATCH($AA$2,少年罪種前年!$D$5:$D$1000,0),MATCH($A12,少年罪種前年!$E$4:$U$4,0)),0) -> 0 | AE12: =IFERROR(INDEX(認知罪種本年!$E$5:$U$1000,MATCH("凶悪犯",認知罪種本年!$D$5:$D$1000,0),MATCH($A12,認知罪種本年!$E$4:$U$4,0))+INDEX(認知罪種本年!$E$5:$U$1000,MATCH("強制わいせつ",認知罪種本年!$D$5:$D$1000,0),MATCH($A12,認知罪種本年!$E$4:$U$4,0))+INDEX(認知罪種本年!$E$5:$U$1000,MATCH("略取誘拐・人身売買",認知罪種本年!$D$5:$D$1000,0),MATCH($A12,認知罪種本年!$E$4:$U$4,0)),0) -> 14 | AF12: =IFERROR(INDEX(認知罪種前年!$E$5:$U$1000,MATCH("凶悪犯",認知罪種前年!$D$5:$D$1000,0),MATCH($A12,認知罪種前年!$E$4:$U$4,0))+INDEX(認知罪種前年!$E$5:$U$1000,MATCH("強制わいせつ",認知罪種前年!$D$5:$D$1000,0),MATCH($A12,認知罪種前年!$E$4:$U$4,0))+INDEX(認知罪種前年!$E$5:$U$1000,MATCH("略取誘拐・人身売買",認知罪種前年!$D$5:$D$1000,0),MATCH($A12,認知罪種前年!$E$4:$U$4,0)),0) -> 9 | AG12: =IFERROR(INDEX(検挙罪種本年!$E$5:$U$1000,MATCH("凶悪犯",検挙罪種本年!$D$5:$D$1000,0),MATCH($A12,検挙罪種本年!$E$4:$U$4,0))+INDEX(検挙罪種本年!$E$5:$U$1000,MATCH("強制わいせつ",検挙罪種本年!$D$5:$D$1000,0),MATCH($A12,検挙罪種本年!$E$4:$U$4,0))+INDEX(検挙罪種本年!$E$5:$U$1000,MATCH("略取誘拐・人身売買",検挙罪種本年!$D$5:$D$1000,0),MATCH($A12,検挙罪種本年!$E$4:$U$4,0)),0) -> 8 | AH12: =IFERROR(INDEX(検挙罪種前年!$E$5:$U$1000,MATCH("凶悪犯",検挙罪種前年!$D$5:$D$1000,0),MATCH($A12,検挙罪種前年!$E$4:$U$4,0))+INDEX(検挙罪種前年!$E$5:$U$1000,MATCH("強制わいせつ",検挙罪種前年!$D$5:$D$1000,0),MATCH($A12,検挙罪種前年!$E$4:$U$4,0))+INDEX(検挙罪種前年!$E$5:$U$1000,MATCH("略取誘拐・人身売買",検挙罪種前年!$D$5:$D$1000,0),MATCH($A12,検挙罪種前年!$E$4:$U$4,0)),0) -> 11 | AI12: =IFERROR(INDEX(人員罪種本年!$E$5:$U$1000,MATCH("凶悪犯",人員罪種本年!$D$5:$D$1000,0),MATCH($A12,人員罪種本年!$E$4:$U$4,0))+INDEX(人員罪種本年!$E$5:$U$1000,MATCH("強制わいせつ",人員罪種本年!$D$5:$D$1000,0),MATCH($A12,人員罪種本年!$E$4:$U$4,0))+INDEX(人員罪種本年!$E$5:$U$1000,MATCH("略取誘拐・人身売買",人員罪種本年!$D$5:$D$1000,0),MATCH($A12,人員罪種本年!$E$4:$U$4,0)),0) -> 8 | AJ12: =IFERROR(INDEX(人員罪種前年!$E$5:$U$1000,MATCH("凶悪犯",人員罪種前年!$D$5:$D$1000,0),MATCH($A12,人員罪種前年!$E$4:$U$4,0))+INDEX(人員罪種前年!$E$5:$U$1000,MATCH("強制わいせつ",人員罪種前年!$D$5:$D$1000,0),MATCH($A12,人員罪種前年!$E$4:$U$4,0))+INDEX(人員罪種前年!$E$5:$U$1000,MATCH("略取誘拐・人身売買",人員罪種前年!$D$5:$D$1000,0),MATCH($A12,人員罪種前年!$E$4:$U$4,0)),0) -> 7 | AK12: =IFERROR(INDEX(少年罪種本年!$E$5:$U$1000,MATCH("凶悪犯",少年罪種本年!$D$5:$D$1000,0),MATCH($A12,少年罪種本年!$E$4:$U$4,0))+INDEX(少年罪種本年!$E$5:$U$1000,MATCH("強制わいせつ",少年罪種本年!$D$5:$D$1000,0),MATCH($A12,少年罪種本年!$E$4:$U$4,0))+INDEX(少年罪種本年!$E$5:$U$1000,MATCH("略取誘拐・人身売買",少年罪種本年!$D$5:$D$1000,0),MATCH($A12,少年罪種本年!$E$4:$U$4,0)),0) -> 0 | AL12: =IFERROR(INDEX(少年罪種前年!$E$5:$U$1000,MATCH("凶悪犯",少年罪種前年!$D$5:$D$1000,0),MATCH($A12,少年罪種前年!$E$4:$U$4,0))+INDEX(少年罪種前年!$E$5:$U$1000,MATCH("強制わいせつ",少年罪種前年!$D$5:$D$1000,0),MATCH($A12,少年罪種前年!$E$4:$U$4,0))+INDEX(少年罪種前年!$E$5:$U$1000,MATCH("略取誘拐・人身売買",少年罪種前年!$D$5:$D$1000,0),MATCH($A12,少年罪種前年!$E$4:$U$4,0)),0) -> 0 | AN12: =IFERROR(INDEX(認知罪種本年!$E$5:$U$1000,MATCH("侵入窃盗",認知罪種本年!$D$5:$D$1000,0),MATCH($A12,認知罪種本年!$E$4:$U$4,0))+INDEX(認知罪種本年!$E$5:$U$1000,MATCH("自動車盗（キーあり）",認知罪種本年!$D$5:$D$1000,0),MATCH($A12,認知罪種本年!$E$4:$U$4,0))+INDEX(認知罪種本年!$E$5:$U$1000,MATCH("自動車盗（キーなし）",認知罪種本年!$D$5:$D$1000,0),MATCH($A12,認知罪種本年!$E$4:$U$4,0))+INDEX(認知罪種本年!$E$5:$U$1000,MATCH("ひったくり",認知罪種本年!$D$5:$D$1000,0),MATCH($A12,認知罪種本年!$E$4:$U$4,0))+INDEX(認知罪種本年!$E$5:$U$1000,MATCH("すり",認知罪種本年!$D$5:$D$1000,0),MATCH($A12,認知罪種本年!$E$4:$U$4,0)),0) -> 54 | AO12: =IFERROR(INDEX(認知罪種前年!$E$5:$U$1000,MATCH("侵入窃盗",認知罪種前年!$D$5:$D$1000,0),MATCH($A12,認知罪種前年!$E$4:$U$4,0))+INDEX(認知罪種前年!$E$5:$U$1000,MATCH("自動車盗（キーあり）",認知罪種前年!$D$5:$D$1000,0),MATCH($A12,認知罪種前年!$E$4:$U$4,0))+INDEX(認知罪種前年!$E$5:$U$1000,MATCH("自動車盗（キーなし）",認知罪種前年!$D$5:$D$1000,0),MATCH($A12,認知罪種前年!$E$4:$U$4,0))+INDEX(認知罪種前年!$E$5:$U$1000,MATCH("ひったくり",認知罪種前年!$D$5:$D$1000,0),MATCH($A12,認知罪種前年!$E$4:$U$4,0))+INDEX(認知罪種前年!$E$5:$U$1000,MATCH("すり",認知罪種前年!$D$5:$D$1000,0),MATCH($A12,認知罪種前年!$E$4:$U$4,0)),0) -> 71 | AP12: =IFERROR(INDEX(検挙罪種本年!$E$5:$U$1000,MATCH("侵入窃盗",検挙罪種本年!$D$5:$D$1000,0),MATCH($A12,検挙罪種本年!$E$4:$U$4,0))+INDEX(検挙罪種本年!$E$5:$U$1000,MATCH("自動車盗（キーあり）",検挙罪種本年!$D$5:$D$1000,0),MATCH($A12,検挙罪種本年!$E$4:$U$4,0))+INDEX(検挙罪種本年!$E$5:$U$1000,MATCH("自動車盗（キーなし）",検挙罪種本年!$D$5:$D$1000,0),MATCH($A12,検挙罪種本年!$E$4:$U$4,0))+INDEX(検挙罪種本年!$E$5:$U$1000,MATCH("ひったくり",検挙罪種本年!$D$5:$D$1000,0),MATCH($A12,検挙罪種本年!$E$4:$U$4,0))+INDEX(検挙罪種本年!$E$5:$U$1000,MATCH("すり",検挙罪種本年!$D$5:$D$1000,0),MATCH($A12,検挙罪種本年!$E$4:$U$4,0)),0) -> 40 | AQ12: =IFERROR(INDEX(検挙罪種前年!$E$5:$U$1000,MATCH("侵入窃盗",検挙罪種前年!$D$5:$D$1000,0),MATCH($A12,検挙罪種前年!$E$4:$U$4,0))+INDEX(検挙罪種前年!$E$5:$U$1000,MATCH("自動車盗（キーあり）",検挙罪種前年!$D$5:$D$1000,0),MATCH($A12,検挙罪種前年!$E$4:$U$4,0))+INDEX(検挙罪種前年!$E$5:$U$1000,MATCH("自動車盗（キーなし）",検挙罪種前年!$D$5:$D$1000,0),MATCH($A12,検挙罪種前年!$E$4:$U$4,0))+INDEX(検挙罪種前年!$E$5:$U$1000,MATCH("ひったくり",検挙罪種前年!$D$5:$D$1000,0),MATCH($A12,検挙罪種前年!$E$4:$U$4,0))+INDEX(検挙罪種前年!$E$5:$U$1000,MATCH("すり",検挙罪種前年!$D$5:$D$1000,0),MATCH($A12,検挙罪種前年!$E$4:$U$4,0)),0) -> 45 | AR12: =IFERROR(INDEX(人員罪種本年!$E$5:$U$1000,MATCH("侵入窃盗",人員罪種本年!$D$5:$D$1000,0),MATCH($A12,人員罪種本年!$E$4:$U$4,0))+INDEX(人員罪種本年!$E$5:$U$1000,MATCH("自動車盗（キーあり）",人員罪種本年!$D$5:$D$1000,0),MATCH($A12,人員罪種本年!$E$4:$U$4,0))+INDEX(人員罪種本年!$E$5:$U$1000,MATCH("自動車盗（キーなし）",人員罪種本年!$D$5:$D$1000,0),MATCH($A12,人員罪種本年!$E$4:$U$4,0))+INDEX(人員罪種本年!$E$5:$U$1000,MATCH("ひったくり",人員罪種本年!$D$5:$D$1000,0),MATCH($A12,人員罪種本年!$E$4:$U$4,0))+INDEX(人員罪種本年!$E$5:$U$1000,MATCH("すり",人員罪種本年!$D$5:$D$1000,0),MATCH($A12,人員罪種本年!$E$4:$U$4,0)),0) -> 10 | AS12: =IFERROR(INDEX(人員罪種前年!$E$5:$U$1000,MATCH("侵入窃盗",人員罪種前年!$D$5:$D$1000,0),MATCH($A12,人員罪種前年!$E$4:$U$4,0))+INDEX(人員罪種前年!$E$5:$U$1000,MATCH("自動車盗（キーあり）",人員罪種前年!$D$5:$D$1000,0),MATCH($A12,人員罪種前年!$E$4:$U$4,0))+INDEX(人員罪種前年!$E$5:$U$1000,MATCH("自動車盗（キーなし）",人員罪種前年!$D$5:$D$1000,0),MATCH($A12,人員罪種前年!$E$4:$U$4,0))+INDEX(人員罪種前年!$E$5:$U$1000,MATCH("ひったくり",人員罪種前年!$D$5:$D$1000,0),MATCH($A12,人員罪種前年!$E$4:$U$4,0))+INDEX(人員罪種前年!$E$5:$U$1000,MATCH("すり",人員罪種前年!$D$5:$D$1000,0),MATCH($A12,人員罪種前年!$E$4:$U$4,0)),0) -> 15 | AT12: =IFERROR(INDEX(少年罪種本年!$E$5:$U$1000,MATCH("侵入窃盗",少年罪種本年!$D$5:$D$1000,0),MATCH($A12,少年罪種本年!$E$4:$U$4,0))+INDEX(少年罪種本年!$E$5:$U$1000,MATCH("自動車盗（キーあり）",少年罪種本年!$D$5:$D$1000,0),MATCH($A12,少年罪種本年!$E$4:$U$4,0))+INDEX(少年罪種本年!$E$5:$U$1000,MATCH("自動車盗（キーなし）",少年罪種本年!$D$5:$D$1000,0),MATCH($A12,少年罪種本年!$E$4:$U$4,0))+INDEX(少年罪種本年!$E$5:$U$1000,MATCH("ひったくり",少年罪種本年!$D$5:$D$1000,0),MATCH($A12,少年罪種本年!$E$4:$U$4,0))+INDEX(少年罪種本年!$E$5:$U$1000,MATCH("すり",少年罪種本年!$D$5:$D$1000,0),MATCH($A12,少年罪種本年!$E$4:$U$4,0)),0) -> 2 | AU12: =IFERROR(INDEX(少年罪種前年!$E$5:$U$1000,MATCH("侵入窃盗",少年罪種前年!$D$5:$D$1000,0),MATCH($A12,少年罪種前年!$E$4:$U$4,0))+INDEX(少年罪種前年!$E$5:$U$1000,MATCH("自動車盗（キーあり）",少年罪種前年!$D$5:$D$1000,0),MATCH($A12,少年罪種前年!$E$4:$U$4,0))+INDEX(少年罪種前年!$E$5:$U$1000,MATCH("自動車盗（キーなし）",少年罪種前年!$D$5:$D$1000,0),MATCH($A12,少年罪種前年!$E$4:$U$4,0))+INDEX(少年罪種前年!$E$5:$U$1000,MATCH("ひったくり",少年罪種前年!$D$5:$D$1000,0),MATCH($A12,少年罪種前年!$E$4:$U$4,0))+INDEX(少年罪種前年!$E$5:$U$1000,MATCH("すり",少年罪種前年!$D$5:$D$1000,0),MATCH($A12,少年罪種前年!$E$4:$U$4,0)),0) -> 3
A13: 彦根 | B13: 589 | C13: 707 | D13: -118 | E13: -16.69024045 | F13: 296 | G13: 241 | H13: 55 | I13: 22.82157676 | J13: 50.3 | K13: 34.1 | L13: 16.2 | M13: 202 | N13: 184 | O13: 18 | P13: 9.782608696 | Q13: 21 | R13: 33 | S13: -12 | T13: -36.36363636 | V13: =IFERROR(INDEX(認知罪種本年!$E$5:$U$1000,MATCH($W$2,認知罪種本年!$D$5:$D$1000,0),MATCH($A13,認知罪種本年!$E$4:$U$4,0))+INDEX(認知罪種本年!$E$5:$U$1000,MATCH($AA$2,認知罪種本年!$D$5:$D$1000,0),MATCH($A13,認知罪種本年!$E$4:$U$4,0)),0) -> 0 | W13: =IFERROR(INDEX(認知罪種前年!$E$5:$U$1000,MATCH($W$2,認知罪種前年!$D$5:$D$1000,0),MATCH($A13,認知罪種前年!$E$4:$U$4,0))+INDEX(認知罪種前年!$E$5:$U$1000,MATCH($AA$2,認知罪種前年!$D$5:$D$1000,0),MATCH($A13,認知罪種前年!$E$4:$U$4,0)),0) -> 0 | X13: =IFERROR(INDEX(検挙罪種本年!$E$5:$U$1000,MATCH($W$2,検挙罪種本年!$D$5:$D$1000,0),MATCH($A13,検挙罪種本年!$E$4:$U$4,0))+INDEX(検挙罪種本年!$E$5:$U$1000,MATCH($AA$2,検挙罪種本年!$D$5:$D$1000,0),MATCH($A13,検挙罪種本年!$E$4:$U$4,0)),0) -> 0 | Y13: =IFERROR(INDEX(検挙罪種前年!$E$5:$U$1000,MATCH($W$2,検挙罪種前年!$D$5:$D$1000,0),MATCH($A13,検挙罪種前年!$E$4:$U$4,0))+INDEX(検挙罪種前年!$E$5:$U$1000,MATCH($AA$2,検挙罪種前年!$D$5:$D$1000,0),MATCH($A13,検挙罪種前年!$E$4:$U$4,0)),0) -> 0 | Z13: =IFERROR(INDEX(人員罪種本年!$E$5:$U$1000,MATCH($W$2,人員罪種本年!$D$5:$D$1000,0),MATCH($A13,人員罪種本年!$E$4:$U$4,0))+INDEX(人員罪種本年!$E$5:$U$1000,MATCH($AA$2,人員罪種本年!$D$5:$D$1000,0),MATCH($A13,人員罪種本年!$E$4:$U$4,0)),0) -> 0 | AA13: =IFERROR(INDEX(人員罪種前年!$E$5:$U$1000,MATCH($W$2,人員罪種前年!$D$5:$D$1000,0),MATCH($A13,人員罪種前年!$E$4:$U$4,0))+INDEX(人員罪種前年!$E$5:$U$1000,MATCH($AA$2,人員罪種前年!$D$5:$D$1000,0),MATCH($A13,人員罪種前年!$E$4:$U$4,0)),0) -> 0 | AB13: =IFERROR(INDEX(少年罪種本年!$E$5:$U$1000,MATCH($W$2,少年罪種本年!$D$5:$D$1000,0),MATCH($A13,少年罪種本年!$E$4:$U$4,0))+INDEX(少年罪種本年!$E$5:$U$1000,MATCH($AA$2,少年罪種本年!$D$5:$D$1000,0),MATCH($A13,少年罪種本年!$E$4:$U$4,0)),0) -> 0 | AC13: =IFERROR(INDEX(少年罪種前年!$E$5:$U$1000,MATCH($W$2,少年罪種前年!$D$5:$D$1000,0),MATCH($A13,少年罪種前年!$E$4:$U$4,0))+INDEX(少年罪種前年!$E$5:$U$1000,MATCH($AA$2,少年罪種前年!$D$5:$D$1000,0),MATCH($A13,少年罪種前年!$E$4:$U$4,0)),0) -> 0 | AE13: =IFERROR(INDEX(認知罪種本年!$E$5:$U$1000,MATCH("凶悪犯",認知罪種本年!$D$5:$D$1000,0),MATCH($A13,認知罪種本年!$E$4:$U$4,0))+INDEX(認知罪種本年!$E$5:$U$1000,MATCH("強制わいせつ",認知罪種本年!$D$5:$D$1000,0),MATCH($A13,認知罪種本年!$E$4:$U$4,0))+INDEX(認知罪種本年!$E$5:$U$1000,MATCH("略取誘拐・人身売買",認知罪種本年!$D$5:$D$1000,0),MATCH($A13,認知罪種本年!$E$4:$U$4,0)),0) -> 9 | AF13: =IFERROR(INDEX(認知罪種前年!$E$5:$U$1000,MATCH("凶悪犯",認知罪種前年!$D$5:$D$1000,0),MATCH($A13,認知罪種前年!$E$4:$U$4,0))+INDEX(認知罪種前年!$E$5:$U$1000,MATCH("強制わいせつ",認知罪種前年!$D$5:$D$1000,0),MATCH($A13,認知罪種前年!$E$4:$U$4,0))+INDEX(認知罪種前年!$E$5:$U$1000,MATCH("略取誘拐・人身売買",認知罪種前年!$D$5:$D$1000,0),MATCH($A13,認知罪種前年!$E$4:$U$4,0)),0) -> 9 | AG13: =IFERROR(INDEX(検挙罪種本年!$E$5:$U$1000,MATCH("凶悪犯",検挙罪種本年!$D$5:$D$1000,0),MATCH($A13,検挙罪種本年!$E$4:$U$4,0))+INDEX(検挙罪種本年!$E$5:$U$1000,MATCH("強制わいせつ",検挙罪種本年!$D$5:$D$1000,0),MATCH($A13,検挙罪種本年!$E$4:$U$4,0))+INDEX(検挙罪種本年!$E$5:$U$1000,MATCH("略取誘拐・人身売買",検挙罪種本年!$D$5:$D$1000,0),MATCH($A13,検挙罪種本年!$E$4:$U$4,0)),0) -> 7 | AH13: =IFERROR(INDEX(検挙罪種前年!$E$5:$U$1000,MATCH("凶悪犯",検挙罪種前年!$D$5:$D$1000,0),MATCH($A13,検挙罪種前年!$E$4:$U$4,0))+INDEX(検挙罪種前年!$E$5:$U$1000,MATCH("強制わいせつ",検挙罪種前年!$D$5:$D$1000,0),MATCH($A13,検挙罪種前年!$E$4:$U$4,0))+INDEX(検挙罪種前年!$E$5:$U$1000,MATCH("略取誘拐・人身売買",検挙罪種前年!$D$5:$D$1000,0),MATCH($A13,検挙罪種前年!$E$4:$U$4,0)),0) -> 13 | AI13: =IFERROR(INDEX(人員罪種本年!$E$5:$U$1000,MATCH("凶悪犯",人員罪種本年!$D$5:$D$1000,0),MATCH($A13,人員罪種本年!$E$4:$U$4,0))+INDEX(人員罪種本年!$E$5:$U$1000,MATCH("強制わいせつ",人員罪種本年!$D$5:$D$1000,0),MATCH($A13,人員罪種本年!$E$4:$U$4,0))+INDEX(人員罪種本年!$E$5:$U$1000,MATCH("略取誘拐・人身売買",人員罪種本年!$D$5:$D$1000,0),MATCH($A13,人員罪種本年!$E$4:$U$4,0)),0) -> 10 | AJ13: =IFERROR(INDEX(人員罪種前年!$E$5:$U$1000,MATCH("凶悪犯",人員罪種前年!$D$5:$D$1000,0),MATCH($A13,人員罪種前年!$E$4:$U$4,0))+INDEX(人員罪種前年!$E$5:$U$1000,MATCH("強制わいせつ",人員罪種前年!$D$5:$D$1000,0),MATCH($A13,人員罪種前年!$E$4:$U$4,0))+INDEX(人員罪種前年!$E$5:$U$1000,MATCH("略取誘拐・人身売買",人員罪種前年!$D$5:$D$1000,0),MATCH($A13,人員罪種前年!$E$4:$U$4,0)),0) -> 12 | AK13: =IFERROR(INDEX(少年罪種本年!$E$5:$U$1000,MATCH("凶悪犯",少年罪種本年!$D$5:$D$1000,0),MATCH($A13,少年罪種本年!$E$4:$U$4,0))+INDEX(少年罪種本年!$E$5:$U$1000,MATCH("強制わいせつ",少年罪種本年!$D$5:$D$1000,0),MATCH($A13,少年罪種本年!$E$4:$U$4,0))+INDEX(少年罪種本年!$E$5:$U$1000,MATCH("略取誘拐・人身売買",少年罪種本年!$D$5:$D$1000,0),MATCH($A13,少年罪種本年!$E$4:$U$4,0)),0) -> 2 | AL13: =IFERROR(INDEX(少年罪種前年!$E$5:$U$1000,MATCH("凶悪犯",少年罪種前年!$D$5:$D$1000,0),MATCH($A13,少年罪種前年!$E$4:$U$4,0))+INDEX(少年罪種前年!$E$5:$U$1000,MATCH("強制わいせつ",少年罪種前年!$D$5:$D$1000,0),MATCH($A13,少年罪種前年!$E$4:$U$4,0))+INDEX(少年罪種前年!$E$5:$U$1000,MATCH("略取誘拐・人身売買",少年罪種前年!$D$5:$D$1000,0),MATCH($A13,少年罪種前年!$E$4:$U$4,0)),0) -> 6 | AN13: =IFERROR(INDEX(認知罪種本年!$E$5:$U$1000,MATCH("侵入窃盗",認知罪種本年!$D$5:$D$1000,0),MATCH($A13,認知罪種本年!$E$4:$U$4,0))+INDEX(認知罪種本年!$E$5:$U$1000,MATCH("自動車盗（キーあり）",認知罪種本年!$D$5:$D$1000,0),MATCH($A13,認知罪種本年!$E$4:$U$4,0))+INDEX(認知罪種本年!$E$5:$U$1000,MATCH("自動車盗（キーなし）",認知罪種本年!$D$5:$D$1000,0),MATCH($A13,認知罪種本年!$E$4:$U$4,0))+INDEX(認知罪種本年!$E$5:$U$1000,MATCH("ひったくり",認知罪種本年!$D$5:$D$1000,0),MATCH($A13,認知罪種本年!$E$4:$U$4,0))+INDEX(認知罪種本年!$E$5:$U$1000,MATCH("すり",認知罪種本年!$D$5:$D$1000,0),MATCH($A13,認知罪種本年!$E$4:$U$4,0)),0) -> 49 | AO13: =IFERROR(INDEX(認知罪種前年!$E$5:$U$1000,MATCH("侵入窃盗",認知罪種前年!$D$5:$D$1000,0),MATCH($A13,認知罪種前年!$E$4:$U$4,0))+INDEX(認知罪種前年!$E$5:$U$1000,MATCH("自動車盗（キーあり）",認知罪種前年!$D$5:$D$1000,0),MATCH($A13,認知罪種前年!$E$4:$U$4,0))+INDEX(認知罪種前年!$E$5:$U$1000,MATCH("自動車盗（キーなし）",認知罪種前年!$D$5:$D$1000,0),MATCH($A13,認知罪種前年!$E$4:$U$4,0))+INDEX(認知罪種前年!$E$5:$U$1000,MATCH("ひったくり",認知罪種前年!$D$5:$D$1000,0),MATCH($A13,認知罪種前年!$E$4:$U$4,0))+INDEX(認知罪種前年!$E$5:$U$1000,MATCH("すり",認知罪種前年!$D$5:$D$1000,0),MATCH($A13,認知罪種前年!$E$4:$U$4,0)),0) -> 63 | AP13: =IFERROR(INDEX(検挙罪種本年!$E$5:$U$1000,MATCH("侵入窃盗",検挙罪種本年!$D$5:$D$1000,0),MATCH($A13,検挙罪種本年!$E$4:$U$4,0))+INDEX(検挙罪種本年!$E$5:$U$1000,MATCH("自動車盗（キーあり）",検挙罪種本年!$D$5:$D$1000,0),MATCH($A13,検挙罪種本年!$E$4:$U$4,0))+INDEX(検挙罪種本年!$E$5:$U$1000,MATCH("自動車盗（キーなし）",検挙罪種本年!$D$5:$D$1000,0),MATCH($A13,検挙罪種本年!$E$4:$U$4,0))+INDEX(検挙罪種本年!$E$5:$U$1000,MATCH("ひったくり",検挙罪種本年!$D$5:$D$1000,0),MATCH($A13,検挙罪種本年!$E$4:$U$4,0))+INDEX(検挙罪種本年!$E$5:$U$1000,MATCH("すり",検挙罪種本年!$D$5:$D$1000,0),MATCH($A13,検挙罪種本年!$E$4:$U$4,0)),0) -> 48 | AQ13: =IFERROR(INDEX(検挙罪種前年!$E$5:$U$1000,MATCH("侵入窃盗",検挙罪種前年!$D$5:$D$1000,0),MATCH($A13,検挙罪種前年!$E$4:$U$4,0))+INDEX(検挙罪種前年!$E$5:$U$1000,MATCH("自動車盗（キーあり）",検挙罪種前年!$D$5:$D$1000,0),MATCH($A13,検挙罪種前年!$E$4:$U$4,0))+INDEX(検挙罪種前年!$E$5:$U$1000,MATCH("自動車盗（キーなし）",検挙罪種前年!$D$5:$D$1000,0),MATCH($A13,検挙罪種前年!$E$4:$U$4,0))+INDEX(検挙罪種前年!$E$5:$U$1000,MATCH("ひったくり",検挙罪種前年!$D$5:$D$1000,0),MATCH($A13,検挙罪種前年!$E$4:$U$4,0))+INDEX(検挙罪種前年!$E$5:$U$1000,MATCH("すり",検挙罪種前年!$D$5:$D$1000,0),MATCH($A13,検挙罪種前年!$E$4:$U$4,0)),0) -> 31 | AR13: =IFERROR(INDEX(人員罪種本年!$E$5:$U$1000,MATCH("侵入窃盗",人員罪種本年!$D$5:$D$1000,0),MATCH($A13,人員罪種本年!$E$4:$U$4,0))+INDEX(人員罪種本年!$E$5:$U$1000,MATCH("自動車盗（キーあり）",人員罪種本年!$D$5:$D$1000,0),MATCH($A13,人員罪種本年!$E$4:$U$4,0))+INDEX(人員罪種本年!$E$5:$U$1000,MATCH("自動車盗（キーなし）",人員罪種本年!$D$5:$D$1000,0),MATCH($A13,人員罪種本年!$E$4:$U$4,0))+INDEX(人員罪種本年!$E$5:$U$1000,MATCH("ひったくり",人員罪種本年!$D$5:$D$1000,0),MATCH($A13,人員罪種本年!$E$4:$U$4,0))+INDEX(人員罪種本年!$E$5:$U$1000,MATCH("すり",人員罪種本年!$D$5:$D$1000,0),MATCH($A13,人員罪種本年!$E$4:$U$4,0)),0) -> 15 | AS13: =IFERROR(INDEX(人員罪種前年!$E$5:$U$1000,MATCH("侵入窃盗",人員罪種前年!$D$5:$D$1000,0),MATCH($A13,人員罪種前年!$E$4:$U$4,0))+INDEX(人員罪種前年!$E$5:$U$1000,MATCH("自動車盗（キーあり）",人員罪種前年!$D$5:$D$1000,0),MATCH($A13,人員罪種前年!$E$4:$U$4,0))+INDEX(人員罪種前年!$E$5:$U$1000,MATCH("自動車盗（キーなし）",人員罪種前年!$D$5:$D$1000,0),MATCH($A13,人員罪種前年!$E$4:$U$4,0))+INDEX(人員罪種前年!$E$5:$U$1000,MATCH("ひったくり",人員罪種前年!$D$5:$D$1000,0),MATCH($A13,人員罪種前年!$E$4:$U$4,0))+INDEX(人員罪種前年!$E$5:$U$1000,MATCH("すり",人員罪種前年!$D$5:$D$1000,0),MATCH($A13,人員罪種前年!$E$4:$U$4,0)),0) -> 13 | AT13: =IFERROR(INDEX(少年罪種本年!$E$5:$U$1000,MATCH("侵入窃盗",少年罪種本年!$D$5:$D$1000,0),MATCH($A13,少年罪種本年!$E$4:$U$4,0))+INDEX(少年罪種本年!$E$5:$U$1000,MATCH("自動車盗（キーあり）",少年罪種本年!$D$5:$D$1000,0),MATCH($A13,少年罪種本年!$E$4:$U$4,0))+INDEX(少年罪種本年!$E$5:$U$1000,MATCH("自動車盗（キーなし）",少年罪種本年!$D$5:$D$1000,0),MATCH($A13,少年罪種本年!$E$4:$U$4,0))+INDEX(少年罪種本年!$E$5:$U$1000,MATCH("ひったくり",少年罪種本年!$D$5:$D$1000,0),MATCH($A13,少年罪種本年!$E$4:$U$4,0))+INDEX(少年罪種本年!$E$5:$U$1000,MATCH("すり",少年罪種本年!$D$5:$D$1000,0),MATCH($A13,少年罪種本年!$E$4:$U$4,0)),0) -> 3 | AU13: =IFERROR(INDEX(少年罪種前年!$E$5:$U$1000,MATCH("侵入窃盗",少年罪種前年!$D$5:$D$1000,0),MATCH($A13,少年罪種前年!$E$4:$U$4,0))+INDEX(少年罪種前年!$E$5:$U$1000,MATCH("自動車盗（キーあり）",少年罪種前年!$D$5:$D$1000,0),MATCH($A13,少年罪種前年!$E$4:$U$4,0))+INDEX(少年罪種前年!$E$5:$U$1000,MATCH("自動車盗（キーなし）",少年罪種前年!$D$5:$D$1000,0),MATCH($A13,少年罪種前年!$E$4:$U$4,0))+INDEX(少年罪種前年!$E$5:$U$1000,MATCH("ひったくり",少年罪種前年!$D$5:$D$1000,0),MATCH($A13,少年罪種前年!$E$4:$U$4,0))+INDEX(少年罪種前年!$E$5:$U$1000,MATCH("すり",少年罪種前年!$D$5:$D$1000,0),MATCH($A13,少年罪種前年!$E$4:$U$4,0)),0) -> 2
A14: 米原 | B14: 114 | C14: 134 | D14: -20 | E14: -14.92537313 | F14: 75 | G14: 56 | H14: 19 | I14: 33.92857143 | J14: 65.8 | K14: 41.8 | L14: 24 | M14: 37 | N14: 35 | O14: 2 | P14: 5.714285714 | Q14: 1 | R14: 1 | S14: 0 | T14: 0 | V14: =IFERROR(INDEX(認知罪種本年!$E$5:$U$1000,MATCH($W$2,認知罪種本年!$D$5:$D$1000,0),MATCH($A14,認知罪種本年!$E$4:$U$4,0))+INDEX(認知罪種本年!$E$5:$U$1000,MATCH($AA$2,認知罪種本年!$D$5:$D$1000,0),MATCH($A14,認知罪種本年!$E$4:$U$4,0)),0) -> 0 | W14: =IFERROR(INDEX(認知罪種前年!$E$5:$U$1000,MATCH($W$2,認知罪種前年!$D$5:$D$1000,0),MATCH($A14,認知罪種前年!$E$4:$U$4,0))+INDEX(認知罪種前年!$E$5:$U$1000,MATCH($AA$2,認知罪種前年!$D$5:$D$1000,0),MATCH($A14,認知罪種前年!$E$4:$U$4,0)),0) -> 0 | X14: =IFERROR(INDEX(検挙罪種本年!$E$5:$U$1000,MATCH($W$2,検挙罪種本年!$D$5:$D$1000,0),MATCH($A14,検挙罪種本年!$E$4:$U$4,0))+INDEX(検挙罪種本年!$E$5:$U$1000,MATCH($AA$2,検挙罪種本年!$D$5:$D$1000,0),MATCH($A14,検挙罪種本年!$E$4:$U$4,0)),0) -> 0 | Y14: =IFERROR(INDEX(検挙罪種前年!$E$5:$U$1000,MATCH($W$2,検挙罪種前年!$D$5:$D$1000,0),MATCH($A14,検挙罪種前年!$E$4:$U$4,0))+INDEX(検挙罪種前年!$E$5:$U$1000,MATCH($AA$2,検挙罪種前年!$D$5:$D$1000,0),MATCH($A14,検挙罪種前年!$E$4:$U$4,0)),0) -> 0 | Z14: =IFERROR(INDEX(人員罪種本年!$E$5:$U$1000,MATCH($W$2,人員罪種本年!$D$5:$D$1000,0),MATCH($A14,人員罪種本年!$E$4:$U$4,0))+INDEX(人員罪種本年!$E$5:$U$1000,MATCH($AA$2,人員罪種本年!$D$5:$D$1000,0),MATCH($A14,人員罪種本年!$E$4:$U$4,0)),0) -> 0 | AA14: =IFERROR(INDEX(人員罪種前年!$E$5:$U$1000,MATCH($W$2,人員罪種前年!$D$5:$D$1000,0),MATCH($A14,人員罪種前年!$E$4:$U$4,0))+INDEX(人員罪種前年!$E$5:$U$1000,MATCH($AA$2,人員罪種前年!$D$5:$D$1000,0),MATCH($A14,人員罪種前年!$E$4:$U$4,0)),0) -> 0 | AB14: =IFERROR(INDEX(少年罪種本年!$E$5:$U$1000,MATCH($W$2,少年罪種本年!$D$5:$D$1000,0),MATCH($A14,少年罪種本年!$E$4:$U$4,0))+INDEX(少年罪種本年!$E$5:$U$1000,MATCH($AA$2,少年罪種本年!$D$5:$D$1000,0),MATCH($A14,少年罪種本年!$E$4:$U$4,0)),0) -> 0 | AC14: =IFERROR(INDEX(少年罪種前年!$E$5:$U$1000,MATCH($W$2,少年罪種前年!$D$5:$D$1000,0),MATCH($A14,少年罪種前年!$E$4:$U$4,0))+INDEX(少年罪種前年!$E$5:$U$1000,MATCH($AA$2,少年罪種前年!$D$5:$D$1000,0),MATCH($A14,少年罪種前年!$E$4:$U$4,0)),0) -> 0 | AE14: =IFERROR(INDEX(認知罪種本年!$E$5:$U$1000,MATCH("凶悪犯",認知罪種本年!$D$5:$D$1000,0),MATCH($A14,認知罪種本年!$E$4:$U$4,0))+INDEX(認知罪種本年!$E$5:$U$1000,MATCH("強制わいせつ",認知罪種本年!$D$5:$D$1000,0),MATCH($A14,認知罪種本年!$E$4:$U$4,0))+INDEX(認知罪種本年!$E$5:$U$1000,MATCH("略取誘拐・人身売買",認知罪種本年!$D$5:$D$1000,0),MATCH($A14,認知罪種本年!$E$4:$U$4,0)),0) -> 2 | AF14: =IFERROR(INDEX(認知罪種前年!$E$5:$U$1000,MATCH("凶悪犯",認知罪種前年!$D$5:$D$1000,0),MATCH($A14,認知罪種前年!$E$4:$U$4,0))+INDEX(認知罪種前年!$E$5:$U$1000,MATCH("強制わいせつ",認知罪種前年!$D$5:$D$1000,0),MATCH($A14,認知罪種前年!$E$4:$U$4,0))+INDEX(認知罪種前年!$E$5:$U$1000,MATCH("略取誘拐・人身売買",認知罪種前年!$D$5:$D$1000,0),MATCH($A14,認知罪種前年!$E$4:$U$4,0)),0) -> 2 | AG14: =IFERROR(INDEX(検挙罪種本年!$E$5:$U$1000,MATCH("凶悪犯",検挙罪種本年!$D$5:$D$1000,0),MATCH($A14,検挙罪種本年!$E$4:$U$4,0))+INDEX(検挙罪種本年!$E$5:$U$1000,MATCH("強制わいせつ",検挙罪種本年!$D$5:$D$1000,0),MATCH($A14,検挙罪種本年!$E$4:$U$4,0))+INDEX(検挙罪種本年!$E$5:$U$1000,MATCH("略取誘拐・人身売買",検挙罪種本年!$D$5:$D$1000,0),MATCH($A14,検挙罪種本年!$E$4:$U$4,0)),0) -> 1 | AH14: =IFERROR(INDEX(検挙罪種前年!$E$5:$U$1000,MATCH("凶悪犯",検挙罪種前年!$D$5:$D$1000,0),MATCH($A14,検挙罪種前年!$E$4:$U$4,0))+INDEX(検挙罪種前年!$E$5:$U$1000,MATCH("強制わいせつ",検挙罪種前年!$D$5:$D$1000,0),MATCH($A14,検挙罪種前年!$E$4:$U$4,0))+INDEX(検挙罪種前年!$E$5:$U$1000,MATCH("略取誘拐・人身売買",検挙罪種前年!$D$5:$D$1000,0),MATCH($A14,検挙罪種前年!$E$4:$U$4,0)),0) -> 1 | AI14: =IFERROR(INDEX(人員罪種本年!$E$5:$U$1000,MATCH("凶悪犯",人員罪種本年!$D$5:$D$1000,0),MATCH($A14,人員罪種本年!$E$4:$U$4,0))+INDEX(人員罪種本年!$E$5:$U$1000,MATCH("強制わいせつ",人員罪種本年!$D$5:$D$1000,0),MATCH($A14,人員罪種本年!$E$4:$U$4,0))+INDEX(人員罪種本年!$E$5:$U$1000,MATCH("略取誘拐・人身売買",人員罪種本年!$D$5:$D$1000,0),MATCH($A14,人員罪種本年!$E$4:$U$4,0)),0) -> 1 | AJ14: =IFERROR(INDEX(人員罪種前年!$E$5:$U$1000,MATCH("凶悪犯",人員罪種前年!$D$5:$D$1000,0),MATCH($A14,人員罪種前年!$E$4:$U$4,0))+INDEX(人員罪種前年!$E$5:$U$1000,MATCH("強制わいせつ",人員罪種前年!$D$5:$D$1000,0),MATCH($A14,人員罪種前年!$E$4:$U$4,0))+INDEX(人員罪種前年!$E$5:$U$1000,MATCH("略取誘拐・人身売買",人員罪種前年!$D$5:$D$1000,0),MATCH($A14,人員罪種前年!$E$4:$U$4,0)),0) -> 1 | AK14: =IFERROR(INDEX(少年罪種本年!$E$5:$U$1000,MATCH("凶悪犯",少年罪種本年!$D$5:$D$1000,0),MATCH($A14,少年罪種本年!$E$4:$U$4,0))+INDEX(少年罪種本年!$E$5:$U$1000,MATCH("強制わいせつ",少年罪種本年!$D$5:$D$1000,0),MATCH($A14,少年罪種本年!$E$4:$U$4,0))+INDEX(少年罪種本年!$E$5:$U$1000,MATCH("略取誘拐・人身売買",少年罪種本年!$D$5:$D$1000,0),MATCH($A14,少年罪種本年!$E$4:$U$4,0)),0) -> 0 | AL14: =IFERROR(INDEX(少年罪種前年!$E$5:$U$1000,MATCH("凶悪犯",少年罪種前年!$D$5:$D$1000,0),MATCH($A14,少年罪種前年!$E$4:$U$4,0))+INDEX(少年罪種前年!$E$5:$U$1000,MATCH("強制わいせつ",少年罪種前年!$D$5:$D$1000,0),MATCH($A14,少年罪種前年!$E$4:$U$4,0))+INDEX(少年罪種前年!$E$5:$U$1000,MATCH("略取誘拐・人身売買",少年罪種前年!$D$5:$D$1000,0),MATCH($A14,少年罪種前年!$E$4:$U$4,0)),0) -> 0 | AN14: =IFERROR(INDEX(認知罪種本年!$E$5:$U$1000,MATCH("侵入窃盗",認知罪種本年!$D$5:$D$1000,0),MATCH($A14,認知罪種本年!$E$4:$U$4,0))+INDEX(認知罪種本年!$E$5:$U$1000,MATCH("自動車盗（キーあり）",認知罪種本年!$D$5:$D$1000,0),MATCH($A14,認知罪種本年!$E$4:$U$4,0))+INDEX(認知罪種本年!$E$5:$U$1000,MATCH("自動車盗（キーなし）",認知罪種本年!$D$5:$D$1000,0),MATCH($A14,認知罪種本年!$E$4:$U$4,0))+INDEX(認知罪種本年!$E$5:$U$1000,MATCH("ひったくり",認知罪種本年!$D$5:$D$1000,0),MATCH($A14,認知罪種本年!$E$4:$U$4,0))+INDEX(認知罪種本年!$E$5:$U$1000,MATCH("すり",認知罪種本年!$D$5:$D$1000,0),MATCH($A14,認知罪種本年!$E$4:$U$4,0)),0) -> 21 | AO14: =IFERROR(INDEX(認知罪種前年!$E$5:$U$1000,MATCH("侵入窃盗",認知罪種前年!$D$5:$D$1000,0),MATCH($A14,認知罪種前年!$E$4:$U$4,0))+INDEX(認知罪種前年!$E$5:$U$1000,MATCH("自動車盗（キーあり）",認知罪種前年!$D$5:$D$1000,0),MATCH($A14,認知罪種前年!$E$4:$U$4,0))+INDEX(認知罪種前年!$E$5:$U$1000,MATCH("自動車盗（キーなし）",認知罪種前年!$D$5:$D$1000,0),MATCH($A14,認知罪種前年!$E$4:$U$4,0))+INDEX(認知罪種前年!$E$5:$U$1000,MATCH("ひったくり",認知罪種前年!$D$5:$D$1000,0),MATCH($A14,認知罪種前年!$E$4:$U$4,0))+INDEX(認知罪種前年!$E$5:$U$1000,MATCH("すり",認知罪種前年!$D$5:$D$1000,0),MATCH($A14,認知罪種前年!$E$4:$U$4,0)),0) -> 19 | AP14: =IFERROR(INDEX(検挙罪種本年!$E$5:$U$1000,MATCH("侵入窃盗",検挙罪種本年!$D$5:$D$1000,0),MATCH($A14,検挙罪種本年!$E$4:$U$4,0))+INDEX(検挙罪種本年!$E$5:$U$1000,MATCH("自動車盗（キーあり）",検挙罪種本年!$D$5:$D$1000,0),MATCH($A14,検挙罪種本年!$E$4:$U$4,0))+INDEX(検挙罪種本年!$E$5:$U$1000,MATCH("自動車盗（キーなし）",検挙罪種本年!$D$5:$D$1000,0),MATCH($A14,検挙罪種本年!$E$4:$U$4,0))+INDEX(検挙罪種本年!$E$5:$U$1000,MATCH("ひったくり",検挙罪種本年!$D$5:$D$1000,0),MATCH($A14,検挙罪種本年!$E$4:$U$4,0))+INDEX(検挙罪種本年!$E$5:$U$1000,MATCH("すり",検挙罪種本年!$D$5:$D$1000,0),MATCH($A14,検挙罪種本年!$E$4:$U$4,0)),0) -> 17 | AQ14: =IFERROR(INDEX(検挙罪種前年!$E$5:$U$1000,MATCH("侵入窃盗",検挙罪種前年!$D$5:$D$1000,0),MATCH($A14,検挙罪種前年!$E$4:$U$4,0))+INDEX(検挙罪種前年!$E$5:$U$1000,MATCH("自動車盗（キーあり）",検挙罪種前年!$D$5:$D$1000,0),MATCH($A14,検挙罪種前年!$E$4:$U$4,0))+INDEX(検挙罪種前年!$E$5:$U$1000,MATCH("自動車盗（キーなし）",検挙罪種前年!$D$5:$D$1000,0),MATCH($A14,検挙罪種前年!$E$4:$U$4,0))+INDEX(検挙罪種前年!$E$5:$U$1000,MATCH("ひったくり",検挙罪種前年!$D$5:$D$1000,0),MATCH($A14,検挙罪種前年!$E$4:$U$4,0))+INDEX(検挙罪種前年!$E$5:$U$1000,MATCH("すり",検挙罪種前年!$D$5:$D$1000,0),MATCH($A14,検挙罪種前年!$E$4:$U$4,0)),0) -> 4 | AR14: =IFERROR(INDEX(人員罪種本年!$E$5:$U$1000,MATCH("侵入窃盗",人員罪種本年!$D$5:$D$1000,0),MATCH($A14,人員罪種本年!$E$4:$U$4,0))+INDEX(人員罪種本年!$E$5:$U$1000,MATCH("自動車盗（キーあり）",人員罪種本年!$D$5:$D$1000,0),MATCH($A14,人員罪種本年!$E$4:$U$4,0))+INDEX(人員罪種本年!$E$5:$U$1000,MATCH("自動車盗（キーなし）",人員罪種本年!$D$5:$D$1000,0),MATCH($A14,人員罪種本年!$E$4:$U$4,0))+INDEX(人員罪種本年!$E$5:$U$1000,MATCH("ひったくり",人員罪種本年!$D$5:$D$1000,0),MATCH($A14,人員罪種本年!$E$4:$U$4,0))+INDEX(人員罪種本年!$E$5:$U$1000,MATCH("すり",人員罪種本年!$D$5:$D$1000,0),MATCH($A14,人員罪種本年!$E$4:$U$4,0)),0) -> 6 | AS14: =IFERROR(INDEX(人員罪種前年!$E$5:$U$1000,MATCH("侵入窃盗",人員罪種前年!$D$5:$D$1000,0),MATCH($A14,人員罪種前年!$E$4:$U$4,0))+INDEX(人員罪種前年!$E$5:$U$1000,MATCH("自動車盗（キーあり）",人員罪種前年!$D$5:$D$1000,0),MATCH($A14,人員罪種前年!$E$4:$U$4,0))+INDEX(人員罪種前年!$E$5:$U$1000,MATCH("自動車盗（キーなし）",人員罪種前年!$D$5:$D$1000,0),MATCH($A14,人員罪種前年!$E$4:$U$4,0))+INDEX(人員罪種前年!$E$5:$U$1000,MATCH("ひったくり",人員罪種前年!$D$5:$D$1000,0),MATCH($A14,人員罪種前年!$E$4:$U$4,0))+INDEX(人員罪種前年!$E$5:$U$1000,MATCH("すり",人員罪種前年!$D$5:$D$1000,0),MATCH($A14,人員罪種前年!$E$4:$U$4,0)),0) -> 1 | AT14: =IFERROR(INDEX(少年罪種本年!$E$5:$U$1000,MATCH("侵入窃盗",少年罪種本年!$D$5:$D$1000,0),MATCH($A14,少年罪種本年!$E$4:$U$4,0))+INDEX(少年罪種本年!$E$5:$U$1000,MATCH("自動車盗（キーあり）",少年罪種本年!$D$5:$D$1000,0),MATCH($A14,少年罪種本年!$E$4:$U$4,0))+INDEX(少年罪種本年!$E$5:$U$1000,MATCH("自動車盗（キーなし）",少年罪種本年!$D$5:$D$1000,0),MATCH($A14,少年罪種本年!$E$4:$U$4,0))+INDEX(少年罪種本年!$E$5:$U$1000,MATCH("ひったくり",少年罪種本年!$D$5:$D$1000,0),MATCH($A14,少年罪種本年!$E$4:$U$4,0))+INDEX(少年罪種本年!$E$5:$U$1000,MATCH("すり",少年罪種本年!$D$5:$D$1000,0),MATCH($A14,少年罪種本年!$E$4:$U$4,0)),0) -> 0 | AU14: =IFERROR(INDEX(少年罪種前年!$E$5:$U$1000,MATCH("侵入窃盗",少年罪種前年!$D$5:$D$1000,0),MATCH($A14,少年罪種前年!$E$4:$U$4,0))+INDEX(少年罪種前年!$E$5:$U$1000,MATCH("自動車盗（キーあり）",少年罪種前年!$D$5:$D$1000,0),MATCH($A14,少年罪種前年!$E$4:$U$4,0))+INDEX(少年罪種前年!$E$5:$U$1000,MATCH("自動車盗（キーなし）",少年罪種前年!$D$5:$D$1000,0),MATCH($A14,少年罪種前年!$E$4:$U$4,0))+INDEX(少年罪種前年!$E$5:$U$1000,MATCH("ひったくり",少年罪種前年!$D$5:$D$1000,0),MATCH($A14,少年罪種前年!$E$4:$U$4,0))+INDEX(少年罪種前年!$E$5:$U$1000,MATCH("すり",少年罪種前年!$D$5:$D$1000,0),MATCH($A14,少年罪種前年!$E$4:$U$4,0)),0) -> 0
A15: 長浜 | B15: 394 | C15: 396 | D15: -2 | E15: -0.5050505051 | F15: 194 | G15: 185 | H15: 9 | I15: 4.864864865 | J15: 49.2 | K15: 46.7 | L15: 2.5 | M15: 139 | N15: 123 | O15: 16 | P15: 13.00813008 | Q15: 6 | R15: 12 | S15: -6 | T15: -50 | V15: =IFERROR(INDEX(認知罪種本年!$E$5:$U$1000,MATCH($W$2,認知罪種本年!$D$5:$D$1000,0),MATCH($A15,認知罪種本年!$E$4:$U$4,0))+INDEX(認知罪種本年!$E$5:$U$1000,MATCH($AA$2,認知罪種本年!$D$5:$D$1000,0),MATCH($A15,認知罪種本年!$E$4:$U$4,0)),0) -> 0 | W15: =IFERROR(INDEX(認知罪種前年!$E$5:$U$1000,MATCH($W$2,認知罪種前年!$D$5:$D$1000,0),MATCH($A15,認知罪種前年!$E$4:$U$4,0))+INDEX(認知罪種前年!$E$5:$U$1000,MATCH($AA$2,認知罪種前年!$D$5:$D$1000,0),MATCH($A15,認知罪種前年!$E$4:$U$4,0)),0) -> 0 | X15: =IFERROR(INDEX(検挙罪種本年!$E$5:$U$1000,MATCH($W$2,検挙罪種本年!$D$5:$D$1000,0),MATCH($A15,検挙罪種本年!$E$4:$U$4,0))+INDEX(検挙罪種本年!$E$5:$U$1000,MATCH($AA$2,検挙罪種本年!$D$5:$D$1000,0),MATCH($A15,検挙罪種本年!$E$4:$U$4,0)),0) -> 0 | Y15: =IFERROR(INDEX(検挙罪種前年!$E$5:$U$1000,MATCH($W$2,検挙罪種前年!$D$5:$D$1000,0),MATCH($A15,検挙罪種前年!$E$4:$U$4,0))+INDEX(検挙罪種前年!$E$5:$U$1000,MATCH($AA$2,検挙罪種前年!$D$5:$D$1000,0),MATCH($A15,検挙罪種前年!$E$4:$U$4,0)),0) -> 0 | Z15: =IFERROR(INDEX(人員罪種本年!$E$5:$U$1000,MATCH($W$2,人員罪種本年!$D$5:$D$1000,0),MATCH($A15,人員罪種本年!$E$4:$U$4,0))+INDEX(人員罪種本年!$E$5:$U$1000,MATCH($AA$2,人員罪種本年!$D$5:$D$1000,0),MATCH($A15,人員罪種本年!$E$4:$U$4,0)),0) -> 0 | AA15: =IFERROR(INDEX(人員罪種前年!$E$5:$U$1000,MATCH($W$2,人員罪種前年!$D$5:$D$1000,0),MATCH($A15,人員罪種前年!$E$4:$U$4,0))+INDEX(人員罪種前年!$E$5:$U$1000,MATCH($AA$2,人員罪種前年!$D$5:$D$1000,0),MATCH($A15,人員罪種前年!$E$4:$U$4,0)),0) -> 0 | AB15: =IFERROR(INDEX(少年罪種本年!$E$5:$U$1000,MATCH($W$2,少年罪種本年!$D$5:$D$1000,0),MATCH($A15,少年罪種本年!$E$4:$U$4,0))+INDEX(少年罪種本年!$E$5:$U$1000,MATCH($AA$2,少年罪種本年!$D$5:$D$1000,0),MATCH($A15,少年罪種本年!$E$4:$U$4,0)),0) -> 0 | AC15: =IFERROR(INDEX(少年罪種前年!$E$5:$U$1000,MATCH($W$2,少年罪種前年!$D$5:$D$1000,0),MATCH($A15,少年罪種前年!$E$4:$U$4,0))+INDEX(少年罪種前年!$E$5:$U$1000,MATCH($AA$2,少年罪種前年!$D$5:$D$1000,0),MATCH($A15,少年罪種前年!$E$4:$U$4,0)),0) -> 0 | AE15: =IFERROR(INDEX(認知罪種本年!$E$5:$U$1000,MATCH("凶悪犯",認知罪種本年!$D$5:$D$1000,0),MATCH($A15,認知罪種本年!$E$4:$U$4,0))+INDEX(認知罪種本年!$E$5:$U$1000,MATCH("強制わいせつ",認知罪種本年!$D$5:$D$1000,0),MATCH($A15,認知罪種本年!$E$4:$U$4,0))+INDEX(認知罪種本年!$E$5:$U$1000,MATCH("略取誘拐・人身売買",認知罪種本年!$D$5:$D$1000,0),MATCH($A15,認知罪種本年!$E$4:$U$4,0)),0) -> 5 | AF15: =IFERROR(INDEX(認知罪種前年!$E$5:$U$1000,MATCH("凶悪犯",認知罪種前年!$D$5:$D$1000,0),MATCH($A15,認知罪種前年!$E$4:$U$4,0))+INDEX(認知罪種前年!$E$5:$U$1000,MATCH("強制わいせつ",認知罪種前年!$D$5:$D$1000,0),MATCH($A15,認知罪種前年!$E$4:$U$4,0))+INDEX(認知罪種前年!$E$5:$U$1000,MATCH("略取誘拐・人身売買",認知罪種前年!$D$5:$D$1000,0),MATCH($A15,認知罪種前年!$E$4:$U$4,0)),0) -> 9 | AG15: =IFERROR(INDEX(検挙罪種本年!$E$5:$U$1000,MATCH("凶悪犯",検挙罪種本年!$D$5:$D$1000,0),MATCH($A15,検挙罪種本年!$E$4:$U$4,0))+INDEX(検挙罪種本年!$E$5:$U$1000,MATCH("強制わいせつ",検挙罪種本年!$D$5:$D$1000,0),MATCH($A15,検挙罪種本年!$E$4:$U$4,0))+INDEX(検挙罪種本年!$E$5:$U$1000,MATCH("略取誘拐・人身売買",検挙罪種本年!$D$5:$D$1000,0),MATCH($A15,検挙罪種本年!$E$4:$U$4,0)),0) -> 5 | AH15: =IFERROR(INDEX(検挙罪種前年!$E$5:$U$1000,MATCH("凶悪犯",検挙罪種前年!$D$5:$D$1000,0),MATCH($A15,検挙罪種前年!$E$4:$U$4,0))+INDEX(検挙罪種前年!$E$5:$U$1000,MATCH("強制わいせつ",検挙罪種前年!$D$5:$D$1000,0),MATCH($A15,検挙罪種前年!$E$4:$U$4,0))+INDEX(検挙罪種前年!$E$5:$U$1000,MATCH("略取誘拐・人身売買",検挙罪種前年!$D$5:$D$1000,0),MATCH($A15,検挙罪種前年!$E$4:$U$4,0)),0) -> 12 | AI15: =IFERROR(INDEX(人員罪種本年!$E$5:$U$1000,MATCH("凶悪犯",人員罪種本年!$D$5:$D$1000,0),MATCH($A15,人員罪種本年!$E$4:$U$4,0))+INDEX(人員罪種本年!$E$5:$U$1000,MATCH("強制わいせつ",人員罪種本年!$D$5:$D$1000,0),MATCH($A15,人員罪種本年!$E$4:$U$4,0))+INDEX(人員罪種本年!$E$5:$U$1000,MATCH("略取誘拐・人身売買",人員罪種本年!$D$5:$D$1000,0),MATCH($A15,人員罪種本年!$E$4:$U$4,0)),0) -> 11 | AJ15: =IFERROR(INDEX(人員罪種前年!$E$5:$U$1000,MATCH("凶悪犯",人員罪種前年!$D$5:$D$1000,0),MATCH($A15,人員罪種前年!$E$4:$U$4,0))+INDEX(人員罪種前年!$E$5:$U$1000,MATCH("強制わいせつ",人員罪種前年!$D$5:$D$1000,0),MATCH($A15,人員罪種前年!$E$4:$U$4,0))+INDEX(人員罪種前年!$E$5:$U$1000,MATCH("略取誘拐・人身売買",人員罪種前年!$D$5:$D$1000,0),MATCH($A15,人員罪種前年!$E$4:$U$4,0)),0) -> 7 | AK15: =IFERROR(INDEX(少年罪種本年!$E$5:$U$1000,MATCH("凶悪犯",少年罪種本年!$D$5:$D$1000,0),MATCH($A15,少年罪種本年!$E$4:$U$4,0))+INDEX(少年罪種本年!$E$5:$U$1000,MATCH("強制わいせつ",少年罪種本年!$D$5:$D$1000,0),MATCH($A15,少年罪種本年!$E$4:$U$4,0))+INDEX(少年罪種本年!$E$5:$U$1000,MATCH("略取誘拐・人身売買",少年罪種本年!$D$5:$D$1000,0),MATCH($A15,少年罪種本年!$E$4:$U$4,0)),0) -> 0 | AL15: =IFERROR(INDEX(少年罪種前年!$E$5:$U$1000,MATCH("凶悪犯",少年罪種前年!$D$5:$D$1000,0),MATCH($A15,少年罪種前年!$E$4:$U$4,0))+INDEX(少年罪種前年!$E$5:$U$1000,MATCH("強制わいせつ",少年罪種前年!$D$5:$D$1000,0),MATCH($A15,少年罪種前年!$E$4:$U$4,0))+INDEX(少年罪種前年!$E$5:$U$1000,MATCH("略取誘拐・人身売買",少年罪種前年!$D$5:$D$1000,0),MATCH($A15,少年罪種前年!$E$4:$U$4,0)),0) -> 1 | AN15: =IFERROR(INDEX(認知罪種本年!$E$5:$U$1000,MATCH("侵入窃盗",認知罪種本年!$D$5:$D$1000,0),MATCH($A15,認知罪種本年!$E$4:$U$4,0))+INDEX(認知罪種本年!$E$5:$U$1000,MATCH("自動車盗（キーあり）",認知罪種本年!$D$5:$D$1000,0),MATCH($A15,認知罪種本年!$E$4:$U$4,0))+INDEX(認知罪種本年!$E$5:$U$1000,MATCH("自動車盗（キーなし）",認知罪種本年!$D$5:$D$1000,0),MATCH($A15,認知罪種本年!$E$4:$U$4,0))+INDEX(認知罪種本年!$E$5:$U$1000,MATCH("ひったくり",認知罪種本年!$D$5:$D$1000,0),MATCH($A15,認知罪種本年!$E$4:$U$4,0))+INDEX(認知罪種本年!$E$5:$U$1000,MATCH("すり",認知罪種本年!$D$5:$D$1000,0),MATCH($A15,認知罪種本年!$E$4:$U$4,0)),0) -> 24 | AO15: =IFERROR(INDEX(認知罪種前年!$E$5:$U$1000,MATCH("侵入窃盗",認知罪種前年!$D$5:$D$1000,0),MATCH($A15,認知罪種前年!$E$4:$U$4,0))+INDEX(認知罪種前年!$E$5:$U$1000,MATCH("自動車盗（キーあり）",認知罪種前年!$D$5:$D$1000,0),MATCH($A15,認知罪種前年!$E$4:$U$4,0))+INDEX(認知罪種前年!$E$5:$U$1000,MATCH("自動車盗（キーなし）",認知罪種前年!$D$5:$D$1000,0),MATCH($A15,認知罪種前年!$E$4:$U$4,0))+INDEX(認知罪種前年!$E$5:$U$1000,MATCH("ひったくり",認知罪種前年!$D$5:$D$1000,0),MATCH($A15,認知罪種前年!$E$4:$U$4,0))+INDEX(認知罪種前年!$E$5:$U$1000,MATCH("すり",認知罪種前年!$D$5:$D$1000,0),MATCH($A15,認知罪種前年!$E$4:$U$4,0)),0) -> 15 | AP15: =IFERROR(INDEX(検挙罪種本年!$E$5:$U$1000,MATCH("侵入窃盗",検挙罪種本年!$D$5:$D$1000,0),MATCH($A15,検挙罪種本年!$E$4:$U$4,0))+INDEX(検挙罪種本年!$E$5:$U$1000,MATCH("自動車盗（キーあり）",検挙罪種本年!$D$5:$D$1000,0),MATCH($A15,検挙罪種本年!$E$4:$U$4,0))+INDEX(検挙罪種本年!$E$5:$U$1000,MATCH("自動車盗（キーなし）",検挙罪種本年!$D$5:$D$1000,0),MATCH($A15,検挙罪種本年!$E$4:$U$4,0))+INDEX(検挙罪種本年!$E$5:$U$1000,MATCH("ひったくり",検挙罪種本年!$D$5:$D$1000,0),MATCH($A15,検挙罪種本年!$E$4:$U$4,0))+INDEX(検挙罪種本年!$E$5:$U$1000,MATCH("すり",検挙罪種本年!$D$5:$D$1000,0),MATCH($A15,検挙罪種本年!$E$4:$U$4,0)),0) -> 6 | AQ15: =IFERROR(INDEX(検挙罪種前年!$E$5:$U$1000,MATCH("侵入窃盗",検挙罪種前年!$D$5:$D$1000,0),MATCH($A15,検挙罪種前年!$E$4:$U$4,0))+INDEX(検挙罪種前年!$E$5:$U$1000,MATCH("自動車盗（キーあり）",検挙罪種前年!$D$5:$D$1000,0),MATCH($A15,検挙罪種前年!$E$4:$U$4,0))+INDEX(検挙罪種前年!$E$5:$U$1000,MATCH("自動車盗（キーなし）",検挙罪種前年!$D$5:$D$1000,0),MATCH($A15,検挙罪種前年!$E$4:$U$4,0))+INDEX(検挙罪種前年!$E$5:$U$1000,MATCH("ひったくり",検挙罪種前年!$D$5:$D$1000,0),MATCH($A15,検挙罪種前年!$E$4:$U$4,0))+INDEX(検挙罪種前年!$E$5:$U$1000,MATCH("すり",検挙罪種前年!$D$5:$D$1000,0),MATCH($A15,検挙罪種前年!$E$4:$U$4,0)),0) -> 5 | AR15: =IFERROR(INDEX(人員罪種本年!$E$5:$U$1000,MATCH("侵入窃盗",人員罪種本年!$D$5:$D$1000,0),MATCH($A15,人員罪種本年!$E$4:$U$4,0))+INDEX(人員罪種本年!$E$5:$U$1000,MATCH("自動車盗（キーあり）",人員罪種本年!$D$5:$D$1000,0),MATCH($A15,人員罪種本年!$E$4:$U$4,0))+INDEX(人員罪種本年!$E$5:$U$1000,MATCH("自動車盗（キーなし）",人員罪種本年!$D$5:$D$1000,0),MATCH($A15,人員罪種本年!$E$4:$U$4,0))+INDEX(人員罪種本年!$E$5:$U$1000,MATCH("ひったくり",人員罪種本年!$D$5:$D$1000,0),MATCH($A15,人員罪種本年!$E$4:$U$4,0))+INDEX(人員罪種本年!$E$5:$U$1000,MATCH("すり",人員罪種本年!$D$5:$D$1000,0),MATCH($A15,人員罪種本年!$E$4:$U$4,0)),0) -> 3 | AS15: =IFERROR(INDEX(人員罪種前年!$E$5:$U$1000,MATCH("侵入窃盗",人員罪種前年!$D$5:$D$1000,0),MATCH($A15,人員罪種前年!$E$4:$U$4,0))+INDEX(人員罪種前年!$E$5:$U$1000,MATCH("自動車盗（キーあり）",人員罪種前年!$D$5:$D$1000,0),MATCH($A15,人員罪種前年!$E$4:$U$4,0))+INDEX(人員罪種前年!$E$5:$U$1000,MATCH("自動車盗（キーなし）",人員罪種前年!$D$5:$D$1000,0),MATCH($A15,人員罪種前年!$E$4:$U$4,0))+INDEX(人員罪種前年!$E$5:$U$1000,MATCH("ひったくり",人員罪種前年!$D$5:$D$1000,0),MATCH($A15,人員罪種前年!$E$4:$U$4,0))+INDEX(人員罪種前年!$E$5:$U$1000,MATCH("すり",人員罪種前年!$D$5:$D$1000,0),MATCH($A15,人員罪種前年!$E$4:$U$4,0)),0) -> 4 | AT15: =IFERROR(INDEX(少年罪種本年!$E$5:$U$1000,MATCH("侵入窃盗",少年罪種本年!$D$5:$D$1000,0),MATCH($A15,少年罪種本年!$E$4:$U$4,0))+INDEX(少年罪種本年!$E$5:$U$1000,MATCH("自動車盗（キーあり）",少年罪種本年!$D$5:$D$1000,0),MATCH($A15,少年罪種本年!$E$4:$U$4,0))+INDEX(少年罪種本年!$E$5:$U$1000,MATCH("自動車盗（キーなし）",少年罪種本年!$D$5:$D$1000,0),MATCH($A15,少年罪種本年!$E$4:$U$4,0))+INDEX(少年罪種本年!$E$5:$U$1000,MATCH("ひったくり",少年罪種本年!$D$5:$D$1000,0),MATCH($A15,少年罪種本年!$E$4:$U$4,0))+INDEX(少年罪種本年!$E$5:$U$1000,MATCH("すり",少年罪種本年!$D$5:$D$1000,0),MATCH($A15,少年罪種本年!$E$4:$U$4,0)),0) -> 1 | AU15: =IFERROR(INDEX(少年罪種前年!$E$5:$U$1000,MATCH("侵入窃盗",少年罪種前年!$D$5:$D$1000,0),MATCH($A15,少年罪種前年!$E$4:$U$4,0))+INDEX(少年罪種前年!$E$5:$U$1000,MATCH("自動車盗（キーあり）",少年罪種前年!$D$5:$D$1000,0),MATCH($A15,少年罪種前年!$E$4:$U$4,0))+INDEX(少年罪種前年!$E$5:$U$1000,MATCH("自動車盗（キーなし）",少年罪種前年!$D$5:$D$1000,0),MATCH($A15,少年罪種前年!$E$4:$U$4,0))+INDEX(少年罪種前年!$E$5:$U$1000,MATCH("ひったくり",少年罪種前年!$D$5:$D$1000,0),MATCH($A15,少年罪種前年!$E$4:$U$4,0))+INDEX(少年罪種前年!$E$5:$U$1000,MATCH("すり",少年罪種前年!$D$5:$D$1000,0),MATCH($A15,少年罪種前年!$E$4:$U$4,0)),0) -> 0
A16: 木之本 | B16: 59 | C16: 54 | D16: 5 | E16: 9.259259259 | F16: 41 | G16: 25 | H16: 16 | I16: 64 | J16: 69.5 | K16: 46.3 | L16: 23.2 | M16: 26 | N16: 16 | O16: 10 | P16: 62.5 | Q16: 1 | R16: 0 | S16: 1 | T16: ― | V16: =IFERROR(INDEX(認知罪種本年!$E$5:$U$1000,MATCH($W$2,認知罪種本年!$D$5:$D$1000,0),MATCH($A16,認知罪種本年!$E$4:$U$4,0))+INDEX(認知罪種本年!$E$5:$U$1000,MATCH($AA$2,認知罪種本年!$D$5:$D$1000,0),MATCH($A16,認知罪種本年!$E$4:$U$4,0)),0) -> 0 | W16: =IFERROR(INDEX(認知罪種前年!$E$5:$U$1000,MATCH($W$2,認知罪種前年!$D$5:$D$1000,0),MATCH($A16,認知罪種前年!$E$4:$U$4,0))+INDEX(認知罪種前年!$E$5:$U$1000,MATCH($AA$2,認知罪種前年!$D$5:$D$1000,0),MATCH($A16,認知罪種前年!$E$4:$U$4,0)),0) -> 0 | X16: =IFERROR(INDEX(検挙罪種本年!$E$5:$U$1000,MATCH($W$2,検挙罪種本年!$D$5:$D$1000,0),MATCH($A16,検挙罪種本年!$E$4:$U$4,0))+INDEX(検挙罪種本年!$E$5:$U$1000,MATCH($AA$2,検挙罪種本年!$D$5:$D$1000,0),MATCH($A16,検挙罪種本年!$E$4:$U$4,0)),0) -> 0 | Y16: =IFERROR(INDEX(検挙罪種前年!$E$5:$U$1000,MATCH($W$2,検挙罪種前年!$D$5:$D$1000,0),MATCH($A16,検挙罪種前年!$E$4:$U$4,0))+INDEX(検挙罪種前年!$E$5:$U$1000,MATCH($AA$2,検挙罪種前年!$D$5:$D$1000,0),MATCH($A16,検挙罪種前年!$E$4:$U$4,0)),0) -> 0 | Z16: =IFERROR(INDEX(人員罪種本年!$E$5:$U$1000,MATCH($W$2,人員罪種本年!$D$5:$D$1000,0),MATCH($A16,人員罪種本年!$E$4:$U$4,0))+INDEX(人員罪種本年!$E$5:$U$1000,MATCH($AA$2,人員罪種本年!$D$5:$D$1000,0),MATCH($A16,人員罪種本年!$E$4:$U$4,0)),0) -> 0 | AA16: =IFERROR(INDEX(人員罪種前年!$E$5:$U$1000,MATCH($W$2,人員罪種前年!$D$5:$D$1000,0),MATCH($A16,人員罪種前年!$E$4:$U$4,0))+INDEX(人員罪種前年!$E$5:$U$1000,MATCH($AA$2,人員罪種前年!$D$5:$D$1000,0),MATCH($A16,人員罪種前年!$E$4:$U$4,0)),0) -> 0 | AB16: =IFERROR(INDEX(少年罪種本年!$E$5:$U$1000,MATCH($W$2,少年罪種本年!$D$5:$D$1000,0),MATCH($A16,少年罪種本年!$E$4:$U$4,0))+INDEX(少年罪種本年!$E$5:$U$1000,MATCH($AA$2,少年罪種本年!$D$5:$D$1000,0),MATCH($A16,少年罪種本年!$E$4:$U$4,0)),0) -> 0 | AC16: =IFERROR(INDEX(少年罪種前年!$E$5:$U$1000,MATCH($W$2,少年罪種前年!$D$5:$D$1000,0),MATCH($A16,少年罪種前年!$E$4:$U$4,0))+INDEX(少年罪種前年!$E$5:$U$1000,MATCH($AA$2,少年罪種前年!$D$5:$D$1000,0),MATCH($A16,少年罪種前年!$E$4:$U$4,0)),0) -> 0 | AE16: =IFERROR(INDEX(認知罪種本年!$E$5:$U$1000,MATCH("凶悪犯",認知罪種本年!$D$5:$D$1000,0),MATCH($A16,認知罪種本年!$E$4:$U$4,0))+INDEX(認知罪種本年!$E$5:$U$1000,MATCH("強制わいせつ",認知罪種本年!$D$5:$D$1000,0),MATCH($A16,認知罪種本年!$E$4:$U$4,0))+INDEX(認知罪種本年!$E$5:$U$1000,MATCH("略取誘拐・人身売買",認知罪種本年!$D$5:$D$1000,0),MATCH($A16,認知罪種本年!$E$4:$U$4,0)),0) -> 1 | AF16: =IFERROR(INDEX(認知罪種前年!$E$5:$U$1000,MATCH("凶悪犯",認知罪種前年!$D$5:$D$1000,0),MATCH($A16,認知罪種前年!$E$4:$U$4,0))+INDEX(認知罪種前年!$E$5:$U$1000,MATCH("強制わいせつ",認知罪種前年!$D$5:$D$1000,0),MATCH($A16,認知罪種前年!$E$4:$U$4,0))+INDEX(認知罪種前年!$E$5:$U$1000,MATCH("略取誘拐・人身売買",認知罪種前年!$D$5:$D$1000,0),MATCH($A16,認知罪種前年!$E$4:$U$4,0)),0) -> 0 | AG16: =IFERROR(INDEX(検挙罪種本年!$E$5:$U$1000,MATCH("凶悪犯",検挙罪種本年!$D$5:$D$1000,0),MATCH($A16,検挙罪種本年!$E$4:$U$4,0))+INDEX(検挙罪種本年!$E$5:$U$1000,MATCH("強制わいせつ",検挙罪種本年!$D$5:$D$1000,0),MATCH($A16,検挙罪種本年!$E$4:$U$4,0))+INDEX(検挙罪種本年!$E$5:$U$1000,MATCH("略取誘拐・人身売買",検挙罪種本年!$D$5:$D$1000,0),MATCH($A16,検挙罪種本年!$E$4:$U$4,0)),0) -> 0 | AH16: =IFERROR(INDEX(検挙罪種前年!$E$5:$U$1000,MATCH("凶悪犯",検挙罪種前年!$D$5:$D$1000,0),MATCH($A16,検挙罪種前年!$E$4:$U$4,0))+INDEX(検挙罪種前年!$E$5:$U$1000,MATCH("強制わいせつ",検挙罪種前年!$D$5:$D$1000,0),MATCH($A16,検挙罪種前年!$E$4:$U$4,0))+INDEX(検挙罪種前年!$E$5:$U$1000,MATCH("略取誘拐・人身売買",検挙罪種前年!$D$5:$D$1000,0),MATCH($A16,検挙罪種前年!$E$4:$U$4,0)),0) -> 0 | AI16: =IFERROR(INDEX(人員罪種本年!$E$5:$U$1000,MATCH("凶悪犯",人員罪種本年!$D$5:$D$1000,0),MATCH($A16,人員罪種本年!$E$4:$U$4,0))+INDEX(人員罪種本年!$E$5:$U$1000,MATCH("強制わいせつ",人員罪種本年!$D$5:$D$1000,0),MATCH($A16,人員罪種本年!$E$4:$U$4,0))+INDEX(人員罪種本年!$E$5:$U$1000,MATCH("略取誘拐・人身売買",人員罪種本年!$D$5:$D$1000,0),MATCH($A16,人員罪種本年!$E$4:$U$4,0)),0) -> 0 | AJ16: =IFERROR(INDEX(人員罪種前年!$E$5:$U$1000,MATCH("凶悪犯",人員罪種前年!$D$5:$D$1000,0),MATCH($A16,人員罪種前年!$E$4:$U$4,0))+INDEX(人員罪種前年!$E$5:$U$1000,MATCH("強制わいせつ",人員罪種前年!$D$5:$D$1000,0),MATCH($A16,人員罪種前年!$E$4:$U$4,0))+INDEX(人員罪種前年!$E$5:$U$1000,MATCH("略取誘拐・人身売買",人員罪種前年!$D$5:$D$1000,0),MATCH($A16,人員罪種前年!$E$4:$U$4,0)),0) -> 0 | AK16: =IFERROR(INDEX(少年罪種本年!$E$5:$U$1000,MATCH("凶悪犯",少年罪種本年!$D$5:$D$1000,0),MATCH($A16,少年罪種本年!$E$4:$U$4,0))+INDEX(少年罪種本年!$E$5:$U$1000,MATCH("強制わいせつ",少年罪種本年!$D$5:$D$1000,0),MATCH($A16,少年罪種本年!$E$4:$U$4,0))+INDEX(少年罪種本年!$E$5:$U$1000,MATCH("略取誘拐・人身売買",少年罪種本年!$D$5:$D$1000,0),MATCH($A16,少年罪種本年!$E$4:$U$4,0)),0) -> 0 | AL16: =IFERROR(INDEX(少年罪種前年!$E$5:$U$1000,MATCH("凶悪犯",少年罪種前年!$D$5:$D$1000,0),MATCH($A16,少年罪種前年!$E$4:$U$4,0))+INDEX(少年罪種前年!$E$5:$U$1000,MATCH("強制わいせつ",少年罪種前年!$D$5:$D$1000,0),MATCH($A16,少年罪種前年!$E$4:$U$4,0))+INDEX(少年罪種前年!$E$5:$U$1000,MATCH("略取誘拐・人身売買",少年罪種前年!$D$5:$D$1000,0),MATCH($A16,少年罪種前年!$E$4:$U$4,0)),0) -> 0 | AN16: =IFERROR(INDEX(認知罪種本年!$E$5:$U$1000,MATCH("侵入窃盗",認知罪種本年!$D$5:$D$1000,0),MATCH($A16,認知罪種本年!$E$4:$U$4,0))+INDEX(認知罪種本年!$E$5:$U$1000,MATCH("自動車盗（キーあり）",認知罪種本年!$D$5:$D$1000,0),MATCH($A16,認知罪種本年!$E$4:$U$4,0))+INDEX(認知罪種本年!$E$5:$U$1000,MATCH("自動車盗（キーなし）",認知罪種本年!$D$5:$D$1000,0),MATCH($A16,認知罪種本年!$E$4:$U$4,0))+INDEX(認知罪種本年!$E$5:$U$1000,MATCH("ひったくり",認知罪種本年!$D$5:$D$1000,0),MATCH($A16,認知罪種本年!$E$4:$U$4,0))+INDEX(認知罪種本年!$E$5:$U$1000,MATCH("すり",認知罪種本年!$D$5:$D$1000,0),MATCH($A16,認知罪種本年!$E$4:$U$4,0)),0) -> 8 | AO16: =IFERROR(INDEX(認知罪種前年!$E$5:$U$1000,MATCH("侵入窃盗",認知罪種前年!$D$5:$D$1000,0),MATCH($A16,認知罪種前年!$E$4:$U$4,0))+INDEX(認知罪種前年!$E$5:$U$1000,MATCH("自動車盗（キーあり）",認知罪種前年!$D$5:$D$1000,0),MATCH($A16,認知罪種前年!$E$4:$U$4,0))+INDEX(認知罪種前年!$E$5:$U$1000,MATCH("自動車盗（キーなし）",認知罪種前年!$D$5:$D$1000,0),MATCH($A16,認知罪種前年!$E$4:$U$4,0))+INDEX(認知罪種前年!$E$5:$U$1000,MATCH("ひったくり",認知罪種前年!$D$5:$D$1000,0),MATCH($A16,認知罪種前年!$E$4:$U$4,0))+INDEX(認知罪種前年!$E$5:$U$1000,MATCH("すり",認知罪種前年!$D$5:$D$1000,0),MATCH($A16,認知罪種前年!$E$4:$U$4,0)),0) -> 6 | AP16: =IFERROR(INDEX(検挙罪種本年!$E$5:$U$1000,MATCH("侵入窃盗",検挙罪種本年!$D$5:$D$1000,0),MATCH($A16,検挙罪種本年!$E$4:$U$4,0))+INDEX(検挙罪種本年!$E$5:$U$1000,MATCH("自動車盗（キーあり）",検挙罪種本年!$D$5:$D$1000,0),MATCH($A16,検挙罪種本年!$E$4:$U$4,0))+INDEX(検挙罪種本年!$E$5:$U$1000,MATCH("自動車盗（キーなし）",検挙罪種本年!$D$5:$D$1000,0),MATCH($A16,検挙罪種本年!$E$4:$U$4,0))+INDEX(検挙罪種本年!$E$5:$U$1000,MATCH("ひったくり",検挙罪種本年!$D$5:$D$1000,0),MATCH($A16,検挙罪種本年!$E$4:$U$4,0))+INDEX(検挙罪種本年!$E$5:$U$1000,MATCH("すり",検挙罪種本年!$D$5:$D$1000,0),MATCH($A16,検挙罪種本年!$E$4:$U$4,0)),0) -> 2 | AQ16: =IFERROR(INDEX(検挙罪種前年!$E$5:$U$1000,MATCH("侵入窃盗",検挙罪種前年!$D$5:$D$1000,0),MATCH($A16,検挙罪種前年!$E$4:$U$4,0))+INDEX(検挙罪種前年!$E$5:$U$1000,MATCH("自動車盗（キーあり）",検挙罪種前年!$D$5:$D$1000,0),MATCH($A16,検挙罪種前年!$E$4:$U$4,0))+INDEX(検挙罪種前年!$E$5:$U$1000,MATCH("自動車盗（キーなし）",検挙罪種前年!$D$5:$D$1000,0),MATCH($A16,検挙罪種前年!$E$4:$U$4,0))+INDEX(検挙罪種前年!$E$5:$U$1000,MATCH("ひったくり",検挙罪種前年!$D$5:$D$1000,0),MATCH($A16,検挙罪種前年!$E$4:$U$4,0))+INDEX(検挙罪種前年!$E$5:$U$1000,MATCH("すり",検挙罪種前年!$D$5:$D$1000,0),MATCH($A16,検挙罪種前年!$E$4:$U$4,0)),0) -> 1 | AR16: =IFERROR(INDEX(人員罪種本年!$E$5:$U$1000,MATCH("侵入窃盗",人員罪種本年!$D$5:$D$1000,0),MATCH($A16,人員罪種本年!$E$4:$U$4,0))+INDEX(人員罪種本年!$E$5:$U$1000,MATCH("自動車盗（キーあり）",人員罪種本年!$D$5:$D$1000,0),MATCH($A16,人員罪種本年!$E$4:$U$4,0))+INDEX(人員罪種本年!$E$5:$U$1000,MATCH("自動車盗（キーなし）",人員罪種本年!$D$5:$D$1000,0),MATCH($A16,人員罪種本年!$E$4:$U$4,0))+INDEX(人員罪種本年!$E$5:$U$1000,MATCH("ひったくり",人員罪種本年!$D$5:$D$1000,0),MATCH($A16,人員罪種本年!$E$4:$U$4,0))+INDEX(人員罪種本年!$E$5:$U$1000,MATCH("すり",人員罪種本年!$D$5:$D$1000,0),MATCH($A16,人員罪種本年!$E$4:$U$4,0)),0) -> 1 | AS16: =IFERROR(INDEX(人員罪種前年!$E$5:$U$1000,MATCH("侵入窃盗",人員罪種前年!$D$5:$D$1000,0),MATCH($A16,人員罪種前年!$E$4:$U$4,0))+INDEX(人員罪種前年!$E$5:$U$1000,MATCH("自動車盗（キーあり）",人員罪種前年!$D$5:$D$1000,0),MATCH($A16,人員罪種前年!$E$4:$U$4,0))+INDEX(人員罪種前年!$E$5:$U$1000,MATCH("自動車盗（キーなし）",人員罪種前年!$D$5:$D$1000,0),MATCH($A16,人員罪種前年!$E$4:$U$4,0))+INDEX(人員罪種前年!$E$5:$U$1000,MATCH("ひったくり",人員罪種前年!$D$5:$D$1000,0),MATCH($A16,人員罪種前年!$E$4:$U$4,0))+INDEX(人員罪種前年!$E$5:$U$1000,MATCH("すり",人員罪種前年!$D$5:$D$1000,0),MATCH($A16,人員罪種前年!$E$4:$U$4,0)),0) -> 1 | AT16: =IFERROR(INDEX(少年罪種本年!$E$5:$U$1000,MATCH("侵入窃盗",少年罪種本年!$D$5:$D$1000,0),MATCH($A16,少年罪種本年!$E$4:$U$4,0))+INDEX(少年罪種本年!$E$5:$U$1000,MATCH("自動車盗（キーあり）",少年罪種本年!$D$5:$D$1000,0),MATCH($A16,少年罪種本年!$E$4:$U$4,0))+INDEX(少年罪種本年!$E$5:$U$1000,MATCH("自動車盗（キーなし）",少年罪種本年!$D$5:$D$1000,0),MATCH($A16,少年罪種本年!$E$4:$U$4,0))+INDEX(少年罪種本年!$E$5:$U$1000,MATCH("ひったくり",少年罪種本年!$D$5:$D$1000,0),MATCH($A16,少年罪種本年!$E$4:$U$4,0))+INDEX(少年罪種本年!$E$5:$U$1000,MATCH("すり",少年罪種本年!$D$5:$D$1000,0),MATCH($A16,少年罪種本年!$E$4:$U$4,0)),0) -> 0 | AU16: =IFERROR(INDEX(少年罪種前年!$E$5:$U$1000,MATCH("侵入窃盗",少年罪種前年!$D$5:$D$1000,0),MATCH($A16,少年罪種前年!$E$4:$U$4,0))+INDEX(少年罪種前年!$E$5:$U$1000,MATCH("自動車盗（キーあり）",少年罪種前年!$D$5:$D$1000,0),MATCH($A16,少年罪種前年!$E$4:$U$4,0))+INDEX(少年罪種前年!$E$5:$U$1000,MATCH("自動車盗（キーなし）",少年罪種前年!$D$5:$D$1000,0),MATCH($A16,少年罪種前年!$E$4:$U$4,0))+INDEX(少年罪種前年!$E$5:$U$1000,MATCH("ひったくり",少年罪種前年!$D$5:$D$1000,0),MATCH($A16,少年罪種前年!$E$4:$U$4,0))+INDEX(少年罪種前年!$E$5:$U$1000,MATCH("すり",少年罪種前年!$D$5:$D$1000,0),MATCH($A16,少年罪種前年!$E$4:$U$4,0)),0) -> 0
